Workbook

Sheet Cover
C9: AusNet Services
C10: Business Case Evaluation
C11: Backup power for community hubs

Sheet 1_KMA->
C6: Key Modelling Assumptions
C7: Section 1.
C9: =Cover!$C$9 -> AusNet Services
C10: =Cover!$C$10 -> Business Case Evaluation
C11: =Cover!$C$11 -> Backup power for community hubs

Sheet 1_KMA
B1: Key Modelling Assumptions | I1: Regulatory Period Indicator | J1: ='1_KMA'!J30 -> 1 | K1: ='1_KMA'!K30 -> 1 | L1: ='1_KMA'!L30 -> 1 | M1: ='1_KMA'!M30 -> 1 | N1: ='1_KMA'!N30 -> 1 | O1: ='1_KMA'!O30 -> 0 | P1: ='1_KMA'!P30 -> 0 | Q1: ='1_KMA'!Q30 -> 0 | R1: ='1_KMA'!R30 -> 0 | S1: ='1_KMA'!S30 -> 0 | T1: ='1_KMA'!T30 -> 0 | U1: ='1_KMA'!U30 -> 0 | V1: ='1_KMA'!V30 -> 0 | W1: ='1_KMA'!W30 -> 0 | X1: ='1_KMA'!X30 -> 0 | Y1: ='1_KMA'!Y30 -> 0 | Z1: ='1_KMA'!Z30 -> 0 | AA1: ='1_KMA'!AA30 -> 0 | AB1: ='1_KMA'!AB30 -> 0 | AC1: ='1_KMA'!AC30 -> 0 | AD1: ='1_KMA'!AD30 -> 0 | AE1: ='1_KMA'!AE30 -> 0 | AF1: ='1_KMA'!AF30 -> 0 | AG1: ='1_KMA'!AG30 -> 0 | AH1: ='1_KMA'!AH30 -> 0 | AI1: ='1_KMA'!AI30 -> 0 | AJ1: ='1_KMA'!AJ30 -> 0 | AK1: ='1_KMA'!AK30 -> 0 | AL1: ='1_KMA'!AL30 -> 0 | AM1: ='1_KMA'!AM30 -> 0 | AN1: ='1_KMA'!AN30 -> 0 | AO1: ='1_KMA'!AO30 -> 0 | AP1: ='1_KMA'!AP30 -> 0 | AQ1: ='1_KMA'!AQ30 -> 0 | AR1: ='1_KMA'!AR30 -> 0 | AS1: ='1_KMA'!AS30 -> 0 | AT1: ='1_KMA'!AT30 -> 0 | AU1: ='1_KMA'!AU30 -> 0 | AV1: ='1_KMA'!AV30 -> 0 | AW1: ='1_KMA'!AW30 -> 0 | AX1: ='1_KMA'!AX30 -> 0 | AY1: ='1_KMA'!AY30 -> 0 | AZ1: ='1_KMA'!AZ30 -> 0 | BA1: ='1_KMA'!BA30 -> 0 | BB1: ='1_KMA'!BB30 -> 0 | BC1: ='1_KMA'!BC30 -> 0 | BD1: ='1_KMA'!BD30 -> 0 | BE1: ='1_KMA'!BE30 -> 0 | BF1: ='1_KMA'!BF30 -> 0 | BG1: ='1_KMA'!BG30 -> 0
B2: =Cover!$C$9 -> AusNet Services | I2: Period Start Date | J2: ='1_KMA'!J31 -> 2026-07-01 | K2: ='1_KMA'!K31 -> 2027-07-01 | L2: ='1_KMA'!L31 -> 2028-07-01 | M2: ='1_KMA'!M31 -> 2029-07-01 | N2: ='1_KMA'!N31 -> 2030-07-01 | O2: ='1_KMA'!O31 -> 2031-07-01 | P2: ='1_KMA'!P31 -> 2032-07-01 | Q2: ='1_KMA'!Q31 -> 2033-07-01 | R2: ='1_KMA'!R31 -> 2034-07-01 | S2: ='1_KMA'!S31 -> 2035-07-01 | T2: ='1_KMA'!T31 -> 2036-07-01 | U2: ='1_KMA'!U31 -> 2037-07-01 | V2: ='1_KMA'!V31 -> 2038-07-01 | W2: ='1_KMA'!W31 -> 2039-07-01 | X2: ='1_KMA'!X31 -> 2040-07-01 | Y2: ='1_KMA'!Y31 -> 2041-07-01 | Z2: ='1_KMA'!Z31 -> 2042-07-01 | AA2: ='1_KMA'!AA31 -> 2043-07-01 | AB2: ='1_KMA'!AB31 -> 2044-07-01 | AC2: ='1_KMA'!AC31 -> 2045-07-01 | AD2: ='1_KMA'!AD31 -> 2046-07-01 | AE2: ='1_KMA'!AE31 -> 2047-07-01 | AF2: ='1_KMA'!AF31 -> 2048-07-01 | AG2: ='1_KMA'!AG31 -> 2049-07-01 | AH2: ='1_KMA'!AH31 -> 2050-07-01 | AI2: ='1_KMA'!AI31 -> 2051-07-01 | AJ2: ='1_KMA'!AJ31 -> 2052-07-01 | AK2: ='1_KMA'!AK31 -> 2053-07-01 | AL2: ='1_KMA'!AL31 -> 2054-07-01 | AM2: ='1_KMA'!AM31 -> 2055-07-01 | AN2: ='1_KMA'!AN31 -> 2056-07-01 | AO2: ='1_KMA'!AO31 -> 2057-07-01 | AP2: ='1_KMA'!AP31 -> 2058-07-01 | AQ2: ='1_KMA'!AQ31 -> 2059-07-01 | AR2: ='1_KMA'!AR31 -> 2060-07-01 | AS2: ='1_KMA'!AS31 -> 2061-07-01 | AT2: ='1_KMA'!AT31 -> 2062-07-01 | AU2: ='1_KMA'!AU31 -> 2063-07-01 | AV2: ='1_KMA'!AV31 -> 2064-07-01 | AW2: ='1_KMA'!AW31 -> 2065-07-01 | AX2: ='1_KMA'!AX31 -> 2066-07-01 | AY2: ='1_KMA'!AY31 -> 2067-07-01 | AZ2: ='1_KMA'!AZ31 -> 2068-07-01 | BA2: ='1_KMA'!BA31 -> 2069-07-01 | BB2: ='1_KMA'!BB31 -> 2070-07-01 | BC2: ='1_KMA'!BC31 -> 2071-07-01 | BD2: ='1_KMA'!BD31 -> 2072-07-01 | BE2: ='1_KMA'!BE31 -> 2073-07-01 | BF2: ='1_KMA'!BF31 -> 2074-07-01 | BG2: ='1_KMA'!BG31 -> 2075-07-01
B3: =Cover!$C$10 -> Business Case Evaluation | I3: Period End Date | J3: ='1_KMA'!J32 -> 2027-06-30 | K3: ='1_KMA'!K32 -> 2028-06-30 | L3: ='1_KMA'!L32 -> 2029-06-30 | M3: ='1_KMA'!M32 -> 2030-06-30 | N3: ='1_KMA'!N32 -> 2031-06-30 | O3: ='1_KMA'!O32 -> 2032-06-30 | P3: ='1_KMA'!P32 -> 2033-06-30 | Q3: ='1_KMA'!Q32 -> 2034-06-30 | R3: ='1_KMA'!R32 -> 2035-06-30 | S3: ='1_KMA'!S32 -> 2036-06-30 | T3: ='1_KMA'!T32 -> 2037-06-30 | U3: ='1_KMA'!U32 -> 2038-06-30 | V3: ='1_KMA'!V32 -> 2039-06-30 | W3: ='1_KMA'!W32 -> 2040-06-30 | X3: ='1_KMA'!X32 -> 2041-06-30 | Y3: ='1_KMA'!Y32 -> 2042-06-30 | Z3: ='1_KMA'!Z32 -> 2043-06-30 | AA3: ='1_KMA'!AA32 -> 2044-06-30 | AB3: ='1_KMA'!AB32 -> 2045-06-30 | AC3: ='1_KMA'!AC32 -> 2046-06-30 | AD3: ='1_KMA'!AD32 -> 2047-06-30 | AE3: ='1_KMA'!AE32 -> 2048-06-30 | AF3: ='1_KMA'!AF32 -> 2049-06-30 | AG3: ='1_KMA'!AG32 -> 2050-06-30 | AH3: ='1_KMA'!AH32 -> 2051-06-30 | AI3: ='1_KMA'!AI32 -> 2052-06-30 | AJ3: ='1_KMA'!AJ32 -> 2053-06-30 | AK3: ='1_KMA'!AK32 -> 2054-06-30 | AL3: ='1_KMA'!AL32 -> 2055-06-30 | AM3: ='1_KMA'!AM32 -> 2056-06-30 | AN3: ='1_KMA'!AN32 -> 2057-06-30 | AO3: ='1_KMA'!AO32 -> 2058-06-30 | AP3: ='1_KMA'!AP32 -> 2059-06-30 | AQ3: ='1_KMA'!AQ32 -> 2060-06-30 | AR3: ='1_KMA'!AR32 -> 2061-06-30 | AS3: ='1_KMA'!AS32 -> 2062-06-30 | AT3: ='1_KMA'!AT32 -> 2063-06-30 | AU3: ='1_KMA'!AU32 -> 2064-06-30 | AV3: ='1_KMA'!AV32 -> 2065-06-30 | AW3: ='1_KMA'!AW32 -> 2066-06-30 | AX3: ='1_KMA'!AX32 -> 2067-06-30 | AY3: ='1_KMA'!AY32 -> 2068-06-30 | AZ3: ='1_KMA'!AZ32 -> 2069-06-30 | BA3: ='1_KMA'!BA32 -> 2070-06-30 | BB3: ='1_KMA'!BB32 -> 2071-06-30 | BC3: ='1_KMA'!BC32 -> 2072-06-30 | BD3: ='1_KMA'!BD32 -> 2073-06-30 | BE3: ='1_KMA'!BE32 -> 2074-06-30 | BF3: ='1_KMA'!BF32 -> 2075-06-30 | BG3: ='1_KMA'!BG32 -> 2076-06-30
B4: =Cover!$C$11 -> Backup power for community hubs | I4: Project Year | J4: ='1_KMA'!J33 -> 1 | K4: ='1_KMA'!K33 -> 2 | L4: ='1_KMA'!L33 -> 3 | M4: ='1_KMA'!M33 -> 4 | N4: ='1_KMA'!N33 -> 5 | O4: ='1_KMA'!O33 -> 6 | P4: ='1_KMA'!P33 -> 7 | Q4: ='1_KMA'!Q33 -> 8 | R4: ='1_KMA'!R33 -> 9 | S4: ='1_KMA'!S33 -> 10 | T4: ='1_KMA'!T33 -> 11 | U4: ='1_KMA'!U33 -> 12 | V4: ='1_KMA'!V33 -> 13 | W4: ='1_KMA'!W33 -> 14 | X4: ='1_KMA'!X33 -> 15 | Y4: ='1_KMA'!Y33 -> 16 | Z4: ='1_KMA'!Z33 -> 17 | AA4: ='1_KMA'!AA33 -> 18 | AB4: ='1_KMA'!AB33 -> 19 | AC4: ='1_KMA'!AC33 -> 20 | AD4: ='1_KMA'!AD33 -> 21 | AE4: ='1_KMA'!AE33 -> 22 | AF4: ='1_KMA'!AF33 -> 23 | AG4: ='1_KMA'!AG33 -> 24 | AH4: ='1_KMA'!AH33 -> 25 | AI4: ='1_KMA'!AI33 -> 26 | AJ4: ='1_KMA'!AJ33 -> 27 | AK4: ='1_KMA'!AK33 -> 28 | AL4: ='1_KMA'!AL33 -> 29 | AM4: ='1_KMA'!AM33 -> 30 | AN4: ='1_KMA'!AN33 -> 31 | AO4: ='1_KMA'!AO33 -> 32 | AP4: ='1_KMA'!AP33 -> 33 | AQ4: ='1_KMA'!AQ33 -> 34 | AR4: ='1_KMA'!AR33 -> 35 | AS4: ='1_KMA'!AS33 -> 36 | AT4: ='1_KMA'!AT33 -> 37 | AU4: ='1_KMA'!AU33 -> 38 | AV4: ='1_KMA'!AV33 -> 39 | AW4: ='1_KMA'!AW33 -> 40 | AX4: ='1_KMA'!AX33 -> 41 | AY4: ='1_KMA'!AY33 -> 42 | AZ4: ='1_KMA'!AZ33 -> 43 | BA4: ='1_KMA'!BA33 -> 44 | BB4: ='1_KMA'!BB33 -> 45 | BC4: ='1_KMA'!BC33 -> 46 | BD4: ='1_KMA'!BD33 -> 47 | BE4: ='1_KMA'!BE33 -> 48 | BF4: ='1_KMA'!BF33 -> 49 | BG4: ='1_KMA'!BG33 -> 50
I5: Financial Year | J5: ='1_KMA'!J34 -> 2027 | K5: ='1_KMA'!K34 -> 2028 | L5: ='1_KMA'!L34 -> 2029 | M5: ='1_KMA'!M34 -> 2030 | N5: ='1_KMA'!N34 -> 2031 | O5: ='1_KMA'!O34 -> 2032 | P5: ='1_KMA'!P34 -> 2033 | Q5: ='1_KMA'!Q34 -> 2034 | R5: ='1_KMA'!R34 -> 2035 | S5: ='1_KMA'!S34 -> 2036 | T5: ='1_KMA'!T34 -> 2037 | U5: ='1_KMA'!U34 -> 2038 | V5: ='1_KMA'!V34 -> 2039 | W5: ='1_KMA'!W34 -> 2040 | X5: ='1_KMA'!X34 -> 2041 | Y5: ='1_KMA'!Y34 -> 2042 | Z5: ='1_KMA'!Z34 -> 2043 | AA5: ='1_KMA'!AA34 -> 2044 | AB5: ='1_KMA'!AB34 -> 2045 | AC5: ='1_KMA'!AC34 -> 2046 | AD5: ='1_KMA'!AD34 -> 2047 | AE5: ='1_KMA'!AE34 -> 2048 | AF5: ='1_KMA'!AF34 -> 2049 | AG5: ='1_KMA'!AG34 -> 2050 | AH5: ='1_KMA'!AH34 -> 2051 | AI5: ='1_KMA'!AI34 -> 2052 | AJ5: ='1_KMA'!AJ34 -> 2053 | AK5: ='1_KMA'!AK34 -> 2054 | AL5: ='1_KMA'!AL34 -> 2055 | AM5: ='1_KMA'!AM34 -> 2056 | AN5: ='1_KMA'!AN34 -> 2057 | AO5: ='1_KMA'!AO34 -> 2058 | AP5: ='1_KMA'!AP34 -> 2059 | AQ5: ='1_KMA'!AQ34 -> 2060 | AR5: ='1_KMA'!AR34 -> 2061 | AS5: ='1_KMA'!AS34 -> 2062 | AT5: ='1_KMA'!AT34 -> 2063 | AU5: ='1_KMA'!AU34 -> 2064 | AV5: ='1_KMA'!AV34 -> 2065 | AW5: ='1_KMA'!AW34 -> 2066 | AX5: ='1_KMA'!AX34 -> 2067 | AY5: ='1_KMA'!AY34 -> 2068 | AZ5: ='1_KMA'!AZ34 -> 2069 | BA5: ='1_KMA'!BA34 -> 2070 | BB5: ='1_KMA'!BB34 -> 2071 | BC5: ='1_KMA'!BC34 -> 2072 | BD5: ='1_KMA'!BD34 -> 2073 | BE5: ='1_KMA'!BE34 -> 2074 | BF5: ='1_KMA'!BF34 -> 2075 | BG5: ='1_KMA'!BG34 -> 2076
B7: Project Details
B9: Option Name | E9: Description
B10: Base Case | E10: No Community Hubs
B11: Option 1 | E11: Community Hubs
B12: Option 2 | E12: [enter a description]
B13: Option 3 | E13: [enter a description]
B14: Option 4 | E14: [enter a description]
B15: Option 5 | E15: [enter a description]
B17: Modelling Controls
B19: Denomination of Entered Cashflows | I19: $millions
B20: Dollar Basis of Entered Value for all Parts of the Model | I20: 2024-06-30
B21: Dollar Basis Needed for EDPR | I21: 2024-06-30
B22: Model Start Date | I22: 2026-07-01
B23: Assessment Period (Years) | I23: 30
B24: Model End Date | I24: =EOMONTH(I22+(I23*365),0) -> 2056-06-30
B25: Regulatory Period Start Date | I25: 2026-07-01
B26: Regulatory Period End Date | I26: 2031-06-30
B27: CPI p.a. (for future periods withouta RBA forecast) | I27: 0.025
B28: Real vanilla WACC p.a. | I28: 0.0556
B30: Regulatory Period Indicator | J30: =IF(AND(J$31>=$I$25,J$32<=$I$26),1,0) -> 1 | K30: =IF(AND(K$31>=$I$25,K$32<=$I$26),1,0) -> 1 | L30: 1 | M30: 1 | N30: 1 | O30: 0 | P30: 0 | Q30: 0 | R30: 0 | S30: 0 | T30: 0 | U30: 0 | V30: 0 | W30: 0 | X30: 0 | Y30: 0 | Z30: 0 | AA30: 0 | AB30: 0 | AC30: 0 | AD30: 0 | AE30: 0 | AF30: 0 | AG30: 0 | AH30: 0 | AI30: 0 | AJ30: 0 | AK30: 0 | AL30: 0 | AM30: 0 | AN30: 0 | AO30: 0 | AP30: =IF(AND(AP$31>=$I$25,AP$32<=$I$26),1,0) -> 0 | AQ30: 0 | AR30: 0 | AS30: 0 | AT30: 0 | AU30: 0 | AV30: 0 | AW30: 0 | AX30: 0 | AY30: 0 | AZ30: 0 | BA30: 0 | BB30: 0 | BC30: 0 | BD30: 0 | BE30: 0 | BF30: 0 | BG30: 0
B31: Period Start Date | J31: =EDATE($I$22,(J33-1)*12) -> 2026-07-01 | K31: =EDATE($I$22,(K33-1)*12) -> 2027-07-01 | L31: 2028-07-01 | M31: 2029-07-01 | N31: 2030-07-01 | O31: 2031-07-01 | P31: 2032-07-01 | Q31: 2033-07-01 | R31: 2034-07-01 | S31: 2035-07-01 | T31: 2036-07-01 | U31: 2037-07-01 | V31: 2038-07-01 | W31: 2039-07-01 | X31: 2040-07-01 | Y31: 2041-07-01 | Z31: 2042-07-01 | AA31: 2043-07-01 | AB31: 2044-07-01 | AC31: 2045-07-01 | AD31: 2046-07-01 | AE31: 2047-07-01 | AF31: 2048-07-01 | AG31: 2049-07-01 | AH31: 2050-07-01 | AI31: 2051-07-01 | AJ31: 2052-07-01 | AK31: 2053-07-01 | AL31: 2054-07-01 | AM31: 2055-07-01 | AN31: 2056-07-01 | AO31: 2057-07-01 | AP31: =EDATE($I$22,(AP33-1)*12) -> 2058-07-01 | AQ31: 2059-07-01 | AR31: 2060-07-01 | AS31: 2061-07-01 | AT31: 2062-07-01 | AU31: 2063-07-01 | AV31: 2064-07-01 | AW31: 2065-07-01 | AX31: 2066-07-01 | AY31: 2067-07-01 | AZ31: 2068-07-01 | BA31: 2069-07-01 | BB31: 2070-07-01 | BC31: 2071-07-01 | BD31: 2072-07-01 | BE31: 2073-07-01 | BF31: 2074-07-01 | BG31: 2075-07-01
B32: Period End Date | J32: =EDATE(J31,12)-1 -> 2027-06-30 | K32: =EDATE(K31,12)-1 -> 2028-06-30 | L32: 2029-06-30 | M32: =EDATE(M31,12)-1 -> 2030-06-30 | N32: 2031-06-30 | O32: 2032-06-30 | P32: 2033-06-30 | Q32: 2034-06-30 | R32: 2035-06-30 | S32: 2036-06-30 | T32: 2037-06-30 | U32: 2038-06-30 | V32: 2039-06-30 | W32: 2040-06-30 | X32: 2041-06-30 | Y32: 2042-06-30 | Z32: 2043-06-30 | AA32: 2044-06-30 | AB32: 2045-06-30 | AC32: 2046-06-30 | AD32: 2047-06-30 | AE32: 2048-06-30 | AF32: 2049-06-30 | AG32: 2050-06-30 | AH32: 2051-06-30 | AI32: 2052-06-30 | AJ32: 2053-06-30 | AK32: 2054-06-30 | AL32: 2055-06-30 | AM32: 2056-06-30 | AN32: 2057-06-30 | AO32: 2058-06-30 | AP32: 2059-06-30 | AQ32: 2060-06-30 | AR32: 2061-06-30 | AS32: 2062-06-30 | AT32: 2063-06-30 | AU32: 2064-06-30 | AV32: 2065-06-30 | AW32: 2066-06-30 | AX32: 2067-06-30 | AY32: 2068-06-30 | AZ32: 2069-06-30 | BA32: 2070-06-30 | BB32: 2071-06-30 | BC32: 2072-06-30 | BD32: 2073-06-30 | BE32: 2074-06-30 | BF32: 2075-06-30 | BG32: 2076-06-30
B33: ="Project Year" -> Project Year | J33: =COLUMNS($J33:J33) -> 1 | K33: =COLUMNS($J33:K33) -> 2 | L33: =COLUMNS($J33:L33) -> 3 | M33: =COLUMNS($J33:M33) -> 4 | N33: =COLUMNS($J33:N33) -> 5 | O33: =COLUMNS($J33:O33) -> 6 | P33: =COLUMNS($J33:P33) -> 7 | Q33: =COLUMNS($J33:Q33) -> 8 | R33: =COLUMNS($J33:R33) -> 9 | S33: =COLUMNS($J33:S33) -> 10 | T33: =COLUMNS($J33:T33) -> 11 | U33: =COLUMNS($J33:U33) -> 12 | V33: =COLUMNS($J33:V33) -> 13 | W33: =COLUMNS($J33:W33) -> 14 | X33: =COLUMNS($J33:X33) -> 15 | Y33: =COLUMNS($J33:Y33) -> 16 | Z33: =COLUMNS($J33:Z33) -> 17 | AA33: =COLUMNS($J33:AA33) -> 18 | AB33: =COLUMNS($J33:AB33) -> 19 | AC33: =COLUMNS($J33:AC33) -> 20 | AD33: =COLUMNS($J33:AD33) -> 21 | AE33: =COLUMNS($J33:AE33) -> 22 | AF33: =COLUMNS($J33:AF33) -> 23 | AG33: =COLUMNS($J33:AG33) -> 24 | AH33: =COLUMNS($J33:AH33) -> 25 | AI33: =COLUMNS($J33:AI33) -> 26 | AJ33: =COLUMNS($J33:AJ33) -> 27 | AK33: =COLUMNS($J33:AK33) -> 28 | AL33: =COLUMNS($J33:AL33) -> 29 | AM33: =COLUMNS($J33:AM33) -> 30 | AN33: =COLUMNS($J33:AN33) -> 31 | AO33: =COLUMNS($J33:AO33) -> 32 | AP33: =COLUMNS($J33:AP33) -> 33 | AQ33: =COLUMNS($J33:AQ33) -> 34 | AR33: =COLUMNS($J33:AR33) -> 35 | AS33: =COLUMNS($J33:AS33) -> 36 | AT33: =COLUMNS($J33:AT33) -> 37 | AU33: =COLUMNS($J33:AU33) -> 38 | AV33: =COLUMNS($J33:AV33) -> 39 | AW33: =COLUMNS($J33:AW33) -> 40 | AX33: =COLUMNS($J33:AX33) -> 41 | AY33: =COLUMNS($J33:AY33) -> 42 | AZ33: =COLUMNS($J33:AZ33) -> 43 | BA33: =COLUMNS($J33:BA33) -> 44 | BB33: =COLUMNS($J33:BB33) -> 45 | BC33: =COLUMNS($J33:BC33) -> 46 | BD33: =COLUMNS($J33:BD33) -> 47 | BE33: =COLUMNS($J33:BE33) -> 48 | BF33: =COLUMNS($J33:BF33) -> 49 | BG33: =COLUMNS($J33:BG33) -> 50
B34: Financial Year | J34: =YEAR(J32) -> 2027 | K34: =YEAR(K32) -> 2028 | L34: 2029 | M34: 2030 | N34: 2031 | O34: 2032 | P34: 2033 | Q34: 2034 | R34: 2035 | S34: 2036 | T34: 2037 | U34: 2038 | V34: 2039 | W34: 2040 | X34: 2041 | Y34: 2042 | Z34: 2043 | AA34: 2044 | AB34: 2045 | AC34: 2046 | AD34: 2047 | AE34: 2048 | AF34: 2049 | AG34: 2050 | AH34: 2051 | AI34: 2052 | AJ34: 2053 | AK34: 2054 | AL34: 2055 | AM34: 2056 | AN34: 2057 | AO34: 2058 | AP34: 2059 | AQ34: 2060 | AR34: 2061 | AS34: 2062 | AT34: 2063 | AU34: 2064 | AV34: 2065 | AW34: 2066 | AX34: 2067 | AY34: 2068 | AZ34: 2069 | BA34: 2070 | BB34: 2071 | BC34: 2072 | BD34: 2073 | BE34: 2074 | BF34: 2075 | BG34: 2076

Sheet 2.1_Gen_Inputs
C6: General Inputs
C7: Section 2.1.
C9: =Cover!$C$9 -> AusNet Services
C10: =Cover!$C$10 -> Business Case Evaluation
C11: =Cover!$C$11 -> Backup power for community hubs

Sheet Project Details
A1: Community Benefit
A3: Feeder Type | B3: Median $WTA / Per month
A4: Residential Long Rural | B4: 6.019684556
A5: Residential Short Rural | B5: 2.855208311
A6: Residential Urban | B6: 3.160120518
A8: Item | B8: Value
A9: Assumed annual months of benefit from equipment (months) | B9: 12
A11: Project Costs & Unit rates
A13: Item | B13: Value
A14: Community Resilience Hubs | B14: 300000
A15: Annual O&M | B15: 3000
A17: Item | B17: Value
A18: Asset Life (Years) | B18: 15
A19: WAAC | B19: ='1_KMA'!I28 -> 0.0556
A20: Model Cost Factor (millions) | B20: 1000000
A23: Table of Community Hub locations and relevant information
A24: Feeder | B24: Feeder Type | C24: Locality | D24: Sum of NMI Count | E24: Average of SEIFA (IRSD) | F24: Average of Life Support Customer Score | G24: Average of Remoteness Score | H24: Average of Ave Annual Unplanned outage Duration (hours) | I24: Average of Ave Annual MED outage (hours) | J24: Annual Benefit $ - Community QCV | K24: 15 Year Benefit $ (PV) - Community QCV
A25: BDL33 | B25: Rural Short | C25: Bairnsdale | D25: 2586 | E25: 965.3573725 | F25: 1.204096927 | G25: 3 | H25: 5.643892 | I25: 5.163353 | J25: 88602.8243 | K25: 804932.321
A26: BGE13 | B26: Rural Short | C26: Belgrave | D26: 1461 | E26: 1069.552938 | F26: 0.7556044419 | G26: 0 | H26: 42.4802 | I26: 29.14301 | J26: 50057.51211 | K26: 454758.7475
A27: MWL25 | B27: Rural Short | C27: Churchill | D27: 1566 | E27: 883.2654907 | F27: 1.563369132 | G27: 1 | H27: 16.61819 | I27: 32.07362 | J27: 53655.07458 | K27: 487441.6143
A28: PHI13 | B28: Urban | C28: Cowes | D28: 7257 | E28: 990.1050265 | F28: 1.917374975 | G28: 1 | H28: 22.89941 | I28: 9.829355 | J28: 275195.9352 | K28: 2500079.479
A29: FTR21 | B29: Rural Long | C29: Foster | D29: 1359 | E29: 994.4718302 | F29: 1.032594344 | G29: 1.346843118 | H29: 23.93579 | I29: 25.59714 | J29: 98169.01575 | K29: 891838.5425
A30: KMS12 | B30: Rural Short | C30: Kilmore | D30: 3328 | E30: 1016.124648 | F30: 1.108568946 | G30: 1 | H30: 13.30253 | I30: 1.668895 | J30: 114025.5991 | K30: 1035891.247
A31: NLA34 | B31: Rural Short | C31: Lakes Entrance | D31: 3189 | E31: 932.0169565 | F31: 1.641225755 | G31: 3 | H31: 14.95058 | I31: 8.086394 | J31: 109263.1116 | K31: 992625.3564
A32: SLE31 | B32: Rural Long | C32: Longford | D32: 589 | E32: 986.7737688 | F32: 1.508586102 | G32: 2.52179599 | H32: 12.29872 | I32: 2.89383 | J32: 42547.13045 | K32: 386528.993
A33: MSD1 | B33: Rural Long | C33: Mansfield | D33: 851 | E33: 1024.819306 | F33: 0.9041558753 | G33: 3 | H33: 9.64427 | I33: 8.358095 | J33: 61473.01869 | K33: 558465.4891
A34: BDL32 | B34: Rural Short | C34: Metung | D34: 995 | E34: 1029.074114 | F34: 1.158504476 | G34: 3 | H34: 8.142029 | I34: 7.426629 | J34: 34091.18723 | K34: 309709.0717
A35: ELM34 | B35: Urban | C35: Montmorency | D35: 1282 | E35: 1081.262877 | F35: 0.9513513514 | G35: 0 | H35: 33.40427 | I35: 0.027778 | J35: 48615.29405 | K35: 441656.5926
A36: LDL11 | B36: Rural Short | C36: Montrose | D36: 1598 | E36: 1063.898232 | F36: 0.856399037 | G36: 0 | H36: 22.25359 | I36: 6.643907 | J36: 54751.47457 | K36: 497402.1071
A37: LDL24 | B37: Urban | C37: Mooroolbark | D37: 2562 | E37: 1030.68936 | F37: 0.9237174205 | G37: 0 | H37: 25.42799 | I37: 13.26812 | J37: 97154.7452 | K37: 882624.1733
A38: MWL11 | B38: Rural Short | C38: Morwell | D38: 2936 | E38: 861.1329047 | F38: 1.724238026 | G38: 1 | H38: 12.08916 | I38: 21.93295 | J38: 100594.6992 | K38: 913875.2105
A39: LDL13 | B39: Rural Short | C39: Mount Evelyn | D39: 1756 | E39: 1052.886297 | F39: 0.9503327675 | G39: 0 | H39: 15.55257 | I39: 11.88548 | J39: 60164.94953 | K39: 546582.0401
A40: BDL41 | B40: Rural Long | C40: Nicholson | D40: 622 | E40: 996.3087236 | F40: 1.349459801 | G40: 3 | H40: 6.33961 | I40: 8.375813 | J40: 44930.92553 | K40: 408185.1166
A41: NLA32 | B41: Rural Short | C41: Orbost | D41: 1093 | E41: 923.4498154 | F41: 1.199314677 | G41: 2.899806389 | H41: 6.455868 | I41: 1.649045 | J41: 37448.91221 | K41: 340213.0807
A42: SLE31 | B42: Rural Long | C42: Paradise Beach | D42: 512 | E42: 986.7737688 | F42: 1.508586102 | G42: 2.52179599 | H42: 21.15957 | I42: 4.725309 | J42: 36984.94192 | K42: 335998.0381
A43: SLE31 | B43: Rural Long | C43: Sale | D43: 1242 | E43: 972.3204016 | F43: 1.529478052 | G43: 1.152179599 | H43: 33.28272 | I43: 13.65284 | J43: 89717.37863 | K43: 815057.7409
A44: FTR21 | B44: Rural Long | C44: Sandy Point | D44: 768 | E44: 1058.647338 | F44: 1.553556827 | G44: 2.341353383 | H44: 17.5037 | I44: 15.065 | J44: 55477.41287 | K44: 503997.0571
A45: SLE31 | B45: Rural Long | C45: Seaspray | D45: 589 | E45: 986.7737688 | F45: 1.508586102 | G45: 2.52179599 | H45: 23.41561 | I45: 0.513889 | J45: 42547.13045 | K45: 386528.993
A46: FGY24 | B46: Urban | C46: The Basin | D46: 999 | E46: 1049.531143 | F46: 0.9267476709 | G46: 0 | H46: 17.17816 | I46: 2.848148 | J46: 37883.52477 | K46: 344161.4165
A47: TT5 | B47: Urban | C47: Thomastown | D47: 965 | E47: 884.8148792 | F47: 1.280023722 | G47: 0 | H47: 3.289418 | I47: 0.433201 | J47: 36594.1956 | K47: 332448.2151
A48: PHI12 | B48: Rural Short | C48: Ventnor | D48: 1438 | E48: 990.1050265 | F48: 1.917374975 | G48: 1 | H48: 14.6294 | I48: 14.81434 | J48: 49269.47461 | K48: 447599.6433
A49: WGI24 | B49: Rural Short | C49: Venus Bay | D49: 1970 | E49: 1010.058936 | F49: 1.119525848 | G49: 1.250637755 | H49: 9.456944 | I49: 1.75544 | J49: 67497.12447 | K49: 613192.8354
A50: LDL23 | B50: Rural Long | C50: Wandin North | D50: 601 | E50: 1039.164674 | F50: 0.9317115385 | G50: 0.5244329381 | H50: 18.60284 | I50: 12.22143 | J50: 43413.96502 | K50: 394403.9471
A51: RWN31 | B51: Rural Short | C51: Warranwood | D51: 1344 | E51: 1048.770536 | F51: 0.8784349987 | G51: 0 | H51: 38.49086 | I51: 2.925617 | J51: 46048.79964 | K51: 418340.6958
A52: WYK23 | B52: Rural Short | C52: Woori Yallock | D52: 1225 | E52: 1039.507589 | F52: 0.9328750789 | G52: 0.5535681014 | H52: 40.72426 | I52: 7.143541 | J52: 41971.56217 | K52: 381300.1134
A53: WYK23 | B53: Rural Short | C53: Yarra Junction | D53: 1044 | E53: 987.2067122 | F53: 1.186334904 | G53: 1 | H53: 36.41166 | I53: 2.070714 | J53: 35770.04972 | K53: 324961.0762
A54: FTR12 | B54: Rural Long | C54: Yarram | D54: 1400 | E54: 940.8030007 | F54: 1.597139452 | G54: 1.47690387 | H54: 19.93957 | I54: 25.41999 | J54: 101130.7005 | K54: 918744.6354

Sheet 2.1_BC
B1: General Inputs: Base Case | I1: Regulatory Period Indicator | J1: ='1_KMA'!J30 -> 1 | K1: ='1_KMA'!K30 -> 1 | L1: ='1_KMA'!L30 -> 1 | M1: ='1_KMA'!M30 -> 1 | N1: ='1_KMA'!N30 -> 1 | O1: ='1_KMA'!O30 -> 0 | P1: ='1_KMA'!P30 -> 0 | Q1: ='1_KMA'!Q30 -> 0 | R1: ='1_KMA'!R30 -> 0 | S1: ='1_KMA'!S30 -> 0 | T1: ='1_KMA'!T30 -> 0 | U1: ='1_KMA'!U30 -> 0 | V1: ='1_KMA'!V30 -> 0 | W1: ='1_KMA'!W30 -> 0 | X1: ='1_KMA'!X30 -> 0 | Y1: ='1_KMA'!Y30 -> 0 | Z1: ='1_KMA'!Z30 -> 0 | AA1: ='1_KMA'!AA30 -> 0 | AB1: ='1_KMA'!AB30 -> 0 | AC1: ='1_KMA'!AC30 -> 0 | AD1: ='1_KMA'!AD30 -> 0 | AE1: ='1_KMA'!AE30 -> 0 | AF1: ='1_KMA'!AF30 -> 0 | AG1: ='1_KMA'!AG30 -> 0 | AH1: ='1_KMA'!AH30 -> 0 | AI1: ='1_KMA'!AI30 -> 0 | AJ1: ='1_KMA'!AJ30 -> 0 | AK1: ='1_KMA'!AK30 -> 0 | AL1: ='1_KMA'!AL30 -> 0 | AM1: ='1_KMA'!AM30 -> 0 | AN1: ='1_KMA'!AN30 -> 0 | AO1: ='1_KMA'!AO30 -> 0 | AP1: ='1_KMA'!AP30 -> 0 | AQ1: ='1_KMA'!AQ30 -> 0 | AR1: ='1_KMA'!AR30 -> 0 | AS1: ='1_KMA'!AS30 -> 0 | AT1: ='1_KMA'!AT30 -> 0 | AU1: ='1_KMA'!AU30 -> 0 | AV1: ='1_KMA'!AV30 -> 0 | AW1: ='1_KMA'!AW30 -> 0 | AX1: ='1_KMA'!AX30 -> 0 | AY1: ='1_KMA'!AY30 -> 0 | AZ1: ='1_KMA'!AZ30 -> 0 | BA1: ='1_KMA'!BA30 -> 0 | BB1: ='1_KMA'!BB30 -> 0 | BC1: ='1_KMA'!BC30 -> 0 | BD1: ='1_KMA'!BD30 -> 0 | BE1: ='1_KMA'!BE30 -> 0 | BF1: ='1_KMA'!BF30 -> 0 | BG1: ='1_KMA'!BG30 -> 0
B2: =Cover!$C$9 -> AusNet Services | I2: Period Start Date | J2: ='1_KMA'!J31 -> 2026-07-01 | K2: ='1_KMA'!K31 -> 2027-07-01 | L2: ='1_KMA'!L31 -> 2028-07-01 | M2: ='1_KMA'!M31 -> 2029-07-01 | N2: ='1_KMA'!N31 -> 2030-07-01 | O2: ='1_KMA'!O31 -> 2031-07-01 | P2: ='1_KMA'!P31 -> 2032-07-01 | Q2: ='1_KMA'!Q31 -> 2033-07-01 | R2: ='1_KMA'!R31 -> 2034-07-01 | S2: ='1_KMA'!S31 -> 2035-07-01 | T2: ='1_KMA'!T31 -> 2036-07-01 | U2: ='1_KMA'!U31 -> 2037-07-01 | V2: ='1_KMA'!V31 -> 2038-07-01 | W2: ='1_KMA'!W31 -> 2039-07-01 | X2: ='1_KMA'!X31 -> 2040-07-01 | Y2: ='1_KMA'!Y31 -> 2041-07-01 | Z2: ='1_KMA'!Z31 -> 2042-07-01 | AA2: ='1_KMA'!AA31 -> 2043-07-01 | AB2: ='1_KMA'!AB31 -> 2044-07-01 | AC2: ='1_KMA'!AC31 -> 2045-07-01 | AD2: ='1_KMA'!AD31 -> 2046-07-01 | AE2: ='1_KMA'!AE31 -> 2047-07-01 | AF2: ='1_KMA'!AF31 -> 2048-07-01 | AG2: ='1_KMA'!AG31 -> 2049-07-01 | AH2: ='1_KMA'!AH31 -> 2050-07-01 | AI2: ='1_KMA'!AI31 -> 2051-07-01 | AJ2: ='1_KMA'!AJ31 -> 2052-07-01 | AK2: ='1_KMA'!AK31 -> 2053-07-01 | AL2: ='1_KMA'!AL31 -> 2054-07-01 | AM2: ='1_KMA'!AM31 -> 2055-07-01 | AN2: ='1_KMA'!AN31 -> 2056-07-01 | AO2: ='1_KMA'!AO31 -> 2057-07-01 | AP2: ='1_KMA'!AP31 -> 2058-07-01 | AQ2: ='1_KMA'!AQ31 -> 2059-07-01 | AR2: ='1_KMA'!AR31 -> 2060-07-01 | AS2: ='1_KMA'!AS31 -> 2061-07-01 | AT2: ='1_KMA'!AT31 -> 2062-07-01 | AU2: ='1_KMA'!AU31 -> 2063-07-01 | AV2: ='1_KMA'!AV31 -> 2064-07-01 | AW2: ='1_KMA'!AW31 -> 2065-07-01 | AX2: ='1_KMA'!AX31 -> 2066-07-01 | AY2: ='1_KMA'!AY31 -> 2067-07-01 | AZ2: ='1_KMA'!AZ31 -> 2068-07-01 | BA2: ='1_KMA'!BA31 -> 2069-07-01 | BB2: ='1_KMA'!BB31 -> 2070-07-01 | BC2: ='1_KMA'!BC31 -> 2071-07-01 | BD2: ='1_KMA'!BD31 -> 2072-07-01 | BE2: ='1_KMA'!BE31 -> 2073-07-01 | BF2: ='1_KMA'!BF31 -> 2074-07-01 | BG2: ='1_KMA'!BG31 -> 2075-07-01
B3: =Cover!$C$10 -> Business Case Evaluation | I3: Period End Date | J3: ='1_KMA'!J32 -> 2027-06-30 | K3: ='1_KMA'!K32 -> 2028-06-30 | L3: ='1_KMA'!L32 -> 2029-06-30 | M3: ='1_KMA'!M32 -> 2030-06-30 | N3: ='1_KMA'!N32 -> 2031-06-30 | O3: ='1_KMA'!O32 -> 2032-06-30 | P3: ='1_KMA'!P32 -> 2033-06-30 | Q3: ='1_KMA'!Q32 -> 2034-06-30 | R3: ='1_KMA'!R32 -> 2035-06-30 | S3: ='1_KMA'!S32 -> 2036-06-30 | T3: ='1_KMA'!T32 -> 2037-06-30 | U3: ='1_KMA'!U32 -> 2038-06-30 | V3: ='1_KMA'!V32 -> 2039-06-30 | W3: ='1_KMA'!W32 -> 2040-06-30 | X3: ='1_KMA'!X32 -> 2041-06-30 | Y3: ='1_KMA'!Y32 -> 2042-06-30 | Z3: ='1_KMA'!Z32 -> 2043-06-30 | AA3: ='1_KMA'!AA32 -> 2044-06-30 | AB3: ='1_KMA'!AB32 -> 2045-06-30 | AC3: ='1_KMA'!AC32 -> 2046-06-30 | AD3: ='1_KMA'!AD32 -> 2047-06-30 | AE3: ='1_KMA'!AE32 -> 2048-06-30 | AF3: ='1_KMA'!AF32 -> 2049-06-30 | AG3: ='1_KMA'!AG32 -> 2050-06-30 | AH3: ='1_KMA'!AH32 -> 2051-06-30 | AI3: ='1_KMA'!AI32 -> 2052-06-30 | AJ3: ='1_KMA'!AJ32 -> 2053-06-30 | AK3: ='1_KMA'!AK32 -> 2054-06-30 | AL3: ='1_KMA'!AL32 -> 2055-06-30 | AM3: ='1_KMA'!AM32 -> 2056-06-30 | AN3: ='1_KMA'!AN32 -> 2057-06-30 | AO3: ='1_KMA'!AO32 -> 2058-06-30 | AP3: ='1_KMA'!AP32 -> 2059-06-30 | AQ3: ='1_KMA'!AQ32 -> 2060-06-30 | AR3: ='1_KMA'!AR32 -> 2061-06-30 | AS3: ='1_KMA'!AS32 -> 2062-06-30 | AT3: ='1_KMA'!AT32 -> 2063-06-30 | AU3: ='1_KMA'!AU32 -> 2064-06-30 | AV3: ='1_KMA'!AV32 -> 2065-06-30 | AW3: ='1_KMA'!AW32 -> 2066-06-30 | AX3: ='1_KMA'!AX32 -> 2067-06-30 | AY3: ='1_KMA'!AY32 -> 2068-06-30 | AZ3: ='1_KMA'!AZ32 -> 2069-06-30 | BA3: ='1_KMA'!BA32 -> 2070-06-30 | BB3: ='1_KMA'!BB32 -> 2071-06-30 | BC3: ='1_KMA'!BC32 -> 2072-06-30 | BD3: ='1_KMA'!BD32 -> 2073-06-30 | BE3: ='1_KMA'!BE32 -> 2074-06-30 | BF3: ='1_KMA'!BF32 -> 2075-06-30 | BG3: ='1_KMA'!BG32 -> 2076-06-30
B4: =Cover!$C$11 -> Backup power for community hubs | I4: Project Year | J4: ='1_KMA'!J33 -> 1 | K4: ='1_KMA'!K33 -> 2 | L4: ='1_KMA'!L33 -> 3 | M4: ='1_KMA'!M33 -> 4 | N4: ='1_KMA'!N33 -> 5 | O4: ='1_KMA'!O33 -> 6 | P4: ='1_KMA'!P33 -> 7 | Q4: ='1_KMA'!Q33 -> 8 | R4: ='1_KMA'!R33 -> 9 | S4: ='1_KMA'!S33 -> 10 | T4: ='1_KMA'!T33 -> 11 | U4: ='1_KMA'!U33 -> 12 | V4: ='1_KMA'!V33 -> 13 | W4: ='1_KMA'!W33 -> 14 | X4: ='1_KMA'!X33 -> 15 | Y4: ='1_KMA'!Y33 -> 16 | Z4: ='1_KMA'!Z33 -> 17 | AA4: ='1_KMA'!AA33 -> 18 | AB4: ='1_KMA'!AB33 -> 19 | AC4: ='1_KMA'!AC33 -> 20 | AD4: ='1_KMA'!AD33 -> 21 | AE4: ='1_KMA'!AE33 -> 22 | AF4: ='1_KMA'!AF33 -> 23 | AG4: ='1_KMA'!AG33 -> 24 | AH4: ='1_KMA'!AH33 -> 25 | AI4: ='1_KMA'!AI33 -> 26 | AJ4: ='1_KMA'!AJ33 -> 27 | AK4: ='1_KMA'!AK33 -> 28 | AL4: ='1_KMA'!AL33 -> 29 | AM4: ='1_KMA'!AM33 -> 30 | AN4: ='1_KMA'!AN33 -> 31 | AO4: ='1_KMA'!AO33 -> 32 | AP4: ='1_KMA'!AP33 -> 33 | AQ4: ='1_KMA'!AQ33 -> 34 | AR4: ='1_KMA'!AR33 -> 35 | AS4: ='1_KMA'!AS33 -> 36 | AT4: ='1_KMA'!AT33 -> 37 | AU4: ='1_KMA'!AU33 -> 38 | AV4: ='1_KMA'!AV33 -> 39 | AW4: ='1_KMA'!AW33 -> 40 | AX4: ='1_KMA'!AX33 -> 41 | AY4: ='1_KMA'!AY33 -> 42 | AZ4: ='1_KMA'!AZ33 -> 43 | BA4: ='1_KMA'!BA33 -> 44 | BB4: ='1_KMA'!BB33 -> 45 | BC4: ='1_KMA'!BC33 -> 46 | BD4: ='1_KMA'!BD33 -> 47 | BE4: ='1_KMA'!BE33 -> 48 | BF4: ='1_KMA'!BF33 -> 49 | BG4: ='1_KMA'!BG33 -> 50
I5: Financial Year | J5: ='1_KMA'!J34 -> 2027 | K5: ='1_KMA'!K34 -> 2028 | L5: ='1_KMA'!L34 -> 2029 | M5: ='1_KMA'!M34 -> 2030 | N5: ='1_KMA'!N34 -> 2031 | O5: ='1_KMA'!O34 -> 2032 | P5: ='1_KMA'!P34 -> 2033 | Q5: ='1_KMA'!Q34 -> 2034 | R5: ='1_KMA'!R34 -> 2035 | S5: ='1_KMA'!S34 -> 2036 | T5: ='1_KMA'!T34 -> 2037 | U5: ='1_KMA'!U34 -> 2038 | V5: ='1_KMA'!V34 -> 2039 | W5: ='1_KMA'!W34 -> 2040 | X5: ='1_KMA'!X34 -> 2041 | Y5: ='1_KMA'!Y34 -> 2042 | Z5: ='1_KMA'!Z34 -> 2043 | AA5: ='1_KMA'!AA34 -> 2044 | AB5: ='1_KMA'!AB34 -> 2045 | AC5: ='1_KMA'!AC34 -> 2046 | AD5: ='1_KMA'!AD34 -> 2047 | AE5: ='1_KMA'!AE34 -> 2048 | AF5: ='1_KMA'!AF34 -> 2049 | AG5: ='1_KMA'!AG34 -> 2050 | AH5: ='1_KMA'!AH34 -> 2051 | AI5: ='1_KMA'!AI34 -> 2052 | AJ5: ='1_KMA'!AJ34 -> 2053 | AK5: ='1_KMA'!AK34 -> 2054 | AL5: ='1_KMA'!AL34 -> 2055 | AM5: ='1_KMA'!AM34 -> 2056 | AN5: ='1_KMA'!AN34 -> 2057 | AO5: ='1_KMA'!AO34 -> 2058 | AP5: ='1_KMA'!AP34 -> 2059 | AQ5: ='1_KMA'!AQ34 -> 2060 | AR5: ='1_KMA'!AR34 -> 2061 | AS5: ='1_KMA'!AS34 -> 2062 | AT5: ='1_KMA'!AT34 -> 2063 | AU5: ='1_KMA'!AU34 -> 2064 | AV5: ='1_KMA'!AV34 -> 2065 | AW5: ='1_KMA'!AW34 -> 2066 | AX5: ='1_KMA'!AX34 -> 2067 | AY5: ='1_KMA'!AY34 -> 2068 | AZ5: ='1_KMA'!AZ34 -> 2069 | BA5: ='1_KMA'!BA34 -> 2070 | BB5: ='1_KMA'!BB34 -> 2071 | BC5: ='1_KMA'!BC34 -> 2072 | BD5: ='1_KMA'!BD34 -> 2073 | BE5: ='1_KMA'!BE34 -> 2074 | BF5: ='1_KMA'!BF34 -> 2075 | BG5: ='1_KMA'!BG34 -> 2076
B7: Summary
B9: Costs | G9: $ Basis Reminder | H9: $ Reminder
B10: Capex | G10: ='1_KMA'!$I$20 -> 2024-06-30 | H10: ='1_KMA'!$I$19 -> $millions | J10: =J47 -> 0 | K10: =K47 -> 0 | L10: 0 | M10: 0 | N10: 0 | O10: 0 | P10: 0 | Q10: 0 | R10: 0 | S10: 0 | T10: 0 | U10: 0 | V10: 0 | W10: 0 | X10: 0 | Y10: 0 | Z10: 0 | AA10: 0 | AB10: 0 | AC10: 0 | AD10: 0 | AE10: 0 | AF10: 0 | AG10: 0 | AH10: 0 | AI10: 0 | AJ10: 0 | AK10: 0 | AL10: 0 | AM10: 0 | AN10: 0 | AO10: 0 | AP10: 0 | AQ10: 0 | AR10: 0 | AS10: 0 | AT10: 0 | AU10: 0 | AV10: 0 | AW10: 0 | AX10: 0 | AY10: 0 | AZ10: 0 | BA10: 0 | BB10: 0 | BC10: 0 | BD10: 0 | BE10: 0 | BF10: 0 | BG10: 0
B11: Capex offset | G11: ='1_KMA'!$I$20 -> 2024-06-30 | H11: ='1_KMA'!$I$19 -> $millions | J11: =-J58 -> 0 | K11: =-K58 -> 0 | L11: 0 | M11: 0 | N11: 0 | O11: 0 | P11: 0 | Q11: 0 | R11: 0 | S11: 0 | T11: 0 | U11: 0 | V11: 0 | W11: 0 | X11: 0 | Y11: 0 | Z11: 0 | AA11: 0 | AB11: 0 | AC11: 0 | AD11: 0 | AE11: 0 | AF11: 0 | AG11: 0 | AH11: 0 | AI11: 0 | AJ11: 0 | AK11: 0 | AL11: 0 | AM11: 0 | AN11: 0 | AO11: 0 | AP11: 0 | AQ11: 0 | AR11: 0 | AS11: 0 | AT11: 0 | AU11: 0 | AV11: 0 | AW11: 0 | AX11: 0 | AY11: 0 | AZ11: 0 | BA11: 0 | BB11: 0 | BC11: 0 | BD11: 0 | BE11: 0 | BF11: 0 | BG11: 0
B12: Opex | G12: ='1_KMA'!$I$20 -> 2024-06-30 | H12: ='1_KMA'!$I$19 -> $millions | J12: =J81 -> 0 | K12: =K81 -> 0 | L12: 0 | M12: 0 | N12: 0 | O12: 0 | P12: 0 | Q12: 0 | R12: 0 | S12: 0 | T12: 0 | U12: 0 | V12: 0 | W12: 0 | X12: 0 | Y12: 0 | Z12: 0 | AA12: 0 | AB12: 0 | AC12: 0 | AD12: 0 | AE12: 0 | AF12: 0 | AG12: 0 | AH12: 0 | AI12: 0 | AJ12: 0 | AK12: 0 | AL12: 0 | AM12: 0 | AN12: 0 | AO12: 0 | AP12: 0 | AQ12: 0 | AR12: 0 | AS12: 0 | AT12: 0 | AU12: 0 | AV12: 0 | AW12: 0 | AX12: 0 | AY12: 0 | AZ12: 0 | BA12: 0 | BB12: 0 | BC12: 0 | BD12: 0 | BE12: 0 | BF12: 0 | BG12: 0
B13: Total | G13: ='1_KMA'!$I$20 -> 2024-06-30 | H13: ='1_KMA'!$I$19 -> $millions | J13: =SUM(J10:J12) -> 0 | K13: =SUM(K10:K12) -> 0 | L13: 0 | M13: 0 | N13: 0 | O13: 0 | P13: 0 | Q13: 0 | R13: 0 | S13: 0 | T13: 0 | U13: 0 | V13: 0 | W13: 0 | X13: 0 | Y13: 0 | Z13: 0 | AA13: 0 | AB13: 0 | AC13: 0 | AD13: 0 | AE13: 0 | AF13: 0 | AG13: 0 | AH13: 0 | AI13: 0 | AJ13: 0 | AK13: 0 | AL13: 0 | AM13: 0 | AN13: 0 | AO13: 0 | AP13: 0 | AQ13: 0 | AR13: 0 | AS13: 0 | AT13: 0 | AU13: 0 | AV13: 0 | AW13: 0 | AX13: 0 | AY13: 0 | AZ13: 0 | BA13: 0 | BB13: 0 | BC13: 0 | BD13: 0 | BE13: 0 | BF13: 0 | BG13: 0
B15: Benefits | G15: $ Basis Reminder | H15: $ Reminder
B16: Value of EUE | G16: ='1_KMA'!$I$20 -> 2024-06-30 | H16: ='1_KMA'!$I$19 -> $millions | J16: =J92 -> 0 | K16: =K92 -> 0 | L16: 0 | M16: 0 | N16: 0 | O16: 0 | P16: 0 | Q16: 0 | R16: 0 | S16: 0 | T16: 0 | U16: 0 | V16: 0 | W16: 0 | X16: 0 | Y16: 0 | Z16: 0 | AA16: 0 | AB16: 0 | AC16: 0 | AD16: 0 | AE16: 0 | AF16: 0 | AG16: 0 | AH16: 0 | AI16: 0 | AJ16: 0 | AK16: 0 | AL16: 0 | AM16: 0 | AN16: 0 | AO16: 0 | AP16: 0 | AQ16: 0 | AR16: 0 | AS16: 0 | AT16: 0 | AU16: 0 | AV16: 0 | AW16: 0 | AX16: 0 | AY16: 0 | AZ16: 0 | BA16: 0 | BB16: 0 | BC16: 0 | BD16: 0 | BE16: 0 | BF16: 0 | BG16: 0
B18: Resilience | G18: ='1_KMA'!$I$20 -> 2024-06-30 | H18: ='1_KMA'!$I$19 -> $millions | J18: =J113 -> 0 | K18: =K113 -> 0 | L18: 0 | M18: 0 | N18: 0 | O18: 0 | P18: 0 | Q18: 0 | R18: 0 | S18: 0 | T18: 0 | U18: 0 | V18: 0 | W18: 0 | X18: 0 | Y18: 0 | Z18: 0 | AA18: 0 | AB18: 0 | AC18: 0 | AD18: 0 | AE18: 0 | AF18: 0 | AG18: 0 | AH18: 0 | AI18: 0 | AJ18: 0 | AK18: 0 | AL18: 0 | AM18: 0 | AN18: 0 | AO18: 0 | AP18: 0 | AQ18: 0 | AR18: 0 | AS18: 0 | AT18: 0 | AU18: 0 | AV18: 0 | AW18: 0 | AX18: 0 | AY18: 0 | AZ18: 0 | BA18: 0 | BB18: 0 | BC18: 0 | BD18: 0 | BE18: 0 | BF18: 0 | BG18: 0
B21: Total | G21: ='1_KMA'!$I$20 -> 2024-06-30 | H21: ='1_KMA'!$I$19 -> $millions | J21: =SUM(J16:J20) -> 0 | K21: =SUM(K16:K20) -> 0 | L21: 0 | M21: 0 | N21: 0 | O21: 0 | P21: 0 | Q21: 0 | R21: 0 | S21: 0 | T21: 0 | U21: 0 | V21: 0 | W21: 0 | X21: 0 | Y21: 0 | Z21: 0 | AA21: 0 | AB21: 0 | AC21: 0 | AD21: 0 | AE21: 0 | AF21: 0 | AG21: 0 | AH21: 0 | AI21: 0 | AJ21: 0 | AK21: 0 | AL21: 0 | AM21: 0 | AN21: 0 | AO21: 0 | AP21: 0 | AQ21: 0 | AR21: 0 | AS21: 0 | AT21: 0 | AU21: 0 | AV21: 0 | AW21: 0 | AX21: 0 | AY21: 0 | AZ21: 0 | BA21: 0 | BB21: 0 | BC21: 0 | BD21: 0 | BE21: 0 | BF21: 0 | BG21: 0
B24: Cost Inputs
B26: Capex Build Up
B28: Name | H28: Unit | J28: Unit Rate
B34: Name | H34: Unit | J34: Quantities
B40: Name | H40: Unit | J40: Costs
J41: =$J$29*J35 -> 0 | K41: =$J$29*K35 -> 0 | L41: =$J$29*L35 -> 0 | M41: 0 | N41: 0 | O41: 0 | P41: 0 | Q41: 0 | R41: 0 | S41: 0 | T41: 0 | U41: 0 | V41: 0 | W41: 0 | X41: 0 | Y41: 0 | Z41: 0 | AA41: 0 | AB41: 0 | AC41: 0 | AD41: 0 | AE41: 0 | AF41: 0 | AG41: 0 | AH41: 0 | AI41: 0 | AJ41: 0 | AK41: 0 | AL41: 0 | AM41: 0 | AN41: 0 | AO41: 0 | AP41: 0 | AQ41: 0 | AR41: 0 | AS41: 0 | AT41: 0 | AU41: 0 | AV41: 0 | AW41: 0 | AX41: 0 | AY41: 0 | AZ41: 0 | BA41: 0 | BB41: 0 | BC41: 0 | BD41: 0 | BE41: 0 | BF41: 0 | BG41: 0
J42: =$J$30*J36 -> 0 | K42: =$J$30*K36 -> 0 | L42: =$J$30*L36 -> 0 | M42: 0 | N42: 0 | O42: 0 | P42: 0 | Q42: 0 | R42: 0 | S42: 0 | T42: 0 | U42: 0 | V42: 0 | W42: 0 | X42: 0 | Y42: 0 | Z42: 0 | AA42: 0 | AB42: 0 | AC42: 0 | AD42: 0 | AE42: 0 | AF42: 0 | AG42: 0 | AH42: 0 | AI42: 0 | AJ42: 0 | AK42: 0 | AL42: 0 | AM42: 0 | AN42: 0 | AO42: 0 | AP42: 0 | AQ42: 0 | AR42: 0 | AS42: 0 | AT42: 0 | AU42: 0 | AV42: 0 | AW42: 0 | AX42: 0 | AY42: 0 | AZ42: 0 | BA42: 0 | BB42: 0 | BC42: 0 | BD42: 0 | BE42: 0 | BF42: 0 | BG42: 0
J43: =$J$31*J37 -> 0 | K43: =$J$31*K37 -> 0 | L43: =$J$31*L37 -> 0 | M43: 0 | N43: 0 | O43: 0 | P43: 0 | Q43: 0 | R43: 0 | S43: 0 | T43: 0 | U43: 0 | V43: 0 | W43: 0 | X43: 0 | Y43: 0 | Z43: 0 | AA43: 0 | AB43: 0 | AC43: 0 | AD43: 0 | AE43: 0 | AF43: 0 | AG43: 0 | AH43: 0 | AI43: 0 | AJ43: 0 | AK43: 0 | AL43: 0 | AM43: 0 | AN43: 0 | AO43: 0 | AP43: 0 | AQ43: 0 | AR43: 0 | AS43: 0 | AT43: 0 | AU43: 0 | AV43: 0 | AW43: 0 | AX43: 0 | AY43: 0 | AZ43: 0 | BA43: 0 | BB43: 0 | BC43: 0 | BD43: 0 | BE43: 0 | BF43: 0 | BG43: 0
J44: =$J$32*J38 -> 0 | K44: =$J$32*K38 -> 0 | L44: =$J$32*L38 -> 0 | M44: 0 | N44: 0 | O44: 0 | P44: 0 | Q44: 0 | R44: 0 | S44: 0 | T44: 0 | U44: 0 | V44: 0 | W44: 0 | X44: 0 | Y44: 0 | Z44: 0 | AA44: 0 | AB44: 0 | AC44: 0 | AD44: 0 | AE44: 0 | AF44: 0 | AG44: 0 | AH44: 0 | AI44: 0 | AJ44: 0 | AK44: 0 | AL44: 0 | AM44: 0 | AN44: 0 | AO44: 0 | AP44: 0 | AQ44: 0 | AR44: 0 | AS44: 0 | AT44: 0 | AU44: 0 | AV44: 0 | AW44: 0 | AX44: 0 | AY44: 0 | AZ44: 0 | BA44: 0 | BB44: 0 | BC44: 0 | BD44: 0 | BE44: 0 | BF44: 0 | BG44: 0
G46: $ Basis Reminder | H46: $ Reminder
B47: Total | G47: ='1_KMA'!$I$20 -> 2024-06-30 | H47: ='1_KMA'!$I$19 -> $millions | J47: =SUM(J41:J44) -> 0 | K47: =SUM(K41:K44) -> 0 | L47: =SUM(L41:L44) -> 0 | M47: 0 | N47: 0 | O47: 0 | P47: 0 | Q47: 0 | R47: 0 | S47: 0 | T47: 0 | U47: 0 | V47: 0 | W47: 0 | X47: 0 | Y47: 0 | Z47: 0 | AA47: 0 | AB47: 0 | AC47: 0 | AD47: 0 | AE47: 0 | AF47: 0 | AG47: 0 | AH47: 0 | AI47: 0 | AJ47: 0 | AK47: 0 | AL47: 0 | AM47: 0 | AN47: 0 | AO47: 0 | AP47: 0 | AQ47: 0 | AR47: 0 | AS47: 0 | AT47: 0 | AU47: 0 | AV47: 0 | AW47: 0 | AX47: 0 | AY47: 0 | AZ47: 0 | BA47: 0 | BB47: 0 | BC47: 0 | BD47: 0 | BE47: 0 | BF47: 0 | BG47: =SUM(BG41:BG44) -> 0
B49: Capex Offset
B51: Name | H51: Unit | J51: Costs
G57: $ Basis Reminder | H57: $ Reminder
B58: Total | G58: ='1_KMA'!$I$20 -> 2024-06-30 | H58: ='1_KMA'!$I$19 -> $millions | J58: =SUM(J52:J55) -> 0 | K58: =SUM(K52:K55) -> 0 | L58: =SUM(L52:L55) -> 0 | M58: 0 | N58: 0 | O58: 0 | P58: 0 | Q58: 0 | R58: 0 | S58: 0 | T58: 0 | U58: 0 | V58: 0 | W58: 0 | X58: 0 | Y58: 0 | Z58: 0 | AA58: 0 | AB58: 0 | AC58: 0 | AD58: 0 | AE58: 0 | AF58: 0 | AG58: 0 | AH58: 0 | AI58: 0 | AJ58: 0 | AK58: 0 | AL58: 0 | AM58: 0 | AN58: 0 | AO58: 0 | AP58: 0 | AQ58: 0 | AR58: 0 | AS58: 0 | AT58: 0 | AU58: 0 | AV58: 0 | AW58: 0 | AX58: 0 | AY58: 0 | AZ58: 0 | BA58: 0 | BB58: 0 | BC58: 0 | BD58: 0 | BE58: 0 | BF58: 0 | BG58: 0
B60: Opex Build Up
B62: Name | H62: Unit | J62: Value
B68: Name | H68: Unit | J68: Quantities
B74: Name | H74: Unit | J74: Costs
J75: =$J$63*J69 -> 0 | K75: =$J$63*K69 -> 0 | L75: =$J$63*L69 -> 0 | M75: 0 | N75: 0 | O75: 0 | P75: 0 | Q75: 0 | R75: 0 | S75: 0 | T75: 0 | U75: 0 | V75: 0 | W75: 0 | X75: 0 | Y75: 0 | Z75: 0 | AA75: 0 | AB75: 0 | AC75: 0 | AD75: 0 | AE75: 0 | AF75: 0 | AG75: 0 | AH75: 0 | AI75: 0 | AJ75: 0 | AK75: 0 | AL75: 0 | AM75: 0 | AN75: 0 | AO75: 0 | AP75: 0 | AQ75: 0 | AR75: 0 | AS75: 0 | AT75: 0 | AU75: 0 | AV75: 0 | AW75: 0 | AX75: 0 | AY75: 0 | AZ75: 0 | BA75: 0 | BB75: 0 | BC75: 0 | BD75: 0 | BE75: 0 | BF75: 0 | BG75: 0
J76: =$J$64*J70 -> 0 | K76: =$J$64*K70 -> 0 | L76: =$J$64*L70 -> 0 | M76: 0 | N76: 0 | O76: 0 | P76: 0 | Q76: 0 | R76: 0 | S76: 0 | T76: 0 | U76: 0 | V76: 0 | W76: 0 | X76: 0 | Y76: 0 | Z76: 0 | AA76: 0 | AB76: 0 | AC76: 0 | AD76: 0 | AE76: 0 | AF76: 0 | AG76: 0 | AH76: 0 | AI76: 0 | AJ76: 0 | AK76: 0 | AL76: 0 | AM76: 0 | AN76: 0 | AO76: 0 | AP76: 0 | AQ76: 0 | AR76: 0 | AS76: 0 | AT76: 0 | AU76: 0 | AV76: 0 | AW76: 0 | AX76: 0 | AY76: 0 | AZ76: 0 | BA76: 0 | BB76: 0 | BC76: 0 | BD76: 0 | BE76: 0 | BF76: 0 | BG76: 0
J77: =$J$65*J71 -> 0 | K77: =$J$65*K71 -> 0 | L77: =$J$65*L71 -> 0 | M77: 0 | N77: 0 | O77: 0 | P77: 0 | Q77: 0 | R77: 0 | S77: 0 | T77: 0 | U77: 0 | V77: 0 | W77: 0 | X77: 0 | Y77: 0 | Z77: 0 | AA77: 0 | AB77: 0 | AC77: 0 | AD77: 0 | AE77: 0 | AF77: 0 | AG77: 0 | AH77: 0 | AI77: 0 | AJ77: 0 | AK77: 0 | AL77: 0 | AM77: 0 | AN77: 0 | AO77: 0 | AP77: 0 | AQ77: 0 | AR77: 0 | AS77: 0 | AT77: 0 | AU77: 0 | AV77: 0 | AW77: 0 | AX77: 0 | AY77: 0 | AZ77: 0 | BA77: 0 | BB77: 0 | BC77: 0 | BD77: 0 | BE77: 0 | BF77: 0 | BG77: 0
J78: =$J$66*J72 -> 0 | K78: =$J$66*K72 -> 0 | L78: =$J$66*L72 -> 0 | M78: 0 | N78: 0 | O78: 0 | P78: 0 | Q78: 0 | R78: 0 | S78: 0 | T78: 0 | U78: 0 | V78: 0 | W78: 0 | X78: 0 | Y78: 0 | Z78: 0 | AA78: 0 | AB78: 0 | AC78: 0 | AD78: 0 | AE78: 0 | AF78: 0 | AG78: 0 | AH78: 0 | AI78: 0 | AJ78: 0 | AK78: 0 | AL78: 0 | AM78: 0 | AN78: 0 | AO78: 0 | AP78: 0 | AQ78: 0 | AR78: 0 | AS78: 0 | AT78: 0 | AU78: 0 | AV78: 0 | AW78: 0 | AX78: 0 | AY78: 0 | AZ78: 0 | BA78: 0 | BB78: 0 | BC78: 0 | BD78: 0 | BE78: 0 | BF78: 0 | BG78: 0
G80: $ Basis Reminder | H80: $ Reminder
B81: Total | G81: ='1_KMA'!$I$20 -> 2024-06-30 | H81: ='1_KMA'!$I$19 -> $millions | J81: =SUM(J75:J78) -> 0 | K81: =SUM(K75:K78) -> 0 | L81: =SUM(L75:L78) -> 0 | M81: 0 | N81: 0 | O81: 0 | P81: 0 | Q81: 0 | R81: 0 | S81: 0 | T81: 0 | U81: 0 | V81: 0 | W81: 0 | X81: 0 | Y81: 0 | Z81: 0 | AA81: 0 | AB81: 0 | AC81: 0 | AD81: 0 | AE81: 0 | AF81: 0 | AG81: 0 | AH81: 0 | AI81: 0 | AJ81: 0 | AK81: 0 | AL81: 0 | AM81: 0 | AN81: 0 | AO81: 0 | AP81: 0 | AQ81: 0 | AR81: 0 | AS81: 0 | AT81: 0 | AU81: 0 | AV81: 0 | AW81: 0 | AX81: 0 | AY81: 0 | AZ81: 0 | BA81: 0 | BB81: 0 | BC81: 0 | BD81: 0 | BE81: 0 | BF81: 0 | BG81: =SUM(BG75:BG78) -> 0
B83: Benefits Inputs
B85: Value of EUE
H87: Unit
B88: Expected Unserved Energy (EUE)
B89: VCR
G91: $ Basis Reminder | H91: $ Reminder
B92: Value of EUE | G92: ='1_KMA'!$I$20 -> 2024-06-30 | H92: ='1_KMA'!$I$19 -> $millions | J92: =J88*J89/10^6 -> 0 | K92: =K88*K89/10^6 -> 0 | L92: 0 | M92: 0 | N92: 0 | O92: 0 | P92: 0 | Q92: 0 | R92: 0 | S92: 0 | T92: 0 | U92: 0 | V92: 0 | W92: 0 | X92: 0 | Y92: 0 | Z92: 0 | AA92: 0 | AB92: 0 | AC92: 0 | AD92: 0 | AE92: 0 | AF92: 0 | AG92: 0 | AH92: 0 | AI92: 0 | AJ92: 0 | AK92: 0 | AL92: 0 | AM92: 0 | AN92: 0 | AO92: 0 | AP92: 0 | AQ92: 0 | AR92: 0 | AS92: 0 | AT92: 0 | AU92: 0 | AV92: 0 | AW92: 0 | AX92: 0 | AY92: 0 | AZ92: 0 | BA92: 0 | BB92: 0 | BC92: 0 | BD92: 0 | BE92: 0 | BF92: 0 | BG92: 0
B94: Resilience
B96: QCV research | H96: Unit | J96: Unit Rate
B97: Fewer unplanned outages, longer than 12 hours
B98: Faster restoration of power when an outage has occurred
B99: Community hub offering essential services during long duration outages
H102: Unit | J102: Quantities
B103: Fewer unplanned outages, longer than 12 hours
B104: Faster restoration of power when an outage has occurred
B105: Community hub offering essential services
H107: Unit | J107: Costs
B108: Fewer unplanned outages, longer than 12 hours | J108: =J103*'2.1_BC'!$J$97 -> 0 | K108: =K103*'2.1_BC'!$J$97 -> 0 | L108: =L103*'2.1_BC'!$J$97 -> 0 | M108: =M103*'2.1_BC'!$J$97 -> 0 | N108: =N103*'2.1_BC'!$J$97 -> 0 | O108: =O103*'2.1_BC'!$J$97 -> 0 | P108: =P103*'2.1_BC'!$J$97 -> 0 | Q108: =Q103*'2.1_BC'!$J$97 -> 0 | R108: =R103*'2.1_BC'!$J$97 -> 0 | S108: =S103*'2.1_BC'!$J$97 -> 0 | T108: =T103*'2.1_BC'!$J$97 -> 0 | U108: =U103*'2.1_BC'!$J$97 -> 0 | V108: =V103*'2.1_BC'!$J$97 -> 0 | W108: =W103*'2.1_BC'!$J$97 -> 0 | X108: =X103*'2.1_BC'!$J$97 -> 0 | Y108: =Y103*'2.1_BC'!$J$97 -> 0 | Z108: =Z103*'2.1_BC'!$J$97 -> 0 | AA108: =AA103*'2.1_BC'!$J$97 -> 0 | AB108: =AB103*'2.1_BC'!$J$97 -> 0 | AC108: =AC103*'2.1_BC'!$J$97 -> 0 | AD108: =AD103*'2.1_BC'!$J$97 -> 0 | AE108: =AE103*'2.1_BC'!$J$97 -> 0 | AF108: =AF103*'2.1_BC'!$J$97 -> 0 | AG108: =AG103*'2.1_BC'!$J$97 -> 0 | AH108: =AH103*'2.1_BC'!$J$97 -> 0 | AI108: =AI103*'2.1_BC'!$J$97 -> 0 | AJ108: =AJ103*'2.1_BC'!$J$97 -> 0 | AK108: =AK103*'2.1_BC'!$J$97 -> 0 | AL108: =AL103*'2.1_BC'!$J$97 -> 0 | AM108: =AM103*'2.1_BC'!$J$97 -> 0 | AN108: =AN103*'2.1_BC'!$J$97 -> 0 | AO108: =AO103*'2.1_BC'!$J$97 -> 0 | AP108: =AP103*'2.1_BC'!$J$97 -> 0 | AQ108: =AQ103*'2.1_BC'!$J$97 -> 0 | AR108: =AR103*'2.1_BC'!$J$97 -> 0 | AS108: =AS103*'2.1_BC'!$J$97 -> 0 | AT108: =AT103*'2.1_BC'!$J$97 -> 0 | AU108: =AU103*'2.1_BC'!$J$97 -> 0 | AV108: =AV103*'2.1_BC'!$J$97 -> 0 | AW108: =AW103*'2.1_BC'!$J$97 -> 0 | AX108: =AX103*'2.1_BC'!$J$97 -> 0 | AY108: =AY103*'2.1_BC'!$J$97 -> 0 | AZ108: =AZ103*'2.1_BC'!$J$97 -> 0 | BA108: =BA103*'2.1_BC'!$J$97 -> 0 | BB108: =BB103*'2.1_BC'!$J$97 -> 0 | BC108: =BC103*'2.1_BC'!$J$97 -> 0 | BD108: =BD103*'2.1_BC'!$J$97 -> 0 | BE108: =BE103*'2.1_BC'!$J$97 -> 0 | BF108: =BF103*'2.1_BC'!$J$97 -> 0 | BG108: =BG103*'2.1_BC'!$J$97 -> 0
B109: Faster restoration of power when an outage has occurred | J109: =J104*'2.1_BC'!$J$98 -> 0 | K109: =K104*'2.1_BC'!$J$98 -> 0 | L109: =L104*'2.1_BC'!$J$98 -> 0 | M109: =M104*'2.1_BC'!$J$98 -> 0 | N109: =N104*'2.1_BC'!$J$98 -> 0 | O109: =O104*'2.1_BC'!$J$98 -> 0 | P109: =P104*'2.1_BC'!$J$98 -> 0 | Q109: =Q104*'2.1_BC'!$J$98 -> 0 | R109: =R104*'2.1_BC'!$J$98 -> 0 | S109: =S104*'2.1_BC'!$J$98 -> 0 | T109: =T104*'2.1_BC'!$J$98 -> 0 | U109: =U104*'2.1_BC'!$J$98 -> 0 | V109: =V104*'2.1_BC'!$J$98 -> 0 | W109: =W104*'2.1_BC'!$J$98 -> 0 | X109: =X104*'2.1_BC'!$J$98 -> 0 | Y109: =Y104*'2.1_BC'!$J$98 -> 0 | Z109: =Z104*'2.1_BC'!$J$98 -> 0 | AA109: =AA104*'2.1_BC'!$J$98 -> 0 | AB109: =AB104*'2.1_BC'!$J$98 -> 0 | AC109: =AC104*'2.1_BC'!$J$98 -> 0 | AD109: =AD104*'2.1_BC'!$J$98 -> 0 | AE109: =AE104*'2.1_BC'!$J$98 -> 0 | AF109: =AF104*'2.1_BC'!$J$98 -> 0 | AG109: =AG104*'2.1_BC'!$J$98 -> 0 | AH109: =AH104*'2.1_BC'!$J$98 -> 0 | AI109: =AI104*'2.1_BC'!$J$98 -> 0 | AJ109: =AJ104*'2.1_BC'!$J$98 -> 0 | AK109: =AK104*'2.1_BC'!$J$98 -> 0 | AL109: =AL104*'2.1_BC'!$J$98 -> 0 | AM109: =AM104*'2.1_BC'!$J$98 -> 0 | AN109: =AN104*'2.1_BC'!$J$98 -> 0 | AO109: =AO104*'2.1_BC'!$J$98 -> 0 | AP109: =AP104*'2.1_BC'!$J$98 -> 0 | AQ109: =AQ104*'2.1_BC'!$J$98 -> 0 | AR109: =AR104*'2.1_BC'!$J$98 -> 0 | AS109: =AS104*'2.1_BC'!$J$98 -> 0 | AT109: =AT104*'2.1_BC'!$J$98 -> 0 | AU109: =AU104*'2.1_BC'!$J$98 -> 0 | AV109: =AV104*'2.1_BC'!$J$98 -> 0 | AW109: =AW104*'2.1_BC'!$J$98 -> 0 | AX109: =AX104*'2.1_BC'!$J$98 -> 0 | AY109: =AY104*'2.1_BC'!$J$98 -> 0 | AZ109: =AZ104*'2.1_BC'!$J$98 -> 0 | BA109: =BA104*'2.1_BC'!$J$98 -> 0 | BB109: =BB104*'2.1_BC'!$J$98 -> 0 | BC109: =BC104*'2.1_BC'!$J$98 -> 0 | BD109: =BD104*'2.1_BC'!$J$98 -> 0 | BE109: =BE104*'2.1_BC'!$J$98 -> 0 | BF109: =BF104*'2.1_BC'!$J$98 -> 0 | BG109: =BG104*'2.1_BC'!$J$98 -> 0
B110: Community hub offering essential services | J110: =J105*'2.1_BC'!$J$99 -> 0 | K110: =K105*'2.1_BC'!$J$99 -> 0 | L110: =L105*'2.1_BC'!$J$99 -> 0 | M110: =M105*'2.1_BC'!$J$99 -> 0 | N110: =N105*'2.1_BC'!$J$99 -> 0 | O110: =O105*'2.1_BC'!$J$99 -> 0 | P110: =P105*'2.1_BC'!$J$99 -> 0 | Q110: =Q105*'2.1_BC'!$J$99 -> 0 | R110: =R105*'2.1_BC'!$J$99 -> 0 | S110: =S105*'2.1_BC'!$J$99 -> 0 | T110: =T105*'2.1_BC'!$J$99 -> 0 | U110: =U105*'2.1_BC'!$J$99 -> 0 | V110: =V105*'2.1_BC'!$J$99 -> 0 | W110: =W105*'2.1_BC'!$J$99 -> 0 | X110: =X105*'2.1_BC'!$J$99 -> 0 | Y110: =Y105*'2.1_BC'!$J$99 -> 0 | Z110: =Z105*'2.1_BC'!$J$99 -> 0 | AA110: =AA105*'2.1_BC'!$J$99 -> 0 | AB110: =AB105*'2.1_BC'!$J$99 -> 0 | AC110: =AC105*'2.1_BC'!$J$99 -> 0 | AD110: =AD105*'2.1_BC'!$J$99 -> 0 | AE110: =AE105*'2.1_BC'!$J$99 -> 0 | AF110: =AF105*'2.1_BC'!$J$99 -> 0 | AG110: =AG105*'2.1_BC'!$J$99 -> 0 | AH110: =AH105*'2.1_BC'!$J$99 -> 0 | AI110: =AI105*'2.1_BC'!$J$99 -> 0 | AJ110: =AJ105*'2.1_BC'!$J$99 -> 0 | AK110: =AK105*'2.1_BC'!$J$99 -> 0 | AL110: =AL105*'2.1_BC'!$J$99 -> 0 | AM110: =AM105*'2.1_BC'!$J$99 -> 0 | AN110: =AN105*'2.1_BC'!$J$99 -> 0 | AO110: =AO105*'2.1_BC'!$J$99 -> 0 | AP110: =AP105*'2.1_BC'!$J$99 -> 0 | AQ110: =AQ105*'2.1_BC'!$J$99 -> 0 | AR110: =AR105*'2.1_BC'!$J$99 -> 0 | AS110: =AS105*'2.1_BC'!$J$99 -> 0 | AT110: =AT105*'2.1_BC'!$J$99 -> 0 | AU110: =AU105*'2.1_BC'!$J$99 -> 0 | AV110: =AV105*'2.1_BC'!$J$99 -> 0 | AW110: =AW105*'2.1_BC'!$J$99 -> 0 | AX110: =AX105*'2.1_BC'!$J$99 -> 0 | AY110: =AY105*'2.1_BC'!$J$99 -> 0 | AZ110: =AZ105*'2.1_BC'!$J$99 -> 0 | BA110: =BA105*'2.1_BC'!$J$99 -> 0 | BB110: =BB105*'2.1_BC'!$J$99 -> 0 | BC110: =BC105*'2.1_BC'!$J$99 -> 0 | BD110: =BD105*'2.1_BC'!$J$99 -> 0 | BE110: =BE105*'2.1_BC'!$J$99 -> 0 | BF110: =BF105*'2.1_BC'!$J$99 -> 0 | BG110: =BG105*'2.1_BC'!$J$99 -> 0
G112: $ Basis Reminder | H112: $ Reminder
B113: Total | G113: ='1_KMA'!$I$20 -> 2024-06-30 | H113: ='1_KMA'!$I$19 -> $millions | J113: =(J108+J109+J110)/10^6 -> 0 | K113: =(K108+K109+K110)/10^6 -> 0 | L113: 0 | M113: 0 | N113: 0 | O113: 0 | P113: 0 | Q113: 0 | R113: 0 | S113: 0 | T113: 0 | U113: 0 | V113: 0 | W113: 0 | X113: 0 | Y113: 0 | Z113: 0 | AA113: 0 | AB113: 0 | AC113: 0 | AD113: 0 | AE113: 0 | AF113: 0 | AG113: 0 | AH113: 0 | AI113: 0 | AJ113: 0 | AK113: 0 | AL113: 0 | AM113: 0 | AN113: 0 | AO113: 0 | AP113: 0 | AQ113: 0 | AR113: 0 | AS113: 0 | AT113: 0 | AU113: 0 | AV113: 0 | AW113: 0 | AX113: 0 | AY113: 0 | AZ113: 0 | BA113: 0 | BB113: 0 | BC113: 0 | BD113: 0 | BE113: 0 | BF113: 0 | BG113: 0

Sheet 2.1_Op1
B1: General Inputs: Option 1 | I1: Regulatory Period Indicator | J1: ='1_KMA'!J30 -> 1 | K1: ='1_KMA'!K30 -> 1 | L1: ='1_KMA'!L30 -> 1 | M1: ='1_KMA'!M30 -> 1 | N1: ='1_KMA'!N30 -> 1 | O1: ='1_KMA'!O30 -> 0 | P1: ='1_KMA'!P30 -> 0 | Q1: ='1_KMA'!Q30 -> 0 | R1: ='1_KMA'!R30 -> 0 | S1: ='1_KMA'!S30 -> 0 | T1: ='1_KMA'!T30 -> 0 | U1: ='1_KMA'!U30 -> 0 | V1: ='1_KMA'!V30 -> 0 | W1: ='1_KMA'!W30 -> 0 | X1: ='1_KMA'!X30 -> 0 | Y1: ='1_KMA'!Y30 -> 0 | Z1: ='1_KMA'!Z30 -> 0 | AA1: ='1_KMA'!AA30 -> 0 | AB1: ='1_KMA'!AB30 -> 0 | AC1: ='1_KMA'!AC30 -> 0 | AD1: ='1_KMA'!AD30 -> 0 | AE1: ='1_KMA'!AE30 -> 0 | AF1: ='1_KMA'!AF30 -> 0 | AG1: ='1_KMA'!AG30 -> 0 | AH1: ='1_KMA'!AH30 -> 0 | AI1: ='1_KMA'!AI30 -> 0 | AJ1: ='1_KMA'!AJ30 -> 0 | AK1: ='1_KMA'!AK30 -> 0 | AL1: ='1_KMA'!AL30 -> 0 | AM1: ='1_KMA'!AM30 -> 0 | AN1: ='1_KMA'!AN30 -> 0 | AO1: ='1_KMA'!AO30 -> 0 | AP1: ='1_KMA'!AP30 -> 0 | AQ1: ='1_KMA'!AQ30 -> 0 | AR1: ='1_KMA'!AR30 -> 0 | AS1: ='1_KMA'!AS30 -> 0 | AT1: ='1_KMA'!AT30 -> 0 | AU1: ='1_KMA'!AU30 -> 0 | AV1: ='1_KMA'!AV30 -> 0 | AW1: ='1_KMA'!AW30 -> 0 | AX1: ='1_KMA'!AX30 -> 0 | AY1: ='1_KMA'!AY30 -> 0 | AZ1: ='1_KMA'!AZ30 -> 0 | BA1: ='1_KMA'!BA30 -> 0 | BB1: ='1_KMA'!BB30 -> 0 | BC1: ='1_KMA'!BC30 -> 0 | BD1: ='1_KMA'!BD30 -> 0 | BE1: ='1_KMA'!BE30 -> 0 | BF1: ='1_KMA'!BF30 -> 0 | BG1: ='1_KMA'!BG30 -> 0
B2: =Cover!$C$9 -> AusNet Services | I2: Period Start Date | J2: ='1_KMA'!J31 -> 2026-07-01 | K2: ='1_KMA'!K31 -> 2027-07-01 | L2: ='1_KMA'!L31 -> 2028-07-01 | M2: ='1_KMA'!M31 -> 2029-07-01 | N2: ='1_KMA'!N31 -> 2030-07-01 | O2: ='1_KMA'!O31 -> 2031-07-01 | P2: ='1_KMA'!P31 -> 2032-07-01 | Q2: ='1_KMA'!Q31 -> 2033-07-01 | R2: ='1_KMA'!R31 -> 2034-07-01 | S2: ='1_KMA'!S31 -> 2035-07-01 | T2: ='1_KMA'!T31 -> 2036-07-01 | U2: ='1_KMA'!U31 -> 2037-07-01 | V2: ='1_KMA'!V31 -> 2038-07-01 | W2: ='1_KMA'!W31 -> 2039-07-01 | X2: ='1_KMA'!X31 -> 2040-07-01 | Y2: ='1_KMA'!Y31 -> 2041-07-01 | Z2: ='1_KMA'!Z31 -> 2042-07-01 | AA2: ='1_KMA'!AA31 -> 2043-07-01 | AB2: ='1_KMA'!AB31 -> 2044-07-01 | AC2: ='1_KMA'!AC31 -> 2045-07-01 | AD2: ='1_KMA'!AD31 -> 2046-07-01 | AE2: ='1_KMA'!AE31 -> 2047-07-01 | AF2: ='1_KMA'!AF31 -> 2048-07-01 | AG2: ='1_KMA'!AG31 -> 2049-07-01 | AH2: ='1_KMA'!AH31 -> 2050-07-01 | AI2: ='1_KMA'!AI31 -> 2051-07-01 | AJ2: ='1_KMA'!AJ31 -> 2052-07-01 | AK2: ='1_KMA'!AK31 -> 2053-07-01 | AL2: ='1_KMA'!AL31 -> 2054-07-01 | AM2: ='1_KMA'!AM31 -> 2055-07-01 | AN2: ='1_KMA'!AN31 -> 2056-07-01 | AO2: ='1_KMA'!AO31 -> 2057-07-01 | AP2: ='1_KMA'!AP31 -> 2058-07-01 | AQ2: ='1_KMA'!AQ31 -> 2059-07-01 | AR2: ='1_KMA'!AR31 -> 2060-07-01 | AS2: ='1_KMA'!AS31 -> 2061-07-01 | AT2: ='1_KMA'!AT31 -> 2062-07-01 | AU2: ='1_KMA'!AU31 -> 2063-07-01 | AV2: ='1_KMA'!AV31 -> 2064-07-01 | AW2: ='1_KMA'!AW31 -> 2065-07-01 | AX2: ='1_KMA'!AX31 -> 2066-07-01 | AY2: ='1_KMA'!AY31 -> 2067-07-01 | AZ2: ='1_KMA'!AZ31 -> 2068-07-01 | BA2: ='1_KMA'!BA31 -> 2069-07-01 | BB2: ='1_KMA'!BB31 -> 2070-07-01 | BC2: ='1_KMA'!BC31 -> 2071-07-01 | BD2: ='1_KMA'!BD31 -> 2072-07-01 | BE2: ='1_KMA'!BE31 -> 2073-07-01 | BF2: ='1_KMA'!BF31 -> 2074-07-01 | BG2: ='1_KMA'!BG31 -> 2075-07-01
B3: =Cover!$C$10 -> Business Case Evaluation | I3: Period End Date | J3: ='1_KMA'!J32 -> 2027-06-30 | K3: ='1_KMA'!K32 -> 2028-06-30 | L3: ='1_KMA'!L32 -> 2029-06-30 | M3: ='1_KMA'!M32 -> 2030-06-30 | N3: ='1_KMA'!N32 -> 2031-06-30 | O3: ='1_KMA'!O32 -> 2032-06-30 | P3: ='1_KMA'!P32 -> 2033-06-30 | Q3: ='1_KMA'!Q32 -> 2034-06-30 | R3: ='1_KMA'!R32 -> 2035-06-30 | S3: ='1_KMA'!S32 -> 2036-06-30 | T3: ='1_KMA'!T32 -> 2037-06-30 | U3: ='1_KMA'!U32 -> 2038-06-30 | V3: ='1_KMA'!V32 -> 2039-06-30 | W3: ='1_KMA'!W32 -> 2040-06-30 | X3: ='1_KMA'!X32 -> 2041-06-30 | Y3: ='1_KMA'!Y32 -> 2042-06-30 | Z3: ='1_KMA'!Z32 -> 2043-06-30 | AA3: ='1_KMA'!AA32 -> 2044-06-30 | AB3: ='1_KMA'!AB32 -> 2045-06-30 | AC3: ='1_KMA'!AC32 -> 2046-06-30 | AD3: ='1_KMA'!AD32 -> 2047-06-30 | AE3: ='1_KMA'!AE32 -> 2048-06-30 | AF3: ='1_KMA'!AF32 -> 2049-06-30 | AG3: ='1_KMA'!AG32 -> 2050-06-30 | AH3: ='1_KMA'!AH32 -> 2051-06-30 | AI3: ='1_KMA'!AI32 -> 2052-06-30 | AJ3: ='1_KMA'!AJ32 -> 2053-06-30 | AK3: ='1_KMA'!AK32 -> 2054-06-30 | AL3: ='1_KMA'!AL32 -> 2055-06-30 | AM3: ='1_KMA'!AM32 -> 2056-06-30 | AN3: ='1_KMA'!AN32 -> 2057-06-30 | AO3: ='1_KMA'!AO32 -> 2058-06-30 | AP3: ='1_KMA'!AP32 -> 2059-06-30 | AQ3: ='1_KMA'!AQ32 -> 2060-06-30 | AR3: ='1_KMA'!AR32 -> 2061-06-30 | AS3: ='1_KMA'!AS32 -> 2062-06-30 | AT3: ='1_KMA'!AT32 -> 2063-06-30 | AU3: ='1_KMA'!AU32 -> 2064-06-30 | AV3: ='1_KMA'!AV32 -> 2065-06-30 | AW3: ='1_KMA'!AW32 -> 2066-06-30 | AX3: ='1_KMA'!AX32 -> 2067-06-30 | AY3: ='1_KMA'!AY32 -> 2068-06-30 | AZ3: ='1_KMA'!AZ32 -> 2069-06-30 | BA3: ='1_KMA'!BA32 -> 2070-06-30 | BB3: ='1_KMA'!BB32 -> 2071-06-30 | BC3: ='1_KMA'!BC32 -> 2072-06-30 | BD3: ='1_KMA'!BD32 -> 2073-06-30 | BE3: ='1_KMA'!BE32 -> 2074-06-30 | BF3: ='1_KMA'!BF32 -> 2075-06-30 | BG3: ='1_KMA'!BG32 -> 2076-06-30
B4: =Cover!$C$11 -> Backup power for community hubs | I4: Project Year | J4: ='1_KMA'!J33 -> 1 | K4: ='1_KMA'!K33 -> 2 | L4: ='1_KMA'!L33 -> 3 | M4: ='1_KMA'!M33 -> 4 | N4: ='1_KMA'!N33 -> 5 | O4: ='1_KMA'!O33 -> 6 | P4: ='1_KMA'!P33 -> 7 | Q4: ='1_KMA'!Q33 -> 8 | R4: ='1_KMA'!R33 -> 9 | S4: ='1_KMA'!S33 -> 10 | T4: ='1_KMA'!T33 -> 11 | U4: ='1_KMA'!U33 -> 12 | V4: ='1_KMA'!V33 -> 13 | W4: ='1_KMA'!W33 -> 14 | X4: ='1_KMA'!X33 -> 15 | Y4: ='1_KMA'!Y33 -> 16 | Z4: ='1_KMA'!Z33 -> 17 | AA4: ='1_KMA'!AA33 -> 18 | AB4: ='1_KMA'!AB33 -> 19 | AC4: ='1_KMA'!AC33 -> 20 | AD4: ='1_KMA'!AD33 -> 21 | AE4: ='1_KMA'!AE33 -> 22 | AF4: ='1_KMA'!AF33 -> 23 | AG4: ='1_KMA'!AG33 -> 24 | AH4: ='1_KMA'!AH33 -> 25 | AI4: ='1_KMA'!AI33 -> 26 | AJ4: ='1_KMA'!AJ33 -> 27 | AK4: ='1_KMA'!AK33 -> 28 | AL4: ='1_KMA'!AL33 -> 29 | AM4: ='1_KMA'!AM33 -> 30 | AN4: ='1_KMA'!AN33 -> 31 | AO4: ='1_KMA'!AO33 -> 32 | AP4: ='1_KMA'!AP33 -> 33 | AQ4: ='1_KMA'!AQ33 -> 34 | AR4: ='1_KMA'!AR33 -> 35 | AS4: ='1_KMA'!AS33 -> 36 | AT4: ='1_KMA'!AT33 -> 37 | AU4: ='1_KMA'!AU33 -> 38 | AV4: ='1_KMA'!AV33 -> 39 | AW4: ='1_KMA'!AW33 -> 40 | AX4: ='1_KMA'!AX33 -> 41 | AY4: ='1_KMA'!AY33 -> 42 | AZ4: ='1_KMA'!AZ33 -> 43 | BA4: ='1_KMA'!BA33 -> 44 | BB4: ='1_KMA'!BB33 -> 45 | BC4: ='1_KMA'!BC33 -> 46 | BD4: ='1_KMA'!BD33 -> 47 | BE4: ='1_KMA'!BE33 -> 48 | BF4: ='1_KMA'!BF33 -> 49 | BG4: ='1_KMA'!BG33 -> 50
I5: Financial Year | J5: ='1_KMA'!J34 -> 2027 | K5: ='1_KMA'!K34 -> 2028 | L5: ='1_KMA'!L34 -> 2029 | M5: ='1_KMA'!M34 -> 2030 | N5: ='1_KMA'!N34 -> 2031 | O5: ='1_KMA'!O34 -> 2032 | P5: ='1_KMA'!P34 -> 2033 | Q5: ='1_KMA'!Q34 -> 2034 | R5: ='1_KMA'!R34 -> 2035 | S5: ='1_KMA'!S34 -> 2036 | T5: ='1_KMA'!T34 -> 2037 | U5: ='1_KMA'!U34 -> 2038 | V5: ='1_KMA'!V34 -> 2039 | W5: ='1_KMA'!W34 -> 2040 | X5: ='1_KMA'!X34 -> 2041 | Y5: ='1_KMA'!Y34 -> 2042 | Z5: ='1_KMA'!Z34 -> 2043 | AA5: ='1_KMA'!AA34 -> 2044 | AB5: ='1_KMA'!AB34 -> 2045 | AC5: ='1_KMA'!AC34 -> 2046 | AD5: ='1_KMA'!AD34 -> 2047 | AE5: ='1_KMA'!AE34 -> 2048 | AF5: ='1_KMA'!AF34 -> 2049 | AG5: ='1_KMA'!AG34 -> 2050 | AH5: ='1_KMA'!AH34 -> 2051 | AI5: ='1_KMA'!AI34 -> 2052 | AJ5: ='1_KMA'!AJ34 -> 2053 | AK5: ='1_KMA'!AK34 -> 2054 | AL5: ='1_KMA'!AL34 -> 2055 | AM5: ='1_KMA'!AM34 -> 2056 | AN5: ='1_KMA'!AN34 -> 2057 | AO5: ='1_KMA'!AO34 -> 2058 | AP5: ='1_KMA'!AP34 -> 2059 | AQ5: ='1_KMA'!AQ34 -> 2060 | AR5: ='1_KMA'!AR34 -> 2061 | AS5: ='1_KMA'!AS34 -> 2062 | AT5: ='1_KMA'!AT34 -> 2063 | AU5: ='1_KMA'!AU34 -> 2064 | AV5: ='1_KMA'!AV34 -> 2065 | AW5: ='1_KMA'!AW34 -> 2066 | AX5: ='1_KMA'!AX34 -> 2067 | AY5: ='1_KMA'!AY34 -> 2068 | AZ5: ='1_KMA'!AZ34 -> 2069 | BA5: ='1_KMA'!BA34 -> 2070 | BB5: ='1_KMA'!BB34 -> 2071 | BC5: ='1_KMA'!BC34 -> 2072 | BD5: ='1_KMA'!BD34 -> 2073 | BE5: ='1_KMA'!BE34 -> 2074 | BF5: ='1_KMA'!BF34 -> 2075 | BG5: ='1_KMA'!BG34 -> 2076
B7: Summary
B9: Costs | G9: $ Basis Reminder | H9: $ Reminder
B10: Capex | G10: ='1_KMA'!$I$20 -> 2024-06-30 | H10: ='1_KMA'!$I$19 -> $millions | J10: =J47 -> 1.8 | K10: =K47 -> 1.8 | L10: 1.8 | M10: 1.8 | N10: 1.8 | O10: 0 | P10: 0 | Q10: 0 | R10: 0 | S10: 0 | T10: 0 | U10: 0 | V10: 0 | W10: 0 | X10: 0 | Y10: 0 | Z10: 0 | AA10: 0 | AB10: 0 | AC10: 0 | AD10: 0 | AE10: 0 | AF10: 0 | AG10: 0 | AH10: 0 | AI10: 0 | AJ10: 0 | AK10: 0 | AL10: 0 | AM10: 0 | AN10: 0 | AO10: 0 | AP10: 0 | AQ10: 0 | AR10: 0 | AS10: 0 | AT10: 0 | AU10: 0 | AV10: 0 | AW10: 0 | AX10: 0 | AY10: 0 | AZ10: 0 | BA10: 0 | BB10: 0 | BC10: 0 | BD10: 0 | BE10: 0 | BF10: 0 | BG10: 0
B11: Capex offset | G11: ='1_KMA'!$I$20 -> 2024-06-30 | H11: ='1_KMA'!$I$19 -> $millions | J11: =-J58 -> 0 | K11: =-K58 -> 0 | L11: 0 | M11: 0 | N11: 0 | O11: 0 | P11: 0 | Q11: 0 | R11: 0 | S11: 0 | T11: 0 | U11: 0 | V11: 0 | W11: 0 | X11: 0 | Y11: 0 | Z11: 0 | AA11: 0 | AB11: 0 | AC11: 0 | AD11: 0 | AE11: 0 | AF11: 0 | AG11: 0 | AH11: 0 | AI11: 0 | AJ11: 0 | AK11: 0 | AL11: 0 | AM11: 0 | AN11: 0 | AO11: 0 | AP11: 0 | AQ11: 0 | AR11: 0 | AS11: 0 | AT11: 0 | AU11: 0 | AV11: 0 | AW11: 0 | AX11: 0 | AY11: 0 | AZ11: 0 | BA11: 0 | BB11: 0 | BC11: 0 | BD11: 0 | BE11: 0 | BF11: 0 | BG11: 0
B12: Opex | G12: ='1_KMA'!$I$20 -> 2024-06-30 | H12: ='1_KMA'!$I$19 -> $millions | J12: =J81 -> 0.018 | K12: =K81 -> 0.036 | L12: 0.054 | M12: 0.072 | N12: 0.09 | O12: 0.09 | P12: 0.09 | Q12: 0.09 | R12: 0.09 | S12: 0.09 | T12: 0.09 | U12: 0.09 | V12: 0.09 | W12: 0.09 | X12: 0.09 | Y12: 0.072 | Z12: 0.054 | AA12: 0.036 | AB12: 0.018 | AC12: 0 | AD12: 0 | AE12: 0 | AF12: 0 | AG12: 0 | AH12: 0 | AI12: 0 | AJ12: 0 | AK12: 0 | AL12: 0 | AM12: 0 | AN12: 0 | AO12: 0 | AP12: 0 | AQ12: 0 | AR12: 0 | AS12: 0 | AT12: 0 | AU12: 0 | AV12: 0 | AW12: 0 | AX12: 0 | AY12: 0 | AZ12: 0 | BA12: 0 | BB12: 0 | BC12: 0 | BD12: 0 | BE12: 0 | BF12: 0 | BG12: 0
B13: Total | G13: ='1_KMA'!$I$20 -> 2024-06-30 | H13: ='1_KMA'!$I$19 -> $millions | J13: =SUM(J10:J12) -> 1.818 | K13: =SUM(K10:K12) -> 1.836 | L13: =SUM(L10:L12) -> 1.854 | M13: 1.872 | N13: 1.89 | O13: 0.09 | P13: 0.09 | Q13: 0.09 | R13: 0.09 | S13: 0.09 | T13: 0.09 | U13: 0.09 | V13: 0.09 | W13: 0.09 | X13: 0.09 | Y13: 0.072 | Z13: 0.054 | AA13: 0.036 | AB13: 0.018 | AC13: 0 | AD13: 0 | AE13: 0 | AF13: 0 | AG13: 0 | AH13: 0 | AI13: 0 | AJ13: 0 | AK13: 0 | AL13: 0 | AM13: 0 | AN13: 0 | AO13: 0 | AP13: 0 | AQ13: 0 | AR13: 0 | AS13: 0 | AT13: 0 | AU13: 0 | AV13: 0 | AW13: 0 | AX13: 0 | AY13: 0 | AZ13: 0 | BA13: 0 | BB13: 0 | BC13: 0 | BD13: 0 | BE13: 0 | BF13: 0 | BG13: 0
B15: Benefits | G15: $ Basis Reminder | H15: $ Reminder
B16: Value of EUE | G16: ='1_KMA'!$I$20 -> 2024-06-30 | H16: ='1_KMA'!$I$19 -> $millions | J16: =J92 -> 0 | K16: =K92 -> 0 | L16: 0 | M16: 0 | N16: 0 | O16: 0 | P16: 0 | Q16: 0 | R16: 0 | S16: 0 | T16: 0 | U16: 0 | V16: 0 | W16: 0 | X16: 0 | Y16: 0 | Z16: 0 | AA16: 0 | AB16: 0 | AC16: 0 | AD16: 0 | AE16: 0 | AF16: 0 | AG16: 0 | AH16: 0 | AI16: 0 | AJ16: 0 | AK16: 0 | AL16: 0 | AM16: 0 | AN16: 0 | AO16: 0 | AP16: 0 | AQ16: 0 | AR16: 0 | AS16: 0 | AT16: 0 | AU16: 0 | AV16: 0 | AW16: 0 | AX16: 0 | AY16: 0 | AZ16: 0 | BA16: 0 | BB16: 0 | BC16: 0 | BD16: 0 | BE16: 0 | BF16: 0 | BG16: 0
B18: Resilience | G18: ='1_KMA'!$I$20 -> 2024-06-30 | H18: ='1_KMA'!$I$19 -> $millions | J18: =J113 -> 0.4110095339 | K18: =K113 -> 0.8220190679 | L18: 1.233028602 | M18: 1.644038136 | N18: 2.05504767 | O18: 2.05504767 | P18: 2.05504767 | Q18: 2.05504767 | R18: 2.05504767 | S18: 2.05504767 | T18: 2.05504767 | U18: 2.05504767 | V18: 2.05504767 | W18: 2.05504767 | X18: 2.05504767 | Y18: 1.644038136 | Z18: 1.233028602 | AA18: 0.8220190679 | AB18: 0.4110095339 | AC18: 0 | AD18: 0 | AE18: 0 | AF18: 0 | AG18: 0 | AH18: 0 | AI18: 0 | AJ18: 0 | AK18: 0 | AL18: 0 | AM18: 0 | AN18: 0 | AO18: 0 | AP18: 0 | AQ18: 0 | AR18: 0 | AS18: 0 | AT18: 0 | AU18: 0 | AV18: 0 | AW18: 0 | AX18: 0 | AY18: 0 | AZ18: 0 | BA18: 0 | BB18: 0 | BC18: 0 | BD18: 0 | BE18: 0 | BF18: 0 | BG18: 0
B21: Total | G21: ='1_KMA'!$I$20 -> 2024-06-30 | H21: ='1_KMA'!$I$19 -> $millions | J21: =SUM(J16:J20) -> 0.4110095339 | K21: =SUM(K16:K20) -> 0.8220190679 | L21: 1.233028602 | M21: 1.644038136 | N21: 2.05504767 | O21: 2.05504767 | P21: 2.05504767 | Q21: 2.05504767 | R21: 2.05504767 | S21: 2.05504767 | T21: 2.05504767 | U21: 2.05504767 | V21: 2.05504767 | W21: 2.05504767 | X21: 2.05504767 | Y21: 1.644038136 | Z21: 1.233028602 | AA21: 0.8220190679 | AB21: 0.4110095339 | AC21: 0 | AD21: 0 | AE21: 0 | AF21: 0 | AG21: 0 | AH21: 0 | AI21: 0 | AJ21: 0 | AK21: 0 | AL21: 0 | AM21: 0 | AN21: 0 | AO21: 0 | AP21: 0 | AQ21: 0 | AR21: 0 | AS21: 0 | AT21: 0 | AU21: 0 | AV21: 0 | AW21: 0 | AX21: 0 | AY21: 0 | AZ21: 0 | BA21: 0 | BB21: 0 | BC21: 0 | BD21: 0 | BE21: 0 | BF21: 0 | BG21: 0
B24: Cost Inputs
B26: Capex Build Up
B28: Name | H28: Unit | J28: Unit Rate
B29: Community Hub Unit Rate | H29: $millions/unit | J29: ='Project Details'!B14/'Project Details'!B20 -> 0.3
B34: Name | H34: Unit | J34: Quantities
B35: Community Hub Number of Units | H35: Number of units | J35: =30/5 -> 6 | K35: =30/5 -> 6 | L35: 6 | M35: 6 | N35: 6
B40: Name | H40: Unit | J40: Costs
B41: Community Hub Capex | H41: $millions | J41: =$J$29*J35 -> 1.8 | K41: =$J$29*K35 -> 1.8 | L41: =$J$29*L35 -> 1.8 | M41: 1.8 | N41: 1.8 | O41: 0 | P41: 0 | Q41: 0 | R41: 0 | S41: 0 | T41: 0 | U41: 0 | V41: 0 | W41: 0 | X41: 0 | Y41: 0 | Z41: 0 | AA41: 0 | AB41: 0 | AC41: 0 | AD41: 0 | AE41: 0 | AF41: 0 | AG41: 0 | AH41: 0 | AI41: 0 | AJ41: 0 | AK41: 0 | AL41: 0 | AM41: 0 | AN41: 0 | AO41: 0 | AP41: 0 | AQ41: 0 | AR41: 0 | AS41: 0 | AT41: 0 | AU41: 0 | AV41: 0 | AW41: 0 | AX41: 0 | AY41: 0 | AZ41: 0 | BA41: 0 | BB41: 0 | BC41: 0 | BD41: 0 | BE41: 0 | BF41: 0 | BG41: 0
J42: =$J$30*J36 -> 0 | K42: =$J$30*K36 -> 0 | L42: =$J$30*L36 -> 0 | M42: 0 | N42: 0 | O42: 0 | P42: 0 | Q42: 0 | R42: 0 | S42: 0 | T42: 0 | U42: 0 | V42: 0 | W42: 0 | X42: 0 | Y42: 0 | Z42: 0 | AA42: 0 | AB42: 0 | AC42: 0 | AD42: 0 | AE42: 0 | AF42: 0 | AG42: 0 | AH42: 0 | AI42: 0 | AJ42: 0 | AK42: 0 | AL42: 0 | AM42: 0 | AN42: 0 | AO42: 0 | AP42: 0 | AQ42: 0 | AR42: 0 | AS42: 0 | AT42: 0 | AU42: 0 | AV42: 0 | AW42: 0 | AX42: 0 | AY42: 0 | AZ42: 0 | BA42: 0 | BB42: 0 | BC42: 0 | BD42: 0 | BE42: 0 | BF42: 0 | BG42: 0
J43: =$J$31*J37 -> 0 | K43: =$J$31*K37 -> 0 | L43: =$J$31*L37 -> 0 | M43: 0 | N43: 0 | O43: 0 | P43: 0 | Q43: 0 | R43: 0 | S43: 0 | T43: 0 | U43: 0 | V43: 0 | W43: 0 | X43: 0 | Y43: 0 | Z43: 0 | AA43: 0 | AB43: 0 | AC43: 0 | AD43: 0 | AE43: 0 | AF43: 0 | AG43: 0 | AH43: 0 | AI43: 0 | AJ43: 0 | AK43: 0 | AL43: 0 | AM43: 0 | AN43: 0 | AO43: 0 | AP43: 0 | AQ43: 0 | AR43: 0 | AS43: 0 | AT43: 0 | AU43: 0 | AV43: 0 | AW43: 0 | AX43: 0 | AY43: 0 | AZ43: 0 | BA43: 0 | BB43: 0 | BC43: 0 | BD43: 0 | BE43: 0 | BF43: 0 | BG43: 0
J44: =$J$32*J38 -> 0 | K44: =$J$32*K38 -> 0 | L44: =$J$32*L38 -> 0 | M44: 0 | N44: 0 | O44: 0 | P44: 0 | Q44: 0 | R44: 0 | S44: 0 | T44: 0 | U44: 0 | V44: 0 | W44: 0 | X44: 0 | Y44: 0 | Z44: 0 | AA44: 0 | AB44: 0 | AC44: 0 | AD44: 0 | AE44: 0 | AF44: 0 | AG44: 0 | AH44: 0 | AI44: 0 | AJ44: 0 | AK44: 0 | AL44: 0 | AM44: 0 | AN44: 0 | AO44: 0 | AP44: 0 | AQ44: 0 | AR44: 0 | AS44: 0 | AT44: 0 | AU44: 0 | AV44: 0 | AW44: 0 | AX44: 0 | AY44: 0 | AZ44: 0 | BA44: 0 | BB44: 0 | BC44: 0 | BD44: 0 | BE44: 0 | BF44: 0 | BG44: 0
G46: $ Basis Reminder | H46: $ Reminder
B47: Total | G47: ='1_KMA'!$I$20 -> 2024-06-30 | H47: ='1_KMA'!$I$19 -> $millions | J47: =SUM(J41:J44) -> 1.8 | K47: =SUM(K41:K44) -> 1.8 | L47: 1.8 | M47: 1.8 | N47: 1.8 | O47: 0 | P47: 0 | Q47: 0 | R47: 0 | S47: 0 | T47: 0 | U47: 0 | V47: 0 | W47: 0 | X47: 0 | Y47: 0 | Z47: 0 | AA47: 0 | AB47: 0 | AC47: 0 | AD47: 0 | AE47: 0 | AF47: 0 | AG47: 0 | AH47: 0 | AI47: 0 | AJ47: 0 | AK47: 0 | AL47: 0 | AM47: 0 | AN47: 0 | AO47: 0 | AP47: 0 | AQ47: 0 | AR47: 0 | AS47: 0 | AT47: 0 | AU47: 0 | AV47: 0 | AW47: 0 | AX47: 0 | AY47: 0 | AZ47: 0 | BA47: 0 | BB47: 0 | BC47: 0 | BD47: 0 | BE47: 0 | BF47: 0 | BG47: 0
B49: Capex Offset
B51: Name | H51: Unit | J51: Costs
G57: $ Basis Reminder | H57: $ Reminder
B58: Total | G58: ='1_KMA'!$I$20 -> 2024-06-30 | H58: ='1_KMA'!$I$19 -> $millions | J58: =SUM(J52:J55) -> 0 | K58: =SUM(K52:K55) -> 0 | L58: =SUM(L52:L55) -> 0 | M58: 0 | N58: 0 | O58: 0 | P58: 0 | Q58: 0 | R58: 0 | S58: 0 | T58: 0 | U58: 0 | V58: 0 | W58: 0 | X58: 0 | Y58: 0 | Z58: 0 | AA58: 0 | AB58: 0 | AC58: 0 | AD58: 0 | AE58: 0 | AF58: 0 | AG58: 0 | AH58: 0 | AI58: 0 | AJ58: 0 | AK58: 0 | AL58: 0 | AM58: 0 | AN58: 0 | AO58: 0 | AP58: 0 | AQ58: 0 | AR58: 0 | AS58: 0 | AT58: 0 | AU58: 0 | AV58: 0 | AW58: 0 | AX58: 0 | AY58: 0 | AZ58: 0 | BA58: 0 | BB58: 0 | BC58: 0 | BD58: 0 | BE58: 0 | BF58: 0 | BG58: 0
B60: Opex Build Up
B62: Name | H62: Unit | J62: Value
B63: Opex, Maintenance | H63: $millions/unit | J63: ='Project Details'!B15/'Project Details'!$B$20 -> 0.003
B68: Name | H68: Unit | J68: Quantities
B69: =B63 -> Opex, Maintenance | H69: Units | J69: =(J35)-IF(J4>=15,J4-15,0) -> 6 | K69: =J69+(K35)-IF(K4>=15,K4-15,0) -> 12 | L69: =K69+(L35)-IF(L4>=15,L4-15,0) -> 18 | M69: 24 | N69: 30 | O69: 30 | P69: 30 | Q69: 30 | R69: 30 | S69: 30 | T69: 30 | U69: 30 | V69: 30 | W69: 30 | X69: 30 | Y69: =IF(Y4>=15,X69-J35,0) -> 24 | Z69: =IF(Z4>=15,Y69-K35,0) -> 18 | AA69: 12 | AB69: =IF(AB4>=15,AA69-M35,0) -> 6
B74: Name | H74: Unit | J74: Costs
B75: =B63 -> Opex, Maintenance | H75: $millions | J75: =$J$63*J69 -> 0.018 | K75: =$J$63*K69 -> 0.036 | L75: 0.054 | M75: 0.072 | N75: 0.09 | O75: 0.09 | P75: 0.09 | Q75: 0.09 | R75: 0.09 | S75: 0.09 | T75: 0.09 | U75: 0.09 | V75: 0.09 | W75: 0.09 | X75: 0.09 | Y75: 0.072 | Z75: 0.054 | AA75: 0.036 | AB75: 0.018 | AC75: 0 | AD75: 0 | AE75: =$J$63*AE69 -> 0 | AF75: 0 | AG75: 0 | AH75: 0 | AI75: 0 | AJ75: 0 | AK75: 0 | AL75: 0 | AM75: 0 | AN75: 0 | AO75: 0 | AP75: 0 | AQ75: 0 | AR75: 0 | AS75: 0 | AT75: 0 | AU75: 0 | AV75: 0 | AW75: 0 | AX75: 0 | AY75: 0 | AZ75: 0 | BA75: 0 | BB75: 0 | BC75: 0 | BD75: 0 | BE75: 0 | BF75: 0 | BG75: 0
J76: =$J$64*J70 -> 0 | K76: =$J$64*K70 -> 0 | L76: =$J$64*L70 -> 0 | M76: 0 | N76: 0 | O76: 0 | P76: 0 | Q76: 0 | R76: 0 | S76: 0 | T76: 0 | U76: 0 | V76: 0 | W76: 0 | X76: 0 | Y76: 0 | Z76: 0 | AA76: 0 | AB76: 0 | AC76: 0 | AD76: 0 | AE76: 0 | AF76: 0 | AG76: 0 | AH76: 0 | AI76: 0 | AJ76: 0 | AK76: 0 | AL76: 0 | AM76: 0 | AN76: 0 | AO76: 0 | AP76: 0 | AQ76: 0 | AR76: 0 | AS76: 0 | AT76: 0 | AU76: 0 | AV76: 0 | AW76: 0 | AX76: 0 | AY76: 0 | AZ76: 0 | BA76: 0 | BB76: 0 | BC76: 0 | BD76: 0 | BE76: 0 | BF76: 0 | BG76: 0
J77: =$J$65*J71 -> 0 | K77: =$J$65*K71 -> 0 | L77: =$J$65*L71 -> 0 | M77: 0 | N77: 0 | O77: 0 | P77: 0 | Q77: 0 | R77: 0 | S77: 0 | T77: 0 | U77: 0 | V77: 0 | W77: 0 | X77: 0 | Y77: 0 | Z77: 0 | AA77: 0 | AB77: 0 | AC77: 0 | AD77: 0 | AE77: 0 | AF77: 0 | AG77: 0 | AH77: 0 | AI77: 0 | AJ77: 0 | AK77: 0 | AL77: 0 | AM77: 0 | AN77: 0 | AO77: 0 | AP77: 0 | AQ77: 0 | AR77: 0 | AS77: 0 | AT77: 0 | AU77: 0 | AV77: 0 | AW77: 0 | AX77: 0 | AY77: 0 | AZ77: 0 | BA77: 0 | BB77: 0 | BC77: 0 | BD77: 0 | BE77: 0 | BF77: 0 | BG77: 0
J78: =$J$66*J72 -> 0 | K78: =$J$66*K72 -> 0 | L78: =$J$66*L72 -> 0 | M78: 0 | N78: 0 | O78: 0 | P78: 0 | Q78: 0 | R78: 0 | S78: 0 | T78: 0 | U78: 0 | V78: 0 | W78: 0 | X78: 0 | Y78: 0 | Z78: 0 | AA78: 0 | AB78: 0 | AC78: 0 | AD78: 0 | AE78: 0 | AF78: 0 | AG78: 0 | AH78: 0 | AI78: 0 | AJ78: 0 | AK78: 0 | AL78: 0 | AM78: 0 | AN78: 0 | AO78: 0 | AP78: 0 | AQ78: 0 | AR78: 0 | AS78: 0 | AT78: 0 | AU78: 0 | AV78: 0 | AW78: 0 | AX78: 0 | AY78: 0 | AZ78: 0 | BA78: 0 | BB78: 0 | BC78: 0 | BD78: 0 | BE78: 0 | BF78: 0 | BG78: 0
G80: $ Basis Reminder | H80: $ Reminder
B81: Total | G81: ='1_KMA'!$I$20 -> 2024-06-30 | H81: ='1_KMA'!$I$19 -> $millions | J81: =SUM(J75:J78) -> 0.018 | K81: =SUM(K75:K78) -> 0.036 | L81: 0.054 | M81: 0.072 | N81: 0.09 | O81: 0.09 | P81: 0.09 | Q81: 0.09 | R81: 0.09 | S81: 0.09 | T81: 0.09 | U81: 0.09 | V81: 0.09 | W81: 0.09 | X81: 0.09 | Y81: 0.072 | Z81: 0.054 | AA81: 0.036 | AB81: 0.018 | AC81: 0 | AD81: 0 | AE81: 0 | AF81: 0 | AG81: 0 | AH81: 0 | AI81: 0 | AJ81: 0 | AK81: 0 | AL81: 0 | AM81: 0 | AN81: 0 | AO81: 0 | AP81: 0 | AQ81: 0 | AR81: 0 | AS81: 0 | AT81: 0 | AU81: 0 | AV81: 0 | AW81: 0 | AX81: 0 | AY81: 0 | AZ81: 0 | BA81: 0 | BB81: 0 | BC81: 0 | BD81: 0 | BE81: 0 | BF81: 0 | BG81: 0
B83: Benefits Inputs
B85: Value of EUE
H87: Unit
B88: Expected Unserved Energy (EUE)
B89: VCR
G91: $ Basis Reminder | H91: $ Reminder
B92: Value of EUE | G92: ='1_KMA'!$I$20 -> 2024-06-30 | H92: ='1_KMA'!$I$19 -> $millions | J92: =J88*J89/10^6 -> 0 | K92: =K88*K89/10^6 -> 0 | L92: 0 | M92: 0 | N92: 0 | O92: 0 | P92: 0 | Q92: 0 | R92: 0 | S92: 0 | T92: 0 | U92: 0 | V92: 0 | W92: 0 | X92: 0 | Y92: 0 | Z92: 0 | AA92: 0 | AB92: 0 | AC92: 0 | AD92: 0 | AE92: 0 | AF92: 0 | AG92: 0 | AH92: 0 | AI92: 0 | AJ92: 0 | AK92: 0 | AL92: 0 | AM92: 0 | AN92: 0 | AO92: 0 | AP92: 0 | AQ92: 0 | AR92: 0 | AS92: 0 | AT92: 0 | AU92: 0 | AV92: 0 | AW92: 0 | AX92: 0 | AY92: 0 | AZ92: 0 | BA92: 0 | BB92: 0 | BC92: 0 | BD92: 0 | BE92: 0 | BF92: 0 | BG92: 0
B94: Resilience
B96: QCV research | H96: Unit | J96: Unit Rate
B97: Fewer unplanned outages, longer than 12 hours
B98: Faster restoration of power when an outage has occurred
B99: Community hub Annual Supoport | H99: $WTA | J99: =AVERAGE('Project Details'!J25:J54)/'Project Details'!$B$20 -> 0.06850158899
H102: Unit | J102: Quantities
B103: Fewer unplanned outages, longer than 12 hours
B104: Faster restoration of power when an outage has occurred
B105: Community hub offering essential services | H105: Community hubs active | J105: =J69 -> 6 | K105: 12 | L105: 18 | M105: 24 | N105: 30 | O105: 30 | P105: 30 | Q105: 30 | R105: 30 | S105: 30 | T105: 30 | U105: 30 | V105: 30 | W105: 30 | X105: 30 | Y105: 24 | Z105: 18 | AA105: 12 | AB105: 6
H107: Unit | J107: Costs
B108: Fewer unplanned outages, longer than 12 hours | J108: =J103*'2.1_Op1'!$J$97 -> 0 | K108: =K103*'2.1_Op1'!$J$97 -> 0 | L108: =L103*'2.1_Op1'!$J$97 -> 0 | M108: =M103*'2.1_Op1'!$J$97 -> 0 | N108: =N103*'2.1_Op1'!$J$97 -> 0 | O108: =O103*'2.1_Op1'!$J$97 -> 0 | P108: =P103*'2.1_Op1'!$J$97 -> 0 | Q108: =Q103*'2.1_Op1'!$J$97 -> 0 | R108: =R103*'2.1_Op1'!$J$97 -> 0 | S108: =S103*'2.1_Op1'!$J$97 -> 0 | T108: =T103*'2.1_Op1'!$J$97 -> 0 | U108: =U103*'2.1_Op1'!$J$97 -> 0 | V108: =V103*'2.1_Op1'!$J$97 -> 0 | W108: =W103*'2.1_Op1'!$J$97 -> 0 | X108: =X103*'2.1_Op1'!$J$97 -> 0 | Y108: =Y103*'2.1_Op1'!$J$97 -> 0 | Z108: =Z103*'2.1_Op1'!$J$97 -> 0 | AA108: =AA103*'2.1_Op1'!$J$97 -> 0 | AB108: =AB103*'2.1_Op1'!$J$97 -> 0 | AC108: =AC103*'2.1_Op1'!$J$97 -> 0 | AD108: =AD103*'2.1_Op1'!$J$97 -> 0 | AE108: =AE103*'2.1_Op1'!$J$97 -> 0 | AF108: =AF103*'2.1_Op1'!$J$97 -> 0 | AG108: =AG103*'2.1_Op1'!$J$97 -> 0 | AH108: =AH103*'2.1_Op1'!$J$97 -> 0 | AI108: =AI103*'2.1_Op1'!$J$97 -> 0 | AJ108: =AJ103*'2.1_Op1'!$J$97 -> 0 | AK108: =AK103*'2.1_Op1'!$J$97 -> 0 | AL108: =AL103*'2.1_Op1'!$J$97 -> 0 | AM108: =AM103*'2.1_Op1'!$J$97 -> 0 | AN108: =AN103*'2.1_Op1'!$J$97 -> 0 | AO108: =AO103*'2.1_Op1'!$J$97 -> 0 | AP108: =AP103*'2.1_Op1'!$J$97 -> 0 | AQ108: =AQ103*'2.1_Op1'!$J$97 -> 0 | AR108: =AR103*'2.1_Op1'!$J$97 -> 0 | AS108: =AS103*'2.1_Op1'!$J$97 -> 0 | AT108: =AT103*'2.1_Op1'!$J$97 -> 0 | AU108: =AU103*'2.1_Op1'!$J$97 -> 0 | AV108: =AV103*'2.1_Op1'!$J$97 -> 0 | AW108: =AW103*'2.1_Op1'!$J$97 -> 0 | AX108: =AX103*'2.1_Op1'!$J$97 -> 0 | AY108: =AY103*'2.1_Op1'!$J$97 -> 0 | AZ108: =AZ103*'2.1_Op1'!$J$97 -> 0 | BA108: =BA103*'2.1_Op1'!$J$97 -> 0 | BB108: =BB103*'2.1_Op1'!$J$97 -> 0 | BC108: =BC103*'2.1_Op1'!$J$97 -> 0 | BD108: =BD103*'2.1_Op1'!$J$97 -> 0 | BE108: =BE103*'2.1_Op1'!$J$97 -> 0 | BF108: =BF103*'2.1_Op1'!$J$97 -> 0 | BG108: =BG103*'2.1_Op1'!$J$97 -> 0
B109: Faster restoration of power when an outage has occurred | J109: =J104*'2.1_Op1'!$J$98 -> 0 | K109: =K104*'2.1_Op1'!$J$98 -> 0 | L109: =L104*'2.1_Op1'!$J$98 -> 0 | M109: =M104*'2.1_Op1'!$J$98 -> 0 | N109: =N104*'2.1_Op1'!$J$98 -> 0 | O109: =O104*'2.1_Op1'!$J$98 -> 0 | P109: =P104*'2.1_Op1'!$J$98 -> 0 | Q109: =Q104*'2.1_Op1'!$J$98 -> 0 | R109: =R104*'2.1_Op1'!$J$98 -> 0 | S109: =S104*'2.1_Op1'!$J$98 -> 0 | T109: =T104*'2.1_Op1'!$J$98 -> 0 | U109: =U104*'2.1_Op1'!$J$98 -> 0 | V109: =V104*'2.1_Op1'!$J$98 -> 0 | W109: =W104*'2.1_Op1'!$J$98 -> 0 | X109: =X104*'2.1_Op1'!$J$98 -> 0 | Y109: =Y104*'2.1_Op1'!$J$98 -> 0 | Z109: =Z104*'2.1_Op1'!$J$98 -> 0 | AA109: =AA104*'2.1_Op1'!$J$98 -> 0 | AB109: =AB104*'2.1_Op1'!$J$98 -> 0 | AC109: =AC104*'2.1_Op1'!$J$98 -> 0 | AD109: =AD104*'2.1_Op1'!$J$98 -> 0 | AE109: =AE104*'2.1_Op1'!$J$98 -> 0 | AF109: =AF104*'2.1_Op1'!$J$98 -> 0 | AG109: =AG104*'2.1_Op1'!$J$98 -> 0 | AH109: =AH104*'2.1_Op1'!$J$98 -> 0 | AI109: =AI104*'2.1_Op1'!$J$98 -> 0 | AJ109: =AJ104*'2.1_Op1'!$J$98 -> 0 | AK109: =AK104*'2.1_Op1'!$J$98 -> 0 | AL109: =AL104*'2.1_Op1'!$J$98 -> 0 | AM109: =AM104*'2.1_Op1'!$J$98 -> 0 | AN109: =AN104*'2.1_Op1'!$J$98 -> 0 | AO109: =AO104*'2.1_Op1'!$J$98 -> 0 | AP109: =AP104*'2.1_Op1'!$J$98 -> 0 | AQ109: =AQ104*'2.1_Op1'!$J$98 -> 0 | AR109: =AR104*'2.1_Op1'!$J$98 -> 0 | AS109: =AS104*'2.1_Op1'!$J$98 -> 0 | AT109: =AT104*'2.1_Op1'!$J$98 -> 0 | AU109: =AU104*'2.1_Op1'!$J$98 -> 0 | AV109: =AV104*'2.1_Op1'!$J$98 -> 0 | AW109: =AW104*'2.1_Op1'!$J$98 -> 0 | AX109: =AX104*'2.1_Op1'!$J$98 -> 0 | AY109: =AY104*'2.1_Op1'!$J$98 -> 0 | AZ109: =AZ104*'2.1_Op1'!$J$98 -> 0 | BA109: =BA104*'2.1_Op1'!$J$98 -> 0 | BB109: =BB104*'2.1_Op1'!$J$98 -> 0 | BC109: =BC104*'2.1_Op1'!$J$98 -> 0 | BD109: =BD104*'2.1_Op1'!$J$98 -> 0 | BE109: =BE104*'2.1_Op1'!$J$98 -> 0 | BF109: =BF104*'2.1_Op1'!$J$98 -> 0 | BG109: =BG104*'2.1_Op1'!$J$98 -> 0
B110: Community hub offering essential services | H110: $millions | J110: =J105*'2.1_Op1'!$J$99 -> 0.4110095339 | K110: =K105*'2.1_Op1'!$J$99 -> 0.8220190679 | L110: =L105*'2.1_Op1'!$J$99 -> 1.233028602 | M110: =M105*'2.1_Op1'!$J$99 -> 1.644038136 | N110: =N105*'2.1_Op1'!$J$99 -> 2.05504767 | O110: =O105*'2.1_Op1'!$J$99 -> 2.05504767 | P110: =P105*'2.1_Op1'!$J$99 -> 2.05504767 | Q110: =Q105*'2.1_Op1'!$J$99 -> 2.05504767 | R110: =R105*'2.1_Op1'!$J$99 -> 2.05504767 | S110: =S105*'2.1_Op1'!$J$99 -> 2.05504767 | T110: =T105*'2.1_Op1'!$J$99 -> 2.05504767 | U110: =U105*'2.1_Op1'!$J$99 -> 2.05504767 | V110: =V105*'2.1_Op1'!$J$99 -> 2.05504767 | W110: =W105*'2.1_Op1'!$J$99 -> 2.05504767 | X110: =X105*'2.1_Op1'!$J$99 -> 2.05504767 | Y110: =Y105*'2.1_Op1'!$J$99 -> 1.644038136 | Z110: =Z105*'2.1_Op1'!$J$99 -> 1.233028602 | AA110: =AA105*'2.1_Op1'!$J$99 -> 0.8220190679 | AB110: =AB105*'2.1_Op1'!$J$99 -> 0.4110095339 | AC110: =AC105*'2.1_Op1'!$J$99 -> 0 | AD110: =AD105*'2.1_Op1'!$J$99 -> 0 | AE110: =AE105*'2.1_Op1'!$J$99 -> 0 | AF110: =AF105*'2.1_Op1'!$J$99 -> 0 | AG110: =AG105*'2.1_Op1'!$J$99 -> 0 | AH110: =AH105*'2.1_Op1'!$J$99 -> 0 | AI110: =AI105*'2.1_Op1'!$J$99 -> 0 | AJ110: =AJ105*'2.1_Op1'!$J$99 -> 0 | AK110: =AK105*'2.1_Op1'!$J$99 -> 0 | AL110: =AL105*'2.1_Op1'!$J$99 -> 0 | AM110: =AM105*'2.1_Op1'!$J$99 -> 0 | AN110: =AN105*'2.1_Op1'!$J$99 -> 0 | AO110: =AO105*'2.1_Op1'!$J$99 -> 0 | AP110: =AP105*'2.1_Op1'!$J$99 -> 0 | AQ110: =AQ105*'2.1_Op1'!$J$99 -> 0 | AR110: =AR105*'2.1_Op1'!$J$99 -> 0 | AS110: =AS105*'2.1_Op1'!$J$99 -> 0 | AT110: =AT105*'2.1_Op1'!$J$99 -> 0 | AU110: =AU105*'2.1_Op1'!$J$99 -> 0 | AV110: =AV105*'2.1_Op1'!$J$99 -> 0 | AW110: =AW105*'2.1_Op1'!$J$99 -> 0 | AX110: =AX105*'2.1_Op1'!$J$99 -> 0 | AY110: =AY105*'2.1_Op1'!$J$99 -> 0 | AZ110: =AZ105*'2.1_Op1'!$J$99 -> 0 | BA110: =BA105*'2.1_Op1'!$J$99 -> 0 | BB110: =BB105*'2.1_Op1'!$J$99 -> 0 | BC110: =BC105*'2.1_Op1'!$J$99 -> 0 | BD110: =BD105*'2.1_Op1'!$J$99 -> 0 | BE110: =BE105*'2.1_Op1'!$J$99 -> 0 | BF110: =BF105*'2.1_Op1'!$J$99 -> 0 | BG110: =BG105*'2.1_Op1'!$J$99 -> 0
G112: $ Basis Reminder | H112: $ Reminder
B113: Total | G113: ='1_KMA'!$I$20 -> 2024-06-30 | H113: ='1_KMA'!$I$19 -> $millions | J113: =(J108+J109+J110) -> 0.4110095339 | K113: =(K108+K109+K110) -> 0.8220190679 | L113: =(L108+L109+L110) -> 1.233028602 | M113: 1.644038136 | N113: 2.05504767 | O113: 2.05504767 | P113: 2.05504767 | Q113: 2.05504767 | R113: 2.05504767 | S113: 2.05504767 | T113: 2.05504767 | U113: 2.05504767 | V113: 2.05504767 | W113: 2.05504767 | X113: 2.05504767 | Y113: 1.644038136 | Z113: 1.233028602 | AA113: 0.8220190679 | AB113: 0.4110095339 | AC113: 0 | AD113: 0 | AE113: 0 | AF113: 0 | AG113: 0 | AH113: 0 | AI113: 0 | AJ113: 0 | AK113: 0 | AL113: 0 | AM113: 0 | AN113: 0 | AO113: 0 | AP113: 0 | AQ113: 0 | AR113: 0 | AS113: 0 | AT113: 0 | AU113: 0 | AV113: 0 | AW113: 0 | AX113: 0 | AY113: 0 | AZ113: 0 | BA113: 0 | BB113: 0 | BC113: 0 | BD113: 0 | BE113: 0 | BF113: 0 | BG113: 0

Sheet 2.1_Op2
B1: General Inputs: Option 2 | I1: Regulatory Period Indicator | J1: ='1_KMA'!J30 -> 1 | K1: ='1_KMA'!K30 -> 1 | L1: ='1_KMA'!L30 -> 1 | M1: ='1_KMA'!M30 -> 1 | N1: ='1_KMA'!N30 -> 1 | O1: ='1_KMA'!O30 -> 0 | P1: ='1_KMA'!P30 -> 0 | Q1: ='1_KMA'!Q30 -> 0 | R1: ='1_KMA'!R30 -> 0 | S1: ='1_KMA'!S30 -> 0 | T1: ='1_KMA'!T30 -> 0 | U1: ='1_KMA'!U30 -> 0 | V1: ='1_KMA'!V30 -> 0 | W1: ='1_KMA'!W30 -> 0 | X1: ='1_KMA'!X30 -> 0 | Y1: ='1_KMA'!Y30 -> 0 | Z1: ='1_KMA'!Z30 -> 0 | AA1: ='1_KMA'!AA30 -> 0 | AB1: ='1_KMA'!AB30 -> 0 | AC1: ='1_KMA'!AC30 -> 0 | AD1: ='1_KMA'!AD30 -> 0 | AE1: ='1_KMA'!AE30 -> 0 | AF1: ='1_KMA'!AF30 -> 0 | AG1: ='1_KMA'!AG30 -> 0 | AH1: ='1_KMA'!AH30 -> 0 | AI1: ='1_KMA'!AI30 -> 0 | AJ1: ='1_KMA'!AJ30 -> 0 | AK1: ='1_KMA'!AK30 -> 0 | AL1: ='1_KMA'!AL30 -> 0 | AM1: ='1_KMA'!AM30 -> 0 | AN1: ='1_KMA'!AN30 -> 0 | AO1: ='1_KMA'!AO30 -> 0 | AP1: ='1_KMA'!AP30 -> 0 | AQ1: ='1_KMA'!AQ30 -> 0 | AR1: ='1_KMA'!AR30 -> 0 | AS1: ='1_KMA'!AS30 -> 0 | AT1: ='1_KMA'!AT30 -> 0 | AU1: ='1_KMA'!AU30 -> 0 | AV1: ='1_KMA'!AV30 -> 0 | AW1: ='1_KMA'!AW30 -> 0 | AX1: ='1_KMA'!AX30 -> 0 | AY1: ='1_KMA'!AY30 -> 0 | AZ1: ='1_KMA'!AZ30 -> 0 | BA1: ='1_KMA'!BA30 -> 0 | BB1: ='1_KMA'!BB30 -> 0 | BC1: ='1_KMA'!BC30 -> 0 | BD1: ='1_KMA'!BD30 -> 0 | BE1: ='1_KMA'!BE30 -> 0 | BF1: ='1_KMA'!BF30 -> 0 | BG1: ='1_KMA'!BG30 -> 0
B2: =Cover!$C$9 -> AusNet Services | I2: Period Start Date | J2: ='1_KMA'!J31 -> 2026-07-01 | K2: ='1_KMA'!K31 -> 2027-07-01 | L2: ='1_KMA'!L31 -> 2028-07-01 | M2: ='1_KMA'!M31 -> 2029-07-01 | N2: ='1_KMA'!N31 -> 2030-07-01 | O2: ='1_KMA'!O31 -> 2031-07-01 | P2: ='1_KMA'!P31 -> 2032-07-01 | Q2: ='1_KMA'!Q31 -> 2033-07-01 | R2: ='1_KMA'!R31 -> 2034-07-01 | S2: ='1_KMA'!S31 -> 2035-07-01 | T2: ='1_KMA'!T31 -> 2036-07-01 | U2: ='1_KMA'!U31 -> 2037-07-01 | V2: ='1_KMA'!V31 -> 2038-07-01 | W2: ='1_KMA'!W31 -> 2039-07-01 | X2: ='1_KMA'!X31 -> 2040-07-01 | Y2: ='1_KMA'!Y31 -> 2041-07-01 | Z2: ='1_KMA'!Z31 -> 2042-07-01 | AA2: ='1_KMA'!AA31 -> 2043-07-01 | AB2: ='1_KMA'!AB31 -> 2044-07-01 | AC2: ='1_KMA'!AC31 -> 2045-07-01 | AD2: ='1_KMA'!AD31 -> 2046-07-01 | AE2: ='1_KMA'!AE31 -> 2047-07-01 | AF2: ='1_KMA'!AF31 -> 2048-07-01 | AG2: ='1_KMA'!AG31 -> 2049-07-01 | AH2: ='1_KMA'!AH31 -> 2050-07-01 | AI2: ='1_KMA'!AI31 -> 2051-07-01 | AJ2: ='1_KMA'!AJ31 -> 2052-07-01 | AK2: ='1_KMA'!AK31 -> 2053-07-01 | AL2: ='1_KMA'!AL31 -> 2054-07-01 | AM2: ='1_KMA'!AM31 -> 2055-07-01 | AN2: ='1_KMA'!AN31 -> 2056-07-01 | AO2: ='1_KMA'!AO31 -> 2057-07-01 | AP2: ='1_KMA'!AP31 -> 2058-07-01 | AQ2: ='1_KMA'!AQ31 -> 2059-07-01 | AR2: ='1_KMA'!AR31 -> 2060-07-01 | AS2: ='1_KMA'!AS31 -> 2061-07-01 | AT2: ='1_KMA'!AT31 -> 2062-07-01 | AU2: ='1_KMA'!AU31 -> 2063-07-01 | AV2: ='1_KMA'!AV31 -> 2064-07-01 | AW2: ='1_KMA'!AW31 -> 2065-07-01 | AX2: ='1_KMA'!AX31 -> 2066-07-01 | AY2: ='1_KMA'!AY31 -> 2067-07-01 | AZ2: ='1_KMA'!AZ31 -> 2068-07-01 | BA2: ='1_KMA'!BA31 -> 2069-07-01 | BB2: ='1_KMA'!BB31 -> 2070-07-01 | BC2: ='1_KMA'!BC31 -> 2071-07-01 | BD2: ='1_KMA'!BD31 -> 2072-07-01 | BE2: ='1_KMA'!BE31 -> 2073-07-01 | BF2: ='1_KMA'!BF31 -> 2074-07-01 | BG2: ='1_KMA'!BG31 -> 2075-07-01
B3: =Cover!$C$10 -> Business Case Evaluation | I3: Period End Date | J3: ='1_KMA'!J32 -> 2027-06-30 | K3: ='1_KMA'!K32 -> 2028-06-30 | L3: ='1_KMA'!L32 -> 2029-06-30 | M3: ='1_KMA'!M32 -> 2030-06-30 | N3: ='1_KMA'!N32 -> 2031-06-30 | O3: ='1_KMA'!O32 -> 2032-06-30 | P3: ='1_KMA'!P32 -> 2033-06-30 | Q3: ='1_KMA'!Q32 -> 2034-06-30 | R3: ='1_KMA'!R32 -> 2035-06-30 | S3: ='1_KMA'!S32 -> 2036-06-30 | T3: ='1_KMA'!T32 -> 2037-06-30 | U3: ='1_KMA'!U32 -> 2038-06-30 | V3: ='1_KMA'!V32 -> 2039-06-30 | W3: ='1_KMA'!W32 -> 2040-06-30 | X3: ='1_KMA'!X32 -> 2041-06-30 | Y3: ='1_KMA'!Y32 -> 2042-06-30 | Z3: ='1_KMA'!Z32 -> 2043-06-30 | AA3: ='1_KMA'!AA32 -> 2044-06-30 | AB3: ='1_KMA'!AB32 -> 2045-06-30 | AC3: ='1_KMA'!AC32 -> 2046-06-30 | AD3: ='1_KMA'!AD32 -> 2047-06-30 | AE3: ='1_KMA'!AE32 -> 2048-06-30 | AF3: ='1_KMA'!AF32 -> 2049-06-30 | AG3: ='1_KMA'!AG32 -> 2050-06-30 | AH3: ='1_KMA'!AH32 -> 2051-06-30 | AI3: ='1_KMA'!AI32 -> 2052-06-30 | AJ3: ='1_KMA'!AJ32 -> 2053-06-30 | AK3: ='1_KMA'!AK32 -> 2054-06-30 | AL3: ='1_KMA'!AL32 -> 2055-06-30 | AM3: ='1_KMA'!AM32 -> 2056-06-30 | AN3: ='1_KMA'!AN32 -> 2057-06-30 | AO3: ='1_KMA'!AO32 -> 2058-06-30 | AP3: ='1_KMA'!AP32 -> 2059-06-30 | AQ3: ='1_KMA'!AQ32 -> 2060-06-30 | AR3: ='1_KMA'!AR32 -> 2061-06-30 | AS3: ='1_KMA'!AS32 -> 2062-06-30 | AT3: ='1_KMA'!AT32 -> 2063-06-30 | AU3: ='1_KMA'!AU32 -> 2064-06-30 | AV3: ='1_KMA'!AV32 -> 2065-06-30 | AW3: ='1_KMA'!AW32 -> 2066-06-30 | AX3: ='1_KMA'!AX32 -> 2067-06-30 | AY3: ='1_KMA'!AY32 -> 2068-06-30 | AZ3: ='1_KMA'!AZ32 -> 2069-06-30 | BA3: ='1_KMA'!BA32 -> 2070-06-30 | BB3: ='1_KMA'!BB32 -> 2071-06-30 | BC3: ='1_KMA'!BC32 -> 2072-06-30 | BD3: ='1_KMA'!BD32 -> 2073-06-30 | BE3: ='1_KMA'!BE32 -> 2074-06-30 | BF3: ='1_KMA'!BF32 -> 2075-06-30 | BG3: ='1_KMA'!BG32 -> 2076-06-30
B4: =Cover!$C$11 -> Backup power for community hubs | I4: Project Year | J4: ='1_KMA'!J33 -> 1 | K4: ='1_KMA'!K33 -> 2 | L4: ='1_KMA'!L33 -> 3 | M4: ='1_KMA'!M33 -> 4 | N4: ='1_KMA'!N33 -> 5 | O4: ='1_KMA'!O33 -> 6 | P4: ='1_KMA'!P33 -> 7 | Q4: ='1_KMA'!Q33 -> 8 | R4: ='1_KMA'!R33 -> 9 | S4: ='1_KMA'!S33 -> 10 | T4: ='1_KMA'!T33 -> 11 | U4: ='1_KMA'!U33 -> 12 | V4: ='1_KMA'!V33 -> 13 | W4: ='1_KMA'!W33 -> 14 | X4: ='1_KMA'!X33 -> 15 | Y4: ='1_KMA'!Y33 -> 16 | Z4: ='1_KMA'!Z33 -> 17 | AA4: ='1_KMA'!AA33 -> 18 | AB4: ='1_KMA'!AB33 -> 19 | AC4: ='1_KMA'!AC33 -> 20 | AD4: ='1_KMA'!AD33 -> 21 | AE4: ='1_KMA'!AE33 -> 22 | AF4: ='1_KMA'!AF33 -> 23 | AG4: ='1_KMA'!AG33 -> 24 | AH4: ='1_KMA'!AH33 -> 25 | AI4: ='1_KMA'!AI33 -> 26 | AJ4: ='1_KMA'!AJ33 -> 27 | AK4: ='1_KMA'!AK33 -> 28 | AL4: ='1_KMA'!AL33 -> 29 | AM4: ='1_KMA'!AM33 -> 30 | AN4: ='1_KMA'!AN33 -> 31 | AO4: ='1_KMA'!AO33 -> 32 | AP4: ='1_KMA'!AP33 -> 33 | AQ4: ='1_KMA'!AQ33 -> 34 | AR4: ='1_KMA'!AR33 -> 35 | AS4: ='1_KMA'!AS33 -> 36 | AT4: ='1_KMA'!AT33 -> 37 | AU4: ='1_KMA'!AU33 -> 38 | AV4: ='1_KMA'!AV33 -> 39 | AW4: ='1_KMA'!AW33 -> 40 | AX4: ='1_KMA'!AX33 -> 41 | AY4: ='1_KMA'!AY33 -> 42 | AZ4: ='1_KMA'!AZ33 -> 43 | BA4: ='1_KMA'!BA33 -> 44 | BB4: ='1_KMA'!BB33 -> 45 | BC4: ='1_KMA'!BC33 -> 46 | BD4: ='1_KMA'!BD33 -> 47 | BE4: ='1_KMA'!BE33 -> 48 | BF4: ='1_KMA'!BF33 -> 49 | BG4: ='1_KMA'!BG33 -> 50
I5: Financial Year | J5: ='1_KMA'!J34 -> 2027 | K5: ='1_KMA'!K34 -> 2028 | L5: ='1_KMA'!L34 -> 2029 | M5: ='1_KMA'!M34 -> 2030 | N5: ='1_KMA'!N34 -> 2031 | O5: ='1_KMA'!O34 -> 2032 | P5: ='1_KMA'!P34 -> 2033 | Q5: ='1_KMA'!Q34 -> 2034 | R5: ='1_KMA'!R34 -> 2035 | S5: ='1_KMA'!S34 -> 2036 | T5: ='1_KMA'!T34 -> 2037 | U5: ='1_KMA'!U34 -> 2038 | V5: ='1_KMA'!V34 -> 2039 | W5: ='1_KMA'!W34 -> 2040 | X5: ='1_KMA'!X34 -> 2041 | Y5: ='1_KMA'!Y34 -> 2042 | Z5: ='1_KMA'!Z34 -> 2043 | AA5: ='1_KMA'!AA34 -> 2044 | AB5: ='1_KMA'!AB34 -> 2045 | AC5: ='1_KMA'!AC34 -> 2046 | AD5: ='1_KMA'!AD34 -> 2047 | AE5: ='1_KMA'!AE34 -> 2048 | AF5: ='1_KMA'!AF34 -> 2049 | AG5: ='1_KMA'!AG34 -> 2050 | AH5: ='1_KMA'!AH34 -> 2051 | AI5: ='1_KMA'!AI34 -> 2052 | AJ5: ='1_KMA'!AJ34 -> 2053 | AK5: ='1_KMA'!AK34 -> 2054 | AL5: ='1_KMA'!AL34 -> 2055 | AM5: ='1_KMA'!AM34 -> 2056 | AN5: ='1_KMA'!AN34 -> 2057 | AO5: ='1_KMA'!AO34 -> 2058 | AP5: ='1_KMA'!AP34 -> 2059 | AQ5: ='1_KMA'!AQ34 -> 2060 | AR5: ='1_KMA'!AR34 -> 2061 | AS5: ='1_KMA'!AS34 -> 2062 | AT5: ='1_KMA'!AT34 -> 2063 | AU5: ='1_KMA'!AU34 -> 2064 | AV5: ='1_KMA'!AV34 -> 2065 | AW5: ='1_KMA'!AW34 -> 2066 | AX5: ='1_KMA'!AX34 -> 2067 | AY5: ='1_KMA'!AY34 -> 2068 | AZ5: ='1_KMA'!AZ34 -> 2069 | BA5: ='1_KMA'!BA34 -> 2070 | BB5: ='1_KMA'!BB34 -> 2071 | BC5: ='1_KMA'!BC34 -> 2072 | BD5: ='1_KMA'!BD34 -> 2073 | BE5: ='1_KMA'!BE34 -> 2074 | BF5: ='1_KMA'!BF34 -> 2075 | BG5: ='1_KMA'!BG34 -> 2076
B7: Summary
B9: Costs | G9: $ Basis Reminder | H9: $ Reminder
B10: Capex | G10: ='1_KMA'!$I$20 -> 2024-06-30 | H10: ='1_KMA'!$I$19 -> $millions | J10: =J47 -> 0 | K10: =K47 -> 0 | L10: 0 | M10: 0 | N10: 0 | O10: 0 | P10: 0 | Q10: 0 | R10: 0 | S10: 0 | T10: 0 | U10: 0 | V10: 0 | W10: 0 | X10: 0 | Y10: 0 | Z10: 0 | AA10: 0 | AB10: 0 | AC10: 0 | AD10: 0 | AE10: 0 | AF10: 0 | AG10: 0 | AH10: 0 | AI10: 0 | AJ10: 0 | AK10: 0 | AL10: 0 | AM10: 0 | AN10: 0 | AO10: 0 | AP10: 0 | AQ10: 0 | AR10: 0 | AS10: 0 | AT10: 0 | AU10: 0 | AV10: 0 | AW10: 0 | AX10: 0 | AY10: 0 | AZ10: 0 | BA10: 0 | BB10: 0 | BC10: 0 | BD10: 0 | BE10: 0 | BF10: 0 | BG10: 0
B11: Capex offset | G11: ='1_KMA'!$I$20 -> 2024-06-30 | H11: ='1_KMA'!$I$19 -> $millions | J11: =-J58 -> 0 | K11: =-K58 -> 0 | L11: 0 | M11: 0 | N11: 0 | O11: 0 | P11: 0 | Q11: 0 | R11: 0 | S11: 0 | T11: 0 | U11: 0 | V11: 0 | W11: 0 | X11: 0 | Y11: 0 | Z11: 0 | AA11: 0 | AB11: 0 | AC11: 0 | AD11: 0 | AE11: 0 | AF11: 0 | AG11: 0 | AH11: 0 | AI11: 0 | AJ11: 0 | AK11: 0 | AL11: 0 | AM11: 0 | AN11: 0 | AO11: 0 | AP11: 0 | AQ11: 0 | AR11: 0 | AS11: 0 | AT11: 0 | AU11: 0 | AV11: 0 | AW11: 0 | AX11: 0 | AY11: 0 | AZ11: 0 | BA11: 0 | BB11: 0 | BC11: 0 | BD11: 0 | BE11: 0 | BF11: 0 | BG11: 0
B12: Opex | G12: ='1_KMA'!$I$20 -> 2024-06-30 | H12: ='1_KMA'!$I$19 -> $millions | J12: =J81 -> 0 | K12: =K81 -> 0 | L12: 0 | M12: 0 | N12: 0 | O12: 0 | P12: 0 | Q12: 0 | R12: 0 | S12: 0 | T12: 0 | U12: 0 | V12: 0 | W12: 0 | X12: 0 | Y12: 0 | Z12: 0 | AA12: 0 | AB12: 0 | AC12: 0 | AD12: 0 | AE12: 0 | AF12: 0 | AG12: 0 | AH12: 0 | AI12: 0 | AJ12: 0 | AK12: 0 | AL12: 0 | AM12: 0 | AN12: 0 | AO12: 0 | AP12: 0 | AQ12: 0 | AR12: 0 | AS12: 0 | AT12: 0 | AU12: 0 | AV12: 0 | AW12: 0 | AX12: 0 | AY12: 0 | AZ12: 0 | BA12: 0 | BB12: 0 | BC12: 0 | BD12: 0 | BE12: 0 | BF12: 0 | BG12: 0
B13: Total | G13: ='1_KMA'!$I$20 -> 2024-06-30 | H13: ='1_KMA'!$I$19 -> $millions | J13: =SUM(J10:J12) -> 0 | K13: =SUM(K10:K12) -> 0 | L13: 0 | M13: 0 | N13: 0 | O13: 0 | P13: 0 | Q13: 0 | R13: 0 | S13: 0 | T13: 0 | U13: 0 | V13: 0 | W13: 0 | X13: 0 | Y13: 0 | Z13: 0 | AA13: 0 | AB13: 0 | AC13: 0 | AD13: 0 | AE13: 0 | AF13: 0 | AG13: 0 | AH13: 0 | AI13: 0 | AJ13: 0 | AK13: 0 | AL13: 0 | AM13: 0 | AN13: 0 | AO13: 0 | AP13: 0 | AQ13: 0 | AR13: 0 | AS13: 0 | AT13: 0 | AU13: 0 | AV13: 0 | AW13: 0 | AX13: 0 | AY13: 0 | AZ13: 0 | BA13: 0 | BB13: 0 | BC13: 0 | BD13: 0 | BE13: 0 | BF13: 0 | BG13: 0
B15: Benefits | G15: $ Basis Reminder | H15: $ Reminder
B16: Value of EUE | G16: ='1_KMA'!$I$20 -> 2024-06-30 | H16: ='1_KMA'!$I$19 -> $millions | J16: =J92 -> 0 | K16: =K92 -> 0 | L16: 0 | M16: 0 | N16: 0 | O16: 0 | P16: 0 | Q16: 0 | R16: 0 | S16: 0 | T16: 0 | U16: 0 | V16: 0 | W16: 0 | X16: 0 | Y16: 0 | Z16: 0 | AA16: 0 | AB16: 0 | AC16: 0 | AD16: 0 | AE16: 0 | AF16: 0 | AG16: 0 | AH16: 0 | AI16: 0 | AJ16: 0 | AK16: 0 | AL16: 0 | AM16: 0 | AN16: 0 | AO16: 0 | AP16: 0 | AQ16: 0 | AR16: 0 | AS16: 0 | AT16: 0 | AU16: 0 | AV16: 0 | AW16: 0 | AX16: 0 | AY16: 0 | AZ16: 0 | BA16: 0 | BB16: 0 | BC16: 0 | BD16: 0 | BE16: 0 | BF16: 0 | BG16: 0
B18: Resilience | G18: ='1_KMA'!$I$20 -> 2024-06-30 | H18: ='1_KMA'!$I$19 -> $millions | J18: =J113 -> 0 | K18: =K113 -> 0 | L18: 0 | M18: 0 | N18: 0 | O18: 0 | P18: 0 | Q18: 0 | R18: 0 | S18: 0 | T18: 0 | U18: 0 | V18: 0 | W18: 0 | X18: 0 | Y18: 0 | Z18: 0 | AA18: 0 | AB18: 0 | AC18: 0 | AD18: 0 | AE18: 0 | AF18: 0 | AG18: 0 | AH18: 0 | AI18: 0 | AJ18: 0 | AK18: 0 | AL18: 0 | AM18: 0 | AN18: 0 | AO18: 0 | AP18: 0 | AQ18: 0 | AR18: 0 | AS18: 0 | AT18: 0 | AU18: 0 | AV18: 0 | AW18: 0 | AX18: 0 | AY18: 0 | AZ18: 0 | BA18: 0 | BB18: 0 | BC18: 0 | BD18: 0 | BE18: 0 | BF18: 0 | BG18: 0
B21: Total | G21: ='1_KMA'!$I$20 -> 2024-06-30 | H21: ='1_KMA'!$I$19 -> $millions | J21: =SUM(J16:J20) -> 0 | K21: =SUM(K16:K20) -> 0 | L21: 0 | M21: 0 | N21: 0 | O21: 0 | P21: 0 | Q21: 0 | R21: 0 | S21: 0 | T21: 0 | U21: 0 | V21: 0 | W21: 0 | X21: 0 | Y21: 0 | Z21: 0 | AA21: 0 | AB21: 0 | AC21: 0 | AD21: 0 | AE21: 0 | AF21: 0 | AG21: 0 | AH21: 0 | AI21: 0 | AJ21: 0 | AK21: 0 | AL21: 0 | AM21: 0 | AN21: 0 | AO21: 0 | AP21: 0 | AQ21: 0 | AR21: 0 | AS21: 0 | AT21: 0 | AU21: 0 | AV21: 0 | AW21: 0 | AX21: 0 | AY21: 0 | AZ21: 0 | BA21: 0 | BB21: 0 | BC21: 0 | BD21: 0 | BE21: 0 | BF21: 0 | BG21: 0
B24: Cost Inputs
B26: Capex Build Up
B28: Name | H28: Unit | J28: Unit Rate
B34: Name | H34: Unit | J34: Quantities
B40: Name | H40: Unit | J40: Costs
J41: =$J$29*J35 -> 0 | K41: =$J$29*K35 -> 0 | L41: =$J$29*L35 -> 0 | M41: 0 | N41: 0 | O41: 0 | P41: 0 | Q41: 0 | R41: 0 | S41: 0 | T41: 0 | U41: 0 | V41: 0 | W41: 0 | X41: 0 | Y41: 0 | Z41: 0 | AA41: 0 | AB41: 0 | AC41: 0 | AD41: 0 | AE41: 0 | AF41: 0 | AG41: 0 | AH41: 0 | AI41: 0 | AJ41: 0 | AK41: 0 | AL41: 0 | AM41: 0 | AN41: 0 | AO41: 0 | AP41: 0 | AQ41: 0 | AR41: 0 | AS41: 0 | AT41: 0 | AU41: 0 | AV41: 0 | AW41: 0 | AX41: 0 | AY41: 0 | AZ41: 0 | BA41: 0 | BB41: 0 | BC41: 0 | BD41: 0 | BE41: 0 | BF41: 0 | BG41: 0
J42: =$J$30*J36 -> 0 | K42: =$J$30*K36 -> 0 | L42: =$J$30*L36 -> 0 | M42: 0 | N42: 0 | O42: 0 | P42: 0 | Q42: 0 | R42: 0 | S42: 0 | T42: 0 | U42: 0 | V42: 0 | W42: 0 | X42: 0 | Y42: 0 | Z42: 0 | AA42: 0 | AB42: 0 | AC42: 0 | AD42: 0 | AE42: 0 | AF42: 0 | AG42: 0 | AH42: 0 | AI42: 0 | AJ42: 0 | AK42: 0 | AL42: 0 | AM42: 0 | AN42: 0 | AO42: 0 | AP42: 0 | AQ42: 0 | AR42: 0 | AS42: 0 | AT42: 0 | AU42: 0 | AV42: 0 | AW42: 0 | AX42: 0 | AY42: 0 | AZ42: 0 | BA42: 0 | BB42: 0 | BC42: 0 | BD42: 0 | BE42: 0 | BF42: 0 | BG42: 0
J43: =$J$31*J37 -> 0 | K43: =$J$31*K37 -> 0 | L43: =$J$31*L37 -> 0 | M43: 0 | N43: 0 | O43: 0 | P43: 0 | Q43: 0 | R43: 0 | S43: 0 | T43: 0 | U43: 0 | V43: 0 | W43: 0 | X43: 0 | Y43: 0 | Z43: 0 | AA43: 0 | AB43: 0 | AC43: 0 | AD43: 0 | AE43: 0 | AF43: 0 | AG43: 0 | AH43: 0 | AI43: 0 | AJ43: 0 | AK43: 0 | AL43: 0 | AM43: 0 | AN43: 0 | AO43: 0 | AP43: 0 | AQ43: 0 | AR43: 0 | AS43: 0 | AT43: 0 | AU43: 0 | AV43: 0 | AW43: 0 | AX43: 0 | AY43: 0 | AZ43: 0 | BA43: 0 | BB43: 0 | BC43: 0 | BD43: 0 | BE43: 0 | BF43: 0 | BG43: 0
J44: =$J$32*J38 -> 0 | K44: =$J$32*K38 -> 0 | L44: =$J$32*L38 -> 0 | M44: 0 | N44: 0 | O44: 0 | P44: 0 | Q44: 0 | R44: 0 | S44: 0 | T44: 0 | U44: 0 | V44: 0 | W44: 0 | X44: 0 | Y44: 0 | Z44: 0 | AA44: 0 | AB44: 0 | AC44: 0 | AD44: 0 | AE44: 0 | AF44: 0 | AG44: 0 | AH44: 0 | AI44: 0 | AJ44: 0 | AK44: 0 | AL44: 0 | AM44: 0 | AN44: 0 | AO44: 0 | AP44: 0 | AQ44: 0 | AR44: 0 | AS44: 0 | AT44: 0 | AU44: 0 | AV44: 0 | AW44: 0 | AX44: 0 | AY44: 0 | AZ44: 0 | BA44: 0 | BB44: 0 | BC44: 0 | BD44: 0 | BE44: 0 | BF44: 0 | BG44: 0
G46: $ Basis Reminder | H46: $ Reminder
B47: Total | G47: ='1_KMA'!$I$20 -> 2024-06-30 | H47: ='1_KMA'!$I$19 -> $millions | J47: =SUM(J41:J44) -> 0 | K47: =SUM(K41:K44) -> 0 | L47: =SUM(L41:L44) -> 0 | M47: 0 | N47: 0 | O47: 0 | P47: 0 | Q47: 0 | R47: 0 | S47: 0 | T47: 0 | U47: 0 | V47: 0 | W47: 0 | X47: 0 | Y47: 0 | Z47: 0 | AA47: 0 | AB47: 0 | AC47: 0 | AD47: 0 | AE47: 0 | AF47: 0 | AG47: 0 | AH47: 0 | AI47: 0 | AJ47: 0 | AK47: 0 | AL47: 0 | AM47: 0 | AN47: 0 | AO47: 0 | AP47: 0 | AQ47: 0 | AR47: 0 | AS47: 0 | AT47: 0 | AU47: 0 | AV47: 0 | AW47: 0 | AX47: 0 | AY47: 0 | AZ47: 0 | BA47: 0 | BB47: 0 | BC47: 0 | BD47: 0 | BE47: 0 | BF47: 0 | BG47: =SUM(BG41:BG44) -> 0
B49: Capex Offset
B51: Name | H51: Unit | J51: Costs
G57: $ Basis Reminder | H57: $ Reminder
B58: Total | G58: ='1_KMA'!$I$20 -> 2024-06-30 | H58: ='1_KMA'!$I$19 -> $millions | J58: =SUM(J52:J55) -> 0 | K58: =SUM(K52:K55) -> 0 | L58: =SUM(L52:L55) -> 0 | M58: 0 | N58: 0 | O58: 0 | P58: 0 | Q58: 0 | R58: 0 | S58: 0 | T58: 0 | U58: 0 | V58: 0 | W58: 0 | X58: 0 | Y58: 0 | Z58: 0 | AA58: 0 | AB58: 0 | AC58: 0 | AD58: 0 | AE58: 0 | AF58: 0 | AG58: 0 | AH58: 0 | AI58: 0 | AJ58: 0 | AK58: 0 | AL58: 0 | AM58: 0 | AN58: 0 | AO58: 0 | AP58: 0 | AQ58: 0 | AR58: 0 | AS58: 0 | AT58: 0 | AU58: 0 | AV58: 0 | AW58: 0 | AX58: 0 | AY58: 0 | AZ58: 0 | BA58: 0 | BB58: 0 | BC58: 0 | BD58: 0 | BE58: 0 | BF58: 0 | BG58: 0
B60: Opex Build Up
B62: Name | H62: Unit | J62: Value
B68: Name | H68: Unit | J68: Quantities
B74: Name | H74: Unit | J74: Costs
J75: =$J$63*J69 -> 0 | K75: 0 | L75: 0 | M75: =$J$63*M69 -> 0 | N75: =$J$63*N69 -> 0 | O75: 0 | P75: 0 | Q75: 0 | R75: 0 | S75: 0 | T75: 0 | U75: 0 | V75: 0 | W75: 0 | X75: 0 | Y75: 0 | Z75: 0 | AA75: 0 | AB75: 0 | AC75: 0 | AD75: 0 | AE75: 0 | AF75: 0 | AG75: 0 | AH75: 0 | AI75: 0 | AJ75: 0 | AK75: 0 | AL75: 0 | AM75: 0 | AN75: 0 | AO75: 0 | AP75: 0 | AQ75: 0 | AR75: 0 | AS75: 0 | AT75: 0 | AU75: 0 | AV75: 0 | AW75: 0 | AX75: 0 | AY75: 0 | AZ75: 0 | BA75: 0 | BB75: 0 | BC75: 0 | BD75: 0 | BE75: 0 | BF75: 0 | BG75: 0
J76: =$J$64*J70 -> 0 | K76: 0 | L76: 0 | M76: =$J$64*M70 -> 0 | N76: =$J$64*N70 -> 0 | O76: 0 | P76: 0 | Q76: 0 | R76: 0 | S76: 0 | T76: 0 | U76: 0 | V76: 0 | W76: 0 | X76: 0 | Y76: 0 | Z76: 0 | AA76: 0 | AB76: 0 | AC76: 0 | AD76: 0 | AE76: 0 | AF76: 0 | AG76: 0 | AH76: 0 | AI76: 0 | AJ76: 0 | AK76: 0 | AL76: 0 | AM76: 0 | AN76: 0 | AO76: 0 | AP76: 0 | AQ76: 0 | AR76: 0 | AS76: 0 | AT76: 0 | AU76: 0 | AV76: 0 | AW76: 0 | AX76: 0 | AY76: 0 | AZ76: 0 | BA76: 0 | BB76: 0 | BC76: 0 | BD76: 0 | BE76: 0 | BF76: 0 | BG76: 0
J77: =$J$65*J71 -> 0 | K77: 0 | L77: 0 | M77: =$J$65*M71 -> 0 | N77: =$J$65*N71 -> 0 | O77: 0 | P77: 0 | Q77: 0 | R77: 0 | S77: 0 | T77: 0 | U77: 0 | V77: 0 | W77: 0 | X77: 0 | Y77: 0 | Z77: 0 | AA77: 0 | AB77: 0 | AC77: 0 | AD77: 0 | AE77: 0 | AF77: 0 | AG77: 0 | AH77: 0 | AI77: 0 | AJ77: 0 | AK77: 0 | AL77: 0 | AM77: 0 | AN77: 0 | AO77: 0 | AP77: 0 | AQ77: 0 | AR77: 0 | AS77: 0 | AT77: 0 | AU77: 0 | AV77: 0 | AW77: 0 | AX77: 0 | AY77: 0 | AZ77: 0 | BA77: 0 | BB77: 0 | BC77: 0 | BD77: 0 | BE77: 0 | BF77: 0 | BG77: 0
J78: =$J$66*J72 -> 0 | K78: 0 | L78: 0 | M78: =$J$66*M72 -> 0 | N78: =$J$66*N72 -> 0 | O78: 0 | P78: 0 | Q78: 0 | R78: 0 | S78: 0 | T78: 0 | U78: 0 | V78: 0 | W78: 0 | X78: 0 | Y78: 0 | Z78: 0 | AA78: 0 | AB78: 0 | AC78: 0 | AD78: 0 | AE78: 0 | AF78: 0 | AG78: 0 | AH78: 0 | AI78: 0 | AJ78: 0 | AK78: 0 | AL78: 0 | AM78: 0 | AN78: 0 | AO78: 0 | AP78: 0 | AQ78: 0 | AR78: 0 | AS78: 0 | AT78: 0 | AU78: 0 | AV78: 0 | AW78: 0 | AX78: 0 | AY78: 0 | AZ78: 0 | BA78: 0 | BB78: 0 | BC78: 0 | BD78: 0 | BE78: 0 | BF78: 0 | BG78: 0
G80: $ Basis Reminder | H80: $ Reminder
B81: Total | G81: ='1_KMA'!$I$20 -> 2024-06-30 | H81: ='1_KMA'!$I$19 -> $millions | J81: =SUM(J75:J78) -> 0 | K81: =SUM(K75:K78) -> 0 | L81: =SUM(L75:L78) -> 0 | M81: 0 | N81: 0 | O81: 0 | P81: 0 | Q81: 0 | R81: 0 | S81: 0 | T81: 0 | U81: 0 | V81: 0 | W81: 0 | X81: 0 | Y81: 0 | Z81: 0 | AA81: 0 | AB81: 0 | AC81: 0 | AD81: 0 | AE81: 0 | AF81: 0 | AG81: 0 | AH81: 0 | AI81: 0 | AJ81: 0 | AK81: 0 | AL81: 0 | AM81: 0 | AN81: 0 | AO81: 0 | AP81: 0 | AQ81: 0 | AR81: 0 | AS81: 0 | AT81: 0 | AU81: 0 | AV81: 0 | AW81: 0 | AX81: 0 | AY81: 0 | AZ81: 0 | BA81: 0 | BB81: 0 | BC81: 0 | BD81: 0 | BE81: 0 | BF81: 0 | BG81: =SUM(BG75:BG78) -> 0
B83: Benefits Inputs
B85: Value of EUE
H87: Unit
B88: Expected Unserved Energy (EUE)
B89: VCR
G91: $ Basis Reminder | H91: $ Reminder
B92: Value of EUE | G92: ='1_KMA'!$I$20 -> 2024-06-30 | H92: ='1_KMA'!$I$19 -> $millions | J92: =J88*J89/10^6 -> 0 | K92: 0 | L92: 0 | M92: 0 | N92: 0 | O92: 0 | P92: 0 | Q92: 0 | R92: 0 | S92: 0 | T92: 0 | U92: 0 | V92: 0 | W92: 0 | X92: 0 | Y92: 0 | Z92: 0 | AA92: 0 | AB92: 0 | AC92: 0 | AD92: 0 | AE92: 0 | AF92: 0 | AG92: 0 | AH92: 0 | AI92: 0 | AJ92: 0 | AK92: 0 | AL92: 0 | AM92: 0 | AN92: 0 | AO92: 0 | AP92: 0 | AQ92: 0 | AR92: 0 | AS92: 0 | AT92: 0 | AU92: 0 | AV92: 0 | AW92: 0 | AX92: 0 | AY92: 0 | AZ92: 0 | BA92: 0 | BB92: 0 | BC92: 0 | BD92: 0 | BE92: 0 | BF92: 0 | BG92: 0
B94: Resilience
B96: QCV research | H96: Unit | J96: Unit Rate
B97: Fewer unplanned outages, longer than 12 hours
B98: Faster restoration of power when an outage has occurred
B99: Community hub offering essential services during long duration outages
H102: Unit | J102: Quantities
B103: Fewer unplanned outages, longer than 12 hours
B104: Faster restoration of power when an outage has occurred
B105: Community hub offering essential services
H107: Unit | J107: Costs
B108: Fewer unplanned outages, longer than 12 hours | J108: =J103*'2.1_Op2'!$J$97 -> 0 | K108: =K103*'2.1_Op2'!$J$97 -> 0 | L108: =L103*'2.1_Op2'!$J$97 -> 0 | M108: =M103*'2.1_Op2'!$J$97 -> 0 | N108: =N103*'2.1_Op2'!$J$97 -> 0 | O108: =O103*'2.1_Op2'!$J$97 -> 0 | P108: =P103*'2.1_Op2'!$J$97 -> 0 | Q108: =Q103*'2.1_Op2'!$J$97 -> 0 | R108: =R103*'2.1_Op2'!$J$97 -> 0 | S108: =S103*'2.1_Op2'!$J$97 -> 0 | T108: =T103*'2.1_Op2'!$J$97 -> 0 | U108: =U103*'2.1_Op2'!$J$97 -> 0 | V108: =V103*'2.1_Op2'!$J$97 -> 0 | W108: =W103*'2.1_Op2'!$J$97 -> 0 | X108: =X103*'2.1_Op2'!$J$97 -> 0 | Y108: =Y103*'2.1_Op2'!$J$97 -> 0 | Z108: =Z103*'2.1_Op2'!$J$97 -> 0 | AA108: =AA103*'2.1_Op2'!$J$97 -> 0 | AB108: =AB103*'2.1_Op2'!$J$97 -> 0 | AC108: =AC103*'2.1_Op2'!$J$97 -> 0 | AD108: =AD103*'2.1_Op2'!$J$97 -> 0 | AE108: =AE103*'2.1_Op2'!$J$97 -> 0 | AF108: =AF103*'2.1_Op2'!$J$97 -> 0 | AG108: =AG103*'2.1_Op2'!$J$97 -> 0 | AH108: =AH103*'2.1_Op2'!$J$97 -> 0 | AI108: =AI103*'2.1_Op2'!$J$97 -> 0 | AJ108: =AJ103*'2.1_Op2'!$J$97 -> 0 | AK108: =AK103*'2.1_Op2'!$J$97 -> 0 | AL108: =AL103*'2.1_Op2'!$J$97 -> 0 | AM108: =AM103*'2.1_Op2'!$J$97 -> 0 | AN108: =AN103*'2.1_Op2'!$J$97 -> 0 | AO108: =AO103*'2.1_Op2'!$J$97 -> 0 | AP108: =AP103*'2.1_Op2'!$J$97 -> 0 | AQ108: =AQ103*'2.1_Op2'!$J$97 -> 0 | AR108: =AR103*'2.1_Op2'!$J$97 -> 0 | AS108: =AS103*'2.1_Op2'!$J$97 -> 0 | AT108: =AT103*'2.1_Op2'!$J$97 -> 0 | AU108: =AU103*'2.1_Op2'!$J$97 -> 0 | AV108: =AV103*'2.1_Op2'!$J$97 -> 0 | AW108: =AW103*'2.1_Op2'!$J$97 -> 0 | AX108: =AX103*'2.1_Op2'!$J$97 -> 0 | AY108: =AY103*'2.1_Op2'!$J$97 -> 0 | AZ108: =AZ103*'2.1_Op2'!$J$97 -> 0 | BA108: =BA103*'2.1_Op2'!$J$97 -> 0 | BB108: =BB103*'2.1_Op2'!$J$97 -> 0 | BC108: =BC103*'2.1_Op2'!$J$97 -> 0 | BD108: =BD103*'2.1_Op2'!$J$97 -> 0 | BE108: =BE103*'2.1_Op2'!$J$97 -> 0 | BF108: =BF103*'2.1_Op2'!$J$97 -> 0 | BG108: =BG103*'2.1_Op2'!$J$97 -> 0
B109: Faster restoration of power when an outage has occurred | J109: =J104*'2.1_Op2'!$J$98 -> 0 | K109: =K104*'2.1_Op2'!$J$98 -> 0 | L109: =L104*'2.1_Op2'!$J$98 -> 0 | M109: =M104*'2.1_Op2'!$J$98 -> 0 | N109: =N104*'2.1_Op2'!$J$98 -> 0 | O109: =O104*'2.1_Op2'!$J$98 -> 0 | P109: =P104*'2.1_Op2'!$J$98 -> 0 | Q109: =Q104*'2.1_Op2'!$J$98 -> 0 | R109: =R104*'2.1_Op2'!$J$98 -> 0 | S109: =S104*'2.1_Op2'!$J$98 -> 0 | T109: =T104*'2.1_Op2'!$J$98 -> 0 | U109: =U104*'2.1_Op2'!$J$98 -> 0 | V109: =V104*'2.1_Op2'!$J$98 -> 0 | W109: =W104*'2.1_Op2'!$J$98 -> 0 | X109: =X104*'2.1_Op2'!$J$98 -> 0 | Y109: =Y104*'2.1_Op2'!$J$98 -> 0 | Z109: =Z104*'2.1_Op2'!$J$98 -> 0 | AA109: =AA104*'2.1_Op2'!$J$98 -> 0 | AB109: =AB104*'2.1_Op2'!$J$98 -> 0 | AC109: =AC104*'2.1_Op2'!$J$98 -> 0 | AD109: =AD104*'2.1_Op2'!$J$98 -> 0 | AE109: =AE104*'2.1_Op2'!$J$98 -> 0 | AF109: =AF104*'2.1_Op2'!$J$98 -> 0 | AG109: =AG104*'2.1_Op2'!$J$98 -> 0 | AH109: =AH104*'2.1_Op2'!$J$98 -> 0 | AI109: =AI104*'2.1_Op2'!$J$98 -> 0 | AJ109: =AJ104*'2.1_Op2'!$J$98 -> 0 | AK109: =AK104*'2.1_Op2'!$J$98 -> 0 | AL109: =AL104*'2.1_Op2'!$J$98 -> 0 | AM109: =AM104*'2.1_Op2'!$J$98 -> 0 | AN109: =AN104*'2.1_Op2'!$J$98 -> 0 | AO109: =AO104*'2.1_Op2'!$J$98 -> 0 | AP109: =AP104*'2.1_Op2'!$J$98 -> 0 | AQ109: =AQ104*'2.1_Op2'!$J$98 -> 0 | AR109: =AR104*'2.1_Op2'!$J$98 -> 0 | AS109: =AS104*'2.1_Op2'!$J$98 -> 0 | AT109: =AT104*'2.1_Op2'!$J$98 -> 0 | AU109: =AU104*'2.1_Op2'!$J$98 -> 0 | AV109: =AV104*'2.1_Op2'!$J$98 -> 0 | AW109: =AW104*'2.1_Op2'!$J$98 -> 0 | AX109: =AX104*'2.1_Op2'!$J$98 -> 0 | AY109: =AY104*'2.1_Op2'!$J$98 -> 0 | AZ109: =AZ104*'2.1_Op2'!$J$98 -> 0 | BA109: =BA104*'2.1_Op2'!$J$98 -> 0 | BB109: =BB104*'2.1_Op2'!$J$98 -> 0 | BC109: =BC104*'2.1_Op2'!$J$98 -> 0 | BD109: =BD104*'2.1_Op2'!$J$98 -> 0 | BE109: =BE104*'2.1_Op2'!$J$98 -> 0 | BF109: =BF104*'2.1_Op2'!$J$98 -> 0 | BG109: =BG104*'2.1_Op2'!$J$98 -> 0
B110: Community hub offering essential services | J110: =J105*'2.1_Op2'!$J$99 -> 0 | K110: =K105*'2.1_Op2'!$J$99 -> 0 | L110: =L105*'2.1_Op2'!$J$99 -> 0 | M110: =M105*'2.1_Op2'!$J$99 -> 0 | N110: =N105*'2.1_Op2'!$J$99 -> 0 | O110: =O105*'2.1_Op2'!$J$99 -> 0 | P110: =P105*'2.1_Op2'!$J$99 -> 0 | Q110: =Q105*'2.1_Op2'!$J$99 -> 0 | R110: =R105*'2.1_Op2'!$J$99 -> 0 | S110: =S105*'2.1_Op2'!$J$99 -> 0 | T110: =T105*'2.1_Op2'!$J$99 -> 0 | U110: =U105*'2.1_Op2'!$J$99 -> 0 | V110: =V105*'2.1_Op2'!$J$99 -> 0 | W110: =W105*'2.1_Op2'!$J$99 -> 0 | X110: =X105*'2.1_Op2'!$J$99 -> 0 | Y110: =Y105*'2.1_Op2'!$J$99 -> 0 | Z110: =Z105*'2.1_Op2'!$J$99 -> 0 | AA110: =AA105*'2.1_Op2'!$J$99 -> 0 | AB110: =AB105*'2.1_Op2'!$J$99 -> 0 | AC110: =AC105*'2.1_Op2'!$J$99 -> 0 | AD110: =AD105*'2.1_Op2'!$J$99 -> 0 | AE110: =AE105*'2.1_Op2'!$J$99 -> 0 | AF110: =AF105*'2.1_Op2'!$J$99 -> 0 | AG110: =AG105*'2.1_Op2'!$J$99 -> 0 | AH110: =AH105*'2.1_Op2'!$J$99 -> 0 | AI110: =AI105*'2.1_Op2'!$J$99 -> 0 | AJ110: =AJ105*'2.1_Op2'!$J$99 -> 0 | AK110: =AK105*'2.1_Op2'!$J$99 -> 0 | AL110: =AL105*'2.1_Op2'!$J$99 -> 0 | AM110: =AM105*'2.1_Op2'!$J$99 -> 0 | AN110: =AN105*'2.1_Op2'!$J$99 -> 0 | AO110: =AO105*'2.1_Op2'!$J$99 -> 0 | AP110: =AP105*'2.1_Op2'!$J$99 -> 0 | AQ110: =AQ105*'2.1_Op2'!$J$99 -> 0 | AR110: =AR105*'2.1_Op2'!$J$99 -> 0 | AS110: =AS105*'2.1_Op2'!$J$99 -> 0 | AT110: =AT105*'2.1_Op2'!$J$99 -> 0 | AU110: =AU105*'2.1_Op2'!$J$99 -> 0 | AV110: =AV105*'2.1_Op2'!$J$99 -> 0 | AW110: =AW105*'2.1_Op2'!$J$99 -> 0 | AX110: =AX105*'2.1_Op2'!$J$99 -> 0 | AY110: =AY105*'2.1_Op2'!$J$99 -> 0 | AZ110: =AZ105*'2.1_Op2'!$J$99 -> 0 | BA110: =BA105*'2.1_Op2'!$J$99 -> 0 | BB110: =BB105*'2.1_Op2'!$J$99 -> 0 | BC110: =BC105*'2.1_Op2'!$J$99 -> 0 | BD110: =BD105*'2.1_Op2'!$J$99 -> 0 | BE110: =BE105*'2.1_Op2'!$J$99 -> 0 | BF110: =BF105*'2.1_Op2'!$J$99 -> 0 | BG110: =BG105*'2.1_Op2'!$J$99 -> 0
G112: $ Basis Reminder | H112: $ Reminder
B113: Total | G113: ='1_KMA'!$I$20 -> 2024-06-30 | H113: ='1_KMA'!$I$19 -> $millions | J113: =(J108+J109+J110) -> 0 | K113: =(K108+K109+K110) -> 0 | L113: 0 | M113: 0 | N113: 0 | O113: 0 | P113: 0 | Q113: 0 | R113: 0 | S113: 0 | T113: 0 | U113: 0 | V113: 0 | W113: 0 | X113: 0 | Y113: 0 | Z113: 0 | AA113: 0 | AB113: 0 | AC113: 0 | AD113: =(AD108+AD109+AD110)/10^6 -> 0 | AE113: 0 | AF113: 0 | AG113: 0 | AH113: 0 | AI113: 0 | AJ113: 0 | AK113: 0 | AL113: 0 | AM113: 0 | AN113: 0 | AO113: 0 | AP113: 0 | AQ113: 0 | AR113: 0 | AS113: 0 | AT113: 0 | AU113: 0 | AV113: 0 | AW113: 0 | AX113: 0 | AY113: 0 | AZ113: 0 | BA113: 0 | BB113: 0 | BC113: 0 | BD113: 0 | BE113: 0 | BF113: 0 | BG113: 0

Sheet 2.1_Op3
B1: General Inputs: Option 3 | I1: Regulatory Period Indicator | J1: ='1_KMA'!J30 -> 1 | K1: ='1_KMA'!K30 -> 1 | L1: ='1_KMA'!L30 -> 1 | M1: ='1_KMA'!M30 -> 1 | N1: ='1_KMA'!N30 -> 1 | O1: ='1_KMA'!O30 -> 0 | P1: ='1_KMA'!P30 -> 0 | Q1: ='1_KMA'!Q30 -> 0 | R1: ='1_KMA'!R30 -> 0 | S1: ='1_KMA'!S30 -> 0 | T1: ='1_KMA'!T30 -> 0 | U1: ='1_KMA'!U30 -> 0 | V1: ='1_KMA'!V30 -> 0 | W1: ='1_KMA'!W30 -> 0 | X1: ='1_KMA'!X30 -> 0 | Y1: ='1_KMA'!Y30 -> 0 | Z1: ='1_KMA'!Z30 -> 0 | AA1: ='1_KMA'!AA30 -> 0 | AB1: ='1_KMA'!AB30 -> 0 | AC1: ='1_KMA'!AC30 -> 0 | AD1: ='1_KMA'!AD30 -> 0 | AE1: ='1_KMA'!AE30 -> 0 | AF1: ='1_KMA'!AF30 -> 0 | AG1: ='1_KMA'!AG30 -> 0 | AH1: ='1_KMA'!AH30 -> 0 | AI1: ='1_KMA'!AI30 -> 0 | AJ1: ='1_KMA'!AJ30 -> 0 | AK1: ='1_KMA'!AK30 -> 0 | AL1: ='1_KMA'!AL30 -> 0 | AM1: ='1_KMA'!AM30 -> 0 | AN1: ='1_KMA'!AN30 -> 0 | AO1: ='1_KMA'!AO30 -> 0 | AP1: ='1_KMA'!AP30 -> 0 | AQ1: ='1_KMA'!AQ30 -> 0 | AR1: ='1_KMA'!AR30 -> 0 | AS1: ='1_KMA'!AS30 -> 0 | AT1: ='1_KMA'!AT30 -> 0 | AU1: ='1_KMA'!AU30 -> 0 | AV1: ='1_KMA'!AV30 -> 0 | AW1: ='1_KMA'!AW30 -> 0 | AX1: ='1_KMA'!AX30 -> 0 | AY1: ='1_KMA'!AY30 -> 0 | AZ1: ='1_KMA'!AZ30 -> 0 | BA1: ='1_KMA'!BA30 -> 0 | BB1: ='1_KMA'!BB30 -> 0 | BC1: ='1_KMA'!BC30 -> 0 | BD1: ='1_KMA'!BD30 -> 0 | BE1: ='1_KMA'!BE30 -> 0 | BF1: ='1_KMA'!BF30 -> 0 | BG1: ='1_KMA'!BG30 -> 0
B2: =Cover!$C$9 -> AusNet Services | I2: Period Start Date | J2: ='1_KMA'!J31 -> 2026-07-01 | K2: ='1_KMA'!K31 -> 2027-07-01 | L2: ='1_KMA'!L31 -> 2028-07-01 | M2: ='1_KMA'!M31 -> 2029-07-01 | N2: ='1_KMA'!N31 -> 2030-07-01 | O2: ='1_KMA'!O31 -> 2031-07-01 | P2: ='1_KMA'!P31 -> 2032-07-01 | Q2: ='1_KMA'!Q31 -> 2033-07-01 | R2: ='1_KMA'!R31 -> 2034-07-01 | S2: ='1_KMA'!S31 -> 2035-07-01 | T2: ='1_KMA'!T31 -> 2036-07-01 | U2: ='1_KMA'!U31 -> 2037-07-01 | V2: ='1_KMA'!V31 -> 2038-07-01 | W2: ='1_KMA'!W31 -> 2039-07-01 | X2: ='1_KMA'!X31 -> 2040-07-01 | Y2: ='1_KMA'!Y31 -> 2041-07-01 | Z2: ='1_KMA'!Z31 -> 2042-07-01 | AA2: ='1_KMA'!AA31 -> 2043-07-01 | AB2: ='1_KMA'!AB31 -> 2044-07-01 | AC2: ='1_KMA'!AC31 -> 2045-07-01 | AD2: ='1_KMA'!AD31 -> 2046-07-01 | AE2: ='1_KMA'!AE31 -> 2047-07-01 | AF2: ='1_KMA'!AF31 -> 2048-07-01 | AG2: ='1_KMA'!AG31 -> 2049-07-01 | AH2: ='1_KMA'!AH31 -> 2050-07-01 | AI2: ='1_KMA'!AI31 -> 2051-07-01 | AJ2: ='1_KMA'!AJ31 -> 2052-07-01 | AK2: ='1_KMA'!AK31 -> 2053-07-01 | AL2: ='1_KMA'!AL31 -> 2054-07-01 | AM2: ='1_KMA'!AM31 -> 2055-07-01 | AN2: ='1_KMA'!AN31 -> 2056-07-01 | AO2: ='1_KMA'!AO31 -> 2057-07-01 | AP2: ='1_KMA'!AP31 -> 2058-07-01 | AQ2: ='1_KMA'!AQ31 -> 2059-07-01 | AR2: ='1_KMA'!AR31 -> 2060-07-01 | AS2: ='1_KMA'!AS31 -> 2061-07-01 | AT2: ='1_KMA'!AT31 -> 2062-07-01 | AU2: ='1_KMA'!AU31 -> 2063-07-01 | AV2: ='1_KMA'!AV31 -> 2064-07-01 | AW2: ='1_KMA'!AW31 -> 2065-07-01 | AX2: ='1_KMA'!AX31 -> 2066-07-01 | AY2: ='1_KMA'!AY31 -> 2067-07-01 | AZ2: ='1_KMA'!AZ31 -> 2068-07-01 | BA2: ='1_KMA'!BA31 -> 2069-07-01 | BB2: ='1_KMA'!BB31 -> 2070-07-01 | BC2: ='1_KMA'!BC31 -> 2071-07-01 | BD2: ='1_KMA'!BD31 -> 2072-07-01 | BE2: ='1_KMA'!BE31 -> 2073-07-01 | BF2: ='1_KMA'!BF31 -> 2074-07-01 | BG2: ='1_KMA'!BG31 -> 2075-07-01
B3: =Cover!$C$10 -> Business Case Evaluation | I3: Period End Date | J3: ='1_KMA'!J32 -> 2027-06-30 | K3: ='1_KMA'!K32 -> 2028-06-30 | L3: ='1_KMA'!L32 -> 2029-06-30 | M3: ='1_KMA'!M32 -> 2030-06-30 | N3: ='1_KMA'!N32 -> 2031-06-30 | O3: ='1_KMA'!O32 -> 2032-06-30 | P3: ='1_KMA'!P32 -> 2033-06-30 | Q3: ='1_KMA'!Q32 -> 2034-06-30 | R3: ='1_KMA'!R32 -> 2035-06-30 | S3: ='1_KMA'!S32 -> 2036-06-30 | T3: ='1_KMA'!T32 -> 2037-06-30 | U3: ='1_KMA'!U32 -> 2038-06-30 | V3: ='1_KMA'!V32 -> 2039-06-30 | W3: ='1_KMA'!W32 -> 2040-06-30 | X3: ='1_KMA'!X32 -> 2041-06-30 | Y3: ='1_KMA'!Y32 -> 2042-06-30 | Z3: ='1_KMA'!Z32 -> 2043-06-30 | AA3: ='1_KMA'!AA32 -> 2044-06-30 | AB3: ='1_KMA'!AB32 -> 2045-06-30 | AC3: ='1_KMA'!AC32 -> 2046-06-30 | AD3: ='1_KMA'!AD32 -> 2047-06-30 | AE3: ='1_KMA'!AE32 -> 2048-06-30 | AF3: ='1_KMA'!AF32 -> 2049-06-30 | AG3: ='1_KMA'!AG32 -> 2050-06-30 | AH3: ='1_KMA'!AH32 -> 2051-06-30 | AI3: ='1_KMA'!AI32 -> 2052-06-30 | AJ3: ='1_KMA'!AJ32 -> 2053-06-30 | AK3: ='1_KMA'!AK32 -> 2054-06-30 | AL3: ='1_KMA'!AL32 -> 2055-06-30 | AM3: ='1_KMA'!AM32 -> 2056-06-30 | AN3: ='1_KMA'!AN32 -> 2057-06-30 | AO3: ='1_KMA'!AO32 -> 2058-06-30 | AP3: ='1_KMA'!AP32 -> 2059-06-30 | AQ3: ='1_KMA'!AQ32 -> 2060-06-30 | AR3: ='1_KMA'!AR32 -> 2061-06-30 | AS3: ='1_KMA'!AS32 -> 2062-06-30 | AT3: ='1_KMA'!AT32 -> 2063-06-30 | AU3: ='1_KMA'!AU32 -> 2064-06-30 | AV3: ='1_KMA'!AV32 -> 2065-06-30 | AW3: ='1_KMA'!AW32 -> 2066-06-30 | AX3: ='1_KMA'!AX32 -> 2067-06-30 | AY3: ='1_KMA'!AY32 -> 2068-06-30 | AZ3: ='1_KMA'!AZ32 -> 2069-06-30 | BA3: ='1_KMA'!BA32 -> 2070-06-30 | BB3: ='1_KMA'!BB32 -> 2071-06-30 | BC3: ='1_KMA'!BC32 -> 2072-06-30 | BD3: ='1_KMA'!BD32 -> 2073-06-30 | BE3: ='1_KMA'!BE32 -> 2074-06-30 | BF3: ='1_KMA'!BF32 -> 2075-06-30 | BG3: ='1_KMA'!BG32 -> 2076-06-30
B4: =Cover!$C$11 -> Backup power for community hubs | I4: Project Year | J4: ='1_KMA'!J33 -> 1 | K4: ='1_KMA'!K33 -> 2 | L4: ='1_KMA'!L33 -> 3 | M4: ='1_KMA'!M33 -> 4 | N4: ='1_KMA'!N33 -> 5 | O4: ='1_KMA'!O33 -> 6 | P4: ='1_KMA'!P33 -> 7 | Q4: ='1_KMA'!Q33 -> 8 | R4: ='1_KMA'!R33 -> 9 | S4: ='1_KMA'!S33 -> 10 | T4: ='1_KMA'!T33 -> 11 | U4: ='1_KMA'!U33 -> 12 | V4: ='1_KMA'!V33 -> 13 | W4: ='1_KMA'!W33 -> 14 | X4: ='1_KMA'!X33 -> 15 | Y4: ='1_KMA'!Y33 -> 16 | Z4: ='1_KMA'!Z33 -> 17 | AA4: ='1_KMA'!AA33 -> 18 | AB4: ='1_KMA'!AB33 -> 19 | AC4: ='1_KMA'!AC33 -> 20 | AD4: ='1_KMA'!AD33 -> 21 | AE4: ='1_KMA'!AE33 -> 22 | AF4: ='1_KMA'!AF33 -> 23 | AG4: ='1_KMA'!AG33 -> 24 | AH4: ='1_KMA'!AH33 -> 25 | AI4: ='1_KMA'!AI33 -> 26 | AJ4: ='1_KMA'!AJ33 -> 27 | AK4: ='1_KMA'!AK33 -> 28 | AL4: ='1_KMA'!AL33 -> 29 | AM4: ='1_KMA'!AM33 -> 30 | AN4: ='1_KMA'!AN33 -> 31 | AO4: ='1_KMA'!AO33 -> 32 | AP4: ='1_KMA'!AP33 -> 33 | AQ4: ='1_KMA'!AQ33 -> 34 | AR4: ='1_KMA'!AR33 -> 35 | AS4: ='1_KMA'!AS33 -> 36 | AT4: ='1_KMA'!AT33 -> 37 | AU4: ='1_KMA'!AU33 -> 38 | AV4: ='1_KMA'!AV33 -> 39 | AW4: ='1_KMA'!AW33 -> 40 | AX4: ='1_KMA'!AX33 -> 41 | AY4: ='1_KMA'!AY33 -> 42 | AZ4: ='1_KMA'!AZ33 -> 43 | BA4: ='1_KMA'!BA33 -> 44 | BB4: ='1_KMA'!BB33 -> 45 | BC4: ='1_KMA'!BC33 -> 46 | BD4: ='1_KMA'!BD33 -> 47 | BE4: ='1_KMA'!BE33 -> 48 | BF4: ='1_KMA'!BF33 -> 49 | BG4: ='1_KMA'!BG33 -> 50
I5: Financial Year | J5: ='1_KMA'!J34 -> 2027 | K5: ='1_KMA'!K34 -> 2028 | L5: ='1_KMA'!L34 -> 2029 | M5: ='1_KMA'!M34 -> 2030 | N5: ='1_KMA'!N34 -> 2031 | O5: ='1_KMA'!O34 -> 2032 | P5: ='1_KMA'!P34 -> 2033 | Q5: ='1_KMA'!Q34 -> 2034 | R5: ='1_KMA'!R34 -> 2035 | S5: ='1_KMA'!S34 -> 2036 | T5: ='1_KMA'!T34 -> 2037 | U5: ='1_KMA'!U34 -> 2038 | V5: ='1_KMA'!V34 -> 2039 | W5: ='1_KMA'!W34 -> 2040 | X5: ='1_KMA'!X34 -> 2041 | Y5: ='1_KMA'!Y34 -> 2042 | Z5: ='1_KMA'!Z34 -> 2043 | AA5: ='1_KMA'!AA34 -> 2044 | AB5: ='1_KMA'!AB34 -> 2045 | AC5: ='1_KMA'!AC34 -> 2046 | AD5: ='1_KMA'!AD34 -> 2047 | AE5: ='1_KMA'!AE34 -> 2048 | AF5: ='1_KMA'!AF34 -> 2049 | AG5: ='1_KMA'!AG34 -> 2050 | AH5: ='1_KMA'!AH34 -> 2051 | AI5: ='1_KMA'!AI34 -> 2052 | AJ5: ='1_KMA'!AJ34 -> 2053 | AK5: ='1_KMA'!AK34 -> 2054 | AL5: ='1_KMA'!AL34 -> 2055 | AM5: ='1_KMA'!AM34 -> 2056 | AN5: ='1_KMA'!AN34 -> 2057 | AO5: ='1_KMA'!AO34 -> 2058 | AP5: ='1_KMA'!AP34 -> 2059 | AQ5: ='1_KMA'!AQ34 -> 2060 | AR5: ='1_KMA'!AR34 -> 2061 | AS5: ='1_KMA'!AS34 -> 2062 | AT5: ='1_KMA'!AT34 -> 2063 | AU5: ='1_KMA'!AU34 -> 2064 | AV5: ='1_KMA'!AV34 -> 2065 | AW5: ='1_KMA'!AW34 -> 2066 | AX5: ='1_KMA'!AX34 -> 2067 | AY5: ='1_KMA'!AY34 -> 2068 | AZ5: ='1_KMA'!AZ34 -> 2069 | BA5: ='1_KMA'!BA34 -> 2070 | BB5: ='1_KMA'!BB34 -> 2071 | BC5: ='1_KMA'!BC34 -> 2072 | BD5: ='1_KMA'!BD34 -> 2073 | BE5: ='1_KMA'!BE34 -> 2074 | BF5: ='1_KMA'!BF34 -> 2075 | BG5: ='1_KMA'!BG34 -> 2076
B7: Summary
B9: Costs | G9: $ Basis Reminder | H9: $ Reminder
B10: Capex | G10: ='1_KMA'!$I$20 -> 2024-06-30 | H10: ='1_KMA'!$I$19 -> $millions | J10: =J47 -> 0 | K10: =K47 -> 0 | L10: 0 | M10: 0 | N10: 0 | O10: 0 | P10: 0 | Q10: 0 | R10: 0 | S10: 0 | T10: 0 | U10: 0 | V10: 0 | W10: 0 | X10: 0 | Y10: 0 | Z10: 0 | AA10: 0 | AB10: 0 | AC10: 0 | AD10: 0 | AE10: 0 | AF10: 0 | AG10: 0 | AH10: 0 | AI10: 0 | AJ10: 0 | AK10: 0 | AL10: 0 | AM10: 0 | AN10: 0 | AO10: 0 | AP10: 0 | AQ10: 0 | AR10: 0 | AS10: 0 | AT10: 0 | AU10: 0 | AV10: 0 | AW10: 0 | AX10: 0 | AY10: 0 | AZ10: 0 | BA10: 0 | BB10: 0 | BC10: 0 | BD10: 0 | BE10: 0 | BF10: 0 | BG10: 0
B11: Capex offset | G11: ='1_KMA'!$I$20 -> 2024-06-30 | H11: ='1_KMA'!$I$19 -> $millions | J11: =-J58 -> 0 | K11: =-K58 -> 0 | L11: 0 | M11: 0 | N11: 0 | O11: 0 | P11: 0 | Q11: 0 | R11: 0 | S11: 0 | T11: 0 | U11: 0 | V11: 0 | W11: 0 | X11: 0 | Y11: 0 | Z11: 0 | AA11: 0 | AB11: 0 | AC11: 0 | AD11: 0 | AE11: 0 | AF11: 0 | AG11: 0 | AH11: 0 | AI11: 0 | AJ11: 0 | AK11: 0 | AL11: 0 | AM11: 0 | AN11: 0 | AO11: 0 | AP11: 0 | AQ11: 0 | AR11: 0 | AS11: 0 | AT11: 0 | AU11: 0 | AV11: 0 | AW11: 0 | AX11: 0 | AY11: 0 | AZ11: 0 | BA11: 0 | BB11: 0 | BC11: 0 | BD11: 0 | BE11: 0 | BF11: 0 | BG11: 0
B12: Opex | G12: ='1_KMA'!$I$20 -> 2024-06-30 | H12: ='1_KMA'!$I$19 -> $millions | J12: =J81 -> 0 | K12: =K81 -> 0 | L12: 0 | M12: 0 | N12: 0 | O12: 0 | P12: 0 | Q12: 0 | R12: 0 | S12: 0 | T12: 0 | U12: 0 | V12: 0 | W12: 0 | X12: 0 | Y12: 0 | Z12: 0 | AA12: 0 | AB12: 0 | AC12: 0 | AD12: 0 | AE12: 0 | AF12: 0 | AG12: 0 | AH12: 0 | AI12: 0 | AJ12: 0 | AK12: 0 | AL12: 0 | AM12: 0 | AN12: 0 | AO12: 0 | AP12: 0 | AQ12: 0 | AR12: 0 | AS12: 0 | AT12: 0 | AU12: 0 | AV12: 0 | AW12: 0 | AX12: 0 | AY12: 0 | AZ12: 0 | BA12: 0 | BB12: 0 | BC12: 0 | BD12: 0 | BE12: 0 | BF12: 0 | BG12: 0
B13: Total | G13: ='1_KMA'!$I$20 -> 2024-06-30 | H13: ='1_KMA'!$I$19 -> $millions | J13: =SUM(J10:J12) -> 0 | K13: =SUM(K10:K12) -> 0 | L13: 0 | M13: 0 | N13: 0 | O13: 0 | P13: 0 | Q13: 0 | R13: 0 | S13: 0 | T13: 0 | U13: 0 | V13: 0 | W13: 0 | X13: 0 | Y13: 0 | Z13: 0 | AA13: 0 | AB13: 0 | AC13: 0 | AD13: 0 | AE13: 0 | AF13: 0 | AG13: 0 | AH13: 0 | AI13: 0 | AJ13: 0 | AK13: 0 | AL13: 0 | AM13: 0 | AN13: 0 | AO13: 0 | AP13: 0 | AQ13: 0 | AR13: 0 | AS13: 0 | AT13: 0 | AU13: 0 | AV13: 0 | AW13: 0 | AX13: 0 | AY13: 0 | AZ13: 0 | BA13: 0 | BB13: 0 | BC13: 0 | BD13: 0 | BE13: 0 | BF13: 0 | BG13: 0
B15: Benefits | G15: $ Basis Reminder | H15: $ Reminder
B16: Value of EUE | G16: ='1_KMA'!$I$20 -> 2024-06-30 | H16: ='1_KMA'!$I$19 -> $millions | J16: =J92 -> 0 | K16: =K92 -> 0 | L16: 0 | M16: 0 | N16: 0 | O16: 0 | P16: 0 | Q16: 0 | R16: 0 | S16: 0 | T16: 0 | U16: 0 | V16: 0 | W16: 0 | X16: 0 | Y16: 0 | Z16: 0 | AA16: 0 | AB16: 0 | AC16: 0 | AD16: 0 | AE16: 0 | AF16: 0 | AG16: 0 | AH16: 0 | AI16: 0 | AJ16: 0 | AK16: 0 | AL16: 0 | AM16: 0 | AN16: 0 | AO16: 0 | AP16: 0 | AQ16: 0 | AR16: 0 | AS16: 0 | AT16: 0 | AU16: 0 | AV16: 0 | AW16: 0 | AX16: 0 | AY16: 0 | AZ16: 0 | BA16: 0 | BB16: 0 | BC16: 0 | BD16: 0 | BE16: 0 | BF16: 0 | BG16: 0
B18: Resilience | G18: ='1_KMA'!$I$20 -> 2024-06-30 | H18: ='1_KMA'!$I$19 -> $millions | J18: =J113 -> 0 | K18: =K113 -> 0 | L18: 0 | M18: 0 | N18: 0 | O18: 0 | P18: 0 | Q18: 0 | R18: 0 | S18: 0 | T18: 0 | U18: 0 | V18: 0 | W18: 0 | X18: 0 | Y18: 0 | Z18: 0 | AA18: 0 | AB18: 0 | AC18: 0 | AD18: 0 | AE18: 0 | AF18: 0 | AG18: 0 | AH18: 0 | AI18: 0 | AJ18: 0 | AK18: 0 | AL18: 0 | AM18: 0 | AN18: 0 | AO18: 0 | AP18: 0 | AQ18: 0 | AR18: 0 | AS18: 0 | AT18: 0 | AU18: 0 | AV18: 0 | AW18: 0 | AX18: 0 | AY18: 0 | AZ18: 0 | BA18: 0 | BB18: 0 | BC18: 0 | BD18: 0 | BE18: 0 | BF18: 0 | BG18: 0
B21: Total | G21: ='1_KMA'!$I$20 -> 2024-06-30 | H21: ='1_KMA'!$I$19 -> $millions | J21: =SUM(J16:J20) -> 0 | K21: =SUM(K16:K20) -> 0 | L21: 0 | M21: 0 | N21: 0 | O21: 0 | P21: 0 | Q21: 0 | R21: 0 | S21: 0 | T21: 0 | U21: 0 | V21: 0 | W21: 0 | X21: 0 | Y21: 0 | Z21: 0 | AA21: 0 | AB21: 0 | AC21: 0 | AD21: 0 | AE21: 0 | AF21: 0 | AG21: 0 | AH21: 0 | AI21: 0 | AJ21: 0 | AK21: 0 | AL21: 0 | AM21: 0 | AN21: 0 | AO21: 0 | AP21: 0 | AQ21: 0 | AR21: 0 | AS21: 0 | AT21: 0 | AU21: 0 | AV21: 0 | AW21: 0 | AX21: 0 | AY21: 0 | AZ21: 0 | BA21: 0 | BB21: 0 | BC21: 0 | BD21: 0 | BE21: 0 | BF21: 0 | BG21: 0
B24: Cost Inputs
B26: Capex Build Up
B28: Name | H28: Unit | J28: Unit Rate
B34: Name | H34: Unit | J34: Quantities
B40: Name | H40: Unit | J40: Costs
J41: =$J$29*J35 -> 0 | K41: =$J$29*K35 -> 0 | L41: =$J$29*L35 -> 0 | M41: 0 | N41: 0 | O41: 0 | P41: 0 | Q41: 0 | R41: 0 | S41: 0 | T41: 0 | U41: 0 | V41: 0 | W41: 0 | X41: 0 | Y41: 0 | Z41: 0 | AA41: 0 | AB41: 0 | AC41: 0 | AD41: 0 | AE41: 0 | AF41: 0 | AG41: 0 | AH41: 0 | AI41: 0 | AJ41: 0 | AK41: 0 | AL41: 0 | AM41: 0 | AN41: 0 | AO41: 0 | AP41: 0 | AQ41: 0 | AR41: 0 | AS41: 0 | AT41: 0 | AU41: 0 | AV41: 0 | AW41: 0 | AX41: 0 | AY41: 0 | AZ41: 0 | BA41: 0 | BB41: 0 | BC41: 0 | BD41: 0 | BE41: 0 | BF41: 0 | BG41: 0
J42: =$J$30*J36 -> 0 | K42: =$J$30*K36 -> 0 | L42: =$J$30*L36 -> 0 | M42: 0 | N42: 0 | O42: 0 | P42: 0 | Q42: 0 | R42: 0 | S42: 0 | T42: 0 | U42: 0 | V42: 0 | W42: 0 | X42: 0 | Y42: 0 | Z42: 0 | AA42: 0 | AB42: 0 | AC42: 0 | AD42: 0 | AE42: 0 | AF42: 0 | AG42: 0 | AH42: 0 | AI42: 0 | AJ42: 0 | AK42: 0 | AL42: 0 | AM42: 0 | AN42: 0 | AO42: 0 | AP42: 0 | AQ42: 0 | AR42: 0 | AS42: 0 | AT42: 0 | AU42: 0 | AV42: 0 | AW42: 0 | AX42: 0 | AY42: 0 | AZ42: 0 | BA42: 0 | BB42: 0 | BC42: 0 | BD42: 0 | BE42: 0 | BF42: 0 | BG42: 0
J43: =$J$31*J37 -> 0 | K43: =$J$31*K37 -> 0 | L43: =$J$31*L37 -> 0 | M43: 0 | N43: 0 | O43: 0 | P43: 0 | Q43: 0 | R43: 0 | S43: 0 | T43: 0 | U43: 0 | V43: 0 | W43: 0 | X43: 0 | Y43: 0 | Z43: 0 | AA43: 0 | AB43: 0 | AC43: 0 | AD43: 0 | AE43: 0 | AF43: 0 | AG43: 0 | AH43: 0 | AI43: 0 | AJ43: 0 | AK43: 0 | AL43: 0 | AM43: 0 | AN43: 0 | AO43: 0 | AP43: 0 | AQ43: 0 | AR43: 0 | AS43: 0 | AT43: 0 | AU43: 0 | AV43: 0 | AW43: 0 | AX43: 0 | AY43: 0 | AZ43: 0 | BA43: 0 | BB43: 0 | BC43: 0 | BD43: 0 | BE43: 0 | BF43: 0 | BG43: 0
J44: =$J$32*J38 -> 0 | K44: =$J$32*K38 -> 0 | L44: =$J$32*L38 -> 0 | M44: 0 | N44: 0 | O44: 0 | P44: 0 | Q44: 0 | R44: 0 | S44: 0 | T44: 0 | U44: 0 | V44: 0 | W44: 0 | X44: 0 | Y44: 0 | Z44: 0 | AA44: 0 | AB44: 0 | AC44: 0 | AD44: 0 | AE44: 0 | AF44: 0 | AG44: 0 | AH44: 0 | AI44: 0 | AJ44: 0 | AK44: 0 | AL44: 0 | AM44: 0 | AN44: 0 | AO44: 0 | AP44: 0 | AQ44: 0 | AR44: 0 | AS44: 0 | AT44: 0 | AU44: 0 | AV44: 0 | AW44: 0 | AX44: 0 | AY44: 0 | AZ44: 0 | BA44: 0 | BB44: 0 | BC44: 0 | BD44: 0 | BE44: 0 | BF44: 0 | BG44: 0
G46: $ Basis Reminder | H46: $ Reminder
B47: Total | G47: ='1_KMA'!$I$20 -> 2024-06-30 | H47: ='1_KMA'!$I$19 -> $millions | J47: =SUM(J41:J44) -> 0 | K47: =SUM(K41:K44) -> 0 | L47: =SUM(L41:L44) -> 0 | M47: 0 | N47: 0 | O47: 0 | P47: 0 | Q47: 0 | R47: 0 | S47: 0 | T47: 0 | U47: 0 | V47: 0 | W47: 0 | X47: 0 | Y47: 0 | Z47: 0 | AA47: 0 | AB47: 0 | AC47: 0 | AD47: 0 | AE47: 0 | AF47: 0 | AG47: 0 | AH47: 0 | AI47: 0 | AJ47: 0 | AK47: 0 | AL47: 0 | AM47: 0 | AN47: 0 | AO47: 0 | AP47: 0 | AQ47: 0 | AR47: 0 | AS47: 0 | AT47: 0 | AU47: 0 | AV47: 0 | AW47: 0 | AX47: 0 | AY47: 0 | AZ47: 0 | BA47: 0 | BB47: 0 | BC47: 0 | BD47: 0 | BE47: 0 | BF47: 0 | BG47: =SUM(BG41:BG44) -> 0
B49: Capex Offset
B51: Name | H51: Unit | J51: Costs
G57: $ Basis Reminder | H57: $ Reminder
B58: Total | G58: ='1_KMA'!$I$20 -> 2024-06-30 | H58: ='1_KMA'!$I$19 -> $millions | J58: =SUM(J52:J55) -> 0 | K58: =SUM(K52:K55) -> 0 | L58: =SUM(L52:L55) -> 0 | M58: 0 | N58: 0 | O58: 0 | P58: 0 | Q58: 0 | R58: 0 | S58: 0 | T58: 0 | U58: 0 | V58: 0 | W58: 0 | X58: 0 | Y58: 0 | Z58: 0 | AA58: 0 | AB58: 0 | AC58: 0 | AD58: 0 | AE58: 0 | AF58: 0 | AG58: 0 | AH58: 0 | AI58: 0 | AJ58: 0 | AK58: 0 | AL58: 0 | AM58: 0 | AN58: 0 | AO58: 0 | AP58: 0 | AQ58: 0 | AR58: 0 | AS58: 0 | AT58: 0 | AU58: 0 | AV58: 0 | AW58: 0 | AX58: 0 | AY58: 0 | AZ58: 0 | BA58: 0 | BB58: 0 | BC58: 0 | BD58: 0 | BE58: 0 | BF58: 0 | BG58: 0
B60: Opex Build Up
B62: Name | H62: Unit | J62: Value
B68: Name | H68: Unit | J68: Quantities
B74: Name | H74: Unit | J74: Costs
J75: =$J$63*J69 -> 0 | K75: =$J$63*K69 -> 0 | L75: =$J$63*L69 -> 0 | M75: 0 | N75: 0 | O75: 0 | P75: 0 | Q75: 0 | R75: 0 | S75: 0 | T75: 0 | U75: 0 | V75: 0 | W75: 0 | X75: 0 | Y75: 0 | Z75: 0 | AA75: 0 | AB75: 0 | AC75: 0 | AD75: 0 | AE75: 0 | AF75: 0 | AG75: 0 | AH75: 0 | AI75: 0 | AJ75: 0 | AK75: 0 | AL75: 0 | AM75: 0 | AN75: 0 | AO75: 0 | AP75: 0 | AQ75: 0 | AR75: 0 | AS75: 0 | AT75: 0 | AU75: 0 | AV75: 0 | AW75: 0 | AX75: 0 | AY75: 0 | AZ75: 0 | BA75: 0 | BB75: 0 | BC75: 0 | BD75: 0 | BE75: 0 | BF75: 0 | BG75: 0
J76: =$J$64*J70 -> 0 | K76: =$J$64*K70 -> 0 | L76: =$J$64*L70 -> 0 | M76: 0 | N76: 0 | O76: 0 | P76: 0 | Q76: 0 | R76: 0 | S76: 0 | T76: 0 | U76: 0 | V76: 0 | W76: 0 | X76: 0 | Y76: 0 | Z76: 0 | AA76: 0 | AB76: 0 | AC76: 0 | AD76: 0 | AE76: 0 | AF76: 0 | AG76: 0 | AH76: 0 | AI76: 0 | AJ76: 0 | AK76: 0 | AL76: 0 | AM76: 0 | AN76: 0 | AO76: 0 | AP76: 0 | AQ76: 0 | AR76: 0 | AS76: 0 | AT76: 0 | AU76: 0 | AV76: 0 | AW76: 0 | AX76: 0 | AY76: 0 | AZ76: 0 | BA76: 0 | BB76: 0 | BC76: 0 | BD76: 0 | BE76: 0 | BF76: 0 | BG76: 0
J77: =$J$65*J71 -> 0 | K77: =$J$65*K71 -> 0 | L77: =$J$65*L71 -> 0 | M77: 0 | N77: 0 | O77: 0 | P77: 0 | Q77: 0 | R77: 0 | S77: 0 | T77: 0 | U77: 0 | V77: 0 | W77: 0 | X77: 0 | Y77: 0 | Z77: 0 | AA77: 0 | AB77: 0 | AC77: 0 | AD77: 0 | AE77: 0 | AF77: 0 | AG77: 0 | AH77: 0 | AI77: 0 | AJ77: 0 | AK77: 0 | AL77: 0 | AM77: 0 | AN77: 0 | AO77: 0 | AP77: 0 | AQ77: 0 | AR77: 0 | AS77: 0 | AT77: 0 | AU77: 0 | AV77: 0 | AW77: 0 | AX77: 0 | AY77: 0 | AZ77: 0 | BA77: 0 | BB77: 0 | BC77: 0 | BD77: 0 | BE77: 0 | BF77: 0 | BG77: 0
J78: =$J$66*J72 -> 0 | K78: =$J$66*K72 -> 0 | L78: =$J$66*L72 -> 0 | M78: 0 | N78: 0 | O78: 0 | P78: 0 | Q78: 0 | R78: 0 | S78: 0 | T78: 0 | U78: 0 | V78: 0 | W78: 0 | X78: 0 | Y78: 0 | Z78: 0 | AA78: 0 | AB78: 0 | AC78: 0 | AD78: 0 | AE78: 0 | AF78: 0 | AG78: 0 | AH78: 0 | AI78: 0 | AJ78: 0 | AK78: 0 | AL78: 0 | AM78: 0 | AN78: 0 | AO78: 0 | AP78: 0 | AQ78: 0 | AR78: 0 | AS78: 0 | AT78: 0 | AU78: 0 | AV78: 0 | AW78: 0 | AX78: 0 | AY78: 0 | AZ78: 0 | BA78: 0 | BB78: 0 | BC78: 0 | BD78: 0 | BE78: 0 | BF78: 0 | BG78: 0
G80: $ Basis Reminder | H80: $ Reminder
B81: Total | G81: ='1_KMA'!$I$20 -> 2024-06-30 | H81: ='1_KMA'!$I$19 -> $millions | J81: =SUM(J75:J78) -> 0 | K81: =SUM(K75:K78) -> 0 | L81: =SUM(L75:L78) -> 0 | M81: 0 | N81: 0 | O81: 0 | P81: 0 | Q81: 0 | R81: 0 | S81: 0 | T81: 0 | U81: 0 | V81: 0 | W81: 0 | X81: 0 | Y81: 0 | Z81: 0 | AA81: 0 | AB81: 0 | AC81: 0 | AD81: 0 | AE81: 0 | AF81: 0 | AG81: 0 | AH81: 0 | AI81: 0 | AJ81: 0 | AK81: 0 | AL81: 0 | AM81: 0 | AN81: 0 | AO81: 0 | AP81: 0 | AQ81: 0 | AR81: 0 | AS81: 0 | AT81: 0 | AU81: 0 | AV81: 0 | AW81: 0 | AX81: 0 | AY81: 0 | AZ81: 0 | BA81: 0 | BB81: 0 | BC81: 0 | BD81: 0 | BE81: 0 | BF81: 0 | BG81: =SUM(BG75:BG78) -> 0
B83: Benefits Inputs
B85: Value of EUE
H87: Unit
B88: Expected Unserved Energy (EUE)
B89: VCR
G91: $ Basis Reminder | H91: $ Reminder
B92: Value of EUE | G92: ='1_KMA'!$I$20 -> 2024-06-30 | H92: ='1_KMA'!$I$19 -> $millions | J92: =J88*J89/10^6 -> 0 | K92: =K88*K89/10^6 -> 0 | L92: 0 | M92: 0 | N92: 0 | O92: 0 | P92: 0 | Q92: 0 | R92: 0 | S92: 0 | T92: 0 | U92: 0 | V92: 0 | W92: 0 | X92: 0 | Y92: 0 | Z92: 0 | AA92: 0 | AB92: 0 | AC92: 0 | AD92: 0 | AE92: 0 | AF92: 0 | AG92: 0 | AH92: 0 | AI92: 0 | AJ92: 0 | AK92: 0 | AL92: 0 | AM92: 0 | AN92: 0 | AO92: 0 | AP92: 0 | AQ92: 0 | AR92: 0 | AS92: 0 | AT92: 0 | AU92: 0 | AV92: 0 | AW92: 0 | AX92: 0 | AY92: 0 | AZ92: 0 | BA92: 0 | BB92: 0 | BC92: 0 | BD92: 0 | BE92: 0 | BF92: 0 | BG92: 0
B94: Resilience
B96: QCV research | H96: Unit | J96: Unit Rate
B97: Fewer unplanned outages, longer than 12 hours
B98: Faster restoration of power when an outage has occurred
B99: Community hub offering essential services during long duration outages
H102: Unit | J102: Quantities
B103: Fewer unplanned outages, longer than 12 hours
B104: Faster restoration of power when an outage has occurred
B105: Community hub offering essential services
H107: Unit | J107: Costs
B108: Fewer unplanned outages, longer than 12 hours | J108: =J103*'2.1_Op3'!$J$97 -> 0 | K108: =K103*'2.1_Op3'!$J$97 -> 0 | L108: =L103*'2.1_Op3'!$J$97 -> 0 | M108: =M103*'2.1_Op3'!$J$97 -> 0 | N108: =N103*'2.1_Op3'!$J$97 -> 0 | O108: =O103*'2.1_Op3'!$J$97 -> 0 | P108: =P103*'2.1_Op3'!$J$97 -> 0 | Q108: =Q103*'2.1_Op3'!$J$97 -> 0 | R108: =R103*'2.1_Op3'!$J$97 -> 0 | S108: =S103*'2.1_Op3'!$J$97 -> 0 | T108: =T103*'2.1_Op3'!$J$97 -> 0 | U108: =U103*'2.1_Op3'!$J$97 -> 0 | V108: =V103*'2.1_Op3'!$J$97 -> 0 | W108: =W103*'2.1_Op3'!$J$97 -> 0 | X108: =X103*'2.1_Op3'!$J$97 -> 0 | Y108: =Y103*'2.1_Op3'!$J$97 -> 0 | Z108: =Z103*'2.1_Op3'!$J$97 -> 0 | AA108: =AA103*'2.1_Op3'!$J$97 -> 0 | AB108: =AB103*'2.1_Op3'!$J$97 -> 0 | AC108: =AC103*'2.1_Op3'!$J$97 -> 0 | AD108: =AD103*'2.1_Op3'!$J$97 -> 0 | AE108: =AE103*'2.1_Op3'!$J$97 -> 0 | AF108: =AF103*'2.1_Op3'!$J$97 -> 0 | AG108: =AG103*'2.1_Op3'!$J$97 -> 0 | AH108: =AH103*'2.1_Op3'!$J$97 -> 0 | AI108: =AI103*'2.1_Op3'!$J$97 -> 0 | AJ108: =AJ103*'2.1_Op3'!$J$97 -> 0 | AK108: =AK103*'2.1_Op3'!$J$97 -> 0 | AL108: =AL103*'2.1_Op3'!$J$97 -> 0 | AM108: =AM103*'2.1_Op3'!$J$97 -> 0 | AN108: =AN103*'2.1_Op3'!$J$97 -> 0 | AO108: =AO103*'2.1_Op3'!$J$97 -> 0 | AP108: =AP103*'2.1_Op3'!$J$97 -> 0 | AQ108: =AQ103*'2.1_Op3'!$J$97 -> 0 | AR108: =AR103*'2.1_Op3'!$J$97 -> 0 | AS108: =AS103*'2.1_Op3'!$J$97 -> 0 | AT108: =AT103*'2.1_Op3'!$J$97 -> 0 | AU108: =AU103*'2.1_Op3'!$J$97 -> 0 | AV108: =AV103*'2.1_Op3'!$J$97 -> 0 | AW108: =AW103*'2.1_Op3'!$J$97 -> 0 | AX108: =AX103*'2.1_Op3'!$J$97 -> 0 | AY108: =AY103*'2.1_Op3'!$J$97 -> 0 | AZ108: =AZ103*'2.1_Op3'!$J$97 -> 0 | BA108: =BA103*'2.1_Op3'!$J$97 -> 0 | BB108: =BB103*'2.1_Op3'!$J$97 -> 0 | BC108: =BC103*'2.1_Op3'!$J$97 -> 0 | BD108: =BD103*'2.1_Op3'!$J$97 -> 0 | BE108: =BE103*'2.1_Op3'!$J$97 -> 0 | BF108: =BF103*'2.1_Op3'!$J$97 -> 0 | BG108: =BG103*'2.1_Op3'!$J$97 -> 0
B109: Faster restoration of power when an outage has occurred | J109: =J104*'2.1_Op3'!$J$98 -> 0 | K109: =K104*'2.1_Op3'!$J$98 -> 0 | L109: =L104*'2.1_Op3'!$J$98 -> 0 | M109: =M104*'2.1_Op3'!$J$98 -> 0 | N109: =N104*'2.1_Op3'!$J$98 -> 0 | O109: =O104*'2.1_Op3'!$J$98 -> 0 | P109: =P104*'2.1_Op3'!$J$98 -> 0 | Q109: =Q104*'2.1_Op3'!$J$98 -> 0 | R109: =R104*'2.1_Op3'!$J$98 -> 0 | S109: =S104*'2.1_Op3'!$J$98 -> 0 | T109: =T104*'2.1_Op3'!$J$98 -> 0 | U109: =U104*'2.1_Op3'!$J$98 -> 0 | V109: =V104*'2.1_Op3'!$J$98 -> 0 | W109: =W104*'2.1_Op3'!$J$98 -> 0 | X109: =X104*'2.1_Op3'!$J$98 -> 0 | Y109: =Y104*'2.1_Op3'!$J$98 -> 0 | Z109: =Z104*'2.1_Op3'!$J$98 -> 0 | AA109: =AA104*'2.1_Op3'!$J$98 -> 0 | AB109: =AB104*'2.1_Op3'!$J$98 -> 0 | AC109: =AC104*'2.1_Op3'!$J$98 -> 0 | AD109: =AD104*'2.1_Op3'!$J$98 -> 0 | AE109: =AE104*'2.1_Op3'!$J$98 -> 0 | AF109: =AF104*'2.1_Op3'!$J$98 -> 0 | AG109: =AG104*'2.1_Op3'!$J$98 -> 0 | AH109: =AH104*'2.1_Op3'!$J$98 -> 0 | AI109: =AI104*'2.1_Op3'!$J$98 -> 0 | AJ109: =AJ104*'2.1_Op3'!$J$98 -> 0 | AK109: =AK104*'2.1_Op3'!$J$98 -> 0 | AL109: =AL104*'2.1_Op3'!$J$98 -> 0 | AM109: =AM104*'2.1_Op3'!$J$98 -> 0 | AN109: =AN104*'2.1_Op3'!$J$98 -> 0 | AO109: =AO104*'2.1_Op3'!$J$98 -> 0 | AP109: =AP104*'2.1_Op3'!$J$98 -> 0 | AQ109: =AQ104*'2.1_Op3'!$J$98 -> 0 | AR109: =AR104*'2.1_Op3'!$J$98 -> 0 | AS109: =AS104*'2.1_Op3'!$J$98 -> 0 | AT109: =AT104*'2.1_Op3'!$J$98 -> 0 | AU109: =AU104*'2.1_Op3'!$J$98 -> 0 | AV109: =AV104*'2.1_Op3'!$J$98 -> 0 | AW109: =AW104*'2.1_Op3'!$J$98 -> 0 | AX109: =AX104*'2.1_Op3'!$J$98 -> 0 | AY109: =AY104*'2.1_Op3'!$J$98 -> 0 | AZ109: =AZ104*'2.1_Op3'!$J$98 -> 0 | BA109: =BA104*'2.1_Op3'!$J$98 -> 0 | BB109: =BB104*'2.1_Op3'!$J$98 -> 0 | BC109: =BC104*'2.1_Op3'!$J$98 -> 0 | BD109: =BD104*'2.1_Op3'!$J$98 -> 0 | BE109: =BE104*'2.1_Op3'!$J$98 -> 0 | BF109: =BF104*'2.1_Op3'!$J$98 -> 0 | BG109: =BG104*'2.1_Op3'!$J$98 -> 0
B110: Community hub offering essential services | J110: =J105*'2.1_Op3'!$J$99 -> 0 | K110: =K105*'2.1_Op3'!$J$99 -> 0 | L110: =L105*'2.1_Op3'!$J$99 -> 0 | M110: =M105*'2.1_Op3'!$J$99 -> 0 | N110: =N105*'2.1_Op3'!$J$99 -> 0 | O110: =O105*'2.1_Op3'!$J$99 -> 0 | P110: =P105*'2.1_Op3'!$J$99 -> 0 | Q110: =Q105*'2.1_Op3'!$J$99 -> 0 | R110: =R105*'2.1_Op3'!$J$99 -> 0 | S110: =S105*'2.1_Op3'!$J$99 -> 0 | T110: =T105*'2.1_Op3'!$J$99 -> 0 | U110: =U105*'2.1_Op3'!$J$99 -> 0 | V110: =V105*'2.1_Op3'!$J$99 -> 0 | W110: =W105*'2.1_Op3'!$J$99 -> 0 | X110: =X105*'2.1_Op3'!$J$99 -> 0 | Y110: =Y105*'2.1_Op3'!$J$99 -> 0 | Z110: =Z105*'2.1_Op3'!$J$99 -> 0 | AA110: =AA105*'2.1_Op3'!$J$99 -> 0 | AB110: =AB105*'2.1_Op3'!$J$99 -> 0 | AC110: =AC105*'2.1_Op3'!$J$99 -> 0 | AD110: =AD105*'2.1_Op3'!$J$99 -> 0 | AE110: =AE105*'2.1_Op3'!$J$99 -> 0 | AF110: =AF105*'2.1_Op3'!$J$99 -> 0 | AG110: =AG105*'2.1_Op3'!$J$99 -> 0 | AH110: =AH105*'2.1_Op3'!$J$99 -> 0 | AI110: =AI105*'2.1_Op3'!$J$99 -> 0 | AJ110: =AJ105*'2.1_Op3'!$J$99 -> 0 | AK110: =AK105*'2.1_Op3'!$J$99 -> 0 | AL110: =AL105*'2.1_Op3'!$J$99 -> 0 | AM110: =AM105*'2.1_Op3'!$J$99 -> 0 | AN110: =AN105*'2.1_Op3'!$J$99 -> 0 | AO110: =AO105*'2.1_Op3'!$J$99 -> 0 | AP110: =AP105*'2.1_Op3'!$J$99 -> 0 | AQ110: =AQ105*'2.1_Op3'!$J$99 -> 0 | AR110: =AR105*'2.1_Op3'!$J$99 -> 0 | AS110: =AS105*'2.1_Op3'!$J$99 -> 0 | AT110: =AT105*'2.1_Op3'!$J$99 -> 0 | AU110: =AU105*'2.1_Op3'!$J$99 -> 0 | AV110: =AV105*'2.1_Op3'!$J$99 -> 0 | AW110: =AW105*'2.1_Op3'!$J$99 -> 0 | AX110: =AX105*'2.1_Op3'!$J$99 -> 0 | AY110: =AY105*'2.1_Op3'!$J$99 -> 0 | AZ110: =AZ105*'2.1_Op3'!$J$99 -> 0 | BA110: =BA105*'2.1_Op3'!$J$99 -> 0 | BB110: =BB105*'2.1_Op3'!$J$99 -> 0 | BC110: =BC105*'2.1_Op3'!$J$99 -> 0 | BD110: =BD105*'2.1_Op3'!$J$99 -> 0 | BE110: =BE105*'2.1_Op3'!$J$99 -> 0 | BF110: =BF105*'2.1_Op3'!$J$99 -> 0 | BG110: =BG105*'2.1_Op3'!$J$99 -> 0
G112: $ Basis Reminder | H112: $ Reminder
B113: Total | G113: ='1_KMA'!$I$20 -> 2024-06-30 | H113: ='1_KMA'!$I$19 -> $millions | J113: =(J108+J109+J110)/10^6 -> 0 | K113: =(K108+K109+K110)/10^6 -> 0 | L113: 0 | M113: 0 | N113: 0 | O113: 0 | P113: 0 | Q113: 0 | R113: 0 | S113: 0 | T113: 0 | U113: 0 | V113: 0 | W113: 0 | X113: 0 | Y113: 0 | Z113: 0 | AA113: 0 | AB113: 0 | AC113: 0 | AD113: 0 | AE113: 0 | AF113: 0 | AG113: 0 | AH113: 0 | AI113: 0 | AJ113: 0 | AK113: 0 | AL113: 0 | AM113: 0 | AN113: 0 | AO113: 0 | AP113: 0 | AQ113: 0 | AR113: 0 | AS113: 0 | AT113: 0 | AU113: 0 | AV113: 0 | AW113: 0 | AX113: 0 | AY113: 0 | AZ113: 0 | BA113: 0 | BB113: 0 | BC113: 0 | BD113: 0 | BE113: 0 | BF113: 0 | BG113: 0

Sheet 2.1_Op4
B1: General Inputs: Option 4 | I1: Regulatory Period Indicator | J1: ='1_KMA'!J30 -> 1 | K1: ='1_KMA'!K30 -> 1 | L1: ='1_KMA'!L30 -> 1 | M1: ='1_KMA'!M30 -> 1 | N1: ='1_KMA'!N30 -> 1 | O1: ='1_KMA'!O30 -> 0 | P1: ='1_KMA'!P30 -> 0 | Q1: ='1_KMA'!Q30 -> 0 | R1: ='1_KMA'!R30 -> 0 | S1: ='1_KMA'!S30 -> 0 | T1: ='1_KMA'!T30 -> 0 | U1: ='1_KMA'!U30 -> 0 | V1: ='1_KMA'!V30 -> 0 | W1: ='1_KMA'!W30 -> 0 | X1: ='1_KMA'!X30 -> 0 | Y1: ='1_KMA'!Y30 -> 0 | Z1: ='1_KMA'!Z30 -> 0 | AA1: ='1_KMA'!AA30 -> 0 | AB1: ='1_KMA'!AB30 -> 0 | AC1: ='1_KMA'!AC30 -> 0 | AD1: ='1_KMA'!AD30 -> 0 | AE1: ='1_KMA'!AE30 -> 0 | AF1: ='1_KMA'!AF30 -> 0 | AG1: ='1_KMA'!AG30 -> 0 | AH1: ='1_KMA'!AH30 -> 0 | AI1: ='1_KMA'!AI30 -> 0 | AJ1: ='1_KMA'!AJ30 -> 0 | AK1: ='1_KMA'!AK30 -> 0 | AL1: ='1_KMA'!AL30 -> 0 | AM1: ='1_KMA'!AM30 -> 0 | AN1: ='1_KMA'!AN30 -> 0 | AO1: ='1_KMA'!AO30 -> 0 | AP1: ='1_KMA'!AP30 -> 0 | AQ1: ='1_KMA'!AQ30 -> 0 | AR1: ='1_KMA'!AR30 -> 0 | AS1: ='1_KMA'!AS30 -> 0 | AT1: ='1_KMA'!AT30 -> 0 | AU1: ='1_KMA'!AU30 -> 0 | AV1: ='1_KMA'!AV30 -> 0 | AW1: ='1_KMA'!AW30 -> 0 | AX1: ='1_KMA'!AX30 -> 0 | AY1: ='1_KMA'!AY30 -> 0 | AZ1: ='1_KMA'!AZ30 -> 0 | BA1: ='1_KMA'!BA30 -> 0 | BB1: ='1_KMA'!BB30 -> 0 | BC1: ='1_KMA'!BC30 -> 0 | BD1: ='1_KMA'!BD30 -> 0 | BE1: ='1_KMA'!BE30 -> 0 | BF1: ='1_KMA'!BF30 -> 0 | BG1: ='1_KMA'!BG30 -> 0
B2: =Cover!$C$9 -> AusNet Services | I2: Period Start Date | J2: ='1_KMA'!J31 -> 2026-07-01 | K2: ='1_KMA'!K31 -> 2027-07-01 | L2: ='1_KMA'!L31 -> 2028-07-01 | M2: ='1_KMA'!M31 -> 2029-07-01 | N2: ='1_KMA'!N31 -> 2030-07-01 | O2: ='1_KMA'!O31 -> 2031-07-01 | P2: ='1_KMA'!P31 -> 2032-07-01 | Q2: ='1_KMA'!Q31 -> 2033-07-01 | R2: ='1_KMA'!R31 -> 2034-07-01 | S2: ='1_KMA'!S31 -> 2035-07-01 | T2: ='1_KMA'!T31 -> 2036-07-01 | U2: ='1_KMA'!U31 -> 2037-07-01 | V2: ='1_KMA'!V31 -> 2038-07-01 | W2: ='1_KMA'!W31 -> 2039-07-01 | X2: ='1_KMA'!X31 -> 2040-07-01 | Y2: ='1_KMA'!Y31 -> 2041-07-01 | Z2: ='1_KMA'!Z31 -> 2042-07-01 | AA2: ='1_KMA'!AA31 -> 2043-07-01 | AB2: ='1_KMA'!AB31 -> 2044-07-01 | AC2: ='1_KMA'!AC31 -> 2045-07-01 | AD2: ='1_KMA'!AD31 -> 2046-07-01 | AE2: ='1_KMA'!AE31 -> 2047-07-01 | AF2: ='1_KMA'!AF31 -> 2048-07-01 | AG2: ='1_KMA'!AG31 -> 2049-07-01 | AH2: ='1_KMA'!AH31 -> 2050-07-01 | AI2: ='1_KMA'!AI31 -> 2051-07-01 | AJ2: ='1_KMA'!AJ31 -> 2052-07-01 | AK2: ='1_KMA'!AK31 -> 2053-07-01 | AL2: ='1_KMA'!AL31 -> 2054-07-01 | AM2: ='1_KMA'!AM31 -> 2055-07-01 | AN2: ='1_KMA'!AN31 -> 2056-07-01 | AO2: ='1_KMA'!AO31 -> 2057-07-01 | AP2: ='1_KMA'!AP31 -> 2058-07-01 | AQ2: ='1_KMA'!AQ31 -> 2059-07-01 | AR2: ='1_KMA'!AR31 -> 2060-07-01 | AS2: ='1_KMA'!AS31 -> 2061-07-01 | AT2: ='1_KMA'!AT31 -> 2062-07-01 | AU2: ='1_KMA'!AU31 -> 2063-07-01 | AV2: ='1_KMA'!AV31 -> 2064-07-01 | AW2: ='1_KMA'!AW31 -> 2065-07-01 | AX2: ='1_KMA'!AX31 -> 2066-07-01 | AY2: ='1_KMA'!AY31 -> 2067-07-01 | AZ2: ='1_KMA'!AZ31 -> 2068-07-01 | BA2: ='1_KMA'!BA31 -> 2069-07-01 | BB2: ='1_KMA'!BB31 -> 2070-07-01 | BC2: ='1_KMA'!BC31 -> 2071-07-01 | BD2: ='1_KMA'!BD31 -> 2072-07-01 | BE2: ='1_KMA'!BE31 -> 2073-07-01 | BF2: ='1_KMA'!BF31 -> 2074-07-01 | BG2: ='1_KMA'!BG31 -> 2075-07-01
B3: =Cover!$C$10 -> Business Case Evaluation | I3: Period End Date | J3: ='1_KMA'!J32 -> 2027-06-30 | K3: ='1_KMA'!K32 -> 2028-06-30 | L3: ='1_KMA'!L32 -> 2029-06-30 | M3: ='1_KMA'!M32 -> 2030-06-30 | N3: ='1_KMA'!N32 -> 2031-06-30 | O3: ='1_KMA'!O32 -> 2032-06-30 | P3: ='1_KMA'!P32 -> 2033-06-30 | Q3: ='1_KMA'!Q32 -> 2034-06-30 | R3: ='1_KMA'!R32 -> 2035-06-30 | S3: ='1_KMA'!S32 -> 2036-06-30 | T3: ='1_KMA'!T32 -> 2037-06-30 | U3: ='1_KMA'!U32 -> 2038-06-30 | V3: ='1_KMA'!V32 -> 2039-06-30 | W3: ='1_KMA'!W32 -> 2040-06-30 | X3: ='1_KMA'!X32 -> 2041-06-30 | Y3: ='1_KMA'!Y32 -> 2042-06-30 | Z3: ='1_KMA'!Z32 -> 2043-06-30 | AA3: ='1_KMA'!AA32 -> 2044-06-30 | AB3: ='1_KMA'!AB32 -> 2045-06-30 | AC3: ='1_KMA'!AC32 -> 2046-06-30 | AD3: ='1_KMA'!AD32 -> 2047-06-30 | AE3: ='1_KMA'!AE32 -> 2048-06-30 | AF3: ='1_KMA'!AF32 -> 2049-06-30 | AG3: ='1_KMA'!AG32 -> 2050-06-30 | AH3: ='1_KMA'!AH32 -> 2051-06-30 | AI3: ='1_KMA'!AI32 -> 2052-06-30 | AJ3: ='1_KMA'!AJ32 -> 2053-06-30 | AK3: ='1_KMA'!AK32 -> 2054-06-30 | AL3: ='1_KMA'!AL32 -> 2055-06-30 | AM3: ='1_KMA'!AM32 -> 2056-06-30 | AN3: ='1_KMA'!AN32 -> 2057-06-30 | AO3: ='1_KMA'!AO32 -> 2058-06-30 | AP3: ='1_KMA'!AP32 -> 2059-06-30 | AQ3: ='1_KMA'!AQ32 -> 2060-06-30 | AR3: ='1_KMA'!AR32 -> 2061-06-30 | AS3: ='1_KMA'!AS32 -> 2062-06-30 | AT3: ='1_KMA'!AT32 -> 2063-06-30 | AU3: ='1_KMA'!AU32 -> 2064-06-30 | AV3: ='1_KMA'!AV32 -> 2065-06-30 | AW3: ='1_KMA'!AW32 -> 2066-06-30 | AX3: ='1_KMA'!AX32 -> 2067-06-30 | AY3: ='1_KMA'!AY32 -> 2068-06-30 | AZ3: ='1_KMA'!AZ32 -> 2069-06-30 | BA3: ='1_KMA'!BA32 -> 2070-06-30 | BB3: ='1_KMA'!BB32 -> 2071-06-30 | BC3: ='1_KMA'!BC32 -> 2072-06-30 | BD3: ='1_KMA'!BD32 -> 2073-06-30 | BE3: ='1_KMA'!BE32 -> 2074-06-30 | BF3: ='1_KMA'!BF32 -> 2075-06-30 | BG3: ='1_KMA'!BG32 -> 2076-06-30
B4: =Cover!$C$11 -> Backup power for community hubs | I4: Project Year | J4: ='1_KMA'!J33 -> 1 | K4: ='1_KMA'!K33 -> 2 | L4: ='1_KMA'!L33 -> 3 | M4: ='1_KMA'!M33 -> 4 | N4: ='1_KMA'!N33 -> 5 | O4: ='1_KMA'!O33 -> 6 | P4: ='1_KMA'!P33 -> 7 | Q4: ='1_KMA'!Q33 -> 8 | R4: ='1_KMA'!R33 -> 9 | S4: ='1_KMA'!S33 -> 10 | T4: ='1_KMA'!T33 -> 11 | U4: ='1_KMA'!U33 -> 12 | V4: ='1_KMA'!V33 -> 13 | W4: ='1_KMA'!W33 -> 14 | X4: ='1_KMA'!X33 -> 15 | Y4: ='1_KMA'!Y33 -> 16 | Z4: ='1_KMA'!Z33 -> 17 | AA4: ='1_KMA'!AA33 -> 18 | AB4: ='1_KMA'!AB33 -> 19 | AC4: ='1_KMA'!AC33 -> 20 | AD4: ='1_KMA'!AD33 -> 21 | AE4: ='1_KMA'!AE33 -> 22 | AF4: ='1_KMA'!AF33 -> 23 | AG4: ='1_KMA'!AG33 -> 24 | AH4: ='1_KMA'!AH33 -> 25 | AI4: ='1_KMA'!AI33 -> 26 | AJ4: ='1_KMA'!AJ33 -> 27 | AK4: ='1_KMA'!AK33 -> 28 | AL4: ='1_KMA'!AL33 -> 29 | AM4: ='1_KMA'!AM33 -> 30 | AN4: ='1_KMA'!AN33 -> 31 | AO4: ='1_KMA'!AO33 -> 32 | AP4: ='1_KMA'!AP33 -> 33 | AQ4: ='1_KMA'!AQ33 -> 34 | AR4: ='1_KMA'!AR33 -> 35 | AS4: ='1_KMA'!AS33 -> 36 | AT4: ='1_KMA'!AT33 -> 37 | AU4: ='1_KMA'!AU33 -> 38 | AV4: ='1_KMA'!AV33 -> 39 | AW4: ='1_KMA'!AW33 -> 40 | AX4: ='1_KMA'!AX33 -> 41 | AY4: ='1_KMA'!AY33 -> 42 | AZ4: ='1_KMA'!AZ33 -> 43 | BA4: ='1_KMA'!BA33 -> 44 | BB4: ='1_KMA'!BB33 -> 45 | BC4: ='1_KMA'!BC33 -> 46 | BD4: ='1_KMA'!BD33 -> 47 | BE4: ='1_KMA'!BE33 -> 48 | BF4: ='1_KMA'!BF33 -> 49 | BG4: ='1_KMA'!BG33 -> 50
I5: Financial Year | J5: ='1_KMA'!J34 -> 2027 | K5: ='1_KMA'!K34 -> 2028 | L5: ='1_KMA'!L34 -> 2029 | M5: ='1_KMA'!M34 -> 2030 | N5: ='1_KMA'!N34 -> 2031 | O5: ='1_KMA'!O34 -> 2032 | P5: ='1_KMA'!P34 -> 2033 | Q5: ='1_KMA'!Q34 -> 2034 | R5: ='1_KMA'!R34 -> 2035 | S5: ='1_KMA'!S34 -> 2036 | T5: ='1_KMA'!T34 -> 2037 | U5: ='1_KMA'!U34 -> 2038 | V5: ='1_KMA'!V34 -> 2039 | W5: ='1_KMA'!W34 -> 2040 | X5: ='1_KMA'!X34 -> 2041 | Y5: ='1_KMA'!Y34 -> 2042 | Z5: ='1_KMA'!Z34 -> 2043 | AA5: ='1_KMA'!AA34 -> 2044 | AB5: ='1_KMA'!AB34 -> 2045 | AC5: ='1_KMA'!AC34 -> 2046 | AD5: ='1_KMA'!AD34 -> 2047 | AE5: ='1_KMA'!AE34 -> 2048 | AF5: ='1_KMA'!AF34 -> 2049 | AG5: ='1_KMA'!AG34 -> 2050 | AH5: ='1_KMA'!AH34 -> 2051 | AI5: ='1_KMA'!AI34 -> 2052 | AJ5: ='1_KMA'!AJ34 -> 2053 | AK5: ='1_KMA'!AK34 -> 2054 | AL5: ='1_KMA'!AL34 -> 2055 | AM5: ='1_KMA'!AM34 -> 2056 | AN5: ='1_KMA'!AN34 -> 2057 | AO5: ='1_KMA'!AO34 -> 2058 | AP5: ='1_KMA'!AP34 -> 2059 | AQ5: ='1_KMA'!AQ34 -> 2060 | AR5: ='1_KMA'!AR34 -> 2061 | AS5: ='1_KMA'!AS34 -> 2062 | AT5: ='1_KMA'!AT34 -> 2063 | AU5: ='1_KMA'!AU34 -> 2064 | AV5: ='1_KMA'!AV34 -> 2065 | AW5: ='1_KMA'!AW34 -> 2066 | AX5: ='1_KMA'!AX34 -> 2067 | AY5: ='1_KMA'!AY34 -> 2068 | AZ5: ='1_KMA'!AZ34 -> 2069 | BA5: ='1_KMA'!BA34 -> 2070 | BB5: ='1_KMA'!BB34 -> 2071 | BC5: ='1_KMA'!BC34 -> 2072 | BD5: ='1_KMA'!BD34 -> 2073 | BE5: ='1_KMA'!BE34 -> 2074 | BF5: ='1_KMA'!BF34 -> 2075 | BG5: ='1_KMA'!BG34 -> 2076
B7: Summary
B9: Costs | G9: $ Basis Reminder | H9: $ Reminder
B10: Capex | G10: ='1_KMA'!$I$20 -> 2024-06-30 | H10: ='1_KMA'!$I$19 -> $millions | J10: =J47 -> 0 | K10: =K47 -> 0 | L10: 0 | M10: 0 | N10: 0 | O10: 0 | P10: 0 | Q10: 0 | R10: 0 | S10: 0 | T10: 0 | U10: 0 | V10: 0 | W10: 0 | X10: 0 | Y10: 0 | Z10: 0 | AA10: 0 | AB10: 0 | AC10: 0 | AD10: 0 | AE10: 0 | AF10: 0 | AG10: 0 | AH10: 0 | AI10: 0 | AJ10: 0 | AK10: 0 | AL10: 0 | AM10: 0 | AN10: 0 | AO10: 0 | AP10: 0 | AQ10: 0 | AR10: 0 | AS10: 0 | AT10: 0 | AU10: 0 | AV10: 0 | AW10: 0 | AX10: 0 | AY10: 0 | AZ10: 0 | BA10: 0 | BB10: 0 | BC10: 0 | BD10: 0 | BE10: 0 | BF10: 0 | BG10: 0
B11: Capex offset | G11: ='1_KMA'!$I$20 -> 2024-06-30 | H11: ='1_KMA'!$I$19 -> $millions | J11: =-J58 -> 0 | K11: =-K58 -> 0 | L11: 0 | M11: 0 | N11: 0 | O11: 0 | P11: 0 | Q11: 0 | R11: 0 | S11: 0 | T11: 0 | U11: 0 | V11: 0 | W11: 0 | X11: 0 | Y11: 0 | Z11: 0 | AA11: 0 | AB11: 0 | AC11: 0 | AD11: 0 | AE11: 0 | AF11: 0 | AG11: 0 | AH11: 0 | AI11: 0 | AJ11: 0 | AK11: 0 | AL11: 0 | AM11: 0 | AN11: 0 | AO11: 0 | AP11: 0 | AQ11: 0 | AR11: 0 | AS11: 0 | AT11: 0 | AU11: 0 | AV11: 0 | AW11: 0 | AX11: 0 | AY11: 0 | AZ11: 0 | BA11: 0 | BB11: 0 | BC11: 0 | BD11: 0 | BE11: 0 | BF11: 0 | BG11: 0
B12: Opex | G12: ='1_KMA'!$I$20 -> 2024-06-30 | H12: ='1_KMA'!$I$19 -> $millions | J12: =J81 -> 0 | K12: =K81 -> 0 | L12: 0 | M12: 0 | N12: 0 | O12: 0 | P12: 0 | Q12: 0 | R12: 0 | S12: 0 | T12: 0 | U12: 0 | V12: 0 | W12: 0 | X12: 0 | Y12: 0 | Z12: 0 | AA12: 0 | AB12: 0 | AC12: 0 | AD12: 0 | AE12: 0 | AF12: 0 | AG12: 0 | AH12: 0 | AI12: 0 | AJ12: 0 | AK12: 0 | AL12: 0 | AM12: 0 | AN12: 0 | AO12: 0 | AP12: 0 | AQ12: 0 | AR12: 0 | AS12: 0 | AT12: 0 | AU12: 0 | AV12: 0 | AW12: 0 | AX12: 0 | AY12: 0 | AZ12: 0 | BA12: 0 | BB12: 0 | BC12: 0 | BD12: 0 | BE12: 0 | BF12: 0 | BG12: 0
B13: Total | G13: ='1_KMA'!$I$20 -> 2024-06-30 | H13: ='1_KMA'!$I$19 -> $millions | J13: =SUM(J10:J12) -> 0 | K13: =SUM(K10:K12) -> 0 | L13: 0 | M13: 0 | N13: 0 | O13: 0 | P13: 0 | Q13: 0 | R13: 0 | S13: 0 | T13: 0 | U13: 0 | V13: 0 | W13: 0 | X13: 0 | Y13: 0 | Z13: 0 | AA13: 0 | AB13: 0 | AC13: 0 | AD13: 0 | AE13: 0 | AF13: 0 | AG13: 0 | AH13: 0 | AI13: 0 | AJ13: 0 | AK13: 0 | AL13: 0 | AM13: 0 | AN13: 0 | AO13: 0 | AP13: 0 | AQ13: 0 | AR13: 0 | AS13: 0 | AT13: 0 | AU13: 0 | AV13: 0 | AW13: 0 | AX13: 0 | AY13: 0 | AZ13: 0 | BA13: 0 | BB13: 0 | BC13: 0 | BD13: 0 | BE13: 0 | BF13: 0 | BG13: 0
B15: Benefits | G15: $ Basis Reminder | H15: $ Reminder
B16: Value of EUE | G16: ='1_KMA'!$I$20 -> 2024-06-30 | H16: ='1_KMA'!$I$19 -> $millions | J16: =J92 -> 0 | K16: =K92 -> 0 | L16: 0 | M16: 0 | N16: 0 | O16: 0 | P16: 0 | Q16: 0 | R16: 0 | S16: 0 | T16: 0 | U16: 0 | V16: 0 | W16: 0 | X16: 0 | Y16: 0 | Z16: 0 | AA16: 0 | AB16: 0 | AC16: 0 | AD16: 0 | AE16: 0 | AF16: 0 | AG16: 0 | AH16: 0 | AI16: 0 | AJ16: 0 | AK16: 0 | AL16: 0 | AM16: 0 | AN16: 0 | AO16: 0 | AP16: 0 | AQ16: 0 | AR16: 0 | AS16: 0 | AT16: 0 | AU16: 0 | AV16: 0 | AW16: 0 | AX16: 0 | AY16: 0 | AZ16: 0 | BA16: 0 | BB16: 0 | BC16: 0 | BD16: 0 | BE16: 0 | BF16: 0 | BG16: 0
B18: Resilience | G18: ='1_KMA'!$I$20 -> 2024-06-30 | H18: ='1_KMA'!$I$19 -> $millions | J18: =J113 -> 0 | K18: =K113 -> 0 | L18: 0 | M18: 0 | N18: 0 | O18: 0 | P18: 0 | Q18: 0 | R18: 0 | S18: 0 | T18: 0 | U18: 0 | V18: 0 | W18: 0 | X18: 0 | Y18: 0 | Z18: 0 | AA18: 0 | AB18: 0 | AC18: 0 | AD18: 0 | AE18: 0 | AF18: 0 | AG18: 0 | AH18: 0 | AI18: 0 | AJ18: 0 | AK18: 0 | AL18: 0 | AM18: 0 | AN18: 0 | AO18: 0 | AP18: 0 | AQ18: 0 | AR18: 0 | AS18: 0 | AT18: 0 | AU18: 0 | AV18: 0 | AW18: 0 | AX18: 0 | AY18: 0 | AZ18: 0 | BA18: 0 | BB18: 0 | BC18: 0 | BD18: 0 | BE18: 0 | BF18: 0 | BG18: 0
B21: Total | G21: ='1_KMA'!$I$20 -> 2024-06-30 | H21: ='1_KMA'!$I$19 -> $millions | J21: =SUM(J16:J20) -> 0 | K21: =SUM(K16:K20) -> 0 | L21: 0 | M21: 0 | N21: 0 | O21: 0 | P21: 0 | Q21: 0 | R21: 0 | S21: 0 | T21: 0 | U21: 0 | V21: 0 | W21: 0 | X21: 0 | Y21: 0 | Z21: 0 | AA21: 0 | AB21: 0 | AC21: 0 | AD21: 0 | AE21: 0 | AF21: 0 | AG21: 0 | AH21: 0 | AI21: 0 | AJ21: 0 | AK21: 0 | AL21: 0 | AM21: 0 | AN21: 0 | AO21: 0 | AP21: 0 | AQ21: 0 | AR21: 0 | AS21: 0 | AT21: 0 | AU21: 0 | AV21: 0 | AW21: 0 | AX21: 0 | AY21: 0 | AZ21: 0 | BA21: 0 | BB21: 0 | BC21: 0 | BD21: 0 | BE21: 0 | BF21: 0 | BG21: 0
B24: Cost Inputs
B26: Capex Build Up
B28: Name | H28: Unit | J28: Unit Rate
B34: Name | H34: Unit | J34: Quantities
B40: Name | H40: Unit | J40: Costs
J41: =$J$29*J35 -> 0 | K41: =$J$29*K35 -> 0 | L41: =$J$29*L35 -> 0 | M41: 0 | N41: 0 | O41: 0 | P41: 0 | Q41: 0 | R41: 0 | S41: 0 | T41: 0 | U41: 0 | V41: 0 | W41: 0 | X41: 0 | Y41: 0 | Z41: 0 | AA41: 0 | AB41: 0 | AC41: 0 | AD41: 0 | AE41: 0 | AF41: 0 | AG41: 0 | AH41: 0 | AI41: 0 | AJ41: 0 | AK41: 0 | AL41: 0 | AM41: 0 | AN41: 0 | AO41: 0 | AP41: 0 | AQ41: 0 | AR41: 0 | AS41: 0 | AT41: 0 | AU41: 0 | AV41: 0 | AW41: 0 | AX41: 0 | AY41: 0 | AZ41: 0 | BA41: 0 | BB41: 0 | BC41: 0 | BD41: 0 | BE41: 0 | BF41: 0 | BG41: 0
J42: =$J$30*J36 -> 0 | K42: =$J$30*K36 -> 0 | L42: =$J$30*L36 -> 0 | M42: 0 | N42: 0 | O42: 0 | P42: 0 | Q42: 0 | R42: 0 | S42: 0 | T42: 0 | U42: 0 | V42: 0 | W42: 0 | X42: 0 | Y42: 0 | Z42: 0 | AA42: 0 | AB42: 0 | AC42: 0 | AD42: 0 | AE42: 0 | AF42: 0 | AG42: 0 | AH42: 0 | AI42: 0 | AJ42: 0 | AK42: 0 | AL42: 0 | AM42: 0 | AN42: 0 | AO42: 0 | AP42: 0 | AQ42: 0 | AR42: 0 | AS42: 0 | AT42: 0 | AU42: 0 | AV42: 0 | AW42: 0 | AX42: 0 | AY42: 0 | AZ42: 0 | BA42: 0 | BB42: 0 | BC42: 0 | BD42: 0 | BE42: 0 | BF42: 0 | BG42: 0
J43: =$J$31*J37 -> 0 | K43: =$J$31*K37 -> 0 | L43: =$J$31*L37 -> 0 | M43: 0 | N43: 0 | O43: 0 | P43: 0 | Q43: 0 | R43: 0 | S43: 0 | T43: 0 | U43: 0 | V43: 0 | W43: 0 | X43: 0 | Y43: 0 | Z43: 0 | AA43: 0 | AB43: 0 | AC43: 0 | AD43: 0 | AE43: 0 | AF43: 0 | AG43: 0 | AH43: 0 | AI43: 0 | AJ43: 0 | AK43: 0 | AL43: 0 | AM43: 0 | AN43: 0 | AO43: 0 | AP43: 0 | AQ43: 0 | AR43: 0 | AS43: 0 | AT43: 0 | AU43: 0 | AV43: 0 | AW43: 0 | AX43: 0 | AY43: 0 | AZ43: 0 | BA43: 0 | BB43: 0 | BC43: 0 | BD43: 0 | BE43: 0 | BF43: 0 | BG43: 0
J44: =$J$32*J38 -> 0 | K44: =$J$32*K38 -> 0 | L44: =$J$32*L38 -> 0 | M44: 0 | N44: 0 | O44: 0 | P44: 0 | Q44: 0 | R44: 0 | S44: 0 | T44: 0 | U44: 0 | V44: 0 | W44: 0 | X44: 0 | Y44: 0 | Z44: 0 | AA44: 0 | AB44: 0 | AC44: 0 | AD44: 0 | AE44: 0 | AF44: 0 | AG44: 0 | AH44: 0 | AI44: 0 | AJ44: 0 | AK44: 0 | AL44: 0 | AM44: 0 | AN44: 0 | AO44: 0 | AP44: 0 | AQ44: 0 | AR44: 0 | AS44: 0 | AT44: 0 | AU44: 0 | AV44: 0 | AW44: 0 | AX44: 0 | AY44: 0 | AZ44: 0 | BA44: 0 | BB44: 0 | BC44: 0 | BD44: 0 | BE44: 0 | BF44: 0 | BG44: 0
G46: $ Basis Reminder | H46: $ Reminder
B47: Total | G47: ='1_KMA'!$I$20 -> 2024-06-30 | H47: ='1_KMA'!$I$19 -> $millions | J47: =SUM(J41:J44) -> 0 | K47: =SUM(K41:K44) -> 0 | L47: =SUM(L41:L44) -> 0 | M47: =SUM(M41:M44) -> 0 | N47: 0 | O47: 0 | P47: 0 | Q47: 0 | R47: 0 | S47: 0 | T47: 0 | U47: 0 | V47: 0 | W47: 0 | X47: 0 | Y47: 0 | Z47: 0 | AA47: 0 | AB47: 0 | AC47: 0 | AD47: 0 | AE47: 0 | AF47: 0 | AG47: 0 | AH47: 0 | AI47: 0 | AJ47: 0 | AK47: 0 | AL47: 0 | AM47: 0 | AN47: 0 | AO47: 0 | AP47: 0 | AQ47: 0 | AR47: 0 | AS47: 0 | AT47: 0 | AU47: 0 | AV47: 0 | AW47: 0 | AX47: 0 | AY47: 0 | AZ47: 0 | BA47: 0 | BB47: 0 | BC47: 0 | BD47: 0 | BE47: 0 | BF47: 0 | BG47: =SUM(BG41:BG44) -> 0
B49: Capex Offset
B51: Name | H51: Unit | J51: Costs
G57: $ Basis Reminder | H57: $ Reminder
B58: Total | G58: ='1_KMA'!$I$20 -> 2024-06-30 | H58: ='1_KMA'!$I$19 -> $millions | J58: =SUM(J52:J55) -> 0 | K58: =SUM(K52:K55) -> 0 | L58: =SUM(L52:L55) -> 0 | M58: 0 | N58: 0 | O58: 0 | P58: 0 | Q58: 0 | R58: 0 | S58: 0 | T58: 0 | U58: 0 | V58: 0 | W58: 0 | X58: 0 | Y58: 0 | Z58: 0 | AA58: 0 | AB58: 0 | AC58: 0 | AD58: 0 | AE58: 0 | AF58: 0 | AG58: 0 | AH58: 0 | AI58: 0 | AJ58: 0 | AK58: 0 | AL58: 0 | AM58: 0 | AN58: 0 | AO58: 0 | AP58: 0 | AQ58: 0 | AR58: 0 | AS58: 0 | AT58: 0 | AU58: 0 | AV58: 0 | AW58: 0 | AX58: 0 | AY58: 0 | AZ58: 0 | BA58: 0 | BB58: 0 | BC58: 0 | BD58: 0 | BE58: 0 | BF58: 0 | BG58: 0
B60: Opex Build Up
B62: Name | H62: Unit | J62: Value
B68: Name | H68: Unit | J68: Quantities
B74: Name | H74: Unit | J74: Costs
J75: =$J$63*J69 -> 0 | K75: =$J$63*K69 -> 0 | L75: =$J$63*L69 -> 0 | M75: 0 | N75: 0 | O75: 0 | P75: 0 | Q75: 0 | R75: 0 | S75: 0 | T75: 0 | U75: 0 | V75: 0 | W75: 0 | X75: 0 | Y75: 0 | Z75: 0 | AA75: 0 | AB75: 0 | AC75: 0 | AD75: 0 | AE75: 0 | AF75: 0 | AG75: 0 | AH75: 0 | AI75: 0 | AJ75: 0 | AK75: 0 | AL75: 0 | AM75: 0 | AN75: 0 | AO75: 0 | AP75: 0 | AQ75: 0 | AR75: 0 | AS75: 0 | AT75: 0 | AU75: 0 | AV75: 0 | AW75: 0 | AX75: 0 | AY75: 0 | AZ75: 0 | BA75: 0 | BB75: 0 | BC75: 0 | BD75: 0 | BE75: 0 | BF75: 0 | BG75: 0
J76: =$J$64*J70 -> 0 | K76: =$J$64*K70 -> 0 | L76: =$J$64*L70 -> 0 | M76: 0 | N76: 0 | O76: 0 | P76: 0 | Q76: 0 | R76: 0 | S76: 0 | T76: 0 | U76: 0 | V76: 0 | W76: 0 | X76: 0 | Y76: 0 | Z76: 0 | AA76: 0 | AB76: 0 | AC76: 0 | AD76: 0 | AE76: 0 | AF76: 0 | AG76: 0 | AH76: 0 | AI76: 0 | AJ76: 0 | AK76: 0 | AL76: 0 | AM76: 0 | AN76: 0 | AO76: 0 | AP76: 0 | AQ76: 0 | AR76: 0 | AS76: 0 | AT76: 0 | AU76: 0 | AV76: 0 | AW76: 0 | AX76: 0 | AY76: 0 | AZ76: 0 | BA76: 0 | BB76: 0 | BC76: 0 | BD76: 0 | BE76: 0 | BF76: 0 | BG76: 0
J77: =$J$65*J71 -> 0 | K77: =$J$65*K71 -> 0 | L77: =$J$65*L71 -> 0 | M77: 0 | N77: 0 | O77: 0 | P77: 0 | Q77: 0 | R77: 0 | S77: 0 | T77: 0 | U77: 0 | V77: 0 | W77: 0 | X77: 0 | Y77: 0 | Z77: 0 | AA77: 0 | AB77: 0 | AC77: 0 | AD77: 0 | AE77: 0 | AF77: 0 | AG77: 0 | AH77: 0 | AI77: 0 | AJ77: 0 | AK77: 0 | AL77: 0 | AM77: 0 | AN77: 0 | AO77: 0 | AP77: 0 | AQ77: 0 | AR77: 0 | AS77: 0 | AT77: 0 | AU77: 0 | AV77: 0 | AW77: 0 | AX77: 0 | AY77: 0 | AZ77: 0 | BA77: 0 | BB77: 0 | BC77: 0 | BD77: 0 | BE77: 0 | BF77: 0 | BG77: 0
J78: =$J$66*J72 -> 0 | K78: =$J$66*K72 -> 0 | L78: =$J$66*L72 -> 0 | M78: 0 | N78: 0 | O78: 0 | P78: 0 | Q78: 0 | R78: 0 | S78: 0 | T78: 0 | U78: 0 | V78: 0 | W78: 0 | X78: 0 | Y78: 0 | Z78: 0 | AA78: 0 | AB78: 0 | AC78: 0 | AD78: 0 | AE78: 0 | AF78: 0 | AG78: 0 | AH78: 0 | AI78: 0 | AJ78: 0 | AK78: 0 | AL78: 0 | AM78: 0 | AN78: 0 | AO78: 0 | AP78: 0 | AQ78: 0 | AR78: 0 | AS78: 0 | AT78: 0 | AU78: 0 | AV78: 0 | AW78: 0 | AX78: 0 | AY78: 0 | AZ78: 0 | BA78: 0 | BB78: 0 | BC78: 0 | BD78: 0 | BE78: 0 | BF78: 0 | BG78: 0
G80: $ Basis Reminder | H80: $ Reminder
B81: Total | G81: ='1_KMA'!$I$20 -> 2024-06-30 | H81: ='1_KMA'!$I$19 -> $millions | J81: =SUM(J75:J78) -> 0 | K81: =SUM(K75:K78) -> 0 | L81: =SUM(L75:L78) -> 0 | M81: 0 | N81: 0 | O81: 0 | P81: 0 | Q81: 0 | R81: 0 | S81: 0 | T81: 0 | U81: 0 | V81: 0 | W81: 0 | X81: 0 | Y81: 0 | Z81: 0 | AA81: 0 | AB81: 0 | AC81: 0 | AD81: 0 | AE81: 0 | AF81: 0 | AG81: 0 | AH81: 0 | AI81: 0 | AJ81: 0 | AK81: 0 | AL81: 0 | AM81: 0 | AN81: 0 | AO81: 0 | AP81: 0 | AQ81: 0 | AR81: 0 | AS81: 0 | AT81: 0 | AU81: 0 | AV81: 0 | AW81: 0 | AX81: 0 | AY81: 0 | AZ81: 0 | BA81: 0 | BB81: 0 | BC81: 0 | BD81: 0 | BE81: 0 | BF81: 0 | BG81: =SUM(BG75:BG78) -> 0
B83: Benefits Inputs
B85: Value of EUE
H87: Unit
B88: Expected Unserved Energy (EUE)
B89: VCR
G91: $ Basis Reminder | H91: $ Reminder
B92: Value of EUE | G92: ='1_KMA'!$I$20 -> 2024-06-30 | H92: ='1_KMA'!$I$19 -> $millions | J92: =J88*J89/10^6 -> 0 | K92: =K88*K89/10^6 -> 0 | L92: 0 | M92: 0 | N92: 0 | O92: 0 | P92: 0 | Q92: 0 | R92: 0 | S92: 0 | T92: 0 | U92: 0 | V92: 0 | W92: 0 | X92: 0 | Y92: 0 | Z92: 0 | AA92: 0 | AB92: 0 | AC92: 0 | AD92: 0 | AE92: 0 | AF92: 0 | AG92: 0 | AH92: 0 | AI92: 0 | AJ92: 0 | AK92: 0 | AL92: 0 | AM92: 0 | AN92: 0 | AO92: 0 | AP92: 0 | AQ92: 0 | AR92: 0 | AS92: 0 | AT92: 0 | AU92: 0 | AV92: 0 | AW92: 0 | AX92: 0 | AY92: 0 | AZ92: 0 | BA92: 0 | BB92: 0 | BC92: 0 | BD92: 0 | BE92: 0 | BF92: 0 | BG92: 0
B94: Resilience
B96: QCV research | H96: Unit | J96: Unit Rate
B97: Fewer unplanned outages, longer than 12 hours
B98: Faster restoration of power when an outage has occurred
B99: Community hub offering essential services during long duration outages
H102: Unit | J102: Quantities
B103: Fewer unplanned outages, longer than 12 hours
B104: Faster restoration of power when an outage has occurred
B105: Community hub offering essential services
H107: Unit | J107: Costs
B108: Fewer unplanned outages, longer than 12 hours | J108: =J103*'2.1_Op4'!$J$97 -> 0 | K108: =K103*'2.1_Op4'!$J$97 -> 0 | L108: =L103*'2.1_Op4'!$J$97 -> 0 | M108: =M103*'2.1_Op4'!$J$97 -> 0 | N108: =N103*'2.1_Op4'!$J$97 -> 0 | O108: =O103*'2.1_Op4'!$J$97 -> 0 | P108: =P103*'2.1_Op4'!$J$97 -> 0 | Q108: =Q103*'2.1_Op4'!$J$97 -> 0 | R108: =R103*'2.1_Op4'!$J$97 -> 0 | S108: =S103*'2.1_Op4'!$J$97 -> 0 | T108: =T103*'2.1_Op4'!$J$97 -> 0 | U108: =U103*'2.1_Op4'!$J$97 -> 0 | V108: =V103*'2.1_Op4'!$J$97 -> 0 | W108: =W103*'2.1_Op4'!$J$97 -> 0 | X108: =X103*'2.1_Op4'!$J$97 -> 0 | Y108: =Y103*'2.1_Op4'!$J$97 -> 0 | Z108: =Z103*'2.1_Op4'!$J$97 -> 0 | AA108: =AA103*'2.1_Op4'!$J$97 -> 0 | AB108: =AB103*'2.1_Op4'!$J$97 -> 0 | AC108: =AC103*'2.1_Op4'!$J$97 -> 0 | AD108: =AD103*'2.1_Op4'!$J$97 -> 0 | AE108: =AE103*'2.1_Op4'!$J$97 -> 0 | AF108: =AF103*'2.1_Op4'!$J$97 -> 0 | AG108: =AG103*'2.1_Op4'!$J$97 -> 0 | AH108: =AH103*'2.1_Op4'!$J$97 -> 0 | AI108: =AI103*'2.1_Op4'!$J$97 -> 0 | AJ108: =AJ103*'2.1_Op4'!$J$97 -> 0 | AK108: =AK103*'2.1_Op4'!$J$97 -> 0 | AL108: =AL103*'2.1_Op4'!$J$97 -> 0 | AM108: =AM103*'2.1_Op4'!$J$97 -> 0 | AN108: =AN103*'2.1_Op4'!$J$97 -> 0 | AO108: =AO103*'2.1_Op4'!$J$97 -> 0 | AP108: =AP103*'2.1_Op4'!$J$97 -> 0 | AQ108: =AQ103*'2.1_Op4'!$J$97 -> 0 | AR108: =AR103*'2.1_Op4'!$J$97 -> 0 | AS108: =AS103*'2.1_Op4'!$J$97 -> 0 | AT108: =AT103*'2.1_Op4'!$J$97 -> 0 | AU108: =AU103*'2.1_Op4'!$J$97 -> 0 | AV108: =AV103*'2.1_Op4'!$J$97 -> 0 | AW108: =AW103*'2.1_Op4'!$J$97 -> 0 | AX108: =AX103*'2.1_Op4'!$J$97 -> 0 | AY108: =AY103*'2.1_Op4'!$J$97 -> 0 | AZ108: =AZ103*'2.1_Op4'!$J$97 -> 0 | BA108: =BA103*'2.1_Op4'!$J$97 -> 0 | BB108: =BB103*'2.1_Op4'!$J$97 -> 0 | BC108: =BC103*'2.1_Op4'!$J$97 -> 0 | BD108: =BD103*'2.1_Op4'!$J$97 -> 0 | BE108: =BE103*'2.1_Op4'!$J$97 -> 0 | BF108: =BF103*'2.1_Op4'!$J$97 -> 0 | BG108: =BG103*'2.1_Op4'!$J$97 -> 0
B109: Faster restoration of power when an outage has occurred | J109: =J104*'2.1_Op4'!$J$98 -> 0 | K109: =K104*'2.1_Op4'!$J$98 -> 0 | L109: =L104*'2.1_Op4'!$J$98 -> 0 | M109: =M104*'2.1_Op4'!$J$98 -> 0 | N109: =N104*'2.1_Op4'!$J$98 -> 0 | O109: =O104*'2.1_Op4'!$J$98 -> 0 | P109: =P104*'2.1_Op4'!$J$98 -> 0 | Q109: =Q104*'2.1_Op4'!$J$98 -> 0 | R109: =R104*'2.1_Op4'!$J$98 -> 0 | S109: =S104*'2.1_Op4'!$J$98 -> 0 | T109: =T104*'2.1_Op4'!$J$98 -> 0 | U109: =U104*'2.1_Op4'!$J$98 -> 0 | V109: =V104*'2.1_Op4'!$J$98 -> 0 | W109: =W104*'2.1_Op4'!$J$98 -> 0 | X109: =X104*'2.1_Op4'!$J$98 -> 0 | Y109: =Y104*'2.1_Op4'!$J$98 -> 0 | Z109: =Z104*'2.1_Op4'!$J$98 -> 0 | AA109: =AA104*'2.1_Op4'!$J$98 -> 0 | AB109: =AB104*'2.1_Op4'!$J$98 -> 0 | AC109: =AC104*'2.1_Op4'!$J$98 -> 0 | AD109: =AD104*'2.1_Op4'!$J$98 -> 0 | AE109: =AE104*'2.1_Op4'!$J$98 -> 0 | AF109: =AF104*'2.1_Op4'!$J$98 -> 0 | AG109: =AG104*'2.1_Op4'!$J$98 -> 0 | AH109: =AH104*'2.1_Op4'!$J$98 -> 0 | AI109: =AI104*'2.1_Op4'!$J$98 -> 0 | AJ109: =AJ104*'2.1_Op4'!$J$98 -> 0 | AK109: =AK104*'2.1_Op4'!$J$98 -> 0 | AL109: =AL104*'2.1_Op4'!$J$98 -> 0 | AM109: =AM104*'2.1_Op4'!$J$98 -> 0 | AN109: =AN104*'2.1_Op4'!$J$98 -> 0 | AO109: =AO104*'2.1_Op4'!$J$98 -> 0 | AP109: =AP104*'2.1_Op4'!$J$98 -> 0 | AQ109: =AQ104*'2.1_Op4'!$J$98 -> 0 | AR109: =AR104*'2.1_Op4'!$J$98 -> 0 | AS109: =AS104*'2.1_Op4'!$J$98 -> 0 | AT109: =AT104*'2.1_Op4'!$J$98 -> 0 | AU109: =AU104*'2.1_Op4'!$J$98 -> 0 | AV109: =AV104*'2.1_Op4'!$J$98 -> 0 | AW109: =AW104*'2.1_Op4'!$J$98 -> 0 | AX109: =AX104*'2.1_Op4'!$J$98 -> 0 | AY109: =AY104*'2.1_Op4'!$J$98 -> 0 | AZ109: =AZ104*'2.1_Op4'!$J$98 -> 0 | BA109: =BA104*'2.1_Op4'!$J$98 -> 0 | BB109: =BB104*'2.1_Op4'!$J$98 -> 0 | BC109: =BC104*'2.1_Op4'!$J$98 -> 0 | BD109: =BD104*'2.1_Op4'!$J$98 -> 0 | BE109: =BE104*'2.1_Op4'!$J$98 -> 0 | BF109: =BF104*'2.1_Op4'!$J$98 -> 0 | BG109: =BG104*'2.1_Op4'!$J$98 -> 0
B110: Community hub offering essential services | J110: =J105*'2.1_Op4'!$J$99 -> 0 | K110: =K105*'2.1_Op4'!$J$99 -> 0 | L110: =L105*'2.1_Op4'!$J$99 -> 0 | M110: =M105*'2.1_Op4'!$J$99 -> 0 | N110: =N105*'2.1_Op4'!$J$99 -> 0 | O110: =O105*'2.1_Op4'!$J$99 -> 0 | P110: =P105*'2.1_Op4'!$J$99 -> 0 | Q110: =Q105*'2.1_Op4'!$J$99 -> 0 | R110: =R105*'2.1_Op4'!$J$99 -> 0 | S110: =S105*'2.1_Op4'!$J$99 -> 0 | T110: =T105*'2.1_Op4'!$J$99 -> 0 | U110: =U105*'2.1_Op4'!$J$99 -> 0 | V110: =V105*'2.1_Op4'!$J$99 -> 0 | W110: =W105*'2.1_Op4'!$J$99 -> 0 | X110: =X105*'2.1_Op4'!$J$99 -> 0 | Y110: =Y105*'2.1_Op4'!$J$99 -> 0 | Z110: =Z105*'2.1_Op4'!$J$99 -> 0 | AA110: =AA105*'2.1_Op4'!$J$99 -> 0 | AB110: =AB105*'2.1_Op4'!$J$99 -> 0 | AC110: =AC105*'2.1_Op4'!$J$99 -> 0 | AD110: =AD105*'2.1_Op4'!$J$99 -> 0 | AE110: =AE105*'2.1_Op4'!$J$99 -> 0 | AF110: =AF105*'2.1_Op4'!$J$99 -> 0 | AG110: =AG105*'2.1_Op4'!$J$99 -> 0 | AH110: =AH105*'2.1_Op4'!$J$99 -> 0 | AI110: =AI105*'2.1_Op4'!$J$99 -> 0 | AJ110: =AJ105*'2.1_Op4'!$J$99 -> 0 | AK110: =AK105*'2.1_Op4'!$J$99 -> 0 | AL110: =AL105*'2.1_Op4'!$J$99 -> 0 | AM110: =AM105*'2.1_Op4'!$J$99 -> 0 | AN110: =AN105*'2.1_Op4'!$J$99 -> 0 | AO110: =AO105*'2.1_Op4'!$J$99 -> 0 | AP110: =AP105*'2.1_Op4'!$J$99 -> 0 | AQ110: =AQ105*'2.1_Op4'!$J$99 -> 0 | AR110: =AR105*'2.1_Op4'!$J$99 -> 0 | AS110: =AS105*'2.1_Op4'!$J$99 -> 0 | AT110: =AT105*'2.1_Op4'!$J$99 -> 0 | AU110: =AU105*'2.1_Op4'!$J$99 -> 0 | AV110: =AV105*'2.1_Op4'!$J$99 -> 0 | AW110: =AW105*'2.1_Op4'!$J$99 -> 0 | AX110: =AX105*'2.1_Op4'!$J$99 -> 0 | AY110: =AY105*'2.1_Op4'!$J$99 -> 0 | AZ110: =AZ105*'2.1_Op4'!$J$99 -> 0 | BA110: =BA105*'2.1_Op4'!$J$99 -> 0 | BB110: =BB105*'2.1_Op4'!$J$99 -> 0 | BC110: =BC105*'2.1_Op4'!$J$99 -> 0 | BD110: =BD105*'2.1_Op4'!$J$99 -> 0 | BE110: =BE105*'2.1_Op4'!$J$99 -> 0 | BF110: =BF105*'2.1_Op4'!$J$99 -> 0 | BG110: =BG105*'2.1_Op4'!$J$99 -> 0
G112: $ Basis Reminder | H112: $ Reminder
B113: Total | G113: ='1_KMA'!$I$20 -> 2024-06-30 | H113: ='1_KMA'!$I$19 -> $millions | J113: =(J108+J109+J110)/10^6 -> 0 | K113: =(K108+K109+K110)/10^6 -> 0 | L113: 0 | M113: 0 | N113: 0 | O113: 0 | P113: 0 | Q113: 0 | R113: 0 | S113: 0 | T113: 0 | U113: 0 | V113: 0 | W113: 0 | X113: 0 | Y113: 0 | Z113: 0 | AA113: 0 | AB113: 0 | AC113: 0 | AD113: 0 | AE113: 0 | AF113: 0 | AG113: 0 | AH113: 0 | AI113: 0 | AJ113: 0 | AK113: 0 | AL113: 0 | AM113: 0 | AN113: 0 | AO113: 0 | AP113: 0 | AQ113: 0 | AR113: 0 | AS113: 0 | AT113: 0 | AU113: 0 | AV113: 0 | AW113: 0 | AX113: 0 | AY113: 0 | AZ113: 0 | BA113: 0 | BB113: 0 | BC113: 0 | BD113: 0 | BE113: 0 | BF113: 0 | BG113: 0

Sheet 2.1_Op5
B1: General Inputs: Option 5 | I1: Regulatory Period Indicator | J1: ='1_KMA'!J30 -> 1 | K1: ='1_KMA'!K30 -> 1 | L1: ='1_KMA'!L30 -> 1 | M1: ='1_KMA'!M30 -> 1 | N1: ='1_KMA'!N30 -> 1 | O1: ='1_KMA'!O30 -> 0 | P1: ='1_KMA'!P30 -> 0 | Q1: ='1_KMA'!Q30 -> 0 | R1: ='1_KMA'!R30 -> 0 | S1: ='1_KMA'!S30 -> 0 | T1: ='1_KMA'!T30 -> 0 | U1: ='1_KMA'!U30 -> 0 | V1: ='1_KMA'!V30 -> 0 | W1: ='1_KMA'!W30 -> 0 | X1: ='1_KMA'!X30 -> 0 | Y1: ='1_KMA'!Y30 -> 0 | Z1: ='1_KMA'!Z30 -> 0 | AA1: ='1_KMA'!AA30 -> 0 | AB1: ='1_KMA'!AB30 -> 0 | AC1: ='1_KMA'!AC30 -> 0 | AD1: ='1_KMA'!AD30 -> 0 | AE1: ='1_KMA'!AE30 -> 0 | AF1: ='1_KMA'!AF30 -> 0 | AG1: ='1_KMA'!AG30 -> 0 | AH1: ='1_KMA'!AH30 -> 0 | AI1: ='1_KMA'!AI30 -> 0 | AJ1: ='1_KMA'!AJ30 -> 0 | AK1: ='1_KMA'!AK30 -> 0 | AL1: ='1_KMA'!AL30 -> 0 | AM1: ='1_KMA'!AM30 -> 0 | AN1: ='1_KMA'!AN30 -> 0 | AO1: ='1_KMA'!AO30 -> 0 | AP1: ='1_KMA'!AP30 -> 0 | AQ1: ='1_KMA'!AQ30 -> 0 | AR1: ='1_KMA'!AR30 -> 0 | AS1: ='1_KMA'!AS30 -> 0 | AT1: ='1_KMA'!AT30 -> 0 | AU1: ='1_KMA'!AU30 -> 0 | AV1: ='1_KMA'!AV30 -> 0 | AW1: ='1_KMA'!AW30 -> 0 | AX1: ='1_KMA'!AX30 -> 0 | AY1: ='1_KMA'!AY30 -> 0 | AZ1: ='1_KMA'!AZ30 -> 0 | BA1: ='1_KMA'!BA30 -> 0 | BB1: ='1_KMA'!BB30 -> 0 | BC1: ='1_KMA'!BC30 -> 0 | BD1: ='1_KMA'!BD30 -> 0 | BE1: ='1_KMA'!BE30 -> 0 | BF1: ='1_KMA'!BF30 -> 0 | BG1: ='1_KMA'!BG30 -> 0
B2: =Cover!$C$9 -> AusNet Services | I2: Period Start Date | J2: ='1_KMA'!J31 -> 2026-07-01 | K2: ='1_KMA'!K31 -> 2027-07-01 | L2: ='1_KMA'!L31 -> 2028-07-01 | M2: ='1_KMA'!M31 -> 2029-07-01 | N2: ='1_KMA'!N31 -> 2030-07-01 | O2: ='1_KMA'!O31 -> 2031-07-01 | P2: ='1_KMA'!P31 -> 2032-07-01 | Q2: ='1_KMA'!Q31 -> 2033-07-01 | R2: ='1_KMA'!R31 -> 2034-07-01 | S2: ='1_KMA'!S31 -> 2035-07-01 | T2: ='1_KMA'!T31 -> 2036-07-01 | U2: ='1_KMA'!U31 -> 2037-07-01 | V2: ='1_KMA'!V31 -> 2038-07-01 | W2: ='1_KMA'!W31 -> 2039-07-01 | X2: ='1_KMA'!X31 -> 2040-07-01 | Y2: ='1_KMA'!Y31 -> 2041-07-01 | Z2: ='1_KMA'!Z31 -> 2042-07-01 | AA2: ='1_KMA'!AA31 -> 2043-07-01 | AB2: ='1_KMA'!AB31 -> 2044-07-01 | AC2: ='1_KMA'!AC31 -> 2045-07-01 | AD2: ='1_KMA'!AD31 -> 2046-07-01 | AE2: ='1_KMA'!AE31 -> 2047-07-01 | AF2: ='1_KMA'!AF31 -> 2048-07-01 | AG2: ='1_KMA'!AG31 -> 2049-07-01 | AH2: ='1_KMA'!AH31 -> 2050-07-01 | AI2: ='1_KMA'!AI31 -> 2051-07-01 | AJ2: ='1_KMA'!AJ31 -> 2052-07-01 | AK2: ='1_KMA'!AK31 -> 2053-07-01 | AL2: ='1_KMA'!AL31 -> 2054-07-01 | AM2: ='1_KMA'!AM31 -> 2055-07-01 | AN2: ='1_KMA'!AN31 -> 2056-07-01 | AO2: ='1_KMA'!AO31 -> 2057-07-01 | AP2: ='1_KMA'!AP31 -> 2058-07-01 | AQ2: ='1_KMA'!AQ31 -> 2059-07-01 | AR2: ='1_KMA'!AR31 -> 2060-07-01 | AS2: ='1_KMA'!AS31 -> 2061-07-01 | AT2: ='1_KMA'!AT31 -> 2062-07-01 | AU2: ='1_KMA'!AU31 -> 2063-07-01 | AV2: ='1_KMA'!AV31 -> 2064-07-01 | AW2: ='1_KMA'!AW31 -> 2065-07-01 | AX2: ='1_KMA'!AX31 -> 2066-07-01 | AY2: ='1_KMA'!AY31 -> 2067-07-01 | AZ2: ='1_KMA'!AZ31 -> 2068-07-01 | BA2: ='1_KMA'!BA31 -> 2069-07-01 | BB2: ='1_KMA'!BB31 -> 2070-07-01 | BC2: ='1_KMA'!BC31 -> 2071-07-01 | BD2: ='1_KMA'!BD31 -> 2072-07-01 | BE2: ='1_KMA'!BE31 -> 2073-07-01 | BF2: ='1_KMA'!BF31 -> 2074-07-01 | BG2: ='1_KMA'!BG31 -> 2075-07-01
B3: =Cover!$C$10 -> Business Case Evaluation | I3: Period End Date | J3: ='1_KMA'!J32 -> 2027-06-30 | K3: ='1_KMA'!K32 -> 2028-06-30 | L3: ='1_KMA'!L32 -> 2029-06-30 | M3: ='1_KMA'!M32 -> 2030-06-30 | N3: ='1_KMA'!N32 -> 2031-06-30 | O3: ='1_KMA'!O32 -> 2032-06-30 | P3: ='1_KMA'!P32 -> 2033-06-30 | Q3: ='1_KMA'!Q32 -> 2034-06-30 | R3: ='1_KMA'!R32 -> 2035-06-30 | S3: ='1_KMA'!S32 -> 2036-06-30 | T3: ='1_KMA'!T32 -> 2037-06-30 | U3: ='1_KMA'!U32 -> 2038-06-30 | V3: ='1_KMA'!V32 -> 2039-06-30 | W3: ='1_KMA'!W32 -> 2040-06-30 | X3: ='1_KMA'!X32 -> 2041-06-30 | Y3: ='1_KMA'!Y32 -> 2042-06-30 | Z3: ='1_KMA'!Z32 -> 2043-06-30 | AA3: ='1_KMA'!AA32 -> 2044-06-30 | AB3: ='1_KMA'!AB32 -> 2045-06-30 | AC3: ='1_KMA'!AC32 -> 2046-06-30 | AD3: ='1_KMA'!AD32 -> 2047-06-30 | AE3: ='1_KMA'!AE32 -> 2048-06-30 | AF3: ='1_KMA'!AF32 -> 2049-06-30 | AG3: ='1_KMA'!AG32 -> 2050-06-30 | AH3: ='1_KMA'!AH32 -> 2051-06-30 | AI3: ='1_KMA'!AI32 -> 2052-06-30 | AJ3: ='1_KMA'!AJ32 -> 2053-06-30 | AK3: ='1_KMA'!AK32 -> 2054-06-30 | AL3: ='1_KMA'!AL32 -> 2055-06-30 | AM3: ='1_KMA'!AM32 -> 2056-06-30 | AN3: ='1_KMA'!AN32 -> 2057-06-30 | AO3: ='1_KMA'!AO32 -> 2058-06-30 | AP3: ='1_KMA'!AP32 -> 2059-06-30 | AQ3: ='1_KMA'!AQ32 -> 2060-06-30 | AR3: ='1_KMA'!AR32 -> 2061-06-30 | AS3: ='1_KMA'!AS32 -> 2062-06-30 | AT3: ='1_KMA'!AT32 -> 2063-06-30 | AU3: ='1_KMA'!AU32 -> 2064-06-30 | AV3: ='1_KMA'!AV32 -> 2065-06-30 | AW3: ='1_KMA'!AW32 -> 2066-06-30 | AX3: ='1_KMA'!AX32 -> 2067-06-30 | AY3: ='1_KMA'!AY32 -> 2068-06-30 | AZ3: ='1_KMA'!AZ32 -> 2069-06-30 | BA3: ='1_KMA'!BA32 -> 2070-06-30 | BB3: ='1_KMA'!BB32 -> 2071-06-30 | BC3: ='1_KMA'!BC32 -> 2072-06-30 | BD3: ='1_KMA'!BD32 -> 2073-06-30 | BE3: ='1_KMA'!BE32 -> 2074-06-30 | BF3: ='1_KMA'!BF32 -> 2075-06-30 | BG3: ='1_KMA'!BG32 -> 2076-06-30
B4: =Cover!$C$11 -> Backup power for community hubs | I4: Project Year | J4: ='1_KMA'!J33 -> 1 | K4: ='1_KMA'!K33 -> 2 | L4: ='1_KMA'!L33 -> 3 | M4: ='1_KMA'!M33 -> 4 | N4: ='1_KMA'!N33 -> 5 | O4: ='1_KMA'!O33 -> 6 | P4: ='1_KMA'!P33 -> 7 | Q4: ='1_KMA'!Q33 -> 8 | R4: ='1_KMA'!R33 -> 9 | S4: ='1_KMA'!S33 -> 10 | T4: ='1_KMA'!T33 -> 11 | U4: ='1_KMA'!U33 -> 12 | V4: ='1_KMA'!V33 -> 13 | W4: ='1_KMA'!W33 -> 14 | X4: ='1_KMA'!X33 -> 15 | Y4: ='1_KMA'!Y33 -> 16 | Z4: ='1_KMA'!Z33 -> 17 | AA4: ='1_KMA'!AA33 -> 18 | AB4: ='1_KMA'!AB33 -> 19 | AC4: ='1_KMA'!AC33 -> 20 | AD4: ='1_KMA'!AD33 -> 21 | AE4: ='1_KMA'!AE33 -> 22 | AF4: ='1_KMA'!AF33 -> 23 | AG4: ='1_KMA'!AG33 -> 24 | AH4: ='1_KMA'!AH33 -> 25 | AI4: ='1_KMA'!AI33 -> 26 | AJ4: ='1_KMA'!AJ33 -> 27 | AK4: ='1_KMA'!AK33 -> 28 | AL4: ='1_KMA'!AL33 -> 29 | AM4: ='1_KMA'!AM33 -> 30 | AN4: ='1_KMA'!AN33 -> 31 | AO4: ='1_KMA'!AO33 -> 32 | AP4: ='1_KMA'!AP33 -> 33 | AQ4: ='1_KMA'!AQ33 -> 34 | AR4: ='1_KMA'!AR33 -> 35 | AS4: ='1_KMA'!AS33 -> 36 | AT4: ='1_KMA'!AT33 -> 37 | AU4: ='1_KMA'!AU33 -> 38 | AV4: ='1_KMA'!AV33 -> 39 | AW4: ='1_KMA'!AW33 -> 40 | AX4: ='1_KMA'!AX33 -> 41 | AY4: ='1_KMA'!AY33 -> 42 | AZ4: ='1_KMA'!AZ33 -> 43 | BA4: ='1_KMA'!BA33 -> 44 | BB4: ='1_KMA'!BB33 -> 45 | BC4: ='1_KMA'!BC33 -> 46 | BD4: ='1_KMA'!BD33 -> 47 | BE4: ='1_KMA'!BE33 -> 48 | BF4: ='1_KMA'!BF33 -> 49 | BG4: ='1_KMA'!BG33 -> 50
I5: Financial Year | J5: ='1_KMA'!J34 -> 2027 | K5: ='1_KMA'!K34 -> 2028 | L5: ='1_KMA'!L34 -> 2029 | M5: ='1_KMA'!M34 -> 2030 | N5: ='1_KMA'!N34 -> 2031 | O5: ='1_KMA'!O34 -> 2032 | P5: ='1_KMA'!P34 -> 2033 | Q5: ='1_KMA'!Q34 -> 2034 | R5: ='1_KMA'!R34 -> 2035 | S5: ='1_KMA'!S34 -> 2036 | T5: ='1_KMA'!T34 -> 2037 | U5: ='1_KMA'!U34 -> 2038 | V5: ='1_KMA'!V34 -> 2039 | W5: ='1_KMA'!W34 -> 2040 | X5: ='1_KMA'!X34 -> 2041 | Y5: ='1_KMA'!Y34 -> 2042 | Z5: ='1_KMA'!Z34 -> 2043 | AA5: ='1_KMA'!AA34 -> 2044 | AB5: ='1_KMA'!AB34 -> 2045 | AC5: ='1_KMA'!AC34 -> 2046 | AD5: ='1_KMA'!AD34 -> 2047 | AE5: ='1_KMA'!AE34 -> 2048 | AF5: ='1_KMA'!AF34 -> 2049 | AG5: ='1_KMA'!AG34 -> 2050 | AH5: ='1_KMA'!AH34 -> 2051 | AI5: ='1_KMA'!AI34 -> 2052 | AJ5: ='1_KMA'!AJ34 -> 2053 | AK5: ='1_KMA'!AK34 -> 2054 | AL5: ='1_KMA'!AL34 -> 2055 | AM5: ='1_KMA'!AM34 -> 2056 | AN5: ='1_KMA'!AN34 -> 2057 | AO5: ='1_KMA'!AO34 -> 2058 | AP5: ='1_KMA'!AP34 -> 2059 | AQ5: ='1_KMA'!AQ34 -> 2060 | AR5: ='1_KMA'!AR34 -> 2061 | AS5: ='1_KMA'!AS34 -> 2062 | AT5: ='1_KMA'!AT34 -> 2063 | AU5: ='1_KMA'!AU34 -> 2064 | AV5: ='1_KMA'!AV34 -> 2065 | AW5: ='1_KMA'!AW34 -> 2066 | AX5: ='1_KMA'!AX34 -> 2067 | AY5: ='1_KMA'!AY34 -> 2068 | AZ5: ='1_KMA'!AZ34 -> 2069 | BA5: ='1_KMA'!BA34 -> 2070 | BB5: ='1_KMA'!BB34 -> 2071 | BC5: ='1_KMA'!BC34 -> 2072 | BD5: ='1_KMA'!BD34 -> 2073 | BE5: ='1_KMA'!BE34 -> 2074 | BF5: ='1_KMA'!BF34 -> 2075 | BG5: ='1_KMA'!BG34 -> 2076
B7: Summary
B9: Costs | G9: $ Basis Reminder | H9: $ Reminder
B10: Capex | G10: ='1_KMA'!$I$20 -> 2024-06-30 | H10: ='1_KMA'!$I$19 -> $millions | J10: =J47 -> 0 | K10: =K47 -> 0 | L10: 0 | M10: 0 | N10: 0 | O10: 0 | P10: 0 | Q10: 0 | R10: 0 | S10: 0 | T10: 0 | U10: 0 | V10: 0 | W10: 0 | X10: 0 | Y10: 0 | Z10: 0 | AA10: 0 | AB10: 0 | AC10: 0 | AD10: 0 | AE10: 0 | AF10: 0 | AG10: 0 | AH10: 0 | AI10: 0 | AJ10: 0 | AK10: 0 | AL10: 0 | AM10: 0 | AN10: 0 | AO10: 0 | AP10: 0 | AQ10: 0 | AR10: 0 | AS10: 0 | AT10: 0 | AU10: 0 | AV10: 0 | AW10: 0 | AX10: 0 | AY10: 0 | AZ10: 0 | BA10: 0 | BB10: 0 | BC10: 0 | BD10: 0 | BE10: 0 | BF10: 0 | BG10: 0
B11: Capex offset | G11: ='1_KMA'!$I$20 -> 2024-06-30 | H11: ='1_KMA'!$I$19 -> $millions | J11: =-J58 -> 0 | K11: =-K58 -> 0 | L11: 0 | M11: 0 | N11: 0 | O11: 0 | P11: 0 | Q11: 0 | R11: 0 | S11: 0 | T11: 0 | U11: 0 | V11: 0 | W11: 0 | X11: 0 | Y11: 0 | Z11: 0 | AA11: 0 | AB11: 0 | AC11: 0 | AD11: 0 | AE11: 0 | AF11: 0 | AG11: 0 | AH11: 0 | AI11: 0 | AJ11: 0 | AK11: 0 | AL11: 0 | AM11: 0 | AN11: 0 | AO11: 0 | AP11: 0 | AQ11: 0 | AR11: 0 | AS11: 0 | AT11: 0 | AU11: 0 | AV11: 0 | AW11: 0 | AX11: 0 | AY11: 0 | AZ11: 0 | BA11: 0 | BB11: 0 | BC11: 0 | BD11: 0 | BE11: 0 | BF11: 0 | BG11: 0
B12: Opex | G12: ='1_KMA'!$I$20 -> 2024-06-30 | H12: ='1_KMA'!$I$19 -> $millions | J12: =J81 -> 0 | K12: =K81 -> 0 | L12: 0 | M12: 0 | N12: 0 | O12: 0 | P12: 0 | Q12: 0 | R12: 0 | S12: 0 | T12: 0 | U12: 0 | V12: 0 | W12: 0 | X12: 0 | Y12: 0 | Z12: 0 | AA12: 0 | AB12: 0 | AC12: 0 | AD12: 0 | AE12: 0 | AF12: 0 | AG12: 0 | AH12: 0 | AI12: 0 | AJ12: 0 | AK12: 0 | AL12: 0 | AM12: 0 | AN12: 0 | AO12: 0 | AP12: 0 | AQ12: 0 | AR12: 0 | AS12: 0 | AT12: 0 | AU12: 0 | AV12: 0 | AW12: 0 | AX12: 0 | AY12: 0 | AZ12: 0 | BA12: 0 | BB12: 0 | BC12: 0 | BD12: 0 | BE12: 0 | BF12: 0 | BG12: 0
B13: Total | G13: ='1_KMA'!$I$20 -> 2024-06-30 | H13: ='1_KMA'!$I$19 -> $millions | J13: =SUM(J10:J12) -> 0 | K13: =SUM(K10:K12) -> 0 | L13: 0 | M13: 0 | N13: 0 | O13: 0 | P13: 0 | Q13: 0 | R13: 0 | S13: 0 | T13: 0 | U13: 0 | V13: 0 | W13: 0 | X13: 0 | Y13: 0 | Z13: 0 | AA13: 0 | AB13: 0 | AC13: 0 | AD13: 0 | AE13: 0 | AF13: 0 | AG13: 0 | AH13: 0 | AI13: 0 | AJ13: 0 | AK13: 0 | AL13: 0 | AM13: 0 | AN13: 0 | AO13: 0 | AP13: 0 | AQ13: 0 | AR13: 0 | AS13: 0 | AT13: 0 | AU13: 0 | AV13: 0 | AW13: 0 | AX13: 0 | AY13: 0 | AZ13: 0 | BA13: 0 | BB13: 0 | BC13: 0 | BD13: 0 | BE13: 0 | BF13: 0 | BG13: 0
B15: Benefits | G15: $ Basis Reminder | H15: $ Reminder
B16: Value of EUE | G16: ='1_KMA'!$I$20 -> 2024-06-30 | H16: ='1_KMA'!$I$19 -> $millions | J16: =J92 -> 0 | K16: =K92 -> 0 | L16: 0 | M16: 0 | N16: 0 | O16: 0 | P16: 0 | Q16: 0 | R16: 0 | S16: 0 | T16: 0 | U16: 0 | V16: 0 | W16: 0 | X16: 0 | Y16: 0 | Z16: 0 | AA16: 0 | AB16: 0 | AC16: 0 | AD16: 0 | AE16: 0 | AF16: 0 | AG16: 0 | AH16: 0 | AI16: 0 | AJ16: 0 | AK16: 0 | AL16: 0 | AM16: 0 | AN16: 0 | AO16: 0 | AP16: 0 | AQ16: 0 | AR16: 0 | AS16: 0 | AT16: 0 | AU16: 0 | AV16: 0 | AW16: 0 | AX16: 0 | AY16: 0 | AZ16: 0 | BA16: 0 | BB16: 0 | BC16: 0 | BD16: 0 | BE16: 0 | BF16: 0 | BG16: 0
B18: Resilience | G18: ='1_KMA'!$I$20 -> 2024-06-30 | H18: ='1_KMA'!$I$19 -> $millions | J18: =J113 -> 0 | K18: =K113 -> 0 | L18: 0 | M18: 0 | N18: 0 | O18: 0 | P18: 0 | Q18: 0 | R18: 0 | S18: 0 | T18: 0 | U18: 0 | V18: 0 | W18: 0 | X18: 0 | Y18: 0 | Z18: 0 | AA18: 0 | AB18: 0 | AC18: 0 | AD18: 0 | AE18: 0 | AF18: 0 | AG18: 0 | AH18: 0 | AI18: 0 | AJ18: 0 | AK18: 0 | AL18: 0 | AM18: 0 | AN18: 0 | AO18: 0 | AP18: 0 | AQ18: 0 | AR18: 0 | AS18: 0 | AT18: 0 | AU18: 0 | AV18: 0 | AW18: 0 | AX18: 0 | AY18: 0 | AZ18: 0 | BA18: 0 | BB18: 0 | BC18: 0 | BD18: 0 | BE18: 0 | BF18: 0 | BG18: 0
B21: Total | G21: ='1_KMA'!$I$20 -> 2024-06-30 | H21: ='1_KMA'!$I$19 -> $millions | J21: =SUM(J16:J20) -> 0 | K21: =SUM(K16:K20) -> 0 | L21: 0 | M21: 0 | N21: 0 | O21: 0 | P21: 0 | Q21: 0 | R21: 0 | S21: 0 | T21: 0 | U21: 0 | V21: 0 | W21: 0 | X21: 0 | Y21: 0 | Z21: 0 | AA21: 0 | AB21: 0 | AC21: 0 | AD21: 0 | AE21: 0 | AF21: 0 | AG21: 0 | AH21: 0 | AI21: 0 | AJ21: 0 | AK21: 0 | AL21: 0 | AM21: 0 | AN21: 0 | AO21: 0 | AP21: 0 | AQ21: 0 | AR21: 0 | AS21: 0 | AT21: 0 | AU21: 0 | AV21: 0 | AW21: 0 | AX21: 0 | AY21: 0 | AZ21: 0 | BA21: 0 | BB21: 0 | BC21: 0 | BD21: 0 | BE21: 0 | BF21: 0 | BG21: 0
B24: Cost Inputs
B26: Capex Build Up
B28: Name | H28: Unit | J28: Unit Rate
B34: Name | H34: Unit | J34: Quantities
B40: Name | H40: Unit | J40: Costs
J41: =$J$29*J35 -> 0 | K41: =$J$29*K35 -> 0 | L41: =$J$29*L35 -> 0 | M41: 0 | N41: 0 | O41: 0 | P41: 0 | Q41: 0 | R41: 0 | S41: 0 | T41: 0 | U41: 0 | V41: 0 | W41: 0 | X41: 0 | Y41: 0 | Z41: 0 | AA41: 0 | AB41: 0 | AC41: 0 | AD41: 0 | AE41: 0 | AF41: 0 | AG41: 0 | AH41: 0 | AI41: 0 | AJ41: 0 | AK41: 0 | AL41: 0 | AM41: 0 | AN41: 0 | AO41: 0 | AP41: 0 | AQ41: 0 | AR41: 0 | AS41: 0 | AT41: 0 | AU41: 0 | AV41: 0 | AW41: 0 | AX41: 0 | AY41: 0 | AZ41: 0 | BA41: 0 | BB41: 0 | BC41: 0 | BD41: 0 | BE41: 0 | BF41: 0 | BG41: 0
J42: =$J$30*J36 -> 0 | K42: =$J$30*K36 -> 0 | L42: =$J$30*L36 -> 0 | M42: 0 | N42: 0 | O42: 0 | P42: 0 | Q42: 0 | R42: 0 | S42: 0 | T42: 0 | U42: 0 | V42: 0 | W42: 0 | X42: 0 | Y42: 0 | Z42: 0 | AA42: 0 | AB42: 0 | AC42: 0 | AD42: 0 | AE42: 0 | AF42: 0 | AG42: 0 | AH42: 0 | AI42: 0 | AJ42: 0 | AK42: 0 | AL42: 0 | AM42: 0 | AN42: 0 | AO42: 0 | AP42: 0 | AQ42: 0 | AR42: 0 | AS42: 0 | AT42: 0 | AU42: 0 | AV42: 0 | AW42: 0 | AX42: 0 | AY42: 0 | AZ42: 0 | BA42: 0 | BB42: 0 | BC42: 0 | BD42: 0 | BE42: 0 | BF42: 0 | BG42: 0
J43: =$J$31*J37 -> 0 | K43: =$J$31*K37 -> 0 | L43: =$J$31*L37 -> 0 | M43: 0 | N43: 0 | O43: 0 | P43: 0 | Q43: 0 | R43: 0 | S43: 0 | T43: 0 | U43: 0 | V43: 0 | W43: 0 | X43: 0 | Y43: 0 | Z43: 0 | AA43: 0 | AB43: 0 | AC43: 0 | AD43: 0 | AE43: 0 | AF43: 0 | AG43: 0 | AH43: 0 | AI43: 0 | AJ43: 0 | AK43: 0 | AL43: 0 | AM43: 0 | AN43: 0 | AO43: 0 | AP43: 0 | AQ43: 0 | AR43: 0 | AS43: 0 | AT43: 0 | AU43: 0 | AV43: 0 | AW43: 0 | AX43: 0 | AY43: 0 | AZ43: 0 | BA43: 0 | BB43: 0 | BC43: 0 | BD43: 0 | BE43: 0 | BF43: 0 | BG43: 0
J44: =$J$32*J38 -> 0 | K44: =$J$32*K38 -> 0 | L44: =$J$32*L38 -> 0 | M44: 0 | N44: 0 | O44: 0 | P44: 0 | Q44: 0 | R44: 0 | S44: 0 | T44: 0 | U44: 0 | V44: 0 | W44: 0 | X44: 0 | Y44: 0 | Z44: 0 | AA44: 0 | AB44: 0 | AC44: 0 | AD44: 0 | AE44: 0 | AF44: 0 | AG44: 0 | AH44: 0 | AI44: 0 | AJ44: 0 | AK44: 0 | AL44: 0 | AM44: 0 | AN44: 0 | AO44: 0 | AP44: 0 | AQ44: 0 | AR44: 0 | AS44: 0 | AT44: 0 | AU44: 0 | AV44: 0 | AW44: 0 | AX44: 0 | AY44: 0 | AZ44: 0 | BA44: 0 | BB44: 0 | BC44: 0 | BD44: 0 | BE44: 0 | BF44: 0 | BG44: 0
G46: $ Basis Reminder | H46: $ Reminder
B47: Total | G47: ='1_KMA'!$I$20 -> 2024-06-30 | H47: ='1_KMA'!$I$19 -> $millions | J47: =SUM(J41:J44) -> 0 | K47: =SUM(K41:K44) -> 0 | L47: =SUM(L41:L44) -> 0 | M47: 0 | N47: 0 | O47: 0 | P47: 0 | Q47: 0 | R47: 0 | S47: 0 | T47: 0 | U47: 0 | V47: 0 | W47: 0 | X47: 0 | Y47: 0 | Z47: 0 | AA47: 0 | AB47: 0 | AC47: 0 | AD47: 0 | AE47: 0 | AF47: 0 | AG47: 0 | AH47: 0 | AI47: 0 | AJ47: 0 | AK47: 0 | AL47: 0 | AM47: 0 | AN47: 0 | AO47: 0 | AP47: 0 | AQ47: 0 | AR47: 0 | AS47: 0 | AT47: 0 | AU47: 0 | AV47: 0 | AW47: 0 | AX47: 0 | AY47: 0 | AZ47: 0 | BA47: 0 | BB47: 0 | BC47: 0 | BD47: 0 | BE47: 0 | BF47: 0 | BG47: =SUM(BG41:BG44) -> 0
B49: Capex Offset
B51: Name | H51: Unit | J51: Costs
G57: $ Basis Reminder | H57: $ Reminder
B58: Total | G58: ='1_KMA'!$I$20 -> 2024-06-30 | H58: ='1_KMA'!$I$19 -> $millions | J58: =SUM(J52:J55) -> 0 | K58: =SUM(K52:K55) -> 0 | L58: =SUM(L52:L55) -> 0 | M58: 0 | N58: 0 | O58: 0 | P58: 0 | Q58: 0 | R58: 0 | S58: 0 | T58: 0 | U58: 0 | V58: 0 | W58: 0 | X58: 0 | Y58: 0 | Z58: 0 | AA58: 0 | AB58: 0 | AC58: 0 | AD58: 0 | AE58: 0 | AF58: 0 | AG58: 0 | AH58: 0 | AI58: 0 | AJ58: 0 | AK58: 0 | AL58: 0 | AM58: 0 | AN58: 0 | AO58: 0 | AP58: 0 | AQ58: 0 | AR58: 0 | AS58: 0 | AT58: 0 | AU58: 0 | AV58: 0 | AW58: 0 | AX58: 0 | AY58: 0 | AZ58: 0 | BA58: 0 | BB58: 0 | BC58: 0 | BD58: 0 | BE58: 0 | BF58: 0 | BG58: 0
B60: Opex Build Up
B62: Name | H62: Unit | J62: Value
B68: Name | H68: Unit | J68: Quantities
B74: Name | H74: Unit | J74: Costs
J75: =$J$63*J69 -> 0 | K75: =$J$63*K69 -> 0 | L75: =$J$63*L69 -> 0 | M75: 0 | N75: 0 | O75: 0 | P75: 0 | Q75: 0 | R75: 0 | S75: 0 | T75: 0 | U75: 0 | V75: 0 | W75: 0 | X75: 0 | Y75: 0 | Z75: 0 | AA75: 0 | AB75: 0 | AC75: 0 | AD75: 0 | AE75: 0 | AF75: 0 | AG75: 0 | AH75: 0 | AI75: 0 | AJ75: 0 | AK75: 0 | AL75: 0 | AM75: 0 | AN75: 0 | AO75: 0 | AP75: 0 | AQ75: 0 | AR75: 0 | AS75: 0 | AT75: 0 | AU75: 0 | AV75: 0 | AW75: 0 | AX75: 0 | AY75: 0 | AZ75: 0 | BA75: 0 | BB75: 0 | BC75: 0 | BD75: 0 | BE75: 0 | BF75: 0 | BG75: 0
J76: =$J$64*J70 -> 0 | K76: =$J$64*K70 -> 0 | L76: =$J$64*L70 -> 0 | M76: 0 | N76: 0 | O76: 0 | P76: 0 | Q76: 0 | R76: 0 | S76: 0 | T76: 0 | U76: 0 | V76: 0 | W76: 0 | X76: 0 | Y76: 0 | Z76: 0 | AA76: 0 | AB76: 0 | AC76: 0 | AD76: 0 | AE76: 0 | AF76: 0 | AG76: 0 | AH76: 0 | AI76: 0 | AJ76: 0 | AK76: 0 | AL76: 0 | AM76: 0 | AN76: 0 | AO76: 0 | AP76: 0 | AQ76: 0 | AR76: 0 | AS76: 0 | AT76: 0 | AU76: 0 | AV76: 0 | AW76: 0 | AX76: 0 | AY76: 0 | AZ76: 0 | BA76: 0 | BB76: 0 | BC76: 0 | BD76: 0 | BE76: 0 | BF76: 0 | BG76: 0
J77: =$J$65*J71 -> 0 | K77: =$J$65*K71 -> 0 | L77: =$J$65*L71 -> 0 | M77: 0 | N77: 0 | O77: 0 | P77: 0 | Q77: 0 | R77: 0 | S77: 0 | T77: 0 | U77: 0 | V77: 0 | W77: 0 | X77: 0 | Y77: 0 | Z77: 0 | AA77: 0 | AB77: 0 | AC77: 0 | AD77: 0 | AE77: 0 | AF77: 0 | AG77: 0 | AH77: 0 | AI77: 0 | AJ77: 0 | AK77: 0 | AL77: 0 | AM77: 0 | AN77: 0 | AO77: 0 | AP77: 0 | AQ77: 0 | AR77: 0 | AS77: 0 | AT77: 0 | AU77: 0 | AV77: 0 | AW77: 0 | AX77: 0 | AY77: 0 | AZ77: 0 | BA77: 0 | BB77: 0 | BC77: 0 | BD77: 0 | BE77: 0 | BF77: 0 | BG77: 0
J78: =$J$66*J72 -> 0 | K78: =$J$66*K72 -> 0 | L78: =$J$66*L72 -> 0 | M78: 0 | N78: 0 | O78: 0 | P78: 0 | Q78: 0 | R78: 0 | S78: 0 | T78: 0 | U78: 0 | V78: 0 | W78: 0 | X78: 0 | Y78: 0 | Z78: 0 | AA78: 0 | AB78: 0 | AC78: 0 | AD78: 0 | AE78: 0 | AF78: 0 | AG78: 0 | AH78: 0 | AI78: 0 | AJ78: 0 | AK78: 0 | AL78: 0 | AM78: 0 | AN78: 0 | AO78: 0 | AP78: 0 | AQ78: 0 | AR78: 0 | AS78: 0 | AT78: 0 | AU78: 0 | AV78: 0 | AW78: 0 | AX78: 0 | AY78: 0 | AZ78: 0 | BA78: 0 | BB78: 0 | BC78: 0 | BD78: 0 | BE78: 0 | BF78: 0 | BG78: 0
G80: $ Basis Reminder | H80: $ Reminder
B81: Total | G81: ='1_KMA'!$I$20 -> 2024-06-30 | H81: ='1_KMA'!$I$19 -> $millions | J81: =SUM(J75:J78) -> 0 | K81: =SUM(K75:K78) -> 0 | L81: =SUM(L75:L78) -> 0 | M81: 0 | N81: 0 | O81: 0 | P81: 0 | Q81: 0 | R81: 0 | S81: 0 | T81: 0 | U81: 0 | V81: 0 | W81: 0 | X81: 0 | Y81: 0 | Z81: 0 | AA81: 0 | AB81: 0 | AC81: 0 | AD81: 0 | AE81: 0 | AF81: 0 | AG81: 0 | AH81: 0 | AI81: 0 | AJ81: 0 | AK81: 0 | AL81: 0 | AM81: 0 | AN81: 0 | AO81: 0 | AP81: 0 | AQ81: 0 | AR81: 0 | AS81: 0 | AT81: 0 | AU81: 0 | AV81: 0 | AW81: 0 | AX81: 0 | AY81: 0 | AZ81: 0 | BA81: 0 | BB81: 0 | BC81: 0 | BD81: 0 | BE81: 0 | BF81: 0 | BG81: =SUM(BG75:BG78) -> 0
B83: Benefits Inputs
B85: Value of EUE
H87: Unit
B88: Expected Unserved Energy (EUE)
B89: VCR
G91: $ Basis Reminder | H91: $ Reminder
B92: Value of EUE | G92: ='1_KMA'!$I$20 -> 2024-06-30 | H92: ='1_KMA'!$I$19 -> $millions | J92: =J88*J89/10^6 -> 0 | K92: =K88*K89/10^6 -> 0 | L92: 0 | M92: 0 | N92: 0 | O92: 0 | P92: 0 | Q92: 0 | R92: 0 | S92: 0 | T92: 0 | U92: 0 | V92: 0 | W92: 0 | X92: 0 | Y92: 0 | Z92: 0 | AA92: 0 | AB92: 0 | AC92: 0 | AD92: 0 | AE92: 0 | AF92: 0 | AG92: 0 | AH92: 0 | AI92: 0 | AJ92: 0 | AK92: 0 | AL92: 0 | AM92: 0 | AN92: 0 | AO92: 0 | AP92: 0 | AQ92: 0 | AR92: 0 | AS92: 0 | AT92: 0 | AU92: 0 | AV92: 0 | AW92: 0 | AX92: 0 | AY92: 0 | AZ92: 0 | BA92: 0 | BB92: 0 | BC92: 0 | BD92: 0 | BE92: 0 | BF92: 0 | BG92: 0
B94: Resilience
B96: QCV research | H96: Unit | J96: Unit Rate
B97: Fewer unplanned outages, longer than 12 hours
B98: Faster restoration of power when an outage has occurred
B99: Community hub offering essential services during long duration outages
H102: Unit | J102: Quantities
B103: Fewer unplanned outages, longer than 12 hours
B104: Faster restoration of power when an outage has occurred
B105: Community hub offering essential services
H107: Unit | J107: Costs
B108: Fewer unplanned outages, longer than 12 hours | J108: =J103*'2.1_Op5'!$J$97 -> 0 | K108: =K103*'2.1_Op5'!$J$97 -> 0 | L108: =L103*'2.1_Op5'!$J$97 -> 0 | M108: =M103*'2.1_Op5'!$J$97 -> 0 | N108: =N103*'2.1_Op5'!$J$97 -> 0 | O108: =O103*'2.1_Op5'!$J$97 -> 0 | P108: =P103*'2.1_Op5'!$J$97 -> 0 | Q108: =Q103*'2.1_Op5'!$J$97 -> 0 | R108: =R103*'2.1_Op5'!$J$97 -> 0 | S108: =S103*'2.1_Op5'!$J$97 -> 0 | T108: =T103*'2.1_Op5'!$J$97 -> 0 | U108: =U103*'2.1_Op5'!$J$97 -> 0 | V108: =V103*'2.1_Op5'!$J$97 -> 0 | W108: =W103*'2.1_Op5'!$J$97 -> 0 | X108: =X103*'2.1_Op5'!$J$97 -> 0 | Y108: =Y103*'2.1_Op5'!$J$97 -> 0 | Z108: =Z103*'2.1_Op5'!$J$97 -> 0 | AA108: =AA103*'2.1_Op5'!$J$97 -> 0 | AB108: =AB103*'2.1_Op5'!$J$97 -> 0 | AC108: =AC103*'2.1_Op5'!$J$97 -> 0 | AD108: =AD103*'2.1_Op5'!$J$97 -> 0 | AE108: =AE103*'2.1_Op5'!$J$97 -> 0 | AF108: =AF103*'2.1_Op5'!$J$97 -> 0 | AG108: =AG103*'2.1_Op5'!$J$97 -> 0 | AH108: =AH103*'2.1_Op5'!$J$97 -> 0 | AI108: =AI103*'2.1_Op5'!$J$97 -> 0 | AJ108: =AJ103*'2.1_Op5'!$J$97 -> 0 | AK108: =AK103*'2.1_Op5'!$J$97 -> 0 | AL108: =AL103*'2.1_Op5'!$J$97 -> 0 | AM108: =AM103*'2.1_Op5'!$J$97 -> 0 | AN108: =AN103*'2.1_Op5'!$J$97 -> 0 | AO108: =AO103*'2.1_Op5'!$J$97 -> 0 | AP108: =AP103*'2.1_Op5'!$J$97 -> 0 | AQ108: =AQ103*'2.1_Op5'!$J$97 -> 0 | AR108: =AR103*'2.1_Op5'!$J$97 -> 0 | AS108: =AS103*'2.1_Op5'!$J$97 -> 0 | AT108: =AT103*'2.1_Op5'!$J$97 -> 0 | AU108: =AU103*'2.1_Op5'!$J$97 -> 0 | AV108: =AV103*'2.1_Op5'!$J$97 -> 0 | AW108: =AW103*'2.1_Op5'!$J$97 -> 0 | AX108: =AX103*'2.1_Op5'!$J$97 -> 0 | AY108: =AY103*'2.1_Op5'!$J$97 -> 0 | AZ108: =AZ103*'2.1_Op5'!$J$97 -> 0 | BA108: =BA103*'2.1_Op5'!$J$97 -> 0 | BB108: =BB103*'2.1_Op5'!$J$97 -> 0 | BC108: =BC103*'2.1_Op5'!$J$97 -> 0 | BD108: =BD103*'2.1_Op5'!$J$97 -> 0 | BE108: =BE103*'2.1_Op5'!$J$97 -> 0 | BF108: =BF103*'2.1_Op5'!$J$97 -> 0 | BG108: =BG103*'2.1_Op5'!$J$97 -> 0
B109: Faster restoration of power when an outage has occurred | J109: =J104*'2.1_Op5'!$J$98 -> 0 | K109: =K104*'2.1_Op5'!$J$98 -> 0 | L109: =L104*'2.1_Op5'!$J$98 -> 0 | M109: =M104*'2.1_Op5'!$J$98 -> 0 | N109: =N104*'2.1_Op5'!$J$98 -> 0 | O109: =O104*'2.1_Op5'!$J$98 -> 0 | P109: =P104*'2.1_Op5'!$J$98 -> 0 | Q109: =Q104*'2.1_Op5'!$J$98 -> 0 | R109: =R104*'2.1_Op5'!$J$98 -> 0 | S109: =S104*'2.1_Op5'!$J$98 -> 0 | T109: =T104*'2.1_Op5'!$J$98 -> 0 | U109: =U104*'2.1_Op5'!$J$98 -> 0 | V109: =V104*'2.1_Op5'!$J$98 -> 0 | W109: =W104*'2.1_Op5'!$J$98 -> 0 | X109: =X104*'2.1_Op5'!$J$98 -> 0 | Y109: =Y104*'2.1_Op5'!$J$98 -> 0 | Z109: =Z104*'2.1_Op5'!$J$98 -> 0 | AA109: =AA104*'2.1_Op5'!$J$98 -> 0 | AB109: =AB104*'2.1_Op5'!$J$98 -> 0 | AC109: =AC104*'2.1_Op5'!$J$98 -> 0 | AD109: =AD104*'2.1_Op5'!$J$98 -> 0 | AE109: =AE104*'2.1_Op5'!$J$98 -> 0 | AF109: =AF104*'2.1_Op5'!$J$98 -> 0 | AG109: =AG104*'2.1_Op5'!$J$98 -> 0 | AH109: =AH104*'2.1_Op5'!$J$98 -> 0 | AI109: =AI104*'2.1_Op5'!$J$98 -> 0 | AJ109: =AJ104*'2.1_Op5'!$J$98 -> 0 | AK109: =AK104*'2.1_Op5'!$J$98 -> 0 | AL109: =AL104*'2.1_Op5'!$J$98 -> 0 | AM109: =AM104*'2.1_Op5'!$J$98 -> 0 | AN109: =AN104*'2.1_Op5'!$J$98 -> 0 | AO109: =AO104*'2.1_Op5'!$J$98 -> 0 | AP109: =AP104*'2.1_Op5'!$J$98 -> 0 | AQ109: =AQ104*'2.1_Op5'!$J$98 -> 0 | AR109: =AR104*'2.1_Op5'!$J$98 -> 0 | AS109: =AS104*'2.1_Op5'!$J$98 -> 0 | AT109: =AT104*'2.1_Op5'!$J$98 -> 0 | AU109: =AU104*'2.1_Op5'!$J$98 -> 0 | AV109: =AV104*'2.1_Op5'!$J$98 -> 0 | AW109: =AW104*'2.1_Op5'!$J$98 -> 0 | AX109: =AX104*'2.1_Op5'!$J$98 -> 0 | AY109: =AY104*'2.1_Op5'!$J$98 -> 0 | AZ109: =AZ104*'2.1_Op5'!$J$98 -> 0 | BA109: =BA104*'2.1_Op5'!$J$98 -> 0 | BB109: =BB104*'2.1_Op5'!$J$98 -> 0 | BC109: =BC104*'2.1_Op5'!$J$98 -> 0 | BD109: =BD104*'2.1_Op5'!$J$98 -> 0 | BE109: =BE104*'2.1_Op5'!$J$98 -> 0 | BF109: =BF104*'2.1_Op5'!$J$98 -> 0 | BG109: =BG104*'2.1_Op5'!$J$98 -> 0
B110: Community hub offering essential services | J110: =J105*'2.1_Op5'!$J$99 -> 0 | K110: =K105*'2.1_Op5'!$J$99 -> 0 | L110: =L105*'2.1_Op5'!$J$99 -> 0 | M110: =M105*'2.1_Op5'!$J$99 -> 0 | N110: =N105*'2.1_Op5'!$J$99 -> 0 | O110: =O105*'2.1_Op5'!$J$99 -> 0 | P110: =P105*'2.1_Op5'!$J$99 -> 0 | Q110: =Q105*'2.1_Op5'!$J$99 -> 0 | R110: =R105*'2.1_Op5'!$J$99 -> 0 | S110: =S105*'2.1_Op5'!$J$99 -> 0 | T110: =T105*'2.1_Op5'!$J$99 -> 0 | U110: =U105*'2.1_Op5'!$J$99 -> 0 | V110: =V105*'2.1_Op5'!$J$99 -> 0 | W110: =W105*'2.1_Op5'!$J$99 -> 0 | X110: =X105*'2.1_Op5'!$J$99 -> 0 | Y110: =Y105*'2.1_Op5'!$J$99 -> 0 | Z110: =Z105*'2.1_Op5'!$J$99 -> 0 | AA110: =AA105*'2.1_Op5'!$J$99 -> 0 | AB110: =AB105*'2.1_Op5'!$J$99 -> 0 | AC110: =AC105*'2.1_Op5'!$J$99 -> 0 | AD110: =AD105*'2.1_Op5'!$J$99 -> 0 | AE110: =AE105*'2.1_Op5'!$J$99 -> 0 | AF110: =AF105*'2.1_Op5'!$J$99 -> 0 | AG110: =AG105*'2.1_Op5'!$J$99 -> 0 | AH110: =AH105*'2.1_Op5'!$J$99 -> 0 | AI110: =AI105*'2.1_Op5'!$J$99 -> 0 | AJ110: =AJ105*'2.1_Op5'!$J$99 -> 0 | AK110: =AK105*'2.1_Op5'!$J$99 -> 0 | AL110: =AL105*'2.1_Op5'!$J$99 -> 0 | AM110: =AM105*'2.1_Op5'!$J$99 -> 0 | AN110: =AN105*'2.1_Op5'!$J$99 -> 0 | AO110: =AO105*'2.1_Op5'!$J$99 -> 0 | AP110: =AP105*'2.1_Op5'!$J$99 -> 0 | AQ110: =AQ105*'2.1_Op5'!$J$99 -> 0 | AR110: =AR105*'2.1_Op5'!$J$99 -> 0 | AS110: =AS105*'2.1_Op5'!$J$99 -> 0 | AT110: =AT105*'2.1_Op5'!$J$99 -> 0 | AU110: =AU105*'2.1_Op5'!$J$99 -> 0 | AV110: =AV105*'2.1_Op5'!$J$99 -> 0 | AW110: =AW105*'2.1_Op5'!$J$99 -> 0 | AX110: =AX105*'2.1_Op5'!$J$99 -> 0 | AY110: =AY105*'2.1_Op5'!$J$99 -> 0 | AZ110: =AZ105*'2.1_Op5'!$J$99 -> 0 | BA110: =BA105*'2.1_Op5'!$J$99 -> 0 | BB110: =BB105*'2.1_Op5'!$J$99 -> 0 | BC110: =BC105*'2.1_Op5'!$J$99 -> 0 | BD110: =BD105*'2.1_Op5'!$J$99 -> 0 | BE110: =BE105*'2.1_Op5'!$J$99 -> 0 | BF110: =BF105*'2.1_Op5'!$J$99 -> 0 | BG110: =BG105*'2.1_Op5'!$J$99 -> 0
G112: $ Basis Reminder | H112: $ Reminder
B113: Total | G113: ='1_KMA'!$I$20 -> 2024-06-30 | H113: ='1_KMA'!$I$19 -> $millions | J113: =(J108+J109+J110)/10^6 -> 0 | K113: =(K108+K109+K110)/10^6 -> 0 | L113: 0 | M113: 0 | N113: 0 | O113: 0 | P113: 0 | Q113: 0 | R113: 0 | S113: 0 | T113: 0 | U113: 0 | V113: 0 | W113: 0 | X113: 0 | Y113: 0 | Z113: 0 | AA113: 0 | AB113: 0 | AC113: 0 | AD113: 0 | AE113: 0 | AF113: 0 | AG113: 0 | AH113: 0 | AI113: 0 | AJ113: 0 | AK113: 0 | AL113: 0 | AM113: 0 | AN113: 0 | AO113: 0 | AP113: 0 | AQ113: 0 | AR113: 0 | AS113: 0 | AT113: 0 | AU113: 0 | AV113: 0 | AW113: 0 | AX113: 0 | AY113: 0 | AZ113: 0 | BA113: 0 | BB113: 0 | BC113: 0 | BD113: 0 | BE113: 0 | BF113: 0 | BG113: 0

Sheet 3_Output calcs->
C6: Output calculations
C7: Section 3.
C9: =Cover!$C$9 -> AusNet Services
C10: =Cover!$C$10 -> Business Case Evaluation
C11: =Cover!$C$11 -> Backup power for community hubs

Sheet 3_BC
B1: Output Calculations: Base Case | I1: Regulatory Period Indicator | J1: ='1_KMA'!J30 -> 1 | K1: ='1_KMA'!K30 -> 1 | L1: ='1_KMA'!L30 -> 1 | M1: ='1_KMA'!M30 -> 1 | N1: ='1_KMA'!N30 -> 1 | O1: ='1_KMA'!O30 -> 0 | P1: ='1_KMA'!P30 -> 0 | Q1: ='1_KMA'!Q30 -> 0 | R1: ='1_KMA'!R30 -> 0 | S1: ='1_KMA'!S30 -> 0 | T1: ='1_KMA'!T30 -> 0 | U1: ='1_KMA'!U30 -> 0 | V1: ='1_KMA'!V30 -> 0 | W1: ='1_KMA'!W30 -> 0 | X1: ='1_KMA'!X30 -> 0 | Y1: ='1_KMA'!Y30 -> 0 | Z1: ='1_KMA'!Z30 -> 0 | AA1: ='1_KMA'!AA30 -> 0 | AB1: ='1_KMA'!AB30 -> 0 | AC1: ='1_KMA'!AC30 -> 0 | AD1: ='1_KMA'!AD30 -> 0 | AE1: ='1_KMA'!AE30 -> 0 | AF1: ='1_KMA'!AF30 -> 0 | AG1: ='1_KMA'!AG30 -> 0 | AH1: ='1_KMA'!AH30 -> 0 | AI1: ='1_KMA'!AI30 -> 0 | AJ1: ='1_KMA'!AJ30 -> 0 | AK1: ='1_KMA'!AK30 -> 0 | AL1: ='1_KMA'!AL30 -> 0 | AM1: ='1_KMA'!AM30 -> 0 | AN1: ='1_KMA'!AN30 -> 0 | AO1: ='1_KMA'!AO30 -> 0 | AP1: ='1_KMA'!AP30 -> 0 | AQ1: ='1_KMA'!AQ30 -> 0 | AR1: ='1_KMA'!AR30 -> 0 | AS1: ='1_KMA'!AS30 -> 0 | AT1: ='1_KMA'!AT30 -> 0 | AU1: ='1_KMA'!AU30 -> 0 | AV1: ='1_KMA'!AV30 -> 0 | AW1: ='1_KMA'!AW30 -> 0 | AX1: ='1_KMA'!AX30 -> 0 | AY1: ='1_KMA'!AY30 -> 0 | AZ1: ='1_KMA'!AZ30 -> 0 | BA1: ='1_KMA'!BA30 -> 0 | BB1: ='1_KMA'!BB30 -> 0 | BC1: ='1_KMA'!BC30 -> 0 | BD1: ='1_KMA'!BD30 -> 0 | BE1: ='1_KMA'!BE30 -> 0 | BF1: ='1_KMA'!BF30 -> 0 | BG1: ='1_KMA'!BG30 -> 0
B2: =Cover!$C$9 -> AusNet Services | I2: Period Start Date | J2: ='1_KMA'!J31 -> 2026-07-01 | K2: ='1_KMA'!K31 -> 2027-07-01 | L2: ='1_KMA'!L31 -> 2028-07-01 | M2: ='1_KMA'!M31 -> 2029-07-01 | N2: ='1_KMA'!N31 -> 2030-07-01 | O2: ='1_KMA'!O31 -> 2031-07-01 | P2: ='1_KMA'!P31 -> 2032-07-01 | Q2: ='1_KMA'!Q31 -> 2033-07-01 | R2: ='1_KMA'!R31 -> 2034-07-01 | S2: ='1_KMA'!S31 -> 2035-07-01 | T2: ='1_KMA'!T31 -> 2036-07-01 | U2: ='1_KMA'!U31 -> 2037-07-01 | V2: ='1_KMA'!V31 -> 2038-07-01 | W2: ='1_KMA'!W31 -> 2039-07-01 | X2: ='1_KMA'!X31 -> 2040-07-01 | Y2: ='1_KMA'!Y31 -> 2041-07-01 | Z2: ='1_KMA'!Z31 -> 2042-07-01 | AA2: ='1_KMA'!AA31 -> 2043-07-01 | AB2: ='1_KMA'!AB31 -> 2044-07-01 | AC2: ='1_KMA'!AC31 -> 2045-07-01 | AD2: ='1_KMA'!AD31 -> 2046-07-01 | AE2: ='1_KMA'!AE31 -> 2047-07-01 | AF2: ='1_KMA'!AF31 -> 2048-07-01 | AG2: ='1_KMA'!AG31 -> 2049-07-01 | AH2: ='1_KMA'!AH31 -> 2050-07-01 | AI2: ='1_KMA'!AI31 -> 2051-07-01 | AJ2: ='1_KMA'!AJ31 -> 2052-07-01 | AK2: ='1_KMA'!AK31 -> 2053-07-01 | AL2: ='1_KMA'!AL31 -> 2054-07-01 | AM2: ='1_KMA'!AM31 -> 2055-07-01 | AN2: ='1_KMA'!AN31 -> 2056-07-01 | AO2: ='1_KMA'!AO31 -> 2057-07-01 | AP2: ='1_KMA'!AP31 -> 2058-07-01 | AQ2: ='1_KMA'!AQ31 -> 2059-07-01 | AR2: ='1_KMA'!AR31 -> 2060-07-01 | AS2: ='1_KMA'!AS31 -> 2061-07-01 | AT2: ='1_KMA'!AT31 -> 2062-07-01 | AU2: ='1_KMA'!AU31 -> 2063-07-01 | AV2: ='1_KMA'!AV31 -> 2064-07-01 | AW2: ='1_KMA'!AW31 -> 2065-07-01 | AX2: ='1_KMA'!AX31 -> 2066-07-01 | AY2: ='1_KMA'!AY31 -> 2067-07-01 | AZ2: ='1_KMA'!AZ31 -> 2068-07-01 | BA2: ='1_KMA'!BA31 -> 2069-07-01 | BB2: ='1_KMA'!BB31 -> 2070-07-01 | BC2: ='1_KMA'!BC31 -> 2071-07-01 | BD2: ='1_KMA'!BD31 -> 2072-07-01 | BE2: ='1_KMA'!BE31 -> 2073-07-01 | BF2: ='1_KMA'!BF31 -> 2074-07-01 | BG2: ='1_KMA'!BG31 -> 2075-07-01
B3: =Cover!$C$10 -> Business Case Evaluation | I3: Period End Date | J3: ='1_KMA'!J32 -> 2027-06-30 | K3: ='1_KMA'!K32 -> 2028-06-30 | L3: ='1_KMA'!L32 -> 2029-06-30 | M3: ='1_KMA'!M32 -> 2030-06-30 | N3: ='1_KMA'!N32 -> 2031-06-30 | O3: ='1_KMA'!O32 -> 2032-06-30 | P3: ='1_KMA'!P32 -> 2033-06-30 | Q3: ='1_KMA'!Q32 -> 2034-06-30 | R3: ='1_KMA'!R32 -> 2035-06-30 | S3: ='1_KMA'!S32 -> 2036-06-30 | T3: ='1_KMA'!T32 -> 2037-06-30 | U3: ='1_KMA'!U32 -> 2038-06-30 | V3: ='1_KMA'!V32 -> 2039-06-30 | W3: ='1_KMA'!W32 -> 2040-06-30 | X3: ='1_KMA'!X32 -> 2041-06-30 | Y3: ='1_KMA'!Y32 -> 2042-06-30 | Z3: ='1_KMA'!Z32 -> 2043-06-30 | AA3: ='1_KMA'!AA32 -> 2044-06-30 | AB3: ='1_KMA'!AB32 -> 2045-06-30 | AC3: ='1_KMA'!AC32 -> 2046-06-30 | AD3: ='1_KMA'!AD32 -> 2047-06-30 | AE3: ='1_KMA'!AE32 -> 2048-06-30 | AF3: ='1_KMA'!AF32 -> 2049-06-30 | AG3: ='1_KMA'!AG32 -> 2050-06-30 | AH3: ='1_KMA'!AH32 -> 2051-06-30 | AI3: ='1_KMA'!AI32 -> 2052-06-30 | AJ3: ='1_KMA'!AJ32 -> 2053-06-30 | AK3: ='1_KMA'!AK32 -> 2054-06-30 | AL3: ='1_KMA'!AL32 -> 2055-06-30 | AM3: ='1_KMA'!AM32 -> 2056-06-30 | AN3: ='1_KMA'!AN32 -> 2057-06-30 | AO3: ='1_KMA'!AO32 -> 2058-06-30 | AP3: ='1_KMA'!AP32 -> 2059-06-30 | AQ3: ='1_KMA'!AQ32 -> 2060-06-30 | AR3: ='1_KMA'!AR32 -> 2061-06-30 | AS3: ='1_KMA'!AS32 -> 2062-06-30 | AT3: ='1_KMA'!AT32 -> 2063-06-30 | AU3: ='1_KMA'!AU32 -> 2064-06-30 | AV3: ='1_KMA'!AV32 -> 2065-06-30 | AW3: ='1_KMA'!AW32 -> 2066-06-30 | AX3: ='1_KMA'!AX32 -> 2067-06-30 | AY3: ='1_KMA'!AY32 -> 2068-06-30 | AZ3: ='1_KMA'!AZ32 -> 2069-06-30 | BA3: ='1_KMA'!BA32 -> 2070-06-30 | BB3: ='1_KMA'!BB32 -> 2071-06-30 | BC3: ='1_KMA'!BC32 -> 2072-06-30 | BD3: ='1_KMA'!BD32 -> 2073-06-30 | BE3: ='1_KMA'!BE32 -> 2074-06-30 | BF3: ='1_KMA'!BF32 -> 2075-06-30 | BG3: ='1_KMA'!BG32 -> 2076-06-30
B4: =Cover!$C$11 -> Backup power for community hubs | I4: Project Year | J4: ='1_KMA'!J33 -> 1 | K4: ='1_KMA'!K33 -> 2 | L4: ='1_KMA'!L33 -> 3 | M4: ='1_KMA'!M33 -> 4 | N4: ='1_KMA'!N33 -> 5 | O4: ='1_KMA'!O33 -> 6 | P4: ='1_KMA'!P33 -> 7 | Q4: ='1_KMA'!Q33 -> 8 | R4: ='1_KMA'!R33 -> 9 | S4: ='1_KMA'!S33 -> 10 | T4: ='1_KMA'!T33 -> 11 | U4: ='1_KMA'!U33 -> 12 | V4: ='1_KMA'!V33 -> 13 | W4: ='1_KMA'!W33 -> 14 | X4: ='1_KMA'!X33 -> 15 | Y4: ='1_KMA'!Y33 -> 16 | Z4: ='1_KMA'!Z33 -> 17 | AA4: ='1_KMA'!AA33 -> 18 | AB4: ='1_KMA'!AB33 -> 19 | AC4: ='1_KMA'!AC33 -> 20 | AD4: ='1_KMA'!AD33 -> 21 | AE4: ='1_KMA'!AE33 -> 22 | AF4: ='1_KMA'!AF33 -> 23 | AG4: ='1_KMA'!AG33 -> 24 | AH4: ='1_KMA'!AH33 -> 25 | AI4: ='1_KMA'!AI33 -> 26 | AJ4: ='1_KMA'!AJ33 -> 27 | AK4: ='1_KMA'!AK33 -> 28 | AL4: ='1_KMA'!AL33 -> 29 | AM4: ='1_KMA'!AM33 -> 30 | AN4: ='1_KMA'!AN33 -> 31 | AO4: ='1_KMA'!AO33 -> 32 | AP4: ='1_KMA'!AP33 -> 33 | AQ4: ='1_KMA'!AQ33 -> 34 | AR4: ='1_KMA'!AR33 -> 35 | AS4: ='1_KMA'!AS33 -> 36 | AT4: ='1_KMA'!AT33 -> 37 | AU4: ='1_KMA'!AU33 -> 38 | AV4: ='1_KMA'!AV33 -> 39 | AW4: ='1_KMA'!AW33 -> 40 | AX4: ='1_KMA'!AX33 -> 41 | AY4: ='1_KMA'!AY33 -> 42 | AZ4: ='1_KMA'!AZ33 -> 43 | BA4: ='1_KMA'!BA33 -> 44 | BB4: ='1_KMA'!BB33 -> 45 | BC4: ='1_KMA'!BC33 -> 46 | BD4: ='1_KMA'!BD33 -> 47 | BE4: ='1_KMA'!BE33 -> 48 | BF4: ='1_KMA'!BF33 -> 49 | BG4: ='1_KMA'!BG33 -> 50
I5: Financial Year | J5: ='1_KMA'!J34 -> 2027 | K5: ='1_KMA'!K34 -> 2028 | L5: ='1_KMA'!L34 -> 2029 | M5: ='1_KMA'!M34 -> 2030 | N5: ='1_KMA'!N34 -> 2031 | O5: ='1_KMA'!O34 -> 2032 | P5: ='1_KMA'!P34 -> 2033 | Q5: ='1_KMA'!Q34 -> 2034 | R5: ='1_KMA'!R34 -> 2035 | S5: ='1_KMA'!S34 -> 2036 | T5: ='1_KMA'!T34 -> 2037 | U5: ='1_KMA'!U34 -> 2038 | V5: ='1_KMA'!V34 -> 2039 | W5: ='1_KMA'!W34 -> 2040 | X5: ='1_KMA'!X34 -> 2041 | Y5: ='1_KMA'!Y34 -> 2042 | Z5: ='1_KMA'!Z34 -> 2043 | AA5: ='1_KMA'!AA34 -> 2044 | AB5: ='1_KMA'!AB34 -> 2045 | AC5: ='1_KMA'!AC34 -> 2046 | AD5: ='1_KMA'!AD34 -> 2047 | AE5: ='1_KMA'!AE34 -> 2048 | AF5: ='1_KMA'!AF34 -> 2049 | AG5: ='1_KMA'!AG34 -> 2050 | AH5: ='1_KMA'!AH34 -> 2051 | AI5: ='1_KMA'!AI34 -> 2052 | AJ5: ='1_KMA'!AJ34 -> 2053 | AK5: ='1_KMA'!AK34 -> 2054 | AL5: ='1_KMA'!AL34 -> 2055 | AM5: ='1_KMA'!AM34 -> 2056 | AN5: ='1_KMA'!AN34 -> 2057 | AO5: ='1_KMA'!AO34 -> 2058 | AP5: ='1_KMA'!AP34 -> 2059 | AQ5: ='1_KMA'!AQ34 -> 2060 | AR5: ='1_KMA'!AR34 -> 2061 | AS5: ='1_KMA'!AS34 -> 2062 | AT5: ='1_KMA'!AT34 -> 2063 | AU5: ='1_KMA'!AU34 -> 2064 | AV5: ='1_KMA'!AV34 -> 2065 | AW5: ='1_KMA'!AW34 -> 2066 | AX5: ='1_KMA'!AX34 -> 2067 | AY5: ='1_KMA'!AY34 -> 2068 | AZ5: ='1_KMA'!AZ34 -> 2069 | BA5: ='1_KMA'!BA34 -> 2070 | BB5: ='1_KMA'!BB34 -> 2071 | BC5: ='1_KMA'!BC34 -> 2072 | BD5: ='1_KMA'!BD34 -> 2073 | BE5: ='1_KMA'!BE34 -> 2074 | BF5: ='1_KMA'!BF34 -> 2075 | BG5: ='1_KMA'!BG34 -> 2076
I7: Escalation | J7: =IF(ISERROR(VLOOKUP('1_KMA'!$I$20&'1_KMA'!$I$21,CPI_Con_F!$C$63:$H$182,6,FALSE)),0,VLOOKUP('1_KMA'!$I$20&'1_KMA'!$I$21,CPI_Con_F!$C$63:$H$182,6,FALSE)) -> 1 | K7: =IF(ISERROR(VLOOKUP('1_KMA'!$I$20&'1_KMA'!$I$21,CPI_Con_F!$C$63:$H$182,6,FALSE)),0,VLOOKUP('1_KMA'!$I$20&'1_KMA'!$I$21,CPI_Con_F!$C$63:$H$182,6,FALSE)) -> 1 | L7: =IF(ISERROR(VLOOKUP('1_KMA'!$I$20&'1_KMA'!$I$21,CPI_Con_F!$C$63:$H$182,6,FALSE)),0,VLOOKUP('1_KMA'!$I$20&'1_KMA'!$I$21,CPI_Con_F!$C$63:$H$182,6,FALSE)) -> 1 | M7: =IF(ISERROR(VLOOKUP('1_KMA'!$I$20&'1_KMA'!$I$21,CPI_Con_F!$C$63:$H$182,6,FALSE)),0,VLOOKUP('1_KMA'!$I$20&'1_KMA'!$I$21,CPI_Con_F!$C$63:$H$182,6,FALSE)) -> 1 | N7: =IF(ISERROR(VLOOKUP('1_KMA'!$I$20&'1_KMA'!$I$21,CPI_Con_F!$C$63:$H$182,6,FALSE)),0,VLOOKUP('1_KMA'!$I$20&'1_KMA'!$I$21,CPI_Con_F!$C$63:$H$182,6,FALSE)) -> 1 | O7: =IF(ISERROR(VLOOKUP('1_KMA'!$I$20&'1_KMA'!$I$21,CPI_Con_F!$C$63:$H$182,6,FALSE)),0,VLOOKUP('1_KMA'!$I$20&'1_KMA'!$I$21,CPI_Con_F!$C$63:$H$182,6,FALSE)) -> 1 | P7: =IF(ISERROR(VLOOKUP('1_KMA'!$I$20&'1_KMA'!$I$21,CPI_Con_F!$C$63:$H$182,6,FALSE)),0,VLOOKUP('1_KMA'!$I$20&'1_KMA'!$I$21,CPI_Con_F!$C$63:$H$182,6,FALSE)) -> 1 | Q7: =IF(ISERROR(VLOOKUP('1_KMA'!$I$20&'1_KMA'!$I$21,CPI_Con_F!$C$63:$H$182,6,FALSE)),0,VLOOKUP('1_KMA'!$I$20&'1_KMA'!$I$21,CPI_Con_F!$C$63:$H$182,6,FALSE)) -> 1 | R7: =IF(ISERROR(VLOOKUP('1_KMA'!$I$20&'1_KMA'!$I$21,CPI_Con_F!$C$63:$H$182,6,FALSE)),0,VLOOKUP('1_KMA'!$I$20&'1_KMA'!$I$21,CPI_Con_F!$C$63:$H$182,6,FALSE)) -> 1 | S7: =IF(ISERROR(VLOOKUP('1_KMA'!$I$20&'1_KMA'!$I$21,CPI_Con_F!$C$63:$H$182,6,FALSE)),0,VLOOKUP('1_KMA'!$I$20&'1_KMA'!$I$21,CPI_Con_F!$C$63:$H$182,6,FALSE)) -> 1 | T7: =IF(ISERROR(VLOOKUP('1_KMA'!$I$20&'1_KMA'!$I$21,CPI_Con_F!$C$63:$H$182,6,FALSE)),0,VLOOKUP('1_KMA'!$I$20&'1_KMA'!$I$21,CPI_Con_F!$C$63:$H$182,6,FALSE)) -> 1 | U7: =IF(ISERROR(VLOOKUP('1_KMA'!$I$20&'1_KMA'!$I$21,CPI_Con_F!$C$63:$H$182,6,FALSE)),0,VLOOKUP('1_KMA'!$I$20&'1_KMA'!$I$21,CPI_Con_F!$C$63:$H$182,6,FALSE)) -> 1 | V7: =IF(ISERROR(VLOOKUP('1_KMA'!$I$20&'1_KMA'!$I$21,CPI_Con_F!$C$63:$H$182,6,FALSE)),0,VLOOKUP('1_KMA'!$I$20&'1_KMA'!$I$21,CPI_Con_F!$C$63:$H$182,6,FALSE)) -> 1 | W7: =IF(ISERROR(VLOOKUP('1_KMA'!$I$20&'1_KMA'!$I$21,CPI_Con_F!$C$63:$H$182,6,FALSE)),0,VLOOKUP('1_KMA'!$I$20&'1_KMA'!$I$21,CPI_Con_F!$C$63:$H$182,6,FALSE)) -> 1 | X7: =IF(ISERROR(VLOOKUP('1_KMA'!$I$20&'1_KMA'!$I$21,CPI_Con_F!$C$63:$H$182,6,FALSE)),0,VLOOKUP('1_KMA'!$I$20&'1_KMA'!$I$21,CPI_Con_F!$C$63:$H$182,6,FALSE)) -> 1 | Y7: =IF(ISERROR(VLOOKUP('1_KMA'!$I$20&'1_KMA'!$I$21,CPI_Con_F!$C$63:$H$182,6,FALSE)),0,VLOOKUP('1_KMA'!$I$20&'1_KMA'!$I$21,CPI_Con_F!$C$63:$H$182,6,FALSE)) -> 1 | Z7: =IF(ISERROR(VLOOKUP('1_KMA'!$I$20&'1_KMA'!$I$21,CPI_Con_F!$C$63:$H$182,6,FALSE)),0,VLOOKUP('1_KMA'!$I$20&'1_KMA'!$I$21,CPI_Con_F!$C$63:$H$182,6,FALSE)) -> 1 | AA7: =IF(ISERROR(VLOOKUP('1_KMA'!$I$20&'1_KMA'!$I$21,CPI_Con_F!$C$63:$H$182,6,FALSE)),0,VLOOKUP('1_KMA'!$I$20&'1_KMA'!$I$21,CPI_Con_F!$C$63:$H$182,6,FALSE)) -> 1 | AB7: =IF(ISERROR(VLOOKUP('1_KMA'!$I$20&'1_KMA'!$I$21,CPI_Con_F!$C$63:$H$182,6,FALSE)),0,VLOOKUP('1_KMA'!$I$20&'1_KMA'!$I$21,CPI_Con_F!$C$63:$H$182,6,FALSE)) -> 1 | AC7: =IF(ISERROR(VLOOKUP('1_KMA'!$I$20&'1_KMA'!$I$21,CPI_Con_F!$C$63:$H$182,6,FALSE)),0,VLOOKUP('1_KMA'!$I$20&'1_KMA'!$I$21,CPI_Con_F!$C$63:$H$182,6,FALSE)) -> 1 | AD7: =IF(ISERROR(VLOOKUP('1_KMA'!$I$20&'1_KMA'!$I$21,CPI_Con_F!$C$63:$H$182,6,FALSE)),0,VLOOKUP('1_KMA'!$I$20&'1_KMA'!$I$21,CPI_Con_F!$C$63:$H$182,6,FALSE)) -> 1 | AE7: =IF(ISERROR(VLOOKUP('1_KMA'!$I$20&'1_KMA'!$I$21,CPI_Con_F!$C$63:$H$182,6,FALSE)),0,VLOOKUP('1_KMA'!$I$20&'1_KMA'!$I$21,CPI_Con_F!$C$63:$H$182,6,FALSE)) -> 1 | AF7: =IF(ISERROR(VLOOKUP('1_KMA'!$I$20&'1_KMA'!$I$21,CPI_Con_F!$C$63:$H$182,6,FALSE)),0,VLOOKUP('1_KMA'!$I$20&'1_KMA'!$I$21,CPI_Con_F!$C$63:$H$182,6,FALSE)) -> 1 | AG7: =IF(ISERROR(VLOOKUP('1_KMA'!$I$20&'1_KMA'!$I$21,CPI_Con_F!$C$63:$H$182,6,FALSE)),0,VLOOKUP('1_KMA'!$I$20&'1_KMA'!$I$21,CPI_Con_F!$C$63:$H$182,6,FALSE)) -> 1 | AH7: =IF(ISERROR(VLOOKUP('1_KMA'!$I$20&'1_KMA'!$I$21,CPI_Con_F!$C$63:$H$182,6,FALSE)),0,VLOOKUP('1_KMA'!$I$20&'1_KMA'!$I$21,CPI_Con_F!$C$63:$H$182,6,FALSE)) -> 1 | AI7: =IF(ISERROR(VLOOKUP('1_KMA'!$I$20&'1_KMA'!$I$21,CPI_Con_F!$C$63:$H$182,6,FALSE)),0,VLOOKUP('1_KMA'!$I$20&'1_KMA'!$I$21,CPI_Con_F!$C$63:$H$182,6,FALSE)) -> 1 | AJ7: =IF(ISERROR(VLOOKUP('1_KMA'!$I$20&'1_KMA'!$I$21,CPI_Con_F!$C$63:$H$182,6,FALSE)),0,VLOOKUP('1_KMA'!$I$20&'1_KMA'!$I$21,CPI_Con_F!$C$63:$H$182,6,FALSE)) -> 1 | AK7: =IF(ISERROR(VLOOKUP('1_KMA'!$I$20&'1_KMA'!$I$21,CPI_Con_F!$C$63:$H$182,6,FALSE)),0,VLOOKUP('1_KMA'!$I$20&'1_KMA'!$I$21,CPI_Con_F!$C$63:$H$182,6,FALSE)) -> 1 | AL7: =IF(ISERROR(VLOOKUP('1_KMA'!$I$20&'1_KMA'!$I$21,CPI_Con_F!$C$63:$H$182,6,FALSE)),0,VLOOKUP('1_KMA'!$I$20&'1_KMA'!$I$21,CPI_Con_F!$C$63:$H$182,6,FALSE)) -> 1 | AM7: =IF(ISERROR(VLOOKUP('1_KMA'!$I$20&'1_KMA'!$I$21,CPI_Con_F!$C$63:$H$182,6,FALSE)),0,VLOOKUP('1_KMA'!$I$20&'1_KMA'!$I$21,CPI_Con_F!$C$63:$H$182,6,FALSE)) -> 1 | AN7: =IF(ISERROR(VLOOKUP('1_KMA'!$I$20&'1_KMA'!$I$21,CPI_Con_F!$C$63:$H$182,6,FALSE)),0,VLOOKUP('1_KMA'!$I$20&'1_KMA'!$I$21,CPI_Con_F!$C$63:$H$182,6,FALSE)) -> 1 | AO7: =IF(ISERROR(VLOOKUP('1_KMA'!$I$20&'1_KMA'!$I$21,CPI_Con_F!$C$63:$H$182,6,FALSE)),0,VLOOKUP('1_KMA'!$I$20&'1_KMA'!$I$21,CPI_Con_F!$C$63:$H$182,6,FALSE)) -> 1 | AP7: =IF(ISERROR(VLOOKUP('1_KMA'!$I$20&'1_KMA'!$I$21,CPI_Con_F!$C$63:$H$182,6,FALSE)),0,VLOOKUP('1_KMA'!$I$20&'1_KMA'!$I$21,CPI_Con_F!$C$63:$H$182,6,FALSE)) -> 1 | AQ7: =IF(ISERROR(VLOOKUP('1_KMA'!$I$20&'1_KMA'!$I$21,CPI_Con_F!$C$63:$H$182,6,FALSE)),0,VLOOKUP('1_KMA'!$I$20&'1_KMA'!$I$21,CPI_Con_F!$C$63:$H$182,6,FALSE)) -> 1 | AR7: =IF(ISERROR(VLOOKUP('1_KMA'!$I$20&'1_KMA'!$I$21,CPI_Con_F!$C$63:$H$182,6,FALSE)),0,VLOOKUP('1_KMA'!$I$20&'1_KMA'!$I$21,CPI_Con_F!$C$63:$H$182,6,FALSE)) -> 1 | AS7: =IF(ISERROR(VLOOKUP('1_KMA'!$I$20&'1_KMA'!$I$21,CPI_Con_F!$C$63:$H$182,6,FALSE)),0,VLOOKUP('1_KMA'!$I$20&'1_KMA'!$I$21,CPI_Con_F!$C$63:$H$182,6,FALSE)) -> 1 | AT7: =IF(ISERROR(VLOOKUP('1_KMA'!$I$20&'1_KMA'!$I$21,CPI_Con_F!$C$63:$H$182,6,FALSE)),0,VLOOKUP('1_KMA'!$I$20&'1_KMA'!$I$21,CPI_Con_F!$C$63:$H$182,6,FALSE)) -> 1 | AU7: =IF(ISERROR(VLOOKUP('1_KMA'!$I$20&'1_KMA'!$I$21,CPI_Con_F!$C$63:$H$182,6,FALSE)),0,VLOOKUP('1_KMA'!$I$20&'1_KMA'!$I$21,CPI_Con_F!$C$63:$H$182,6,FALSE)) -> 1 | AV7: =IF(ISERROR(VLOOKUP('1_KMA'!$I$20&'1_KMA'!$I$21,CPI_Con_F!$C$63:$H$182,6,FALSE)),0,VLOOKUP('1_KMA'!$I$20&'1_KMA'!$I$21,CPI_Con_F!$C$63:$H$182,6,FALSE)) -> 1 | AW7: =IF(ISERROR(VLOOKUP('1_KMA'!$I$20&'1_KMA'!$I$21,CPI_Con_F!$C$63:$H$182,6,FALSE)),0,VLOOKUP('1_KMA'!$I$20&'1_KMA'!$I$21,CPI_Con_F!$C$63:$H$182,6,FALSE)) -> 1 | AX7: =IF(ISERROR(VLOOKUP('1_KMA'!$I$20&'1_KMA'!$I$21,CPI_Con_F!$C$63:$H$182,6,FALSE)),0,VLOOKUP('1_KMA'!$I$20&'1_KMA'!$I$21,CPI_Con_F!$C$63:$H$182,6,FALSE)) -> 1 | AY7: =IF(ISERROR(VLOOKUP('1_KMA'!$I$20&'1_KMA'!$I$21,CPI_Con_F!$C$63:$H$182,6,FALSE)),0,VLOOKUP('1_KMA'!$I$20&'1_KMA'!$I$21,CPI_Con_F!$C$63:$H$182,6,FALSE)) -> 1 | AZ7: =IF(ISERROR(VLOOKUP('1_KMA'!$I$20&'1_KMA'!$I$21,CPI_Con_F!$C$63:$H$182,6,FALSE)),0,VLOOKUP('1_KMA'!$I$20&'1_KMA'!$I$21,CPI_Con_F!$C$63:$H$182,6,FALSE)) -> 1 | BA7: =IF(ISERROR(VLOOKUP('1_KMA'!$I$20&'1_KMA'!$I$21,CPI_Con_F!$C$63:$H$182,6,FALSE)),0,VLOOKUP('1_KMA'!$I$20&'1_KMA'!$I$21,CPI_Con_F!$C$63:$H$182,6,FALSE)) -> 1 | BB7: =IF(ISERROR(VLOOKUP('1_KMA'!$I$20&'1_KMA'!$I$21,CPI_Con_F!$C$63:$H$182,6,FALSE)),0,VLOOKUP('1_KMA'!$I$20&'1_KMA'!$I$21,CPI_Con_F!$C$63:$H$182,6,FALSE)) -> 1 | BC7: =IF(ISERROR(VLOOKUP('1_KMA'!$I$20&'1_KMA'!$I$21,CPI_Con_F!$C$63:$H$182,6,FALSE)),0,VLOOKUP('1_KMA'!$I$20&'1_KMA'!$I$21,CPI_Con_F!$C$63:$H$182,6,FALSE)) -> 1 | BD7: =IF(ISERROR(VLOOKUP('1_KMA'!$I$20&'1_KMA'!$I$21,CPI_Con_F!$C$63:$H$182,6,FALSE)),0,VLOOKUP('1_KMA'!$I$20&'1_KMA'!$I$21,CPI_Con_F!$C$63:$H$182,6,FALSE)) -> 1 | BE7: =IF(ISERROR(VLOOKUP('1_KMA'!$I$20&'1_KMA'!$I$21,CPI_Con_F!$C$63:$H$182,6,FALSE)),0,VLOOKUP('1_KMA'!$I$20&'1_KMA'!$I$21,CPI_Con_F!$C$63:$H$182,6,FALSE)) -> 1 | BF7: =IF(ISERROR(VLOOKUP('1_KMA'!$I$20&'1_KMA'!$I$21,CPI_Con_F!$C$63:$H$182,6,FALSE)),0,VLOOKUP('1_KMA'!$I$20&'1_KMA'!$I$21,CPI_Con_F!$C$63:$H$182,6,FALSE)) -> 1 | BG7: =IF(ISERROR(VLOOKUP('1_KMA'!$I$20&'1_KMA'!$I$21,CPI_Con_F!$C$63:$H$182,6,FALSE)),0,VLOOKUP('1_KMA'!$I$20&'1_KMA'!$I$21,CPI_Con_F!$C$63:$H$182,6,FALSE)) -> 1
I8: Evaluation Period Indicator | J8: =IF(J4<='1_KMA'!$I$23,1,0) -> 1 | K8: =IF(K4<='1_KMA'!$I$23,1,0) -> 1 | L8: =IF(L4<='1_KMA'!$I$23,1,0) -> 1 | M8: =IF(M4<='1_KMA'!$I$23,1,0) -> 1 | N8: =IF(N4<='1_KMA'!$I$23,1,0) -> 1 | O8: =IF(O4<='1_KMA'!$I$23,1,0) -> 1 | P8: =IF(P4<='1_KMA'!$I$23,1,0) -> 1 | Q8: =IF(Q4<='1_KMA'!$I$23,1,0) -> 1 | R8: =IF(R4<='1_KMA'!$I$23,1,0) -> 1 | S8: =IF(S4<='1_KMA'!$I$23,1,0) -> 1 | T8: =IF(T4<='1_KMA'!$I$23,1,0) -> 1 | U8: =IF(U4<='1_KMA'!$I$23,1,0) -> 1 | V8: =IF(V4<='1_KMA'!$I$23,1,0) -> 1 | W8: =IF(W4<='1_KMA'!$I$23,1,0) -> 1 | X8: =IF(X4<='1_KMA'!$I$23,1,0) -> 1 | Y8: =IF(Y4<='1_KMA'!$I$23,1,0) -> 1 | Z8: =IF(Z4<='1_KMA'!$I$23,1,0) -> 1 | AA8: =IF(AA4<='1_KMA'!$I$23,1,0) -> 1 | AB8: =IF(AB4<='1_KMA'!$I$23,1,0) -> 1 | AC8: =IF(AC4<='1_KMA'!$I$23,1,0) -> 1 | AD8: =IF(AD4<='1_KMA'!$I$23,1,0) -> 1 | AE8: =IF(AE4<='1_KMA'!$I$23,1,0) -> 1 | AF8: =IF(AF4<='1_KMA'!$I$23,1,0) -> 1 | AG8: =IF(AG4<='1_KMA'!$I$23,1,0) -> 1 | AH8: =IF(AH4<='1_KMA'!$I$23,1,0) -> 1 | AI8: =IF(AI4<='1_KMA'!$I$23,1,0) -> 1 | AJ8: =IF(AJ4<='1_KMA'!$I$23,1,0) -> 1 | AK8: =IF(AK4<='1_KMA'!$I$23,1,0) -> 1 | AL8: =IF(AL4<='1_KMA'!$I$23,1,0) -> 1 | AM8: =IF(AM4<='1_KMA'!$I$23,1,0) -> 1 | AN8: =IF(AN4<='1_KMA'!$I$23,1,0) -> 0 | AO8: =IF(AO4<='1_KMA'!$I$23,1,0) -> 0 | AP8: =IF(AP4<='1_KMA'!$I$23,1,0) -> 0 | AQ8: =IF(AQ4<='1_KMA'!$I$23,1,0) -> 0 | AR8: =IF(AR4<='1_KMA'!$I$23,1,0) -> 0 | AS8: =IF(AS4<='1_KMA'!$I$23,1,0) -> 0 | AT8: =IF(AT4<='1_KMA'!$I$23,1,0) -> 0 | AU8: =IF(AU4<='1_KMA'!$I$23,1,0) -> 0 | AV8: =IF(AV4<='1_KMA'!$I$23,1,0) -> 0 | AW8: =IF(AW4<='1_KMA'!$I$23,1,0) -> 0 | AX8: =IF(AX4<='1_KMA'!$I$23,1,0) -> 0 | AY8: =IF(AY4<='1_KMA'!$I$23,1,0) -> 0 | AZ8: =IF(AZ4<='1_KMA'!$I$23,1,0) -> 0 | BA8: =IF(BA4<='1_KMA'!$I$23,1,0) -> 0 | BB8: =IF(BB4<='1_KMA'!$I$23,1,0) -> 0 | BC8: =IF(BC4<='1_KMA'!$I$23,1,0) -> 0 | BD8: =IF(BD4<='1_KMA'!$I$23,1,0) -> 0 | BE8: =IF(BE4<='1_KMA'!$I$23,1,0) -> 0 | BF8: =IF(BF4<='1_KMA'!$I$23,1,0) -> 0 | BG8: =IF(BG4<='1_KMA'!$I$23,1,0) -> 0
B10: Summary for Central Assumptions
B12: WACC | J12: ='1_KMA'!$I$28 -> 0.0556 | K12: ='1_KMA'!$I$28 -> 0.0556 | L12: ='1_KMA'!$I$28 -> 0.0556 | M12: ='1_KMA'!$I$28 -> 0.0556 | N12: ='1_KMA'!$I$28 -> 0.0556 | O12: ='1_KMA'!$I$28 -> 0.0556 | P12: ='1_KMA'!$I$28 -> 0.0556 | Q12: ='1_KMA'!$I$28 -> 0.0556 | R12: ='1_KMA'!$I$28 -> 0.0556 | S12: ='1_KMA'!$I$28 -> 0.0556 | T12: ='1_KMA'!$I$28 -> 0.0556 | U12: ='1_KMA'!$I$28 -> 0.0556 | V12: ='1_KMA'!$I$28 -> 0.0556 | W12: ='1_KMA'!$I$28 -> 0.0556 | X12: ='1_KMA'!$I$28 -> 0.0556 | Y12: ='1_KMA'!$I$28 -> 0.0556 | Z12: ='1_KMA'!$I$28 -> 0.0556 | AA12: ='1_KMA'!$I$28 -> 0.0556 | AB12: ='1_KMA'!$I$28 -> 0.0556 | AC12: ='1_KMA'!$I$28 -> 0.0556 | AD12: ='1_KMA'!$I$28 -> 0.0556 | AE12: ='1_KMA'!$I$28 -> 0.0556 | AF12: ='1_KMA'!$I$28 -> 0.0556 | AG12: ='1_KMA'!$I$28 -> 0.0556 | AH12: ='1_KMA'!$I$28 -> 0.0556 | AI12: ='1_KMA'!$I$28 -> 0.0556 | AJ12: ='1_KMA'!$I$28 -> 0.0556 | AK12: ='1_KMA'!$I$28 -> 0.0556 | AL12: ='1_KMA'!$I$28 -> 0.0556 | AM12: ='1_KMA'!$I$28 -> 0.0556 | AN12: ='1_KMA'!$I$28 -> 0.0556 | AO12: ='1_KMA'!$I$28 -> 0.0556 | AP12: ='1_KMA'!$I$28 -> 0.0556 | AQ12: ='1_KMA'!$I$28 -> 0.0556 | AR12: ='1_KMA'!$I$28 -> 0.0556 | AS12: ='1_KMA'!$I$28 -> 0.0556 | AT12: ='1_KMA'!$I$28 -> 0.0556 | AU12: ='1_KMA'!$I$28 -> 0.0556 | AV12: ='1_KMA'!$I$28 -> 0.0556 | AW12: ='1_KMA'!$I$28 -> 0.0556 | AX12: ='1_KMA'!$I$28 -> 0.0556 | AY12: ='1_KMA'!$I$28 -> 0.0556 | AZ12: ='1_KMA'!$I$28 -> 0.0556 | BA12: ='1_KMA'!$I$28 -> 0.0556 | BB12: ='1_KMA'!$I$28 -> 0.0556 | BC12: ='1_KMA'!$I$28 -> 0.0556 | BD12: ='1_KMA'!$I$28 -> 0.0556 | BE12: ='1_KMA'!$I$28 -> 0.0556 | BF12: ='1_KMA'!$I$28 -> 0.0556 | BG12: ='1_KMA'!$I$28 -> 0.0556
B13: Deflator (interim calculation) | J13: 1 | K13: =J13*(1+K12) -> 1.0556 | L13: =K13*(1+L12) -> 1.11429136 | M13: =L13*(1+M12) -> 1.17624596 | N13: 1.241645235 | O13: 1.31068071 | P13: 1.383554558 | Q13: 1.460480191 | R13: 1.54168289 | S13: 1.627400458 | T13: 1.717883924 | U13: 1.81339827 | V13: 1.914223214 | W13: 2.020654024 | X13: 2.133002388 | Y13: 2.251597321 | Z13: 2.376786132 | AA13: 2.508935441 | AB13: 2.648432251 | AC13: 2.795685084 | AD13: 2.951125175 | AE13: 3.115207735 | AF13: 3.288413285 | AG13: 3.471249064 | AH13: 3.664250512 | AI13: 3.86798284 | AJ13: 4.083042686 | AK13: 4.310059859 | AL13: 4.549699187 | AM13: 4.802662462 | AN13: 5.069690495 | AO13: 5.351565287 | AP13: 5.649112317 | AQ13: 5.963202961 | AR13: 6.294757046 | AS13: 6.644745538 | AT13: 7.01419339 | AU13: 7.404182542 | AV13: 7.815855092 | AW13: 8.250416635 | AX13: 8.709139799 | AY13: 9.193367972 | AZ13: 9.704519232 | BA13: 10.2440905 | BB13: 10.81366193 | BC13: 11.41490154 | BD13: 12.04957006 | BE13: 12.71952616 | BF13: 13.42673181 | BG13: 14.1732581
B14: Deflator | J14: =1/J13 -> 1 | K14: =1/K13 -> 0.9473285335 | L14: =1/L13 -> 0.8974313505 | M14: 0.8501623252 | N14: =1/N13 -> 0.8053830288 | O14: 0.7629623236 | P14: 0.7227759791 | Q14: 0.6847063084 | R14: 0.648641823 | S14: 0.614476907 | T14: 0.5821115072 | U14: 0.5514508405 | V14: 0.522405116 | W14: 0.4948892725 | X14: 0.4688227288 | Y14: 0.4441291481 | Z14: 0.4207362146 | AA14: 0.3985754212 | AB14: 0.3775818692 | AC14: 0.3576940785 | AD14: 0.3388538068 | AE14: 0.3210058799 | AF14: 0.3040980295 | AG14: 0.2880807403 | AH14: 0.2729071052 | AI14: 0.2585326878 | AJ14: 0.244915392 | AK14: 0.2320153392 | AL14: 0.219794751 | AM14: 0.2082178391 | AN14: 0.1972507002 | AO14: 0.1868612166 | AP14: 0.1770189623 | AQ14: 0.1676951139 | AR14: 0.1588623664 | AS14: 0.1504948526 | AT14: 0.142568068 | AU14: 0.1350587988 | AV14: 0.1279450538 | AW14: 0.1212060002 | AX14: 0.1148219024 | AY14: 0.1087740644 | AZ14: 0.1030447749 | BA14: 0.09761725552 | BB14: 0.09247561152 | BC14: 0.08760478545 | BD14: 0.08299051293 | BE14: 0.07861928091 | BF14: 0.07447828809 | BG14: 0.07055540744
B16: Totex sought for EDPR FY27-31 (undiscounted) | G16: ="("&TEXT('1_KMA'!$I$21,"dd-mmm-yy")&" Dollars)" -> (30-Jun-24 Dollars)
C17: Net Capital Expenditure | G17: =SUM(J17:BG17) -> 0 | J17: =-J33*J$1*J$8 -> 0 | K17: =-K33*K$1*K$8 -> 0 | L17: 0 | M17: 0 | N17: 0 | O17: 0 | P17: 0 | Q17: 0 | R17: 0 | S17: 0 | T17: 0 | U17: 0 | V17: 0 | W17: 0 | X17: 0 | Y17: 0 | Z17: 0 | AA17: 0 | AB17: 0 | AC17: 0 | AD17: 0 | AE17: 0 | AF17: 0 | AG17: 0 | AH17: 0 | AI17: 0 | AJ17: 0 | AK17: 0 | AL17: 0 | AM17: 0 | AN17: 0 | AO17: 0 | AP17: 0 | AQ17: 0 | AR17: 0 | AS17: 0 | AT17: 0 | AU17: 0 | AV17: 0 | AW17: 0 | AX17: 0 | AY17: 0 | AZ17: 0 | BA17: 0 | BB17: 0 | BC17: 0 | BD17: 0 | BE17: 0 | BF17: 0 | BG17: 0
C18: Operating Expenditure | G18: =SUM(J18:BG18) -> 0 | J18: =-J34*J$1*J$8 -> 0 | K18: =-K34*K$1*K$8 -> 0 | L18: 0 | M18: 0 | N18: 0 | O18: 0 | P18: 0 | Q18: 0 | R18: 0 | S18: 0 | T18: 0 | U18: 0 | V18: 0 | W18: 0 | X18: 0 | Y18: 0 | Z18: 0 | AA18: 0 | AB18: 0 | AC18: 0 | AD18: 0 | AE18: 0 | AF18: 0 | AG18: 0 | AH18: 0 | AI18: 0 | AJ18: 0 | AK18: 0 | AL18: 0 | AM18: 0 | AN18: 0 | AO18: 0 | AP18: 0 | AQ18: 0 | AR18: 0 | AS18: 0 | AT18: 0 | AU18: 0 | AV18: 0 | AW18: 0 | AX18: 0 | AY18: 0 | AZ18: 0 | BA18: 0 | BB18: 0 | BC18: 0 | BD18: 0 | BE18: 0 | BF18: 0 | BG18: 0
C19: Totex | G19: =SUM(G17:G18) -> 0 | J19: =SUM(J17:J18) -> 0 | K19: =SUM(K17:K18) -> 0 | L19: =SUM(L17:L18) -> 0 | M19: 0 | N19: 0 | O19: 0 | P19: 0 | Q19: 0 | R19: 0 | S19: 0 | T19: 0 | U19: 0 | V19: 0 | W19: 0 | X19: 0 | Y19: 0 | Z19: 0 | AA19: 0 | AB19: 0 | AC19: 0 | AD19: 0 | AE19: 0 | AF19: 0 | AG19: 0 | AH19: 0 | AI19: 0 | AJ19: 0 | AK19: 0 | AL19: 0 | AM19: 0 | AN19: 0 | AO19: 0 | AP19: 0 | AQ19: 0 | AR19: 0 | AS19: 0 | AT19: 0 | AU19: 0 | AV19: 0 | AW19: 0 | AX19: 0 | AY19: 0 | AZ19: 0 | BA19: 0 | BB19: 0 | BC19: 0 | BD19: 0 | BE19: 0 | BF19: 0 | BG19: 0
B21: PV over full assessment period to establish the preferred option (discounted) | G21: ="("&TEXT('1_KMA'!$I$21,"dd-mmm-yy")&" Dollars)" -> (30-Jun-24 Dollars)
C22: Net Capital Expenditure | G22: =SUM(J22:BG22) -> 0 | J22: =-(J33)*J$14*J$8 -> 0 | K22: =-(K33)*K$14*K$8 -> 0 | L22: 0 | M22: 0 | N22: 0 | O22: 0 | P22: 0 | Q22: 0 | R22: 0 | S22: 0 | T22: 0 | U22: 0 | V22: 0 | W22: 0 | X22: 0 | Y22: 0 | Z22: 0 | AA22: 0 | AB22: 0 | AC22: 0 | AD22: 0 | AE22: 0 | AF22: 0 | AG22: 0 | AH22: 0 | AI22: 0 | AJ22: 0 | AK22: 0 | AL22: 0 | AM22: 0 | AN22: 0 | AO22: 0 | AP22: 0 | AQ22: 0 | AR22: 0 | AS22: 0 | AT22: 0 | AU22: 0 | AV22: 0 | AW22: 0 | AX22: 0 | AY22: 0 | AZ22: 0 | BA22: 0 | BB22: 0 | BC22: 0 | BD22: 0 | BE22: 0 | BF22: 0 | BG22: 0
C23: Operating Expenditure | G23: =SUM(J23:BG23) -> 0 | J23: =-(J34)*J$14*J$8 -> 0 | K23: =-(K34)*K$14*K$8 -> 0 | L23: 0 | M23: 0 | N23: 0 | O23: 0 | P23: 0 | Q23: 0 | R23: 0 | S23: 0 | T23: 0 | U23: 0 | V23: 0 | W23: 0 | X23: 0 | Y23: 0 | Z23: 0 | AA23: 0 | AB23: 0 | AC23: 0 | AD23: 0 | AE23: 0 | AF23: 0 | AG23: 0 | AH23: 0 | AI23: =-(AI34)*AI$14*AI$8 -> 0 | AJ23: 0 | AK23: 0 | AL23: 0 | AM23: 0 | AN23: 0 | AO23: 0 | AP23: 0 | AQ23: 0 | AR23: 0 | AS23: 0 | AT23: 0 | AU23: 0 | AV23: 0 | AW23: 0 | AX23: 0 | AY23: 0 | AZ23: 0 | BA23: 0 | BB23: 0 | BC23: 0 | BD23: 0 | BE23: 0 | BF23: 0 | BG23: 0
C24: Net Benefits | G24: =SUM(J24:BG24) -> 0 | J24: =(J45)*J$14*J$8 -> 0 | K24: =(K45)*K$14*K$8 -> 0 | L24: 0 | M24: 0 | N24: 0 | O24: 0 | P24: 0 | Q24: 0 | R24: 0 | S24: 0 | T24: 0 | U24: 0 | V24: 0 | W24: 0 | X24: 0 | Y24: 0 | Z24: 0 | AA24: 0 | AB24: 0 | AC24: 0 | AD24: 0 | AE24: 0 | AF24: 0 | AG24: 0 | AH24: 0 | AI24: =(AI45)*AI$14*AI$8 -> 0 | AJ24: 0 | AK24: 0 | AL24: 0 | AM24: 0 | AN24: 0 | AO24: 0 | AP24: 0 | AQ24: 0 | AR24: 0 | AS24: 0 | AT24: 0 | AU24: 0 | AV24: 0 | AW24: 0 | AX24: 0 | AY24: 0 | AZ24: 0 | BA24: 0 | BB24: 0 | BC24: 0 | BD24: 0 | BE24: 0 | BF24: 0 | BG24: 0
B25: Total Present Value | G25: =SUM(J25:BG25) -> 0 | J25: =SUM(J22:J24) -> 0 | K25: =SUM(K22:K24) -> 0 | L25: 0 | M25: 0 | N25: 0 | O25: 0 | P25: 0 | Q25: 0 | R25: 0 | S25: 0 | T25: 0 | U25: 0 | V25: 0 | W25: 0 | X25: 0 | Y25: 0 | Z25: 0 | AA25: 0 | AB25: 0 | AC25: 0 | AD25: 0 | AE25: 0 | AF25: 0 | AG25: 0 | AH25: 0 | AI25: 0 | AJ25: 0 | AK25: 0 | AL25: 0 | AM25: 0 | AN25: 0 | AO25: 0 | AP25: 0 | AQ25: 0 | AR25: 0 | AS25: 0 | AT25: 0 | AU25: 0 | AV25: 0 | AW25: 0 | AX25: 0 | AY25: 0 | AZ25: 0 | BA25: 0 | BB25: 0 | BC25: 0 | BD25: 0 | BE25: 0 | BF25: 0 | BG25: 0
B27: Details for Central Assumptions
B28: Undiscounted | D28: ="("&TEXT('1_KMA'!$I$21,"dd-mmm-yy")&" dollars)" -> (30-Jun-24 dollars)
B30: Costs
G32: $ Basis Reminder | H32: $ Reminder
B33: Net Capex | G33: ='1_KMA'!$I$21 -> 2024-06-30 | H33: ='1_KMA'!$I$19 -> $millions | J33: =J52*J$7 -> 0 | K33: 0 | L33: 0 | M33: 0 | N33: 0 | O33: 0 | P33: 0 | Q33: 0 | R33: 0 | S33: 0 | T33: 0 | U33: 0 | V33: 0 | W33: 0 | X33: 0 | Y33: 0 | Z33: 0 | AA33: 0 | AB33: 0 | AC33: 0 | AD33: 0 | AE33: 0 | AF33: 0 | AG33: 0 | AH33: 0 | AI33: 0 | AJ33: 0 | AK33: 0 | AL33: 0 | AM33: 0 | AN33: 0 | AO33: 0 | AP33: =AP52*AP$7 -> 0 | AQ33: 0 | AR33: 0 | AS33: 0 | AT33: 0 | AU33: 0 | AV33: 0 | AW33: 0 | AX33: 0 | AY33: 0 | AZ33: 0 | BA33: 0 | BB33: 0 | BC33: 0 | BD33: 0 | BE33: 0 | BF33: 0 | BG33: 0
B34: Opex | G34: ='1_KMA'!$I$21 -> 2024-06-30 | H34: ='1_KMA'!$I$19 -> $millions | J34: =J53*J$7 -> 0 | K34: 0 | L34: 0 | M34: 0 | N34: 0 | O34: 0 | P34: 0 | Q34: 0 | R34: 0 | S34: 0 | T34: 0 | U34: 0 | V34: 0 | W34: 0 | X34: 0 | Y34: 0 | Z34: 0 | AA34: 0 | AB34: 0 | AC34: 0 | AD34: 0 | AE34: 0 | AF34: 0 | AG34: 0 | AH34: 0 | AI34: 0 | AJ34: 0 | AK34: 0 | AL34: 0 | AM34: 0 | AN34: 0 | AO34: 0 | AP34: =AP53*AP$7 -> 0 | AQ34: 0 | AR34: 0 | AS34: 0 | AT34: 0 | AU34: 0 | AV34: 0 | AW34: 0 | AX34: 0 | AY34: 0 | AZ34: 0 | BA34: 0 | BB34: 0 | BC34: 0 | BD34: 0 | BE34: 0 | BF34: 0 | BG34: 0
B35: Total | G35: ='1_KMA'!$I$21 -> 2024-06-30 | H35: ='1_KMA'!$I$19 -> $millions | J35: =J54*J$7 -> 0 | K35: 0 | L35: 0 | M35: 0 | N35: 0 | O35: 0 | P35: 0 | Q35: 0 | R35: 0 | S35: 0 | T35: 0 | U35: 0 | V35: 0 | W35: 0 | X35: 0 | Y35: 0 | Z35: 0 | AA35: 0 | AB35: 0 | AC35: 0 | AD35: 0 | AE35: 0 | AF35: 0 | AG35: 0 | AH35: 0 | AI35: 0 | AJ35: 0 | AK35: 0 | AL35: 0 | AM35: 0 | AN35: 0 | AO35: 0 | AP35: =AP54*AP$7 -> 0 | AQ35: 0 | AR35: 0 | AS35: 0 | AT35: 0 | AU35: 0 | AV35: 0 | AW35: 0 | AX35: 0 | AY35: 0 | AZ35: 0 | BA35: 0 | BB35: 0 | BC35: 0 | BD35: 0 | BE35: 0 | BF35: 0 | BG35: 0
B37: Benefits
G39: $ Basis Reminder | H39: $ Reminder
B40: =B59 -> Value of EUE | G40: ='1_KMA'!$I$21 -> 2024-06-30 | H40: ='1_KMA'!$I$19 -> $millions | J40: =J59*J$7 -> 0 | K40: 0 | L40: 0 | M40: 0 | N40: 0 | O40: 0 | P40: 0 | Q40: 0 | R40: 0 | S40: 0 | T40: 0 | U40: 0 | V40: 0 | W40: 0 | X40: 0 | Y40: 0 | Z40: 0 | AA40: 0 | AB40: 0 | AC40: 0 | AD40: 0 | AE40: 0 | AF40: 0 | AG40: 0 | AH40: 0 | AI40: 0 | AJ40: 0 | AK40: 0 | AL40: 0 | AM40: 0 | AN40: 0 | AO40: 0 | AP40: =AP59*AP$7 -> 0 | AQ40: 0 | AR40: 0 | AS40: 0 | AT40: 0 | AU40: 0 | AV40: 0 | AW40: 0 | AX40: 0 | AY40: 0 | AZ40: 0 | BA40: 0 | BB40: 0 | BC40: 0 | BD40: 0 | BE40: 0 | BF40: 0 | BG40: 0
B41: =B60 -> 0 | G41: ='1_KMA'!$I$21 -> 2024-06-30 | H41: ='1_KMA'!$I$19 -> $millions | J41: =J60*J$7 -> 0 | K41: 0 | L41: 0 | M41: 0 | N41: 0 | O41: 0 | P41: 0 | Q41: 0 | R41: 0 | S41: 0 | T41: 0 | U41: 0 | V41: 0 | W41: 0 | X41: 0 | Y41: 0 | Z41: 0 | AA41: 0 | AB41: 0 | AC41: 0 | AD41: 0 | AE41: 0 | AF41: 0 | AG41: 0 | AH41: 0 | AI41: 0 | AJ41: 0 | AK41: 0 | AL41: 0 | AM41: 0 | AN41: 0 | AO41: 0 | AP41: =AP60*AP$7 -> 0 | AQ41: 0 | AR41: 0 | AS41: 0 | AT41: 0 | AU41: 0 | AV41: 0 | AW41: 0 | AX41: 0 | AY41: 0 | AZ41: 0 | BA41: 0 | BB41: 0 | BC41: 0 | BD41: 0 | BE41: 0 | BF41: 0 | BG41: 0
B42: Resilience | G42: ='1_KMA'!$I$21 -> 2024-06-30 | H42: ='1_KMA'!$I$19 -> $millions | J42: =J61*J$7 -> 0 | K42: 0 | L42: 0 | M42: 0 | N42: 0 | O42: 0 | P42: 0 | Q42: 0 | R42: 0 | S42: 0 | T42: 0 | U42: 0 | V42: 0 | W42: 0 | X42: 0 | Y42: 0 | Z42: 0 | AA42: 0 | AB42: 0 | AC42: 0 | AD42: 0 | AE42: 0 | AF42: 0 | AG42: 0 | AH42: 0 | AI42: 0 | AJ42: 0 | AK42: 0 | AL42: 0 | AM42: 0 | AN42: 0 | AO42: 0 | AP42: =AP61*AP$7 -> 0 | AQ42: 0 | AR42: 0 | AS42: 0 | AT42: 0 | AU42: 0 | AV42: 0 | AW42: 0 | AX42: 0 | AY42: 0 | AZ42: 0 | BA42: 0 | BB42: 0 | BC42: 0 | BD42: 0 | BE42: 0 | BF42: 0 | BG42: 0
B43: 0 | G43: ='1_KMA'!$I$21 -> 2024-06-30 | H43: ='1_KMA'!$I$19 -> $millions | J43: =J62*J$7 -> 0 | K43: 0 | L43: 0 | M43: 0 | N43: 0 | O43: 0 | P43: 0 | Q43: 0 | R43: 0 | S43: 0 | T43: 0 | U43: 0 | V43: 0 | W43: 0 | X43: 0 | Y43: 0 | Z43: 0 | AA43: 0 | AB43: 0 | AC43: 0 | AD43: 0 | AE43: 0 | AF43: 0 | AG43: 0 | AH43: 0 | AI43: 0 | AJ43: 0 | AK43: 0 | AL43: 0 | AM43: 0 | AN43: 0 | AO43: 0 | AP43: =AP62*AP$7 -> 0 | AQ43: 0 | AR43: 0 | AS43: 0 | AT43: 0 | AU43: 0 | AV43: 0 | AW43: 0 | AX43: 0 | AY43: 0 | AZ43: 0 | BA43: 0 | BB43: 0 | BC43: 0 | BD43: 0 | BE43: 0 | BF43: 0 | BG43: 0
B44: 0 | G44: ='1_KMA'!$I$21 -> 2024-06-30 | H44: ='1_KMA'!$I$19 -> $millions | J44: =J63*J$7 -> 0 | K44: 0 | L44: 0 | M44: 0 | N44: 0 | O44: 0 | P44: 0 | Q44: 0 | R44: 0 | S44: 0 | T44: 0 | U44: 0 | V44: 0 | W44: 0 | X44: 0 | Y44: 0 | Z44: 0 | AA44: 0 | AB44: 0 | AC44: 0 | AD44: 0 | AE44: 0 | AF44: 0 | AG44: 0 | AH44: 0 | AI44: 0 | AJ44: 0 | AK44: 0 | AL44: 0 | AM44: 0 | AN44: 0 | AO44: 0 | AP44: =AP63*AP$7 -> 0 | AQ44: 0 | AR44: 0 | AS44: 0 | AT44: 0 | AU44: 0 | AV44: 0 | AW44: 0 | AX44: 0 | AY44: 0 | AZ44: 0 | BA44: 0 | BB44: 0 | BC44: 0 | BD44: 0 | BE44: 0 | BF44: 0 | BG44: 0
B45: ='3_BC'!B64 -> Total | G45: ='1_KMA'!$I$21 -> 2024-06-30 | H45: ='1_KMA'!$I$19 -> $millions | J45: =J64*J$7 -> 0 | K45: 0 | L45: 0 | M45: 0 | N45: 0 | O45: 0 | P45: 0 | Q45: 0 | R45: 0 | S45: 0 | T45: 0 | U45: 0 | V45: 0 | W45: 0 | X45: 0 | Y45: 0 | Z45: 0 | AA45: 0 | AB45: 0 | AC45: 0 | AD45: 0 | AE45: 0 | AF45: 0 | AG45: 0 | AH45: 0 | AI45: 0 | AJ45: 0 | AK45: 0 | AL45: 0 | AM45: 0 | AN45: 0 | AO45: 0 | AP45: =AP64*AP$7 -> 0 | AQ45: 0 | AR45: 0 | AS45: 0 | AT45: 0 | AU45: 0 | AV45: 0 | AW45: 0 | AX45: 0 | AY45: 0 | AZ45: 0 | BA45: 0 | BB45: 0 | BC45: 0 | BD45: 0 | BE45: 0 | BF45: 0 | BG45: 0
B47: Undiscounted | D47: ="("&TEXT('1_KMA'!$I$20,"dd-mmm-yy")&" dollars)" -> (30-Jun-24 dollars)
B49: Costs
G51: $ Basis Reminder | H51: $ Reminder
B52: Net Capex | G52: ='1_KMA'!$I$20 -> 2024-06-30 | H52: ='1_KMA'!$I$19 -> $millions | J52: ='2.1_BC'!J10+'2.1_BC'!J11 -> 0 | K52: ='2.1_BC'!K10+'2.1_BC'!K11 -> 0 | L52: ='2.1_BC'!L10+'2.1_BC'!L11 -> 0 | M52: ='2.1_BC'!M10+'2.1_BC'!M11 -> 0 | N52: ='2.1_BC'!N10+'2.1_BC'!N11 -> 0 | O52: ='2.1_BC'!O10+'2.1_BC'!O11 -> 0 | P52: ='2.1_BC'!P10+'2.1_BC'!P11 -> 0 | Q52: ='2.1_BC'!Q10+'2.1_BC'!Q11 -> 0 | R52: ='2.1_BC'!R10+'2.1_BC'!R11 -> 0 | S52: ='2.1_BC'!S10+'2.1_BC'!S11 -> 0 | T52: ='2.1_BC'!T10+'2.1_BC'!T11 -> 0 | U52: ='2.1_BC'!U10+'2.1_BC'!U11 -> 0 | V52: ='2.1_BC'!V10+'2.1_BC'!V11 -> 0 | W52: ='2.1_BC'!W10+'2.1_BC'!W11 -> 0 | X52: ='2.1_BC'!X10+'2.1_BC'!X11 -> 0 | Y52: ='2.1_BC'!Y10+'2.1_BC'!Y11 -> 0 | Z52: ='2.1_BC'!Z10+'2.1_BC'!Z11 -> 0 | AA52: ='2.1_BC'!AA10+'2.1_BC'!AA11 -> 0 | AB52: ='2.1_BC'!AB10+'2.1_BC'!AB11 -> 0 | AC52: ='2.1_BC'!AC10+'2.1_BC'!AC11 -> 0 | AD52: ='2.1_BC'!AD10+'2.1_BC'!AD11 -> 0 | AE52: ='2.1_BC'!AE10+'2.1_BC'!AE11 -> 0 | AF52: ='2.1_BC'!AF10+'2.1_BC'!AF11 -> 0 | AG52: ='2.1_BC'!AG10+'2.1_BC'!AG11 -> 0 | AH52: ='2.1_BC'!AH10+'2.1_BC'!AH11 -> 0 | AI52: ='2.1_BC'!AI10+'2.1_BC'!AI11 -> 0 | AJ52: ='2.1_BC'!AJ10+'2.1_BC'!AJ11 -> 0 | AK52: ='2.1_BC'!AK10+'2.1_BC'!AK11 -> 0 | AL52: ='2.1_BC'!AL10+'2.1_BC'!AL11 -> 0 | AM52: ='2.1_BC'!AM10+'2.1_BC'!AM11 -> 0 | AN52: ='2.1_BC'!AN10+'2.1_BC'!AN11 -> 0 | AO52: ='2.1_BC'!AO10+'2.1_BC'!AO11 -> 0 | AP52: ='2.1_BC'!AP10+'2.1_BC'!AP11 -> 0 | AQ52: ='2.1_BC'!AQ10+'2.1_BC'!AQ11 -> 0 | AR52: ='2.1_BC'!AR10+'2.1_BC'!AR11 -> 0 | AS52: ='2.1_BC'!AS10+'2.1_BC'!AS11 -> 0 | AT52: ='2.1_BC'!AT10+'2.1_BC'!AT11 -> 0 | AU52: ='2.1_BC'!AU10+'2.1_BC'!AU11 -> 0 | AV52: ='2.1_BC'!AV10+'2.1_BC'!AV11 -> 0 | AW52: ='2.1_BC'!AW10+'2.1_BC'!AW11 -> 0 | AX52: ='2.1_BC'!AX10+'2.1_BC'!AX11 -> 0 | AY52: ='2.1_BC'!AY10+'2.1_BC'!AY11 -> 0 | AZ52: ='2.1_BC'!AZ10+'2.1_BC'!AZ11 -> 0 | BA52: ='2.1_BC'!BA10+'2.1_BC'!BA11 -> 0 | BB52: ='2.1_BC'!BB10+'2.1_BC'!BB11 -> 0 | BC52: ='2.1_BC'!BC10+'2.1_BC'!BC11 -> 0 | BD52: ='2.1_BC'!BD10+'2.1_BC'!BD11 -> 0 | BE52: ='2.1_BC'!BE10+'2.1_BC'!BE11 -> 0 | BF52: ='2.1_BC'!BF10+'2.1_BC'!BF11 -> 0 | BG52: ='2.1_BC'!BG10+'2.1_BC'!BG11 -> 0
B53: Opex | G53: ='1_KMA'!$I$20 -> 2024-06-30 | H53: ='1_KMA'!$I$19 -> $millions | J53: ='2.1_BC'!J12 -> 0 | K53: ='2.1_BC'!K12 -> 0 | L53: ='2.1_BC'!L12 -> 0 | M53: ='2.1_BC'!M12 -> 0 | N53: ='2.1_BC'!N12 -> 0 | O53: ='2.1_BC'!O12 -> 0 | P53: ='2.1_BC'!P12 -> 0 | Q53: ='2.1_BC'!Q12 -> 0 | R53: ='2.1_BC'!R12 -> 0 | S53: ='2.1_BC'!S12 -> 0 | T53: ='2.1_BC'!T12 -> 0 | U53: ='2.1_BC'!U12 -> 0 | V53: ='2.1_BC'!V12 -> 0 | W53: ='2.1_BC'!W12 -> 0 | X53: ='2.1_BC'!X12 -> 0 | Y53: ='2.1_BC'!Y12 -> 0 | Z53: ='2.1_BC'!Z12 -> 0 | AA53: ='2.1_BC'!AA12 -> 0 | AB53: ='2.1_BC'!AB12 -> 0 | AC53: ='2.1_BC'!AC12 -> 0 | AD53: ='2.1_BC'!AD12 -> 0 | AE53: ='2.1_BC'!AE12 -> 0 | AF53: ='2.1_BC'!AF12 -> 0 | AG53: ='2.1_BC'!AG12 -> 0 | AH53: ='2.1_BC'!AH12 -> 0 | AI53: ='2.1_BC'!AI12 -> 0 | AJ53: ='2.1_BC'!AJ12 -> 0 | AK53: ='2.1_BC'!AK12 -> 0 | AL53: ='2.1_BC'!AL12 -> 0 | AM53: ='2.1_BC'!AM12 -> 0 | AN53: ='2.1_BC'!AN12 -> 0 | AO53: ='2.1_BC'!AO12 -> 0 | AP53: ='2.1_BC'!AP12 -> 0 | AQ53: ='2.1_BC'!AQ12 -> 0 | AR53: ='2.1_BC'!AR12 -> 0 | AS53: ='2.1_BC'!AS12 -> 0 | AT53: ='2.1_BC'!AT12 -> 0 | AU53: ='2.1_BC'!AU12 -> 0 | AV53: ='2.1_BC'!AV12 -> 0 | AW53: ='2.1_BC'!AW12 -> 0 | AX53: ='2.1_BC'!AX12 -> 0 | AY53: ='2.1_BC'!AY12 -> 0 | AZ53: ='2.1_BC'!AZ12 -> 0 | BA53: ='2.1_BC'!BA12 -> 0 | BB53: ='2.1_BC'!BB12 -> 0 | BC53: ='2.1_BC'!BC12 -> 0 | BD53: ='2.1_BC'!BD12 -> 0 | BE53: ='2.1_BC'!BE12 -> 0 | BF53: ='2.1_BC'!BF12 -> 0 | BG53: ='2.1_BC'!BG12 -> 0
B54: Total | G54: ='1_KMA'!$I$20 -> 2024-06-30 | H54: ='1_KMA'!$I$19 -> $millions | J54: =SUM(J52:J53) -> 0 | K54: =SUM(K52:K53) -> 0 | L54: 0 | M54: 0 | N54: 0 | O54: 0 | P54: 0 | Q54: 0 | R54: 0 | S54: 0 | T54: 0 | U54: 0 | V54: 0 | W54: 0 | X54: 0 | Y54: 0 | Z54: 0 | AA54: 0 | AB54: 0 | AC54: 0 | AD54: 0 | AE54: 0 | AF54: 0 | AG54: 0 | AH54: 0 | AI54: 0 | AJ54: 0 | AK54: 0 | AL54: 0 | AM54: 0 | AN54: 0 | AO54: 0 | AP54: 0 | AQ54: 0 | AR54: 0 | AS54: 0 | AT54: 0 | AU54: 0 | AV54: 0 | AW54: 0 | AX54: 0 | AY54: 0 | AZ54: 0 | BA54: 0 | BB54: 0 | BC54: 0 | BD54: 0 | BE54: 0 | BF54: 0 | BG54: 0
B56: Benefits
G58: $ Basis Reminder | H58: $ Reminder
B59: ='2.1_BC'!$B$16 -> Value of EUE | G59: ='1_KMA'!$I$20 -> 2024-06-30 | H59: ='1_KMA'!$I$19 -> $millions | J59: ='2.1_BC'!J16 -> 0 | K59: ='2.1_BC'!K16 -> 0 | L59: ='2.1_BC'!L16 -> 0 | M59: ='2.1_BC'!M16 -> 0 | N59: ='2.1_BC'!N16 -> 0 | O59: ='2.1_BC'!O16 -> 0 | P59: ='2.1_BC'!P16 -> 0 | Q59: ='2.1_BC'!Q16 -> 0 | R59: ='2.1_BC'!R16 -> 0 | S59: ='2.1_BC'!S16 -> 0 | T59: ='2.1_BC'!T16 -> 0 | U59: ='2.1_BC'!U16 -> 0 | V59: ='2.1_BC'!V16 -> 0 | W59: ='2.1_BC'!W16 -> 0 | X59: ='2.1_BC'!X16 -> 0 | Y59: ='2.1_BC'!Y16 -> 0 | Z59: ='2.1_BC'!Z16 -> 0 | AA59: ='2.1_BC'!AA16 -> 0 | AB59: ='2.1_BC'!AB16 -> 0 | AC59: ='2.1_BC'!AC16 -> 0 | AD59: ='2.1_BC'!AD16 -> 0 | AE59: ='2.1_BC'!AE16 -> 0 | AF59: ='2.1_BC'!AF16 -> 0 | AG59: ='2.1_BC'!AG16 -> 0 | AH59: ='2.1_BC'!AH16 -> 0 | AI59: ='2.1_BC'!AI16 -> 0 | AJ59: ='2.1_BC'!AJ16 -> 0 | AK59: ='2.1_BC'!AK16 -> 0 | AL59: ='2.1_BC'!AL16 -> 0 | AM59: ='2.1_BC'!AM16 -> 0 | AN59: ='2.1_BC'!AN16 -> 0 | AO59: ='2.1_BC'!AO16 -> 0 | AP59: ='2.1_BC'!AP16 -> 0 | AQ59: ='2.1_BC'!AQ16 -> 0 | AR59: ='2.1_BC'!AR16 -> 0 | AS59: ='2.1_BC'!AS16 -> 0 | AT59: ='2.1_BC'!AT16 -> 0 | AU59: ='2.1_BC'!AU16 -> 0 | AV59: ='2.1_BC'!AV16 -> 0 | AW59: ='2.1_BC'!AW16 -> 0 | AX59: ='2.1_BC'!AX16 -> 0 | AY59: ='2.1_BC'!AY16 -> 0 | AZ59: ='2.1_BC'!AZ16 -> 0 | BA59: ='2.1_BC'!BA16 -> 0 | BB59: ='2.1_BC'!BB16 -> 0 | BC59: ='2.1_BC'!BC16 -> 0 | BD59: ='2.1_BC'!BD16 -> 0 | BE59: ='2.1_BC'!BE16 -> 0 | BF59: ='2.1_BC'!BF16 -> 0 | BG59: ='2.1_BC'!BG16 -> 0
B60: ='2.1_BC'!$B$17 -> 0 | G60: ='1_KMA'!$I$20 -> 2024-06-30 | H60: ='1_KMA'!$I$19 -> $millions | J60: ='2.1_BC'!J17 -> 0 | K60: ='2.1_BC'!K17 -> 0 | L60: ='2.1_BC'!L17 -> 0 | M60: ='2.1_BC'!M17 -> 0 | N60: ='2.1_BC'!N17 -> 0 | O60: ='2.1_BC'!O17 -> 0 | P60: ='2.1_BC'!P17 -> 0 | Q60: ='2.1_BC'!Q17 -> 0 | R60: ='2.1_BC'!R17 -> 0 | S60: ='2.1_BC'!S17 -> 0 | T60: ='2.1_BC'!T17 -> 0 | U60: ='2.1_BC'!U17 -> 0 | V60: ='2.1_BC'!V17 -> 0 | W60: ='2.1_BC'!W17 -> 0 | X60: ='2.1_BC'!X17 -> 0 | Y60: ='2.1_BC'!Y17 -> 0 | Z60: ='2.1_BC'!Z17 -> 0 | AA60: ='2.1_BC'!AA17 -> 0 | AB60: ='2.1_BC'!AB17 -> 0 | AC60: ='2.1_BC'!AC17 -> 0 | AD60: ='2.1_BC'!AD17 -> 0 | AE60: ='2.1_BC'!AE17 -> 0 | AF60: ='2.1_BC'!AF17 -> 0 | AG60: ='2.1_BC'!AG17 -> 0 | AH60: ='2.1_BC'!AH17 -> 0 | AI60: ='2.1_BC'!AI17 -> 0 | AJ60: ='2.1_BC'!AJ17 -> 0 | AK60: ='2.1_BC'!AK17 -> 0 | AL60: ='2.1_BC'!AL17 -> 0 | AM60: ='2.1_BC'!AM17 -> 0 | AN60: ='2.1_BC'!AN17 -> 0 | AO60: ='2.1_BC'!AO17 -> 0 | AP60: ='2.1_BC'!AP17 -> 0 | AQ60: ='2.1_BC'!AQ17 -> 0 | AR60: ='2.1_BC'!AR17 -> 0 | AS60: ='2.1_BC'!AS17 -> 0 | AT60: ='2.1_BC'!AT17 -> 0 | AU60: ='2.1_BC'!AU17 -> 0 | AV60: ='2.1_BC'!AV17 -> 0 | AW60: ='2.1_BC'!AW17 -> 0 | AX60: ='2.1_BC'!AX17 -> 0 | AY60: ='2.1_BC'!AY17 -> 0 | AZ60: ='2.1_BC'!AZ17 -> 0 | BA60: ='2.1_BC'!BA17 -> 0 | BB60: ='2.1_BC'!BB17 -> 0 | BC60: ='2.1_BC'!BC17 -> 0 | BD60: ='2.1_BC'!BD17 -> 0 | BE60: ='2.1_BC'!BE17 -> 0 | BF60: ='2.1_BC'!BF17 -> 0 | BG60: ='2.1_BC'!BG17 -> 0
B61: ='2.1_BC'!$B$18 -> Resilience | G61: ='1_KMA'!$I$20 -> 2024-06-30 | H61: ='1_KMA'!$I$19 -> $millions | J61: ='2.1_BC'!J18 -> 0 | K61: ='2.1_BC'!K18 -> 0 | L61: ='2.1_BC'!L18 -> 0 | M61: ='2.1_BC'!M18 -> 0 | N61: ='2.1_BC'!N18 -> 0 | O61: ='2.1_BC'!O18 -> 0 | P61: ='2.1_BC'!P18 -> 0 | Q61: ='2.1_BC'!Q18 -> 0 | R61: ='2.1_BC'!R18 -> 0 | S61: ='2.1_BC'!S18 -> 0 | T61: ='2.1_BC'!T18 -> 0 | U61: ='2.1_BC'!U18 -> 0 | V61: ='2.1_BC'!V18 -> 0 | W61: ='2.1_BC'!W18 -> 0 | X61: ='2.1_BC'!X18 -> 0 | Y61: ='2.1_BC'!Y18 -> 0 | Z61: ='2.1_BC'!Z18 -> 0 | AA61: ='2.1_BC'!AA18 -> 0 | AB61: ='2.1_BC'!AB18 -> 0 | AC61: ='2.1_BC'!AC18 -> 0 | AD61: ='2.1_BC'!AD18 -> 0 | AE61: ='2.1_BC'!AE18 -> 0 | AF61: ='2.1_BC'!AF18 -> 0 | AG61: ='2.1_BC'!AG18 -> 0 | AH61: ='2.1_BC'!AH18 -> 0 | AI61: ='2.1_BC'!AI18 -> 0 | AJ61: ='2.1_BC'!AJ18 -> 0 | AK61: ='2.1_BC'!AK18 -> 0 | AL61: ='2.1_BC'!AL18 -> 0 | AM61: ='2.1_BC'!AM18 -> 0 | AN61: ='2.1_BC'!AN18 -> 0 | AO61: ='2.1_BC'!AO18 -> 0 | AP61: ='2.1_BC'!AP18 -> 0 | AQ61: ='2.1_BC'!AQ18 -> 0 | AR61: ='2.1_BC'!AR18 -> 0 | AS61: ='2.1_BC'!AS18 -> 0 | AT61: ='2.1_BC'!AT18 -> 0 | AU61: ='2.1_BC'!AU18 -> 0 | AV61: ='2.1_BC'!AV18 -> 0 | AW61: ='2.1_BC'!AW18 -> 0 | AX61: ='2.1_BC'!AX18 -> 0 | AY61: ='2.1_BC'!AY18 -> 0 | AZ61: ='2.1_BC'!AZ18 -> 0 | BA61: ='2.1_BC'!BA18 -> 0 | BB61: ='2.1_BC'!BB18 -> 0 | BC61: ='2.1_BC'!BC18 -> 0 | BD61: ='2.1_BC'!BD18 -> 0 | BE61: ='2.1_BC'!BE18 -> 0 | BF61: ='2.1_BC'!BF18 -> 0 | BG61: ='2.1_BC'!BG18 -> 0
B62: ='2.1_BC'!$B$19 -> 0 | G62: ='1_KMA'!$I$20 -> 2024-06-30 | H62: ='1_KMA'!$I$19 -> $millions | J62: ='2.1_BC'!J19 -> 0 | K62: ='2.1_BC'!K19 -> 0 | L62: ='2.1_BC'!L19 -> 0 | M62: ='2.1_BC'!M19 -> 0 | N62: ='2.1_BC'!N19 -> 0 | O62: ='2.1_BC'!O19 -> 0 | P62: ='2.1_BC'!P19 -> 0 | Q62: ='2.1_BC'!Q19 -> 0 | R62: ='2.1_BC'!R19 -> 0 | S62: ='2.1_BC'!S19 -> 0 | T62: ='2.1_BC'!T19 -> 0 | U62: ='2.1_BC'!U19 -> 0 | V62: ='2.1_BC'!V19 -> 0 | W62: ='2.1_BC'!W19 -> 0 | X62: ='2.1_BC'!X19 -> 0 | Y62: ='2.1_BC'!Y19 -> 0 | Z62: ='2.1_BC'!Z19 -> 0 | AA62: ='2.1_BC'!AA19 -> 0 | AB62: ='2.1_BC'!AB19 -> 0 | AC62: ='2.1_BC'!AC19 -> 0 | AD62: ='2.1_BC'!AD19 -> 0 | AE62: ='2.1_BC'!AE19 -> 0 | AF62: ='2.1_BC'!AF19 -> 0 | AG62: ='2.1_BC'!AG19 -> 0 | AH62: ='2.1_BC'!AH19 -> 0 | AI62: ='2.1_BC'!AI19 -> 0 | AJ62: ='2.1_BC'!AJ19 -> 0 | AK62: ='2.1_BC'!AK19 -> 0 | AL62: ='2.1_BC'!AL19 -> 0 | AM62: ='2.1_BC'!AM19 -> 0 | AN62: ='2.1_BC'!AN19 -> 0 | AO62: ='2.1_BC'!AO19 -> 0 | AP62: ='2.1_BC'!AP19 -> 0 | AQ62: ='2.1_BC'!AQ19 -> 0 | AR62: ='2.1_BC'!AR19 -> 0 | AS62: ='2.1_BC'!AS19 -> 0 | AT62: ='2.1_BC'!AT19 -> 0 | AU62: ='2.1_BC'!AU19 -> 0 | AV62: ='2.1_BC'!AV19 -> 0 | AW62: ='2.1_BC'!AW19 -> 0 | AX62: ='2.1_BC'!AX19 -> 0 | AY62: ='2.1_BC'!AY19 -> 0 | AZ62: ='2.1_BC'!AZ19 -> 0 | BA62: ='2.1_BC'!BA19 -> 0 | BB62: ='2.1_BC'!BB19 -> 0 | BC62: ='2.1_BC'!BC19 -> 0 | BD62: ='2.1_BC'!BD19 -> 0 | BE62: ='2.1_BC'!BE19 -> 0 | BF62: ='2.1_BC'!BF19 -> 0 | BG62: ='2.1_BC'!BG19 -> 0
B63: ='2.1_BC'!$B$20 -> 0 | G63: ='1_KMA'!$I$20 -> 2024-06-30 | H63: ='1_KMA'!$I$19 -> $millions | J63: ='2.1_BC'!J20 -> 0 | K63: ='2.1_BC'!K20 -> 0 | L63: ='2.1_BC'!L20 -> 0 | M63: ='2.1_BC'!M20 -> 0 | N63: ='2.1_BC'!N20 -> 0 | O63: ='2.1_BC'!O20 -> 0 | P63: ='2.1_BC'!P20 -> 0 | Q63: ='2.1_BC'!Q20 -> 0 | R63: ='2.1_BC'!R20 -> 0 | S63: ='2.1_BC'!S20 -> 0 | T63: ='2.1_BC'!T20 -> 0 | U63: ='2.1_BC'!U20 -> 0 | V63: ='2.1_BC'!V20 -> 0 | W63: ='2.1_BC'!W20 -> 0 | X63: ='2.1_BC'!X20 -> 0 | Y63: ='2.1_BC'!Y20 -> 0 | Z63: ='2.1_BC'!Z20 -> 0 | AA63: ='2.1_BC'!AA20 -> 0 | AB63: ='2.1_BC'!AB20 -> 0 | AC63: ='2.1_BC'!AC20 -> 0 | AD63: ='2.1_BC'!AD20 -> 0 | AE63: ='2.1_BC'!AE20 -> 0 | AF63: ='2.1_BC'!AF20 -> 0 | AG63: ='2.1_BC'!AG20 -> 0 | AH63: ='2.1_BC'!AH20 -> 0 | AI63: ='2.1_BC'!AI20 -> 0 | AJ63: ='2.1_BC'!AJ20 -> 0 | AK63: ='2.1_BC'!AK20 -> 0 | AL63: ='2.1_BC'!AL20 -> 0 | AM63: ='2.1_BC'!AM20 -> 0 | AN63: ='2.1_BC'!AN20 -> 0 | AO63: ='2.1_BC'!AO20 -> 0 | AP63: ='2.1_BC'!AP20 -> 0 | AQ63: ='2.1_BC'!AQ20 -> 0 | AR63: ='2.1_BC'!AR20 -> 0 | AS63: ='2.1_BC'!AS20 -> 0 | AT63: ='2.1_BC'!AT20 -> 0 | AU63: ='2.1_BC'!AU20 -> 0 | AV63: ='2.1_BC'!AV20 -> 0 | AW63: ='2.1_BC'!AW20 -> 0 | AX63: ='2.1_BC'!AX20 -> 0 | AY63: ='2.1_BC'!AY20 -> 0 | AZ63: ='2.1_BC'!AZ20 -> 0 | BA63: ='2.1_BC'!BA20 -> 0 | BB63: ='2.1_BC'!BB20 -> 0 | BC63: ='2.1_BC'!BC20 -> 0 | BD63: ='2.1_BC'!BD20 -> 0 | BE63: ='2.1_BC'!BE20 -> 0 | BF63: ='2.1_BC'!BF20 -> 0 | BG63: ='2.1_BC'!BG20 -> 0
B64: Total | G64: ='1_KMA'!$I$20 -> 2024-06-30 | H64: ='1_KMA'!$I$19 -> $millions | J64: =SUM(J59:J63) -> 0 | K64: =SUM(K59:K63) -> 0 | L64: 0 | M64: =SUM(M59:M63) -> 0 | N64: 0 | O64: 0 | P64: 0 | Q64: 0 | R64: 0 | S64: 0 | T64: 0 | U64: 0 | V64: 0 | W64: 0 | X64: 0 | Y64: 0 | Z64: 0 | AA64: 0 | AB64: 0 | AC64: 0 | AD64: 0 | AE64: 0 | AF64: 0 | AG64: 0 | AH64: 0 | AI64: 0 | AJ64: 0 | AK64: 0 | AL64: 0 | AM64: 0 | AN64: 0 | AO64: 0 | AP64: 0 | AQ64: 0 | AR64: 0 | AS64: 0 | AT64: 0 | AU64: 0 | AV64: 0 | AW64: 0 | AX64: 0 | AY64: 0 | AZ64: 0 | BA64: 0 | BB64: 0 | BC64: 0 | BD64: 0 | BE64: 0 | BF64: 0 | BG64: 0
B66: =Controls!$B$22&" "&Controls!$C$22&" ("&TEXT(Controls!$E$22,"0.00%")&")" -> Sensitivity Scenario 1 Higher Discount rate (10.50%)
B67: Summary
B69: WACC | J69: =Controls!$E$22 -> 0.105 | K69: =Controls!$E$22 -> 0.105 | L69: =Controls!$E$22 -> 0.105 | M69: =Controls!$E$22 -> 0.105 | N69: =Controls!$E$22 -> 0.105 | O69: =Controls!$E$22 -> 0.105 | P69: =Controls!$E$22 -> 0.105 | Q69: =Controls!$E$22 -> 0.105 | R69: =Controls!$E$22 -> 0.105 | S69: =Controls!$E$22 -> 0.105 | T69: =Controls!$E$22 -> 0.105 | U69: =Controls!$E$22 -> 0.105 | V69: =Controls!$E$22 -> 0.105 | W69: =Controls!$E$22 -> 0.105 | X69: =Controls!$E$22 -> 0.105 | Y69: =Controls!$E$22 -> 0.105 | Z69: =Controls!$E$22 -> 0.105 | AA69: =Controls!$E$22 -> 0.105 | AB69: =Controls!$E$22 -> 0.105 | AC69: =Controls!$E$22 -> 0.105 | AD69: =Controls!$E$22 -> 0.105 | AE69: =Controls!$E$22 -> 0.105 | AF69: =Controls!$E$22 -> 0.105 | AG69: =Controls!$E$22 -> 0.105 | AH69: =Controls!$E$22 -> 0.105 | AI69: =Controls!$E$22 -> 0.105 | AJ69: =Controls!$E$22 -> 0.105 | AK69: =Controls!$E$22 -> 0.105 | AL69: =Controls!$E$22 -> 0.105 | AM69: =Controls!$E$22 -> 0.105 | AN69: =Controls!$E$22 -> 0.105 | AO69: =Controls!$E$22 -> 0.105 | AP69: =Controls!$E$22 -> 0.105 | AQ69: =Controls!$E$22 -> 0.105 | AR69: =Controls!$E$22 -> 0.105 | AS69: =Controls!$E$22 -> 0.105 | AT69: =Controls!$E$22 -> 0.105 | AU69: =Controls!$E$22 -> 0.105 | AV69: =Controls!$E$22 -> 0.105 | AW69: =Controls!$E$22 -> 0.105 | AX69: =Controls!$E$22 -> 0.105 | AY69: =Controls!$E$22 -> 0.105 | AZ69: =Controls!$E$22 -> 0.105 | BA69: =Controls!$E$22 -> 0.105 | BB69: =Controls!$E$22 -> 0.105 | BC69: =Controls!$E$22 -> 0.105 | BD69: =Controls!$E$22 -> 0.105 | BE69: =Controls!$E$22 -> 0.105 | BF69: =Controls!$E$22 -> 0.105 | BG69: =Controls!$E$22 -> 0.105
B70: Deflator (interim calculation) | J70: 1 | K70: =J70*(1+K69) -> 1.105 | L70: =K70*(1+L69) -> 1.221025 | M70: =L70*(1+M69) -> 1.349232625 | N70: =M70*(1+N69) -> 1.490902051 | O70: =N70*(1+O69) -> 1.647446766 | P70: =O70*(1+P69) -> 1.820428676 | Q70: =P70*(1+Q69) -> 2.011573687 | R70: =Q70*(1+R69) -> 2.222788925 | S70: =R70*(1+S69) -> 2.456181762 | T70: =S70*(1+T69) -> 2.714080847 | U70: =T70*(1+U69) -> 2.999059336 | V70: =U70*(1+V69) -> 3.313960566 | W70: =V70*(1+W69) -> 3.661926425 | X70: =W70*(1+X69) -> 4.0464287 | Y70: =X70*(1+Y69) -> 4.471303713 | Z70: =Y70*(1+Z69) -> 4.940790603 | AA70: =Z70*(1+AA69) -> 5.459573616 | AB70: =AA70*(1+AB69) -> 6.032828846 | AC70: =AB70*(1+AC69) -> 6.666275875 | AD70: =AC70*(1+AD69) -> 7.366234842 | AE70: =AD70*(1+AE69) -> 8.1396895 | AF70: =AE70*(1+AF69) -> 8.994356898 | AG70: =AF70*(1+AG69) -> 9.938764372 | AH70: =AG70*(1+AH69) -> 10.98233463 | AI70: =AH70*(1+AI69) -> 12.13547977 | AJ70: =AI70*(1+AJ69) -> 13.40970514 | AK70: =AJ70*(1+AK69) -> 14.81772418 | AL70: =AK70*(1+AL69) -> 16.37358522 | AM70: =AL70*(1+AM69) -> 18.09281167 | AN70: =AM70*(1+AN69) -> 19.9925569 | AO70: =AN70*(1+AO69) -> 22.09177537 | AP70: =AO70*(1+AP69) -> 24.41141178 | AQ70: =AP70*(1+AQ69) -> 26.97461002 | AR70: =AQ70*(1+AR69) -> 29.80694407 | AS70: =AR70*(1+AS69) -> 32.9366732 | AT70: =AS70*(1+AT69) -> 36.39502389 | AU70: =AT70*(1+AU69) -> 40.2165014 | AV70: =AU70*(1+AV69) -> 44.43923404 | AW70: =AV70*(1+AW69) -> 49.10535362 | AX70: =AW70*(1+AX69) -> 54.26141575 | AY70: =AX70*(1+AY69) -> 59.9588644 | AZ70: =AY70*(1+AZ69) -> 66.25454516 | BA70: =AZ70*(1+BA69) -> 73.2112724 | BB70: =BA70*(1+BB69) -> 80.89845601 | BC70: =BB70*(1+BC69) -> 89.39279389 | BD70: =BC70*(1+BD69) -> 98.77903724 | BE70: =BD70*(1+BE69) -> 109.1508362 | BF70: =BE70*(1+BF69) -> 120.611674 | BG70: =BF70*(1+BG69) -> 133.2758997
B71: Deflator | J71: =1/J70 -> 1 | K71: =1/K70 -> 0.9049773756 | L71: =1/L70 -> 0.8189840503 | M71: =1/M70 -> 0.7411620365 | N71: =1/N70 -> 0.6707348746 | O71: =1/O70 -> 0.6069998865 | P71: 0.5493211643 | Q71: 0.4971232256 | R71: 0.449885272 | S71: 0.4071359928 | T71: 0.3684488623 | U71: 0.3334378844 | V71: 0.3017537415 | W71: 0.2730803091 | X71: 0.2471315014 | Y71: 0.2236484176 | Z71: 0.202396758 | AA71: 0.1831644869 | AB71: 0.1657597166 | AC71: 0.1500087933 | AD71: 0.1357545641 | AE71: 0.1228548091 | AF71: 0.1111808227 | AG71: 0.1006161292 | AH71: 0.09105532053 | AI71: 0.082403005 | AJ71: 0.07457285521 | AK71: 0.06748674679 | AL71: 0.061073979 | AM71: 0.05527056923 | AN71: 0.05001861469 | AO71: 0.04526571465 | AP71: 0.04096444765 | AQ71: 0.03707189832 | AR71: 0.03354922925 | AS71: 0.03036129344 | AT71: 0.02747628366 | AU71: 0.02486541507 | AV71: 0.02250263808 | AW71: 0.02036437835 | AX71: 0.01842930167 | AY71: 0.01667810106 | AZ71: 0.01509330413 | BA71: 0.01365909876 | BB71: 0.01236117535 | BC71: 0.01118658402 | BD71: 0.01012360545 | BE71: 0.009161633893 | BF71: 0.008291071397 | BG71: 0.007503232033
B73: Totex sought for EDPR FY27-31 (undiscounted) | G73: ="("&TEXT('1_KMA'!$I$21,"dd-mmm-yy")&" Dollars)" -> (30-Jun-24 Dollars)
C74: Net Capital Expenditure | G74: =SUM(J74:BG74) -> 0 | J74: =-J89*J$1*J$8 -> 0 | K74: =-K89*K$1*K$8 -> 0 | L74: 0 | M74: 0 | N74: 0 | O74: 0 | P74: 0 | Q74: 0 | R74: 0 | S74: 0 | T74: 0 | U74: 0 | V74: 0 | W74: 0 | X74: 0 | Y74: 0 | Z74: 0 | AA74: 0 | AB74: 0 | AC74: 0 | AD74: 0 | AE74: 0 | AF74: 0 | AG74: 0 | AH74: 0 | AI74: 0 | AJ74: 0 | AK74: 0 | AL74: 0 | AM74: 0 | AN74: 0 | AO74: 0 | AP74: 0 | AQ74: 0 | AR74: 0 | AS74: 0 | AT74: 0 | AU74: 0 | AV74: 0 | AW74: 0 | AX74: 0 | AY74: 0 | AZ74: 0 | BA74: 0 | BB74: 0 | BC74: 0 | BD74: 0 | BE74: 0 | BF74: 0 | BG74: 0
C75: Operating Expenditure | G75: =SUM(J75:BG75) -> 0 | J75: =-J90*J$1*J$8 -> 0 | K75: =-K90*K$1*K$8 -> 0 | L75: 0 | M75: 0 | N75: 0 | O75: 0 | P75: 0 | Q75: 0 | R75: 0 | S75: 0 | T75: 0 | U75: 0 | V75: 0 | W75: 0 | X75: 0 | Y75: 0 | Z75: 0 | AA75: 0 | AB75: 0 | AC75: 0 | AD75: 0 | AE75: 0 | AF75: 0 | AG75: 0 | AH75: 0 | AI75: 0 | AJ75: 0 | AK75: 0 | AL75: 0 | AM75: 0 | AN75: 0 | AO75: 0 | AP75: 0 | AQ75: 0 | AR75: 0 | AS75: 0 | AT75: 0 | AU75: 0 | AV75: 0 | AW75: 0 | AX75: 0 | AY75: 0 | AZ75: 0 | BA75: 0 | BB75: 0 | BC75: 0 | BD75: 0 | BE75: 0 | BF75: 0 | BG75: 0
C76: Totex | G76: =SUM(G74:G75) -> 0 | J76: =SUM(J74:J75) -> 0 | K76: =SUM(K74:K75) -> 0 | L76: =SUM(L74:L75) -> 0 | M76: 0 | N76: 0 | O76: 0 | P76: 0 | Q76: 0 | R76: 0 | S76: 0 | T76: 0 | U76: 0 | V76: 0 | W76: 0 | X76: 0 | Y76: 0 | Z76: 0 | AA76: 0 | AB76: 0 | AC76: 0 | AD76: 0 | AE76: 0 | AF76: 0 | AG76: 0 | AH76: 0 | AI76: 0 | AJ76: 0 | AK76: 0 | AL76: 0 | AM76: 0 | AN76: 0 | AO76: 0 | AP76: 0 | AQ76: 0 | AR76: 0 | AS76: 0 | AT76: 0 | AU76: 0 | AV76: 0 | AW76: 0 | AX76: 0 | AY76: 0 | AZ76: 0 | BA76: 0 | BB76: 0 | BC76: 0 | BD76: 0 | BE76: 0 | BF76: 0 | BG76: 0
B78: PV over full assessment period to establish the preferred option (discounted) | G78: ="("&TEXT('1_KMA'!$I$21,"dd-mmm-yy")&" Dollars)" -> (30-Jun-24 Dollars)
C79: Net Capital Expenditure | G79: =SUM(J79:BG79) -> 0 | J79: =-(J89)*J$71*J$8 -> 0 | K79: =-(K89)*K$71*K$8 -> 0 | L79: 0 | M79: 0 | N79: 0 | O79: 0 | P79: 0 | Q79: 0 | R79: 0 | S79: 0 | T79: 0 | U79: 0 | V79: 0 | W79: 0 | X79: 0 | Y79: 0 | Z79: 0 | AA79: 0 | AB79: 0 | AC79: 0 | AD79: 0 | AE79: 0 | AF79: 0 | AG79: 0 | AH79: 0 | AI79: 0 | AJ79: 0 | AK79: 0 | AL79: 0 | AM79: 0 | AN79: 0 | AO79: 0 | AP79: 0 | AQ79: 0 | AR79: 0 | AS79: 0 | AT79: 0 | AU79: 0 | AV79: 0 | AW79: 0 | AX79: 0 | AY79: 0 | AZ79: 0 | BA79: 0 | BB79: 0 | BC79: 0 | BD79: 0 | BE79: 0 | BF79: 0 | BG79: 0
C80: Operating Expenditure | G80: =SUM(J80:BG80) -> 0 | J80: =-(J90)*J$71*J$8 -> 0 | K80: =-(K90)*K$71*K$8 -> 0 | L80: 0 | M80: 0 | N80: 0 | O80: 0 | P80: 0 | Q80: 0 | R80: 0 | S80: 0 | T80: 0 | U80: 0 | V80: 0 | W80: 0 | X80: 0 | Y80: 0 | Z80: 0 | AA80: 0 | AB80: 0 | AC80: 0 | AD80: 0 | AE80: 0 | AF80: 0 | AG80: 0 | AH80: 0 | AI80: 0 | AJ80: 0 | AK80: 0 | AL80: 0 | AM80: 0 | AN80: 0 | AO80: 0 | AP80: 0 | AQ80: 0 | AR80: 0 | AS80: 0 | AT80: 0 | AU80: 0 | AV80: 0 | AW80: 0 | AX80: 0 | AY80: 0 | AZ80: 0 | BA80: 0 | BB80: 0 | BC80: 0 | BD80: 0 | BE80: 0 | BF80: 0 | BG80: 0
C81: Net Benefits | G81: =SUM(J81:BG81) -> 0 | J81: =(J101)*J$71*J$8 -> 0 | K81: =(K101)*K$71*K$8 -> 0 | L81: 0 | M81: 0 | N81: 0 | O81: 0 | P81: 0 | Q81: 0 | R81: 0 | S81: 0 | T81: 0 | U81: 0 | V81: 0 | W81: 0 | X81: 0 | Y81: 0 | Z81: 0 | AA81: 0 | AB81: 0 | AC81: 0 | AD81: 0 | AE81: 0 | AF81: 0 | AG81: 0 | AH81: 0 | AI81: 0 | AJ81: 0 | AK81: 0 | AL81: 0 | AM81: 0 | AN81: 0 | AO81: 0 | AP81: 0 | AQ81: 0 | AR81: 0 | AS81: 0 | AT81: 0 | AU81: 0 | AV81: 0 | AW81: 0 | AX81: 0 | AY81: 0 | AZ81: 0 | BA81: 0 | BB81: 0 | BC81: 0 | BD81: 0 | BE81: 0 | BF81: 0 | BG81: 0
B82: Total Present Value | G82: =SUM(J82:BG82) -> 0 | J82: =SUM(J79:J81) -> 0 | K82: =SUM(K79:K81) -> 0 | L82: 0 | M82: 0 | N82: 0 | O82: 0 | P82: 0 | Q82: 0 | R82: 0 | S82: 0 | T82: 0 | U82: 0 | V82: 0 | W82: 0 | X82: 0 | Y82: 0 | Z82: 0 | AA82: 0 | AB82: 0 | AC82: 0 | AD82: 0 | AE82: 0 | AF82: 0 | AG82: 0 | AH82: 0 | AI82: 0 | AJ82: 0 | AK82: 0 | AL82: 0 | AM82: 0 | AN82: 0 | AO82: 0 | AP82: 0 | AQ82: 0 | AR82: 0 | AS82: 0 | AT82: 0 | AU82: 0 | AV82: 0 | AW82: 0 | AX82: 0 | AY82: 0 | AZ82: 0 | BA82: 0 | BB82: 0 | BC82: 0 | BD82: 0 | BE82: 0 | BF82: 0 | BG82: 0
B84: Undiscounted | D84: ="("&TEXT('1_KMA'!$I$21,"dd-mmm-yy")&" dollars)" -> (30-Jun-24 dollars)
B86: Costs
G88: $ Basis Reminder | H88: $ Reminder
B89: Net Capex | G89: ='1_KMA'!$I$21 -> 2024-06-30 | H89: ='1_KMA'!$I$19 -> $millions | J89: =J108*J$7 -> 0 | K89: 0 | L89: 0 | M89: 0 | N89: 0 | O89: 0 | P89: 0 | Q89: 0 | R89: 0 | S89: 0 | T89: 0 | U89: 0 | V89: 0 | W89: 0 | X89: 0 | Y89: 0 | Z89: 0 | AA89: 0 | AB89: 0 | AC89: 0 | AD89: 0 | AE89: 0 | AF89: 0 | AG89: 0 | AH89: 0 | AI89: 0 | AJ89: 0 | AK89: 0 | AL89: 0 | AM89: 0 | AN89: 0 | AO89: 0 | AP89: =AP108*AP$7 -> 0 | AQ89: 0 | AR89: 0 | AS89: 0 | AT89: 0 | AU89: 0 | AV89: 0 | AW89: 0 | AX89: 0 | AY89: 0 | AZ89: 0 | BA89: 0 | BB89: 0 | BC89: 0 | BD89: 0 | BE89: 0 | BF89: 0 | BG89: 0
B90: Opex | G90: ='1_KMA'!$I$21 -> 2024-06-30 | H90: ='1_KMA'!$I$19 -> $millions | J90: =J109*J$7 -> 0 | K90: 0 | L90: 0 | M90: 0 | N90: 0 | O90: 0 | P90: 0 | Q90: 0 | R90: 0 | S90: 0 | T90: 0 | U90: 0 | V90: 0 | W90: 0 | X90: 0 | Y90: 0 | Z90: 0 | AA90: 0 | AB90: 0 | AC90: 0 | AD90: 0 | AE90: 0 | AF90: 0 | AG90: 0 | AH90: 0 | AI90: 0 | AJ90: 0 | AK90: 0 | AL90: 0 | AM90: 0 | AN90: 0 | AO90: 0 | AP90: =AP109*AP$7 -> 0 | AQ90: 0 | AR90: 0 | AS90: 0 | AT90: 0 | AU90: 0 | AV90: 0 | AW90: 0 | AX90: 0 | AY90: 0 | AZ90: 0 | BA90: 0 | BB90: 0 | BC90: 0 | BD90: 0 | BE90: 0 | BF90: 0 | BG90: 0
B91: Total | G91: ='1_KMA'!$I$21 -> 2024-06-30 | H91: ='1_KMA'!$I$19 -> $millions | J91: =J110*J$7 -> 0 | K91: 0 | L91: 0 | M91: 0 | N91: 0 | O91: 0 | P91: 0 | Q91: 0 | R91: 0 | S91: 0 | T91: 0 | U91: 0 | V91: 0 | W91: 0 | X91: 0 | Y91: 0 | Z91: 0 | AA91: 0 | AB91: 0 | AC91: 0 | AD91: 0 | AE91: 0 | AF91: 0 | AG91: 0 | AH91: 0 | AI91: 0 | AJ91: 0 | AK91: 0 | AL91: 0 | AM91: 0 | AN91: 0 | AO91: 0 | AP91: =AP110*AP$7 -> 0 | AQ91: 0 | AR91: 0 | AS91: 0 | AT91: 0 | AU91: 0 | AV91: 0 | AW91: 0 | AX91: 0 | AY91: 0 | AZ91: 0 | BA91: 0 | BB91: 0 | BC91: 0 | BD91: 0 | BE91: 0 | BF91: 0 | BG91: 0
B93: Benefits
G95: $ Basis Reminder | H95: $ Reminder
B96: =B115 -> Value of EUE | G96: ='1_KMA'!$I$21 -> 2024-06-30 | H96: ='1_KMA'!$I$19 -> $millions | J96: =J115*J$7 -> 0 | K96: 0 | L96: 0 | M96: 0 | N96: 0 | O96: 0 | P96: 0 | Q96: 0 | R96: 0 | S96: 0 | T96: 0 | U96: 0 | V96: 0 | W96: 0 | X96: 0 | Y96: 0 | Z96: 0 | AA96: 0 | AB96: 0 | AC96: 0 | AD96: 0 | AE96: 0 | AF96: 0 | AG96: 0 | AH96: 0 | AI96: 0 | AJ96: 0 | AK96: 0 | AL96: 0 | AM96: 0 | AN96: 0 | AO96: 0 | AP96: =AP115*AP$7 -> 0 | AQ96: 0 | AR96: 0 | AS96: 0 | AT96: 0 | AU96: 0 | AV96: 0 | AW96: 0 | AX96: 0 | AY96: 0 | AZ96: 0 | BA96: 0 | BB96: 0 | BC96: 0 | BD96: 0 | BE96: 0 | BF96: 0 | BG96: 0
B97: =B116 -> 0 | G97: ='1_KMA'!$I$21 -> 2024-06-30 | H97: ='1_KMA'!$I$19 -> $millions | J97: =J116*J$7 -> 0 | K97: 0 | L97: 0 | M97: 0 | N97: 0 | O97: 0 | P97: 0 | Q97: 0 | R97: 0 | S97: 0 | T97: 0 | U97: 0 | V97: 0 | W97: 0 | X97: 0 | Y97: 0 | Z97: 0 | AA97: 0 | AB97: 0 | AC97: 0 | AD97: 0 | AE97: 0 | AF97: 0 | AG97: 0 | AH97: 0 | AI97: 0 | AJ97: 0 | AK97: 0 | AL97: 0 | AM97: 0 | AN97: 0 | AO97: 0 | AP97: =AP116*AP$7 -> 0 | AQ97: 0 | AR97: 0 | AS97: 0 | AT97: 0 | AU97: 0 | AV97: 0 | AW97: 0 | AX97: 0 | AY97: 0 | AZ97: 0 | BA97: 0 | BB97: 0 | BC97: 0 | BD97: 0 | BE97: 0 | BF97: 0 | BG97: 0
B98: Resilience | G98: ='1_KMA'!$I$21 -> 2024-06-30 | H98: ='1_KMA'!$I$19 -> $millions | J98: =J117*J$7 -> 0 | K98: 0 | L98: 0 | M98: 0 | N98: 0 | O98: 0 | P98: 0 | Q98: 0 | R98: 0 | S98: 0 | T98: 0 | U98: 0 | V98: 0 | W98: 0 | X98: 0 | Y98: 0 | Z98: 0 | AA98: 0 | AB98: 0 | AC98: 0 | AD98: 0 | AE98: 0 | AF98: 0 | AG98: 0 | AH98: 0 | AI98: 0 | AJ98: 0 | AK98: 0 | AL98: 0 | AM98: 0 | AN98: 0 | AO98: 0 | AP98: =AP117*AP$7 -> 0 | AQ98: 0 | AR98: 0 | AS98: 0 | AT98: 0 | AU98: 0 | AV98: 0 | AW98: 0 | AX98: 0 | AY98: 0 | AZ98: 0 | BA98: 0 | BB98: 0 | BC98: 0 | BD98: 0 | BE98: 0 | BF98: 0 | BG98: 0
B99: 0 | G99: ='1_KMA'!$I$21 -> 2024-06-30 | H99: ='1_KMA'!$I$19 -> $millions | J99: =J118*J$7 -> 0 | K99: 0 | L99: 0 | M99: 0 | N99: 0 | O99: 0 | P99: 0 | Q99: 0 | R99: 0 | S99: 0 | T99: 0 | U99: 0 | V99: 0 | W99: 0 | X99: 0 | Y99: 0 | Z99: 0 | AA99: 0 | AB99: 0 | AC99: 0 | AD99: 0 | AE99: 0 | AF99: 0 | AG99: 0 | AH99: 0 | AI99: 0 | AJ99: 0 | AK99: 0 | AL99: 0 | AM99: 0 | AN99: 0 | AO99: 0 | AP99: =AP118*AP$7 -> 0 | AQ99: 0 | AR99: 0 | AS99: 0 | AT99: 0 | AU99: 0 | AV99: 0 | AW99: 0 | AX99: 0 | AY99: 0 | AZ99: 0 | BA99: 0 | BB99: 0 | BC99: 0 | BD99: 0 | BE99: 0 | BF99: 0 | BG99: 0
B100: 0 | G100: ='1_KMA'!$I$21 -> 2024-06-30 | H100: ='1_KMA'!$I$19 -> $millions | J100: =J119*J$7 -> 0 | K100: 0 | L100: 0 | M100: 0 | N100: 0 | O100: 0 | P100: 0 | Q100: 0 | R100: 0 | S100: 0 | T100: 0 | U100: 0 | V100: 0 | W100: 0 | X100: 0 | Y100: 0 | Z100: 0 | AA100: 0 | AB100: 0 | AC100: 0 | AD100: 0 | AE100: 0 | AF100: 0 | AG100: 0 | AH100: 0 | AI100: 0 | AJ100: 0 | AK100: 0 | AL100: 0 | AM100: 0 | AN100: 0 | AO100: 0 | AP100: =AP119*AP$7 -> 0 | AQ100: 0 | AR100: 0 | AS100: 0 | AT100: 0 | AU100: 0 | AV100: 0 | AW100: 0 | AX100: 0 | AY100: 0 | AZ100: 0 | BA100: 0 | BB100: 0 | BC100: 0 | BD100: 0 | BE100: 0 | BF100: 0 | BG100: 0
B101: ='3_BC'!B120 -> Total | G101: ='1_KMA'!$I$21 -> 2024-06-30 | H101: ='1_KMA'!$I$19 -> $millions | J101: =J120*J$7 -> 0 | K101: 0 | L101: 0 | M101: 0 | N101: 0 | O101: 0 | P101: 0 | Q101: 0 | R101: 0 | S101: 0 | T101: 0 | U101: 0 | V101: 0 | W101: 0 | X101: 0 | Y101: 0 | Z101: 0 | AA101: 0 | AB101: 0 | AC101: 0 | AD101: 0 | AE101: 0 | AF101: 0 | AG101: 0 | AH101: 0 | AI101: 0 | AJ101: 0 | AK101: 0 | AL101: 0 | AM101: 0 | AN101: 0 | AO101: 0 | AP101: =AP120*AP$7 -> 0 | AQ101: 0 | AR101: 0 | AS101: 0 | AT101: 0 | AU101: 0 | AV101: 0 | AW101: 0 | AX101: 0 | AY101: 0 | AZ101: 0 | BA101: 0 | BB101: 0 | BC101: 0 | BD101: 0 | BE101: 0 | BF101: 0 | BG101: 0
B103: Undiscounted | D103: ="("&TEXT('1_KMA'!$I$20,"dd-mmm-yy")&" dollars)" -> (30-Jun-24 dollars)
B105: Costs
G107: $ Basis Reminder | H107: $ Reminder
B108: Net Capex | G108: ='1_KMA'!$I$20 -> 2024-06-30 | H108: ='1_KMA'!$I$19 -> $millions | J108: =J52*Controls!$F$22 -> 0 | K108: =K52*Controls!$F$22 -> 0 | L108: =L52*Controls!$F$22 -> 0 | M108: =M52*Controls!$F$22 -> 0 | N108: =N52*Controls!$F$22 -> 0 | O108: =O52*Controls!$F$22 -> 0 | P108: =P52*Controls!$F$22 -> 0 | Q108: =Q52*Controls!$F$22 -> 0 | R108: =R52*Controls!$F$22 -> 0 | S108: =S52*Controls!$F$22 -> 0 | T108: =T52*Controls!$F$22 -> 0 | U108: =U52*Controls!$F$22 -> 0 | V108: =V52*Controls!$F$22 -> 0 | W108: =W52*Controls!$F$22 -> 0 | X108: =X52*Controls!$F$22 -> 0 | Y108: =Y52*Controls!$F$22 -> 0 | Z108: =Z52*Controls!$F$22 -> 0 | AA108: =AA52*Controls!$F$22 -> 0 | AB108: =AB52*Controls!$F$22 -> 0 | AC108: =AC52*Controls!$F$22 -> 0 | AD108: =AD52*Controls!$F$22 -> 0 | AE108: =AE52*Controls!$F$22 -> 0 | AF108: =AF52*Controls!$F$22 -> 0 | AG108: =AG52*Controls!$F$22 -> 0 | AH108: =AH52*Controls!$F$22 -> 0 | AI108: =AI52*Controls!$F$22 -> 0 | AJ108: =AJ52*Controls!$F$22 -> 0 | AK108: =AK52*Controls!$F$22 -> 0 | AL108: =AL52*Controls!$F$22 -> 0 | AM108: =AM52*Controls!$F$22 -> 0 | AN108: =AN52*Controls!$F$22 -> 0 | AO108: =AO52*Controls!$F$22 -> 0 | AP108: =AP52*Controls!$F$22 -> 0 | AQ108: =AQ52*Controls!$F$22 -> 0 | AR108: =AR52*Controls!$F$22 -> 0 | AS108: =AS52*Controls!$F$22 -> 0 | AT108: =AT52*Controls!$F$22 -> 0 | AU108: =AU52*Controls!$F$22 -> 0 | AV108: =AV52*Controls!$F$22 -> 0 | AW108: =AW52*Controls!$F$22 -> 0 | AX108: =AX52*Controls!$F$22 -> 0 | AY108: =AY52*Controls!$F$22 -> 0 | AZ108: =AZ52*Controls!$F$22 -> 0 | BA108: =BA52*Controls!$F$22 -> 0 | BB108: =BB52*Controls!$F$22 -> 0 | BC108: =BC52*Controls!$F$22 -> 0 | BD108: =BD52*Controls!$F$22 -> 0 | BE108: =BE52*Controls!$F$22 -> 0 | BF108: =BF52*Controls!$F$22 -> 0 | BG108: =BG52*Controls!$F$22 -> 0
B109: Opex | G109: ='1_KMA'!$I$20 -> 2024-06-30 | H109: ='1_KMA'!$I$19 -> $millions | J109: =J53*Controls!$F$22 -> 0 | K109: =K53*Controls!$F$22 -> 0 | L109: =L53*Controls!$F$22 -> 0 | M109: =M53*Controls!$F$22 -> 0 | N109: =N53*Controls!$F$22 -> 0 | O109: =O53*Controls!$F$22 -> 0 | P109: =P53*Controls!$F$22 -> 0 | Q109: =Q53*Controls!$F$22 -> 0 | R109: =R53*Controls!$F$22 -> 0 | S109: =S53*Controls!$F$22 -> 0 | T109: =T53*Controls!$F$22 -> 0 | U109: =U53*Controls!$F$22 -> 0 | V109: =V53*Controls!$F$22 -> 0 | W109: =W53*Controls!$F$22 -> 0 | X109: =X53*Controls!$F$22 -> 0 | Y109: =Y53*Controls!$F$22 -> 0 | Z109: =Z53*Controls!$F$22 -> 0 | AA109: =AA53*Controls!$F$22 -> 0 | AB109: =AB53*Controls!$F$22 -> 0 | AC109: =AC53*Controls!$F$22 -> 0 | AD109: =AD53*Controls!$F$22 -> 0 | AE109: =AE53*Controls!$F$22 -> 0 | AF109: =AF53*Controls!$F$22 -> 0 | AG109: =AG53*Controls!$F$22 -> 0 | AH109: =AH53*Controls!$F$22 -> 0 | AI109: =AI53*Controls!$F$22 -> 0 | AJ109: =AJ53*Controls!$F$22 -> 0 | AK109: =AK53*Controls!$F$22 -> 0 | AL109: =AL53*Controls!$F$22 -> 0 | AM109: =AM53*Controls!$F$22 -> 0 | AN109: =AN53*Controls!$F$22 -> 0 | AO109: =AO53*Controls!$F$22 -> 0 | AP109: =AP53*Controls!$F$22 -> 0 | AQ109: =AQ53*Controls!$F$22 -> 0 | AR109: =AR53*Controls!$F$22 -> 0 | AS109: =AS53*Controls!$F$22 -> 0 | AT109: =AT53*Controls!$F$22 -> 0 | AU109: =AU53*Controls!$F$22 -> 0 | AV109: =AV53*Controls!$F$22 -> 0 | AW109: =AW53*Controls!$F$22 -> 0 | AX109: =AX53*Controls!$F$22 -> 0 | AY109: =AY53*Controls!$F$22 -> 0 | AZ109: =AZ53*Controls!$F$22 -> 0 | BA109: =BA53*Controls!$F$22 -> 0 | BB109: =BB53*Controls!$F$22 -> 0 | BC109: =BC53*Controls!$F$22 -> 0 | BD109: =BD53*Controls!$F$22 -> 0 | BE109: =BE53*Controls!$F$22 -> 0 | BF109: =BF53*Controls!$F$22 -> 0 | BG109: =BG53*Controls!$F$22 -> 0
B110: Total | G110: ='1_KMA'!$I$20 -> 2024-06-30 | H110: ='1_KMA'!$I$19 -> $millions | J110: =SUM(J108:J109) -> 0 | K110: =SUM(K108:K109) -> 0 | L110: 0 | M110: 0 | N110: 0 | O110: 0 | P110: 0 | Q110: 0 | R110: 0 | S110: 0 | T110: 0 | U110: 0 | V110: 0 | W110: 0 | X110: 0 | Y110: 0 | Z110: 0 | AA110: 0 | AB110: 0 | AC110: 0 | AD110: 0 | AE110: 0 | AF110: 0 | AG110: 0 | AH110: 0 | AI110: 0 | AJ110: 0 | AK110: 0 | AL110: 0 | AM110: 0 | AN110: 0 | AO110: 0 | AP110: 0 | AQ110: 0 | AR110: 0 | AS110: 0 | AT110: 0 | AU110: 0 | AV110: 0 | AW110: 0 | AX110: 0 | AY110: 0 | AZ110: 0 | BA110: 0 | BB110: 0 | BC110: 0 | BD110: 0 | BE110: 0 | BF110: 0 | BG110: 0
B112: Benefits
G114: $ Basis Reminder | H114: $ Reminder
B115: ='2.1_BC'!$B$16 -> Value of EUE | G115: ='1_KMA'!$I$20 -> 2024-06-30 | H115: ='1_KMA'!$I$19 -> $millions | J115: =J59 -> 0 | K115: =K59 -> 0 | L115: 0 | M115: 0 | N115: 0 | O115: 0 | P115: 0 | Q115: 0 | R115: 0 | S115: 0 | T115: 0 | U115: 0 | V115: 0 | W115: 0 | X115: 0 | Y115: 0 | Z115: 0 | AA115: 0 | AB115: 0 | AC115: 0 | AD115: 0 | AE115: 0 | AF115: 0 | AG115: 0 | AH115: 0 | AI115: 0 | AJ115: 0 | AK115: 0 | AL115: 0 | AM115: 0 | AN115: 0 | AO115: 0 | AP115: 0 | AQ115: 0 | AR115: 0 | AS115: 0 | AT115: 0 | AU115: 0 | AV115: 0 | AW115: 0 | AX115: 0 | AY115: 0 | AZ115: 0 | BA115: 0 | BB115: 0 | BC115: 0 | BD115: 0 | BE115: 0 | BF115: 0 | BG115: 0
B116: ='2.1_BC'!$B$17 -> 0 | G116: ='1_KMA'!$I$20 -> 2024-06-30 | H116: ='1_KMA'!$I$19 -> $millions | J116: =J60 -> 0 | K116: =K60 -> 0 | L116: 0 | M116: 0 | N116: 0 | O116: 0 | P116: 0 | Q116: 0 | R116: 0 | S116: 0 | T116: 0 | U116: 0 | V116: 0 | W116: 0 | X116: 0 | Y116: 0 | Z116: 0 | AA116: 0 | AB116: 0 | AC116: 0 | AD116: 0 | AE116: 0 | AF116: 0 | AG116: 0 | AH116: 0 | AI116: 0 | AJ116: 0 | AK116: 0 | AL116: 0 | AM116: 0 | AN116: 0 | AO116: 0 | AP116: 0 | AQ116: 0 | AR116: 0 | AS116: 0 | AT116: 0 | AU116: 0 | AV116: 0 | AW116: 0 | AX116: 0 | AY116: 0 | AZ116: 0 | BA116: 0 | BB116: 0 | BC116: 0 | BD116: 0 | BE116: 0 | BF116: 0 | BG116: 0
B117: ='2.1_BC'!$B$18 -> Resilience | G117: ='1_KMA'!$I$20 -> 2024-06-30 | H117: ='1_KMA'!$I$19 -> $millions | J117: =J61 -> 0 | K117: =K61 -> 0 | L117: 0 | M117: 0 | N117: 0 | O117: 0 | P117: 0 | Q117: 0 | R117: 0 | S117: 0 | T117: 0 | U117: 0 | V117: 0 | W117: 0 | X117: 0 | Y117: 0 | Z117: 0 | AA117: 0 | AB117: 0 | AC117: 0 | AD117: 0 | AE117: 0 | AF117: 0 | AG117: 0 | AH117: 0 | AI117: 0 | AJ117: 0 | AK117: 0 | AL117: 0 | AM117: 0 | AN117: 0 | AO117: 0 | AP117: 0 | AQ117: 0 | AR117: 0 | AS117: 0 | AT117: 0 | AU117: 0 | AV117: 0 | AW117: 0 | AX117: 0 | AY117: 0 | AZ117: 0 | BA117: 0 | BB117: 0 | BC117: 0 | BD117: 0 | BE117: 0 | BF117: 0 | BG117: 0
B118: ='2.1_BC'!$B$19 -> 0 | G118: ='1_KMA'!$I$20 -> 2024-06-30 | H118: ='1_KMA'!$I$19 -> $millions | J118: =J62 -> 0 | K118: =K62 -> 0 | L118: 0 | M118: 0 | N118: 0 | O118: 0 | P118: 0 | Q118: 0 | R118: 0 | S118: 0 | T118: 0 | U118: 0 | V118: 0 | W118: 0 | X118: 0 | Y118: 0 | Z118: 0 | AA118: 0 | AB118: 0 | AC118: 0 | AD118: 0 | AE118: 0 | AF118: 0 | AG118: 0 | AH118: 0 | AI118: 0 | AJ118: 0 | AK118: 0 | AL118: 0 | AM118: 0 | AN118: 0 | AO118: 0 | AP118: 0 | AQ118: 0 | AR118: 0 | AS118: 0 | AT118: 0 | AU118: 0 | AV118: 0 | AW118: 0 | AX118: 0 | AY118: 0 | AZ118: 0 | BA118: 0 | BB118: 0 | BC118: 0 | BD118: 0 | BE118: 0 | BF118: 0 | BG118: 0
B119: ='2.1_BC'!$B$20 -> 0 | G119: ='1_KMA'!$I$20 -> 2024-06-30 | H119: ='1_KMA'!$I$19 -> $millions | J119: =J63 -> 0 | K119: =K63 -> 0 | L119: 0 | M119: 0 | N119: 0 | O119: 0 | P119: 0 | Q119: 0 | R119: 0 | S119: 0 | T119: 0 | U119: 0 | V119: 0 | W119: 0 | X119: 0 | Y119: 0 | Z119: 0 | AA119: 0 | AB119: 0 | AC119: 0 | AD119: 0 | AE119: 0 | AF119: 0 | AG119: 0 | AH119: 0 | AI119: 0 | AJ119: 0 | AK119: 0 | AL119: 0 | AM119: 0 | AN119: 0 | AO119: 0 | AP119: 0 | AQ119: 0 | AR119: 0 | AS119: 0 | AT119: 0 | AU119: 0 | AV119: 0 | AW119: 0 | AX119: 0 | AY119: 0 | AZ119: 0 | BA119: 0 | BB119: 0 | BC119: 0 | BD119: 0 | BE119: 0 | BF119: 0 | BG119: 0
B120: Total | G120: ='1_KMA'!$I$20 -> 2024-06-30 | H120: ='1_KMA'!$I$19 -> $millions | J120: =SUM(J115:J119) -> 0 | K120: =SUM(K115:K119) -> 0 | L120: 0 | M120: 0 | N120: 0 | O120: 0 | P120: 0 | Q120: 0 | R120: 0 | S120: 0 | T120: 0 | U120: 0 | V120: 0 | W120: 0 | X120: 0 | Y120: 0 | Z120: 0 | AA120: 0 | AB120: 0 | AC120: 0 | AD120: 0 | AE120: 0 | AF120: 0 | AG120: 0 | AH120: 0 | AI120: 0 | AJ120: 0 | AK120: 0 | AL120: 0 | AM120: 0 | AN120: 0 | AO120: 0 | AP120: 0 | AQ120: 0 | AR120: 0 | AS120: 0 | AT120: 0 | AU120: 0 | AV120: 0 | AW120: 0 | AX120: 0 | AY120: 0 | AZ120: 0 | BA120: 0 | BB120: 0 | BC120: 0 | BD120: 0 | BE120: 0 | BF120: 0 | BG120: 0
B122: =Controls!$B$23&" "&Controls!$C$23&" ("&TEXT(Controls!$E$23,"0.00%")&")" -> Sensitivity Scenario 2 Lower Discount Rate (3.00%)
B123: Summary
B125: WACC | J125: =Controls!$E$23 -> 0.03 | K125: =Controls!$E$23 -> 0.03 | L125: =Controls!$E$23 -> 0.03 | M125: =Controls!$E$23 -> 0.03 | N125: =Controls!$E$23 -> 0.03 | O125: =Controls!$E$23 -> 0.03 | P125: =Controls!$E$23 -> 0.03 | Q125: =Controls!$E$23 -> 0.03 | R125: =Controls!$E$23 -> 0.03 | S125: =Controls!$E$23 -> 0.03 | T125: =Controls!$E$23 -> 0.03 | U125: =Controls!$E$23 -> 0.03 | V125: =Controls!$E$23 -> 0.03 | W125: =Controls!$E$23 -> 0.03 | X125: =Controls!$E$23 -> 0.03 | Y125: =Controls!$E$23 -> 0.03 | Z125: =Controls!$E$23 -> 0.03 | AA125: =Controls!$E$23 -> 0.03 | AB125: =Controls!$E$23 -> 0.03 | AC125: =Controls!$E$23 -> 0.03 | AD125: =Controls!$E$23 -> 0.03 | AE125: =Controls!$E$23 -> 0.03 | AF125: =Controls!$E$23 -> 0.03 | AG125: =Controls!$E$23 -> 0.03 | AH125: =Controls!$E$23 -> 0.03 | AI125: =Controls!$E$23 -> 0.03 | AJ125: =Controls!$E$23 -> 0.03 | AK125: =Controls!$E$23 -> 0.03 | AL125: =Controls!$E$23 -> 0.03 | AM125: =Controls!$E$23 -> 0.03 | AN125: =Controls!$E$23 -> 0.03 | AO125: =Controls!$E$23 -> 0.03 | AP125: =Controls!$E$23 -> 0.03 | AQ125: =Controls!$E$23 -> 0.03 | AR125: =Controls!$E$23 -> 0.03 | AS125: =Controls!$E$23 -> 0.03 | AT125: =Controls!$E$23 -> 0.03 | AU125: =Controls!$E$23 -> 0.03 | AV125: =Controls!$E$23 -> 0.03 | AW125: =Controls!$E$23 -> 0.03 | AX125: =Controls!$E$23 -> 0.03 | AY125: =Controls!$E$23 -> 0.03 | AZ125: =Controls!$E$23 -> 0.03 | BA125: =Controls!$E$23 -> 0.03 | BB125: =Controls!$E$23 -> 0.03 | BC125: =Controls!$E$23 -> 0.03 | BD125: =Controls!$E$23 -> 0.03 | BE125: =Controls!$E$23 -> 0.03 | BF125: =Controls!$E$23 -> 0.03 | BG125: =Controls!$E$23 -> 0.03
B126: Deflator (interim calculation) | J126: 1 | K126: =J126*(1+K125) -> 1.03 | L126: =K126*(1+L125) -> 1.0609 | M126: =L126*(1+M125) -> 1.092727 | N126: =M126*(1+N125) -> 1.12550881 | O126: =N126*(1+O125) -> 1.159274074 | P126: =O126*(1+P125) -> 1.194052297 | Q126: =P126*(1+Q125) -> 1.229873865 | R126: =Q126*(1+R125) -> 1.266770081 | S126: =R126*(1+S125) -> 1.304773184 | T126: =S126*(1+T125) -> 1.343916379 | U126: =T126*(1+U125) -> 1.384233871 | V126: =U126*(1+V125) -> 1.425760887 | W126: =V126*(1+W125) -> 1.468533713 | X126: =W126*(1+X125) -> 1.512589725 | Y126: =X126*(1+Y125) -> 1.557967417 | Z126: =Y126*(1+Z125) -> 1.604706439 | AA126: =Z126*(1+AA125) -> 1.652847632 | AB126: =AA126*(1+AB125) -> 1.702433061 | AC126: =AB126*(1+AC125) -> 1.753506053 | AD126: =AC126*(1+AD125) -> 1.806111235 | AE126: =AD126*(1+AE125) -> 1.860294572 | AF126: =AE126*(1+AF125) -> 1.916103409 | AG126: =AF126*(1+AG125) -> 1.973586511 | AH126: =AG126*(1+AH125) -> 2.032794106 | AI126: =AH126*(1+AI125) -> 2.09377793 | AJ126: =AI126*(1+AJ125) -> 2.156591268 | AK126: =AJ126*(1+AK125) -> 2.221289006 | AL126: =AK126*(1+AL125) -> 2.287927676 | AM126: =AL126*(1+AM125) -> 2.356565506 | AN126: =AM126*(1+AN125) -> 2.427262471 | AO126: =AN126*(1+AO125) -> 2.500080345 | AP126: =AO126*(1+AP125) -> 2.575082756 | AQ126: =AP126*(1+AQ125) -> 2.652335238 | AR126: =AQ126*(1+AR125) -> 2.731905296 | AS126: =AR126*(1+AS125) -> 2.813862454 | AT126: =AS126*(1+AT125) -> 2.898278328 | AU126: =AT126*(1+AU125) -> 2.985226678 | AV126: =AU126*(1+AV125) -> 3.074783478 | AW126: =AV126*(1+AW125) -> 3.167026983 | AX126: =AW126*(1+AX125) -> 3.262037792 | AY126: =AX126*(1+AY125) -> 3.359898926 | AZ126: =AY126*(1+AZ125) -> 3.460695894 | BA126: =AZ126*(1+BA125) -> 3.56451677 | BB126: =BA126*(1+BB125) -> 3.671452273 | BC126: =BB126*(1+BC125) -> 3.781595842 | BD126: =BC126*(1+BD125) -> 3.895043717 | BE126: =BD126*(1+BE125) -> 4.011895028 | BF126: =BE126*(1+BF125) -> 4.132251879 | BG126: =BF126*(1+BG125) -> 4.256219436
B127: Deflator | J127: =1/J126 -> 1 | K127: =1/K126 -> 0.9708737864 | L127: =1/L126 -> 0.9425959091 | M127: =1/M126 -> 0.9151416594 | N127: =1/N126 -> 0.8884870479 | O127: =1/O126 -> 0.8626087844 | P127: 0.8374842567 | Q127: 0.8130915113 | R127: 0.7894092343 | S127: 0.7664167323 | T127: 0.7440939149 | U127: 0.7224212766 | V127: 0.7013798802 | W127: 0.68095134 | X127: 0.6611178058 | Y127: 0.6418619474 | Z127: 0.6231669392 | AA127: 0.6050164458 | AB127: 0.5873946076 | AC127: 0.5702860268 | AD127: 0.5536757542 | AE127: 0.5375492759 | AF127: 0.5218925009 | AG127: 0.5066917484 | AH127: 0.4919337363 | AI127: 0.4776055693 | AJ127: 0.4636947274 | AK127: 0.4501890558 | AL127: 0.4370767532 | AM127: 0.4243463623 | AN127: 0.4119867595 | AO127: 0.3999871452 | AP127: 0.3883370341 | AQ127: 0.3770262467 | AR127: 0.3660448997 | AS127: 0.3553833978 | AT127: 0.3450324251 | AU127: 0.3349829369 | AV127: 0.3252261524 | AW127: 0.315753546 | AX127: 0.3065568408 | AY127: 0.2976280008 | AZ127: 0.288959224 | BA127: 0.280542936 | BB127: 0.2723717825 | BC127: 0.2644386238 | BD127: 0.2567365279 | BE127: 0.249258765 | BF127: 0.2419988009 | BG127: 0.2349502922
B129: Totex sought for EDPR FY27-31 (undiscounted) | G129: ="("&TEXT('1_KMA'!$I$21,"dd-mmm-yy")&" Dollars)" -> (30-Jun-24 Dollars)
C130: Net Capital Expenditure | G130: =SUM(J130:BG130) -> 0 | J130: =-J145*J$1*J$8 -> 0 | K130: =-K145*K$1*K$8 -> 0 | L130: 0 | M130: 0 | N130: =-N145*N$1*N$8 -> 0 | O130: 0 | P130: 0 | Q130: 0 | R130: 0 | S130: 0 | T130: 0 | U130: 0 | V130: 0 | W130: 0 | X130: 0 | Y130: 0 | Z130: 0 | AA130: 0 | AB130: 0 | AC130: 0 | AD130: 0 | AE130: 0 | AF130: 0 | AG130: 0 | AH130: 0 | AI130: 0 | AJ130: 0 | AK130: 0 | AL130: 0 | AM130: 0 | AN130: 0 | AO130: 0 | AP130: 0 | AQ130: 0 | AR130: 0 | AS130: 0 | AT130: 0 | AU130: 0 | AV130: 0 | AW130: 0 | AX130: 0 | AY130: 0 | AZ130: 0 | BA130: 0 | BB130: 0 | BC130: 0 | BD130: 0 | BE130: 0 | BF130: 0 | BG130: 0
C131: Operating Expenditure | G131: =SUM(J131:BG131) -> 0 | J131: =-J146*J$1*J$8 -> 0 | K131: =-K146*K$1*K$8 -> 0 | L131: 0 | M131: 0 | N131: =-N146*N$1*N$8 -> 0 | O131: 0 | P131: 0 | Q131: 0 | R131: 0 | S131: 0 | T131: 0 | U131: 0 | V131: 0 | W131: 0 | X131: 0 | Y131: 0 | Z131: 0 | AA131: 0 | AB131: 0 | AC131: 0 | AD131: 0 | AE131: 0 | AF131: 0 | AG131: 0 | AH131: 0 | AI131: 0 | AJ131: 0 | AK131: 0 | AL131: 0 | AM131: 0 | AN131: 0 | AO131: 0 | AP131: 0 | AQ131: 0 | AR131: 0 | AS131: 0 | AT131: 0 | AU131: 0 | AV131: 0 | AW131: 0 | AX131: 0 | AY131: 0 | AZ131: 0 | BA131: 0 | BB131: 0 | BC131: 0 | BD131: 0 | BE131: 0 | BF131: 0 | BG131: 0
C132: Totex | G132: =SUM(G130:G131) -> 0 | J132: =SUM(J130:J131) -> 0 | K132: =SUM(K130:K131) -> 0 | L132: =SUM(L130:L131) -> 0 | M132: 0 | N132: 0 | O132: 0 | P132: 0 | Q132: 0 | R132: 0 | S132: 0 | T132: 0 | U132: 0 | V132: 0 | W132: 0 | X132: 0 | Y132: 0 | Z132: 0 | AA132: 0 | AB132: 0 | AC132: 0 | AD132: 0 | AE132: 0 | AF132: 0 | AG132: 0 | AH132: 0 | AI132: 0 | AJ132: 0 | AK132: 0 | AL132: 0 | AM132: 0 | AN132: 0 | AO132: 0 | AP132: 0 | AQ132: 0 | AR132: 0 | AS132: 0 | AT132: 0 | AU132: 0 | AV132: 0 | AW132: 0 | AX132: 0 | AY132: 0 | AZ132: 0 | BA132: 0 | BB132: 0 | BC132: 0 | BD132: 0 | BE132: 0 | BF132: 0 | BG132: 0
B134: PV over full assessment period to establish the preferred option (discounted) | G134: ="("&TEXT('1_KMA'!$I$21,"dd-mmm-yy")&" Dollars)" -> (30-Jun-24 Dollars)
C135: Net Capital Expenditure | G135: =SUM(J135:BG135) -> 0 | J135: =-(J145)*J$127*J$8 -> 0 | K135: =-(K145)*K$127*K$8 -> 0 | L135: 0 | M135: 0 | N135: 0 | O135: 0 | P135: 0 | Q135: 0 | R135: 0 | S135: 0 | T135: 0 | U135: 0 | V135: 0 | W135: 0 | X135: 0 | Y135: 0 | Z135: 0 | AA135: 0 | AB135: 0 | AC135: 0 | AD135: 0 | AE135: 0 | AF135: 0 | AG135: 0 | AH135: 0 | AI135: 0 | AJ135: 0 | AK135: 0 | AL135: 0 | AM135: 0 | AN135: 0 | AO135: 0 | AP135: 0 | AQ135: 0 | AR135: 0 | AS135: 0 | AT135: 0 | AU135: 0 | AV135: 0 | AW135: 0 | AX135: 0 | AY135: 0 | AZ135: 0 | BA135: 0 | BB135: 0 | BC135: 0 | BD135: 0 | BE135: 0 | BF135: 0 | BG135: =-(BG145)*BG$127*BG$8 -> 0
C136: Operating Expenditure | G136: =SUM(J136:BG136) -> 0 | J136: =-(J146)*J$127*J$8 -> 0 | K136: =-(K146)*K$127*K$8 -> 0 | L136: 0 | M136: 0 | N136: 0 | O136: 0 | P136: 0 | Q136: 0 | R136: 0 | S136: 0 | T136: 0 | U136: 0 | V136: 0 | W136: 0 | X136: 0 | Y136: 0 | Z136: 0 | AA136: 0 | AB136: 0 | AC136: 0 | AD136: 0 | AE136: 0 | AF136: 0 | AG136: 0 | AH136: 0 | AI136: 0 | AJ136: 0 | AK136: 0 | AL136: 0 | AM136: 0 | AN136: 0 | AO136: 0 | AP136: 0 | AQ136: 0 | AR136: 0 | AS136: 0 | AT136: 0 | AU136: 0 | AV136: 0 | AW136: 0 | AX136: 0 | AY136: 0 | AZ136: 0 | BA136: 0 | BB136: 0 | BC136: 0 | BD136: 0 | BE136: 0 | BF136: 0 | BG136: =-(BG146)*BG$127*BG$8 -> 0
C137: Net Benefits | G137: =SUM(J137:BG137) -> 0 | J137: =(J157)*J$127*J$8 -> 0 | K137: =(K157)*K$127*K$8 -> 0 | L137: 0 | M137: 0 | N137: 0 | O137: 0 | P137: 0 | Q137: 0 | R137: 0 | S137: 0 | T137: 0 | U137: 0 | V137: 0 | W137: 0 | X137: 0 | Y137: 0 | Z137: 0 | AA137: 0 | AB137: 0 | AC137: 0 | AD137: 0 | AE137: 0 | AF137: 0 | AG137: 0 | AH137: 0 | AI137: 0 | AJ137: 0 | AK137: 0 | AL137: 0 | AM137: 0 | AN137: 0 | AO137: 0 | AP137: 0 | AQ137: 0 | AR137: 0 | AS137: 0 | AT137: 0 | AU137: 0 | AV137: 0 | AW137: 0 | AX137: 0 | AY137: 0 | AZ137: 0 | BA137: 0 | BB137: 0 | BC137: 0 | BD137: 0 | BE137: 0 | BF137: 0 | BG137: =(BG157)*BG$127*BG$8 -> 0
B138: Total Present Value | G138: =SUM(J138:BG138) -> 0 | J138: =SUM(J135:J137) -> 0 | K138: =SUM(K135:K137) -> 0 | L138: 0 | M138: 0 | N138: 0 | O138: 0 | P138: 0 | Q138: 0 | R138: 0 | S138: 0 | T138: 0 | U138: 0 | V138: 0 | W138: 0 | X138: 0 | Y138: 0 | Z138: 0 | AA138: 0 | AB138: 0 | AC138: 0 | AD138: 0 | AE138: 0 | AF138: 0 | AG138: 0 | AH138: 0 | AI138: 0 | AJ138: 0 | AK138: 0 | AL138: 0 | AM138: 0 | AN138: 0 | AO138: 0 | AP138: 0 | AQ138: 0 | AR138: 0 | AS138: 0 | AT138: 0 | AU138: 0 | AV138: 0 | AW138: 0 | AX138: 0 | AY138: 0 | AZ138: 0 | BA138: 0 | BB138: 0 | BC138: 0 | BD138: 0 | BE138: 0 | BF138: 0 | BG138: 0
B140: Undiscounted | D140: ="("&TEXT('1_KMA'!$I$21,"dd-mmm-yy")&" dollars)" -> (30-Jun-24 dollars)
B142: Costs
G144: $ Basis Reminder | H144: $ Reminder
B145: Net Capex | G145: ='1_KMA'!$I$21 -> 2024-06-30 | H145: ='1_KMA'!$I$19 -> $millions | J145: =J164*J$7 -> 0 | K145: 0 | L145: 0 | M145: 0 | N145: 0 | O145: 0 | P145: 0 | Q145: 0 | R145: 0 | S145: 0 | T145: 0 | U145: 0 | V145: 0 | W145: 0 | X145: 0 | Y145: 0 | Z145: 0 | AA145: 0 | AB145: 0 | AC145: 0 | AD145: 0 | AE145: 0 | AF145: 0 | AG145: 0 | AH145: 0 | AI145: 0 | AJ145: 0 | AK145: 0 | AL145: 0 | AM145: 0 | AN145: 0 | AO145: 0 | AP145: =AP164*AP$7 -> 0 | AQ145: 0 | AR145: 0 | AS145: 0 | AT145: 0 | AU145: 0 | AV145: 0 | AW145: 0 | AX145: 0 | AY145: 0 | AZ145: 0 | BA145: 0 | BB145: 0 | BC145: 0 | BD145: 0 | BE145: 0 | BF145: 0 | BG145: 0
B146: Opex | G146: ='1_KMA'!$I$21 -> 2024-06-30 | H146: ='1_KMA'!$I$19 -> $millions | J146: =J165*J$7 -> 0 | K146: 0 | L146: 0 | M146: 0 | N146: 0 | O146: 0 | P146: 0 | Q146: 0 | R146: 0 | S146: 0 | T146: 0 | U146: 0 | V146: 0 | W146: 0 | X146: 0 | Y146: 0 | Z146: 0 | AA146: 0 | AB146: 0 | AC146: 0 | AD146: 0 | AE146: 0 | AF146: 0 | AG146: 0 | AH146: 0 | AI146: 0 | AJ146: 0 | AK146: 0 | AL146: 0 | AM146: 0 | AN146: 0 | AO146: 0 | AP146: =AP165*AP$7 -> 0 | AQ146: 0 | AR146: 0 | AS146: 0 | AT146: 0 | AU146: 0 | AV146: 0 | AW146: 0 | AX146: 0 | AY146: 0 | AZ146: 0 | BA146: 0 | BB146: 0 | BC146: 0 | BD146: 0 | BE146: 0 | BF146: 0 | BG146: 0
B147: Total | G147: ='1_KMA'!$I$21 -> 2024-06-30 | H147: ='1_KMA'!$I$19 -> $millions | J147: =J166*J$7 -> 0 | K147: 0 | L147: 0 | M147: 0 | N147: 0 | O147: 0 | P147: 0 | Q147: 0 | R147: 0 | S147: 0 | T147: 0 | U147: 0 | V147: 0 | W147: 0 | X147: 0 | Y147: 0 | Z147: 0 | AA147: 0 | AB147: 0 | AC147: 0 | AD147: 0 | AE147: 0 | AF147: 0 | AG147: 0 | AH147: 0 | AI147: 0 | AJ147: 0 | AK147: 0 | AL147: 0 | AM147: 0 | AN147: 0 | AO147: 0 | AP147: =AP166*AP$7 -> 0 | AQ147: 0 | AR147: 0 | AS147: 0 | AT147: 0 | AU147: 0 | AV147: 0 | AW147: 0 | AX147: 0 | AY147: 0 | AZ147: 0 | BA147: 0 | BB147: 0 | BC147: 0 | BD147: 0 | BE147: 0 | BF147: 0 | BG147: 0
B149: Benefits
G151: $ Basis Reminder | H151: $ Reminder
B152: =B171 -> Value of EUE | G152: ='1_KMA'!$I$21 -> 2024-06-30 | H152: ='1_KMA'!$I$19 -> $millions | J152: =J171*J$7 -> 0 | K152: 0 | L152: 0 | M152: 0 | N152: 0 | O152: 0 | P152: 0 | Q152: 0 | R152: 0 | S152: 0 | T152: 0 | U152: 0 | V152: 0 | W152: 0 | X152: 0 | Y152: 0 | Z152: 0 | AA152: 0 | AB152: 0 | AC152: 0 | AD152: 0 | AE152: 0 | AF152: 0 | AG152: 0 | AH152: 0 | AI152: 0 | AJ152: 0 | AK152: 0 | AL152: 0 | AM152: 0 | AN152: 0 | AO152: 0 | AP152: =AP171*AP$7 -> 0 | AQ152: 0 | AR152: 0 | AS152: 0 | AT152: 0 | AU152: 0 | AV152: 0 | AW152: 0 | AX152: 0 | AY152: 0 | AZ152: 0 | BA152: 0 | BB152: 0 | BC152: 0 | BD152: 0 | BE152: 0 | BF152: 0 | BG152: 0
B153: =B172 -> 0 | G153: ='1_KMA'!$I$21 -> 2024-06-30 | H153: ='1_KMA'!$I$19 -> $millions | J153: =J172*J$7 -> 0 | K153: 0 | L153: 0 | M153: 0 | N153: 0 | O153: 0 | P153: 0 | Q153: 0 | R153: 0 | S153: 0 | T153: 0 | U153: 0 | V153: 0 | W153: 0 | X153: 0 | Y153: 0 | Z153: 0 | AA153: 0 | AB153: 0 | AC153: 0 | AD153: 0 | AE153: 0 | AF153: 0 | AG153: 0 | AH153: 0 | AI153: 0 | AJ153: 0 | AK153: 0 | AL153: 0 | AM153: 0 | AN153: 0 | AO153: 0 | AP153: =AP172*AP$7 -> 0 | AQ153: 0 | AR153: 0 | AS153: 0 | AT153: 0 | AU153: 0 | AV153: 0 | AW153: 0 | AX153: 0 | AY153: 0 | AZ153: 0 | BA153: 0 | BB153: 0 | BC153: 0 | BD153: 0 | BE153: 0 | BF153: 0 | BG153: 0
B154: Resilience | G154: ='1_KMA'!$I$21 -> 2024-06-30 | H154: ='1_KMA'!$I$19 -> $millions | J154: =J173*J$7 -> 0 | K154: 0 | L154: 0 | M154: 0 | N154: 0 | O154: 0 | P154: 0 | Q154: 0 | R154: 0 | S154: 0 | T154: 0 | U154: 0 | V154: 0 | W154: 0 | X154: 0 | Y154: 0 | Z154: 0 | AA154: 0 | AB154: 0 | AC154: 0 | AD154: 0 | AE154: 0 | AF154: 0 | AG154: 0 | AH154: 0 | AI154: 0 | AJ154: 0 | AK154: 0 | AL154: 0 | AM154: 0 | AN154: 0 | AO154: 0 | AP154: =AP173*AP$7 -> 0 | AQ154: 0 | AR154: 0 | AS154: 0 | AT154: 0 | AU154: 0 | AV154: 0 | AW154: 0 | AX154: 0 | AY154: 0 | AZ154: 0 | BA154: 0 | BB154: 0 | BC154: 0 | BD154: 0 | BE154: 0 | BF154: 0 | BG154: 0
B155: 0 | G155: ='1_KMA'!$I$21 -> 2024-06-30 | H155: ='1_KMA'!$I$19 -> $millions | J155: =J174*J$7 -> 0 | K155: 0 | L155: 0 | M155: 0 | N155: 0 | O155: 0 | P155: 0 | Q155: 0 | R155: 0 | S155: 0 | T155: 0 | U155: 0 | V155: 0 | W155: 0 | X155: 0 | Y155: 0 | Z155: 0 | AA155: 0 | AB155: 0 | AC155: 0 | AD155: 0 | AE155: 0 | AF155: 0 | AG155: 0 | AH155: 0 | AI155: 0 | AJ155: 0 | AK155: 0 | AL155: 0 | AM155: 0 | AN155: 0 | AO155: 0 | AP155: =AP174*AP$7 -> 0 | AQ155: 0 | AR155: 0 | AS155: 0 | AT155: 0 | AU155: 0 | AV155: 0 | AW155: 0 | AX155: 0 | AY155: 0 | AZ155: 0 | BA155: 0 | BB155: 0 | BC155: 0 | BD155: 0 | BE155: 0 | BF155: 0 | BG155: 0
B156: =B175 -> 0 | G156: ='1_KMA'!$I$21 -> 2024-06-30 | H156: ='1_KMA'!$I$19 -> $millions | J156: =J175*J$7 -> 0 | K156: 0 | L156: 0 | M156: 0 | N156: 0 | O156: 0 | P156: 0 | Q156: 0 | R156: 0 | S156: 0 | T156: 0 | U156: 0 | V156: 0 | W156: 0 | X156: 0 | Y156: 0 | Z156: 0 | AA156: 0 | AB156: 0 | AC156: 0 | AD156: 0 | AE156: 0 | AF156: 0 | AG156: 0 | AH156: 0 | AI156: 0 | AJ156: 0 | AK156: 0 | AL156: 0 | AM156: 0 | AN156: 0 | AO156: 0 | AP156: =AP175*AP$7 -> 0 | AQ156: 0 | AR156: 0 | AS156: 0 | AT156: 0 | AU156: 0 | AV156: 0 | AW156: 0 | AX156: 0 | AY156: 0 | AZ156: 0 | BA156: 0 | BB156: 0 | BC156: 0 | BD156: 0 | BE156: 0 | BF156: 0 | BG156: 0
B157: ='3_BC'!B176 -> Total | G157: ='1_KMA'!$I$21 -> 2024-06-30 | H157: ='1_KMA'!$I$19 -> $millions | J157: =J176*J$7 -> 0 | K157: 0 | L157: 0 | M157: 0 | N157: 0 | O157: 0 | P157: 0 | Q157: 0 | R157: 0 | S157: 0 | T157: 0 | U157: 0 | V157: 0 | W157: 0 | X157: 0 | Y157: 0 | Z157: 0 | AA157: 0 | AB157: 0 | AC157: 0 | AD157: 0 | AE157: 0 | AF157: 0 | AG157: 0 | AH157: 0 | AI157: 0 | AJ157: 0 | AK157: 0 | AL157: 0 | AM157: 0 | AN157: 0 | AO157: 0 | AP157: =AP176*AP$7 -> 0 | AQ157: 0 | AR157: 0 | AS157: 0 | AT157: 0 | AU157: 0 | AV157: 0 | AW157: 0 | AX157: 0 | AY157: 0 | AZ157: 0 | BA157: 0 | BB157: 0 | BC157: 0 | BD157: 0 | BE157: 0 | BF157: 0 | BG157: 0
B159: Undiscounted | D159: ="("&TEXT('1_KMA'!$I$20,"dd-mmm-yy")&" dollars)" -> (30-Jun-24 dollars)
B161: Costs
G163: $ Basis Reminder | H163: $ Reminder
B164: Net Capex | G164: ='1_KMA'!$I$20 -> 2024-06-30 | H164: ='1_KMA'!$I$19 -> $millions | J164: =J52*Controls!$F$23 -> 0 | K164: =K52*Controls!$F$23 -> 0 | L164: =L52*Controls!$F$23 -> 0 | M164: =M52*Controls!$F$23 -> 0 | N164: =N52*Controls!$F$23 -> 0 | O164: =O52*Controls!$F$23 -> 0 | P164: =P52*Controls!$F$23 -> 0 | Q164: =Q52*Controls!$F$23 -> 0 | R164: =R52*Controls!$F$23 -> 0 | S164: =S52*Controls!$F$23 -> 0 | T164: =T52*Controls!$F$23 -> 0 | U164: =U52*Controls!$F$23 -> 0 | V164: =V52*Controls!$F$23 -> 0 | W164: =W52*Controls!$F$23 -> 0 | X164: =X52*Controls!$F$23 -> 0 | Y164: =Y52*Controls!$F$23 -> 0 | Z164: =Z52*Controls!$F$23 -> 0 | AA164: =AA52*Controls!$F$23 -> 0 | AB164: =AB52*Controls!$F$23 -> 0 | AC164: =AC52*Controls!$F$23 -> 0 | AD164: =AD52*Controls!$F$23 -> 0 | AE164: =AE52*Controls!$F$23 -> 0 | AF164: =AF52*Controls!$F$23 -> 0 | AG164: =AG52*Controls!$F$23 -> 0 | AH164: =AH52*Controls!$F$23 -> 0 | AI164: =AI52*Controls!$F$23 -> 0 | AJ164: =AJ52*Controls!$F$23 -> 0 | AK164: =AK52*Controls!$F$23 -> 0 | AL164: =AL52*Controls!$F$23 -> 0 | AM164: =AM52*Controls!$F$23 -> 0 | AN164: =AN52*Controls!$F$23 -> 0 | AO164: =AO52*Controls!$F$23 -> 0 | AP164: =AP52*Controls!$F$23 -> 0 | AQ164: =AQ52*Controls!$F$23 -> 0 | AR164: =AR52*Controls!$F$23 -> 0 | AS164: =AS52*Controls!$F$23 -> 0 | AT164: =AT52*Controls!$F$23 -> 0 | AU164: =AU52*Controls!$F$23 -> 0 | AV164: =AV52*Controls!$F$23 -> 0 | AW164: =AW52*Controls!$F$23 -> 0 | AX164: =AX52*Controls!$F$23 -> 0 | AY164: =AY52*Controls!$F$23 -> 0 | AZ164: =AZ52*Controls!$F$23 -> 0 | BA164: =BA52*Controls!$F$23 -> 0 | BB164: =BB52*Controls!$F$23 -> 0 | BC164: =BC52*Controls!$F$23 -> 0 | BD164: =BD52*Controls!$F$23 -> 0 | BE164: =BE52*Controls!$F$23 -> 0 | BF164: =BF52*Controls!$F$23 -> 0 | BG164: =BG52*Controls!$F$23 -> 0
B165: Opex | G165: ='1_KMA'!$I$20 -> 2024-06-30 | H165: ='1_KMA'!$I$19 -> $millions | J165: =J53*Controls!$F$23 -> 0 | K165: =K53*Controls!$F$23 -> 0 | L165: =L53*Controls!$F$23 -> 0 | M165: =M53*Controls!$F$23 -> 0 | N165: =N53*Controls!$F$23 -> 0 | O165: =O53*Controls!$F$23 -> 0 | P165: =P53*Controls!$F$23 -> 0 | Q165: =Q53*Controls!$F$23 -> 0 | R165: =R53*Controls!$F$23 -> 0 | S165: =S53*Controls!$F$23 -> 0 | T165: =T53*Controls!$F$23 -> 0 | U165: =U53*Controls!$F$23 -> 0 | V165: =V53*Controls!$F$23 -> 0 | W165: =W53*Controls!$F$23 -> 0 | X165: =X53*Controls!$F$23 -> 0 | Y165: =Y53*Controls!$F$23 -> 0 | Z165: =Z53*Controls!$F$23 -> 0 | AA165: =AA53*Controls!$F$23 -> 0 | AB165: =AB53*Controls!$F$23 -> 0 | AC165: =AC53*Controls!$F$23 -> 0 | AD165: =AD53*Controls!$F$23 -> 0 | AE165: =AE53*Controls!$F$23 -> 0 | AF165: =AF53*Controls!$F$23 -> 0 | AG165: =AG53*Controls!$F$23 -> 0 | AH165: =AH53*Controls!$F$23 -> 0 | AI165: =AI53*Controls!$F$23 -> 0 | AJ165: =AJ53*Controls!$F$23 -> 0 | AK165: =AK53*Controls!$F$23 -> 0 | AL165: =AL53*Controls!$F$23 -> 0 | AM165: =AM53*Controls!$F$23 -> 0 | AN165: =AN53*Controls!$F$23 -> 0 | AO165: =AO53*Controls!$F$23 -> 0 | AP165: =AP53*Controls!$F$23 -> 0 | AQ165: =AQ53*Controls!$F$23 -> 0 | AR165: =AR53*Controls!$F$23 -> 0 | AS165: =AS53*Controls!$F$23 -> 0 | AT165: =AT53*Controls!$F$23 -> 0 | AU165: =AU53*Controls!$F$23 -> 0 | AV165: =AV53*Controls!$F$23 -> 0 | AW165: =AW53*Controls!$F$23 -> 0 | AX165: =AX53*Controls!$F$23 -> 0 | AY165: =AY53*Controls!$F$23 -> 0 | AZ165: =AZ53*Controls!$F$23 -> 0 | BA165: =BA53*Controls!$F$23 -> 0 | BB165: =BB53*Controls!$F$23 -> 0 | BC165: =BC53*Controls!$F$23 -> 0 | BD165: =BD53*Controls!$F$23 -> 0 | BE165: =BE53*Controls!$F$23 -> 0 | BF165: =BF53*Controls!$F$23 -> 0 | BG165: =BG53*Controls!$F$23 -> 0
B166: Total | G166: ='1_KMA'!$I$20 -> 2024-06-30 | H166: ='1_KMA'!$I$19 -> $millions | J166: =SUM(J164:J165) -> 0 | K166: =SUM(K164:K165) -> 0 | L166: 0 | M166: 0 | N166: 0 | O166: 0 | P166: 0 | Q166: 0 | R166: 0 | S166: 0 | T166: 0 | U166: 0 | V166: 0 | W166: 0 | X166: 0 | Y166: 0 | Z166: 0 | AA166: 0 | AB166: 0 | AC166: 0 | AD166: 0 | AE166: 0 | AF166: 0 | AG166: 0 | AH166: 0 | AI166: 0 | AJ166: 0 | AK166: 0 | AL166: 0 | AM166: 0 | AN166: 0 | AO166: 0 | AP166: 0 | AQ166: 0 | AR166: 0 | AS166: 0 | AT166: 0 | AU166: 0 | AV166: 0 | AW166: 0 | AX166: 0 | AY166: 0 | AZ166: 0 | BA166: 0 | BB166: 0 | BC166: 0 | BD166: 0 | BE166: 0 | BF166: 0 | BG166: 0
B168: Benefits
G170: $ Basis Reminder | H170: $ Reminder
B171: ='2.1_BC'!$B$16 -> Value of EUE | G171: ='1_KMA'!$I$20 -> 2024-06-30 | H171: ='1_KMA'!$I$19 -> $millions | J171: =J59 -> 0 | K171: =K59 -> 0 | L171: 0 | M171: 0 | N171: =N59 -> 0 | O171: 0 | P171: 0 | Q171: 0 | R171: 0 | S171: 0 | T171: 0 | U171: 0 | V171: 0 | W171: 0 | X171: 0 | Y171: 0 | Z171: 0 | AA171: 0 | AB171: 0 | AC171: 0 | AD171: 0 | AE171: 0 | AF171: 0 | AG171: 0 | AH171: 0 | AI171: 0 | AJ171: 0 | AK171: 0 | AL171: 0 | AM171: 0 | AN171: 0 | AO171: 0 | AP171: 0 | AQ171: 0 | AR171: 0 | AS171: 0 | AT171: 0 | AU171: 0 | AV171: 0 | AW171: 0 | AX171: 0 | AY171: 0 | AZ171: 0 | BA171: 0 | BB171: 0 | BC171: 0 | BD171: 0 | BE171: 0 | BF171: 0 | BG171: 0
B172: ='2.1_BC'!$B$17 -> 0 | G172: ='1_KMA'!$I$20 -> 2024-06-30 | H172: ='1_KMA'!$I$19 -> $millions | J172: =J60 -> 0 | K172: =K60 -> 0 | L172: 0 | M172: 0 | N172: =N60 -> 0 | O172: 0 | P172: 0 | Q172: 0 | R172: 0 | S172: 0 | T172: 0 | U172: 0 | V172: 0 | W172: 0 | X172: 0 | Y172: 0 | Z172: 0 | AA172: 0 | AB172: 0 | AC172: 0 | AD172: 0 | AE172: 0 | AF172: 0 | AG172: 0 | AH172: 0 | AI172: 0 | AJ172: 0 | AK172: 0 | AL172: 0 | AM172: 0 | AN172: 0 | AO172: 0 | AP172: 0 | AQ172: 0 | AR172: 0 | AS172: 0 | AT172: 0 | AU172: 0 | AV172: 0 | AW172: 0 | AX172: 0 | AY172: 0 | AZ172: 0 | BA172: 0 | BB172: 0 | BC172: 0 | BD172: 0 | BE172: 0 | BF172: 0 | BG172: 0
B173: ='2.1_BC'!$B$18 -> Resilience | G173: ='1_KMA'!$I$20 -> 2024-06-30 | H173: ='1_KMA'!$I$19 -> $millions | J173: =J61 -> 0 | K173: =K61 -> 0 | L173: 0 | M173: 0 | N173: 0 | O173: 0 | P173: 0 | Q173: 0 | R173: 0 | S173: 0 | T173: 0 | U173: 0 | V173: 0 | W173: 0 | X173: 0 | Y173: 0 | Z173: 0 | AA173: 0 | AB173: 0 | AC173: 0 | AD173: 0 | AE173: 0 | AF173: 0 | AG173: 0 | AH173: 0 | AI173: 0 | AJ173: 0 | AK173: 0 | AL173: 0 | AM173: 0 | AN173: 0 | AO173: 0 | AP173: 0 | AQ173: 0 | AR173: 0 | AS173: 0 | AT173: 0 | AU173: 0 | AV173: 0 | AW173: 0 | AX173: 0 | AY173: 0 | AZ173: 0 | BA173: 0 | BB173: 0 | BC173: 0 | BD173: 0 | BE173: 0 | BF173: 0 | BG173: 0
B174: ='2.1_BC'!$B$19 -> 0 | G174: ='1_KMA'!$I$20 -> 2024-06-30 | H174: ='1_KMA'!$I$19 -> $millions | J174: =J62 -> 0 | K174: =K62 -> 0 | L174: 0 | M174: 0 | N174: 0 | O174: 0 | P174: 0 | Q174: 0 | R174: 0 | S174: 0 | T174: 0 | U174: 0 | V174: 0 | W174: 0 | X174: 0 | Y174: 0 | Z174: 0 | AA174: 0 | AB174: 0 | AC174: 0 | AD174: 0 | AE174: 0 | AF174: 0 | AG174: 0 | AH174: 0 | AI174: 0 | AJ174: 0 | AK174: 0 | AL174: 0 | AM174: 0 | AN174: 0 | AO174: 0 | AP174: 0 | AQ174: 0 | AR174: 0 | AS174: 0 | AT174: 0 | AU174: 0 | AV174: 0 | AW174: 0 | AX174: 0 | AY174: 0 | AZ174: 0 | BA174: 0 | BB174: 0 | BC174: 0 | BD174: 0 | BE174: 0 | BF174: 0 | BG174: 0
B175: ='2.1_BC'!$B$20 -> 0 | G175: ='1_KMA'!$I$20 -> 2024-06-30 | H175: ='1_KMA'!$I$19 -> $millions | J175: =J63 -> 0 | K175: =K63 -> 0 | L175: 0 | M175: 0 | N175: 0 | O175: 0 | P175: 0 | Q175: 0 | R175: 0 | S175: 0 | T175: 0 | U175: 0 | V175: 0 | W175: 0 | X175: 0 | Y175: 0 | Z175: 0 | AA175: 0 | AB175: 0 | AC175: 0 | AD175: 0 | AE175: 0 | AF175: 0 | AG175: 0 | AH175: 0 | AI175: 0 | AJ175: 0 | AK175: 0 | AL175: 0 | AM175: 0 | AN175: 0 | AO175: 0 | AP175: 0 | AQ175: 0 | AR175: 0 | AS175: 0 | AT175: 0 | AU175: 0 | AV175: 0 | AW175: 0 | AX175: 0 | AY175: 0 | AZ175: 0 | BA175: 0 | BB175: 0 | BC175: 0 | BD175: 0 | BE175: 0 | BF175: 0 | BG175: 0
B176: Total | G176: ='1_KMA'!$I$20 -> 2024-06-30 | H176: ='1_KMA'!$I$19 -> $millions | J176: =SUM(J171:J175) -> 0 | K176: =SUM(K171:K175) -> 0 | L176: =SUM(L171:L175) -> 0 | M176: =SUM(M171:M175) -> 0 | N176: =SUM(N171:N175) -> 0 | O176: 0 | P176: 0 | Q176: 0 | R176: 0 | S176: 0 | T176: 0 | U176: 0 | V176: 0 | W176: 0 | X176: 0 | Y176: 0 | Z176: 0 | AA176: 0 | AB176: 0 | AC176: 0 | AD176: 0 | AE176: 0 | AF176: 0 | AG176: 0 | AH176: 0 | AI176: 0 | AJ176: 0 | AK176: 0 | AL176: 0 | AM176: 0 | AN176: 0 | AO176: 0 | AP176: 0 | AQ176: 0 | AR176: 0 | AS176: 0 | AT176: 0 | AU176: 0 | AV176: 0 | AW176: 0 | AX176: 0 | AY176: 0 | AZ176: 0 | BA176: 0 | BB176: 0 | BC176: 0 | BD176: 0 | BE176: 0 | BF176: 0 | BG176: 0
B178: =Controls!$B$24&" "&Controls!$C$24&" (+"&TEXT(Controls!$F$24-1,"0.00%")&")" -> Sensitivity Scenario 3 Higher costs (+15.00%)
B179: Summary
B181: WACC | J181: =Controls!$E$24 -> 0.0556 | K181: =Controls!$E$24 -> 0.0556 | L181: =Controls!$E$24 -> 0.0556 | M181: =Controls!$E$24 -> 0.0556 | N181: =Controls!$E$24 -> 0.0556 | O181: =Controls!$E$24 -> 0.0556 | P181: =Controls!$E$24 -> 0.0556 | Q181: =Controls!$E$24 -> 0.0556 | R181: =Controls!$E$24 -> 0.0556 | S181: =Controls!$E$24 -> 0.0556 | T181: =Controls!$E$24 -> 0.0556 | U181: =Controls!$E$24 -> 0.0556 | V181: =Controls!$E$24 -> 0.0556 | W181: =Controls!$E$24 -> 0.0556 | X181: =Controls!$E$24 -> 0.0556 | Y181: =Controls!$E$24 -> 0.0556 | Z181: =Controls!$E$24 -> 0.0556 | AA181: =Controls!$E$24 -> 0.0556 | AB181: =Controls!$E$24 -> 0.0556 | AC181: =Controls!$E$24 -> 0.0556 | AD181: =Controls!$E$24 -> 0.0556 | AE181: =Controls!$E$24 -> 0.0556 | AF181: =Controls!$E$24 -> 0.0556 | AG181: =Controls!$E$24 -> 0.0556 | AH181: =Controls!$E$24 -> 0.0556 | AI181: =Controls!$E$24 -> 0.0556 | AJ181: =Controls!$E$24 -> 0.0556 | AK181: =Controls!$E$24 -> 0.0556 | AL181: =Controls!$E$24 -> 0.0556 | AM181: =Controls!$E$24 -> 0.0556 | AN181: =Controls!$E$24 -> 0.0556 | AO181: =Controls!$E$24 -> 0.0556 | AP181: =Controls!$E$24 -> 0.0556 | AQ181: =Controls!$E$24 -> 0.0556 | AR181: =Controls!$E$24 -> 0.0556 | AS181: =Controls!$E$24 -> 0.0556 | AT181: =Controls!$E$24 -> 0.0556 | AU181: =Controls!$E$24 -> 0.0556 | AV181: =Controls!$E$24 -> 0.0556 | AW181: =Controls!$E$24 -> 0.0556 | AX181: =Controls!$E$24 -> 0.0556 | AY181: =Controls!$E$24 -> 0.0556 | AZ181: =Controls!$E$24 -> 0.0556 | BA181: =Controls!$E$24 -> 0.0556 | BB181: =Controls!$E$24 -> 0.0556 | BC181: =Controls!$E$24 -> 0.0556 | BD181: =Controls!$E$24 -> 0.0556 | BE181: =Controls!$E$24 -> 0.0556 | BF181: =Controls!$E$24 -> 0.0556 | BG181: =Controls!$E$24 -> 0.0556
B182: Deflator (interim calculation) | J182: 1 | K182: =J182*(1+K181) -> 1.0556 | L182: =K182*(1+L181) -> 1.11429136 | M182: =L182*(1+M181) -> 1.17624596 | N182: =M182*(1+N181) -> 1.241645235 | O182: =N182*(1+O181) -> 1.31068071 | P182: =O182*(1+P181) -> 1.383554558 | Q182: =P182*(1+Q181) -> 1.460480191 | R182: =Q182*(1+R181) -> 1.54168289 | S182: =R182*(1+S181) -> 1.627400458 | T182: =S182*(1+T181) -> 1.717883924 | U182: =T182*(1+U181) -> 1.81339827 | V182: =U182*(1+V181) -> 1.914223214 | W182: =V182*(1+W181) -> 2.020654024 | X182: =W182*(1+X181) -> 2.133002388 | Y182: =X182*(1+Y181) -> 2.251597321 | Z182: =Y182*(1+Z181) -> 2.376786132 | AA182: =Z182*(1+AA181) -> 2.508935441 | AB182: =AA182*(1+AB181) -> 2.648432251 | AC182: =AB182*(1+AC181) -> 2.795685084 | AD182: =AC182*(1+AD181) -> 2.951125175 | AE182: =AD182*(1+AE181) -> 3.115207735 | AF182: =AE182*(1+AF181) -> 3.288413285 | AG182: =AF182*(1+AG181) -> 3.471249064 | AH182: =AG182*(1+AH181) -> 3.664250512 | AI182: =AH182*(1+AI181) -> 3.86798284 | AJ182: =AI182*(1+AJ181) -> 4.083042686 | AK182: =AJ182*(1+AK181) -> 4.310059859 | AL182: =AK182*(1+AL181) -> 4.549699187 | AM182: =AL182*(1+AM181) -> 4.802662462 | AN182: =AM182*(1+AN181) -> 5.069690495 | AO182: =AN182*(1+AO181) -> 5.351565287 | AP182: =AO182*(1+AP181) -> 5.649112317 | AQ182: =AP182*(1+AQ181) -> 5.963202961 | AR182: =AQ182*(1+AR181) -> 6.294757046 | AS182: =AR182*(1+AS181) -> 6.644745538 | AT182: =AS182*(1+AT181) -> 7.01419339 | AU182: =AT182*(1+AU181) -> 7.404182542 | AV182: =AU182*(1+AV181) -> 7.815855092 | AW182: =AV182*(1+AW181) -> 8.250416635 | AX182: =AW182*(1+AX181) -> 8.709139799 | AY182: =AX182*(1+AY181) -> 9.193367972 | AZ182: =AY182*(1+AZ181) -> 9.704519232 | BA182: =AZ182*(1+BA181) -> 10.2440905 | BB182: =BA182*(1+BB181) -> 10.81366193 | BC182: =BB182*(1+BC181) -> 11.41490154 | BD182: =BC182*(1+BD181) -> 12.04957006 | BE182: =BD182*(1+BE181) -> 12.71952616 | BF182: =BE182*(1+BF181) -> 13.42673181 | BG182: =BF182*(1+BG181) -> 14.1732581
B183: Deflator | J183: =1/J182 -> 1 | K183: =1/K182 -> 0.9473285335 | L183: =1/L182 -> 0.8974313505 | M183: =1/M182 -> 0.8501623252 | N183: =1/N182 -> 0.8053830288 | O183: =1/O182 -> 0.7629623236 | P183: 0.7227759791 | Q183: 0.6847063084 | R183: 0.648641823 | S183: 0.614476907 | T183: 0.5821115072 | U183: 0.5514508405 | V183: 0.522405116 | W183: 0.4948892725 | X183: 0.4688227288 | Y183: 0.4441291481 | Z183: 0.4207362146 | AA183: 0.3985754212 | AB183: 0.3775818692 | AC183: 0.3576940785 | AD183: 0.3388538068 | AE183: 0.3210058799 | AF183: 0.3040980295 | AG183: 0.2880807403 | AH183: 0.2729071052 | AI183: 0.2585326878 | AJ183: 0.244915392 | AK183: 0.2320153392 | AL183: 0.219794751 | AM183: 0.2082178391 | AN183: 0.1972507002 | AO183: 0.1868612166 | AP183: 0.1770189623 | AQ183: 0.1676951139 | AR183: 0.1588623664 | AS183: 0.1504948526 | AT183: 0.142568068 | AU183: 0.1350587988 | AV183: 0.1279450538 | AW183: 0.1212060002 | AX183: 0.1148219024 | AY183: 0.1087740644 | AZ183: 0.1030447749 | BA183: 0.09761725552 | BB183: 0.09247561152 | BC183: 0.08760478545 | BD183: 0.08299051293 | BE183: 0.07861928091 | BF183: 0.07447828809 | BG183: 0.07055540744
B185: Totex sought for EDPR FY27-31 (undiscounted) | G185: ="("&TEXT('1_KMA'!$I$21,"dd-mmm-yy")&" Dollars)" -> (30-Jun-24 Dollars)
C186: Net Capital Expenditure | G186: =SUM(J186:BG186) -> 0 | J186: =-J201*J$1 -> 0 | K186: =-K201*K$1 -> 0 | L186: =-L201*L$1 -> 0 | M186: =-M201*M$1 -> 0 | N186: =-N201*N$1 -> 0 | O186: 0 | P186: 0 | Q186: 0 | R186: 0 | S186: 0 | T186: 0 | U186: 0 | V186: 0 | W186: 0 | X186: 0 | Y186: 0 | Z186: 0 | AA186: 0 | AB186: 0 | AC186: 0 | AD186: 0 | AE186: 0 | AF186: 0 | AG186: 0 | AH186: 0 | AI186: 0 | AJ186: 0 | AK186: 0 | AL186: 0 | AM186: 0 | AN186: 0 | AO186: 0 | AP186: 0 | AQ186: 0 | AR186: 0 | AS186: 0 | AT186: 0 | AU186: 0 | AV186: 0 | AW186: 0 | AX186: 0 | AY186: 0 | AZ186: 0 | BA186: 0 | BB186: 0 | BC186: 0 | BD186: 0 | BE186: 0 | BF186: 0 | BG186: 0
C187: Operating Expenditure | G187: =SUM(J187:BG187) -> 0 | J187: =-J202*J$1 -> 0 | K187: =-K202*K$1 -> 0 | L187: =-L202*L$1 -> 0 | M187: 0 | N187: 0 | O187: 0 | P187: 0 | Q187: 0 | R187: 0 | S187: 0 | T187: 0 | U187: 0 | V187: 0 | W187: 0 | X187: 0 | Y187: 0 | Z187: 0 | AA187: 0 | AB187: 0 | AC187: 0 | AD187: 0 | AE187: 0 | AF187: 0 | AG187: 0 | AH187: 0 | AI187: 0 | AJ187: 0 | AK187: 0 | AL187: 0 | AM187: 0 | AN187: 0 | AO187: 0 | AP187: 0 | AQ187: 0 | AR187: 0 | AS187: 0 | AT187: 0 | AU187: 0 | AV187: 0 | AW187: 0 | AX187: 0 | AY187: 0 | AZ187: 0 | BA187: 0 | BB187: 0 | BC187: 0 | BD187: 0 | BE187: 0 | BF187: 0 | BG187: 0
C188: Totex | G188: =SUM(G186:G187) -> 0 | J188: =SUM(J186:J187) -> 0 | K188: =SUM(K186:K187) -> 0 | L188: =SUM(L186:L187) -> 0 | M188: 0 | N188: 0 | O188: 0 | P188: 0 | Q188: 0 | R188: 0 | S188: 0 | T188: 0 | U188: 0 | V188: 0 | W188: 0 | X188: 0 | Y188: 0 | Z188: 0 | AA188: 0 | AB188: 0 | AC188: 0 | AD188: 0 | AE188: 0 | AF188: 0 | AG188: 0 | AH188: 0 | AI188: 0 | AJ188: 0 | AK188: 0 | AL188: 0 | AM188: 0 | AN188: 0 | AO188: 0 | AP188: 0 | AQ188: 0 | AR188: 0 | AS188: 0 | AT188: 0 | AU188: 0 | AV188: 0 | AW188: 0 | AX188: 0 | AY188: 0 | AZ188: 0 | BA188: 0 | BB188: 0 | BC188: 0 | BD188: 0 | BE188: 0 | BF188: 0 | BG188: 0
B190: PV over full assessment period to establish the preferred option (discounted) | G190: ="("&TEXT('1_KMA'!$I$21,"dd-mmm-yy")&" Dollars)" -> (30-Jun-24 Dollars)
C191: Net Capital Expenditure | G191: =SUM(J191:BG191) -> 0 | J191: =-(J201)*J$183*J$8 -> 0 | K191: =-(K201)*K$183*K$8 -> 0 | L191: 0 | M191: 0 | N191: 0 | O191: 0 | P191: 0 | Q191: 0 | R191: 0 | S191: 0 | T191: 0 | U191: 0 | V191: 0 | W191: 0 | X191: 0 | Y191: 0 | Z191: 0 | AA191: 0 | AB191: 0 | AC191: 0 | AD191: 0 | AE191: 0 | AF191: 0 | AG191: 0 | AH191: 0 | AI191: 0 | AJ191: 0 | AK191: 0 | AL191: 0 | AM191: 0 | AN191: 0 | AO191: 0 | AP191: 0 | AQ191: 0 | AR191: 0 | AS191: 0 | AT191: 0 | AU191: 0 | AV191: 0 | AW191: 0 | AX191: 0 | AY191: 0 | AZ191: 0 | BA191: 0 | BB191: 0 | BC191: 0 | BD191: =-(BD201)*BD$183*BD$8 -> 0 | BE191: 0 | BF191: 0 | BG191: 0
C192: Operating Expenditure | G192: =SUM(J192:BG192) -> 0 | J192: =-(J202)*J$183*J$8 -> 0 | K192: =-(K202)*K$183*K$8 -> 0 | L192: 0 | M192: 0 | N192: 0 | O192: 0 | P192: 0 | Q192: 0 | R192: 0 | S192: 0 | T192: 0 | U192: 0 | V192: 0 | W192: 0 | X192: 0 | Y192: 0 | Z192: 0 | AA192: 0 | AB192: 0 | AC192: 0 | AD192: 0 | AE192: 0 | AF192: 0 | AG192: 0 | AH192: 0 | AI192: 0 | AJ192: 0 | AK192: 0 | AL192: 0 | AM192: 0 | AN192: 0 | AO192: 0 | AP192: 0 | AQ192: 0 | AR192: 0 | AS192: 0 | AT192: 0 | AU192: 0 | AV192: 0 | AW192: 0 | AX192: 0 | AY192: 0 | AZ192: 0 | BA192: 0 | BB192: 0 | BC192: 0 | BD192: =-(BD202)*BD$183*BD$8 -> 0 | BE192: 0 | BF192: 0 | BG192: 0
C193: Net Benefits | G193: =SUM(J193:BG193) -> 0 | J193: =(J213)*J$183*J$8 -> 0 | K193: =(K213)*K$183*K$8 -> 0 | L193: 0 | M193: 0 | N193: 0 | O193: 0 | P193: 0 | Q193: 0 | R193: 0 | S193: 0 | T193: 0 | U193: 0 | V193: 0 | W193: 0 | X193: 0 | Y193: 0 | Z193: 0 | AA193: 0 | AB193: 0 | AC193: 0 | AD193: 0 | AE193: 0 | AF193: 0 | AG193: 0 | AH193: 0 | AI193: 0 | AJ193: 0 | AK193: 0 | AL193: 0 | AM193: 0 | AN193: 0 | AO193: 0 | AP193: 0 | AQ193: 0 | AR193: 0 | AS193: 0 | AT193: 0 | AU193: 0 | AV193: 0 | AW193: 0 | AX193: 0 | AY193: 0 | AZ193: 0 | BA193: 0 | BB193: 0 | BC193: 0 | BD193: =(BD213)*BD$183*BD$8 -> 0 | BE193: 0 | BF193: 0 | BG193: 0
B194: Total Present Value | G194: =SUM(J194:BG194) -> 0 | J194: =SUM(J191:J193) -> 0 | K194: =SUM(K191:K193) -> 0 | L194: 0 | M194: 0 | N194: 0 | O194: 0 | P194: 0 | Q194: 0 | R194: 0 | S194: 0 | T194: 0 | U194: 0 | V194: 0 | W194: 0 | X194: 0 | Y194: 0 | Z194: 0 | AA194: 0 | AB194: 0 | AC194: 0 | AD194: 0 | AE194: 0 | AF194: 0 | AG194: 0 | AH194: 0 | AI194: 0 | AJ194: 0 | AK194: 0 | AL194: 0 | AM194: 0 | AN194: 0 | AO194: 0 | AP194: 0 | AQ194: 0 | AR194: 0 | AS194: 0 | AT194: 0 | AU194: 0 | AV194: 0 | AW194: 0 | AX194: 0 | AY194: 0 | AZ194: 0 | BA194: 0 | BB194: 0 | BC194: 0 | BD194: 0 | BE194: 0 | BF194: 0 | BG194: 0
B196: Undiscounted | D196: ="("&TEXT('1_KMA'!$I$21,"dd-mmm-yy")&" dollars)" -> (30-Jun-24 dollars)
B198: Costs
G200: $ Basis Reminder | H200: $ Reminder
B201: Net Capex | G201: ='1_KMA'!$I$21 -> 2024-06-30 | H201: ='1_KMA'!$I$19 -> $millions | J201: =J220*J$7 -> 0 | K201: 0 | L201: 0 | M201: 0 | N201: 0 | O201: 0 | P201: 0 | Q201: 0 | R201: 0 | S201: 0 | T201: 0 | U201: 0 | V201: 0 | W201: 0 | X201: 0 | Y201: 0 | Z201: 0 | AA201: 0 | AB201: 0 | AC201: 0 | AD201: 0 | AE201: 0 | AF201: 0 | AG201: 0 | AH201: 0 | AI201: 0 | AJ201: 0 | AK201: 0 | AL201: 0 | AM201: 0 | AN201: 0 | AO201: 0 | AP201: =AP220*AP$7 -> 0 | AQ201: 0 | AR201: 0 | AS201: 0 | AT201: 0 | AU201: 0 | AV201: 0 | AW201: 0 | AX201: 0 | AY201: 0 | AZ201: 0 | BA201: 0 | BB201: 0 | BC201: 0 | BD201: 0 | BE201: 0 | BF201: 0 | BG201: 0
B202: Opex | G202: ='1_KMA'!$I$21 -> 2024-06-30 | H202: ='1_KMA'!$I$19 -> $millions | J202: =J221*J$7 -> 0 | K202: 0 | L202: 0 | M202: 0 | N202: 0 | O202: 0 | P202: 0 | Q202: 0 | R202: 0 | S202: 0 | T202: 0 | U202: 0 | V202: 0 | W202: 0 | X202: 0 | Y202: 0 | Z202: 0 | AA202: 0 | AB202: 0 | AC202: 0 | AD202: 0 | AE202: 0 | AF202: 0 | AG202: 0 | AH202: 0 | AI202: 0 | AJ202: 0 | AK202: 0 | AL202: 0 | AM202: 0 | AN202: 0 | AO202: 0 | AP202: =AP221*AP$7 -> 0 | AQ202: 0 | AR202: 0 | AS202: 0 | AT202: 0 | AU202: 0 | AV202: 0 | AW202: 0 | AX202: 0 | AY202: 0 | AZ202: 0 | BA202: 0 | BB202: 0 | BC202: 0 | BD202: 0 | BE202: 0 | BF202: 0 | BG202: 0
B203: Total | G203: ='1_KMA'!$I$21 -> 2024-06-30 | H203: ='1_KMA'!$I$19 -> $millions | J203: =J222*J$7 -> 0 | K203: 0 | L203: 0 | M203: 0 | N203: 0 | O203: 0 | P203: 0 | Q203: 0 | R203: 0 | S203: 0 | T203: 0 | U203: 0 | V203: 0 | W203: 0 | X203: 0 | Y203: 0 | Z203: 0 | AA203: 0 | AB203: 0 | AC203: 0 | AD203: 0 | AE203: 0 | AF203: 0 | AG203: 0 | AH203: 0 | AI203: 0 | AJ203: 0 | AK203: 0 | AL203: 0 | AM203: 0 | AN203: 0 | AO203: 0 | AP203: =AP222*AP$7 -> 0 | AQ203: 0 | AR203: 0 | AS203: 0 | AT203: 0 | AU203: 0 | AV203: 0 | AW203: 0 | AX203: 0 | AY203: 0 | AZ203: 0 | BA203: 0 | BB203: 0 | BC203: 0 | BD203: 0 | BE203: 0 | BF203: 0 | BG203: 0
B205: Benefits
G207: $ Basis Reminder | H207: $ Reminder
B208: =B227 -> Value of EUE | G208: ='1_KMA'!$I$21 -> 2024-06-30 | H208: ='1_KMA'!$I$19 -> $millions | J208: =J227*J$7 -> 0 | K208: 0 | L208: 0 | M208: 0 | N208: 0 | O208: 0 | P208: 0 | Q208: 0 | R208: 0 | S208: 0 | T208: 0 | U208: 0 | V208: 0 | W208: 0 | X208: 0 | Y208: 0 | Z208: 0 | AA208: 0 | AB208: 0 | AC208: 0 | AD208: 0 | AE208: 0 | AF208: 0 | AG208: 0 | AH208: 0 | AI208: 0 | AJ208: 0 | AK208: 0 | AL208: 0 | AM208: 0 | AN208: 0 | AO208: 0 | AP208: =AP227*AP$7 -> 0 | AQ208: 0 | AR208: 0 | AS208: 0 | AT208: 0 | AU208: 0 | AV208: 0 | AW208: 0 | AX208: 0 | AY208: 0 | AZ208: 0 | BA208: 0 | BB208: 0 | BC208: 0 | BD208: 0 | BE208: 0 | BF208: 0 | BG208: 0
B209: =B228 -> 0 | G209: ='1_KMA'!$I$21 -> 2024-06-30 | H209: ='1_KMA'!$I$19 -> $millions | J209: =J228*J$7 -> 0 | K209: 0 | L209: 0 | M209: 0 | N209: 0 | O209: 0 | P209: 0 | Q209: 0 | R209: 0 | S209: 0 | T209: 0 | U209: 0 | V209: 0 | W209: 0 | X209: 0 | Y209: 0 | Z209: 0 | AA209: 0 | AB209: 0 | AC209: 0 | AD209: 0 | AE209: 0 | AF209: 0 | AG209: 0 | AH209: 0 | AI209: 0 | AJ209: 0 | AK209: 0 | AL209: 0 | AM209: 0 | AN209: 0 | AO209: 0 | AP209: =AP228*AP$7 -> 0 | AQ209: 0 | AR209: 0 | AS209: 0 | AT209: 0 | AU209: 0 | AV209: 0 | AW209: 0 | AX209: 0 | AY209: 0 | AZ209: 0 | BA209: 0 | BB209: 0 | BC209: 0 | BD209: 0 | BE209: 0 | BF209: 0 | BG209: 0
B210: Resilience | G210: ='1_KMA'!$I$21 -> 2024-06-30 | H210: ='1_KMA'!$I$19 -> $millions | J210: =J229*J$7 -> 0 | K210: 0 | L210: 0 | M210: 0 | N210: 0 | O210: 0 | P210: 0 | Q210: 0 | R210: 0 | S210: 0 | T210: 0 | U210: 0 | V210: 0 | W210: 0 | X210: 0 | Y210: 0 | Z210: 0 | AA210: 0 | AB210: 0 | AC210: 0 | AD210: 0 | AE210: 0 | AF210: 0 | AG210: 0 | AH210: 0 | AI210: 0 | AJ210: 0 | AK210: 0 | AL210: 0 | AM210: 0 | AN210: 0 | AO210: 0 | AP210: =AP229*AP$7 -> 0 | AQ210: 0 | AR210: 0 | AS210: 0 | AT210: 0 | AU210: 0 | AV210: 0 | AW210: 0 | AX210: 0 | AY210: 0 | AZ210: 0 | BA210: 0 | BB210: 0 | BC210: 0 | BD210: 0 | BE210: 0 | BF210: 0 | BG210: 0
B211: 0 | G211: ='1_KMA'!$I$21 -> 2024-06-30 | H211: ='1_KMA'!$I$19 -> $millions | J211: =J230*J$7 -> 0 | K211: 0 | L211: 0 | M211: 0 | N211: 0 | O211: 0 | P211: 0 | Q211: 0 | R211: 0 | S211: 0 | T211: 0 | U211: 0 | V211: 0 | W211: 0 | X211: 0 | Y211: 0 | Z211: 0 | AA211: 0 | AB211: 0 | AC211: 0 | AD211: 0 | AE211: 0 | AF211: 0 | AG211: 0 | AH211: 0 | AI211: 0 | AJ211: 0 | AK211: 0 | AL211: 0 | AM211: 0 | AN211: 0 | AO211: 0 | AP211: =AP230*AP$7 -> 0 | AQ211: 0 | AR211: 0 | AS211: 0 | AT211: 0 | AU211: 0 | AV211: 0 | AW211: 0 | AX211: 0 | AY211: 0 | AZ211: 0 | BA211: 0 | BB211: 0 | BC211: 0 | BD211: 0 | BE211: 0 | BF211: 0 | BG211: 0
B212: 0 | G212: ='1_KMA'!$I$21 -> 2024-06-30 | H212: ='1_KMA'!$I$19 -> $millions | J212: =J231*J$7 -> 0 | K212: 0 | L212: 0 | M212: 0 | N212: 0 | O212: 0 | P212: 0 | Q212: 0 | R212: 0 | S212: 0 | T212: 0 | U212: 0 | V212: 0 | W212: 0 | X212: 0 | Y212: 0 | Z212: 0 | AA212: 0 | AB212: 0 | AC212: 0 | AD212: 0 | AE212: 0 | AF212: 0 | AG212: 0 | AH212: 0 | AI212: 0 | AJ212: 0 | AK212: 0 | AL212: 0 | AM212: 0 | AN212: 0 | AO212: 0 | AP212: =AP231*AP$7 -> 0 | AQ212: 0 | AR212: 0 | AS212: 0 | AT212: 0 | AU212: 0 | AV212: 0 | AW212: 0 | AX212: 0 | AY212: 0 | AZ212: 0 | BA212: 0 | BB212: 0 | BC212: 0 | BD212: 0 | BE212: 0 | BF212: 0 | BG212: 0
B213: ='3_BC'!B232 -> Total | G213: ='1_KMA'!$I$21 -> 2024-06-30 | H213: ='1_KMA'!$I$19 -> $millions | J213: =J232*J$7 -> 0 | K213: 0 | L213: 0 | M213: 0 | N213: 0 | O213: 0 | P213: 0 | Q213: 0 | R213: 0 | S213: 0 | T213: 0 | U213: 0 | V213: 0 | W213: 0 | X213: 0 | Y213: 0 | Z213: 0 | AA213: 0 | AB213: 0 | AC213: 0 | AD213: 0 | AE213: 0 | AF213: 0 | AG213: 0 | AH213: 0 | AI213: 0 | AJ213: 0 | AK213: 0 | AL213: 0 | AM213: 0 | AN213: 0 | AO213: 0 | AP213: =AP232*AP$7 -> 0 | AQ213: 0 | AR213: 0 | AS213: 0 | AT213: 0 | AU213: 0 | AV213: 0 | AW213: 0 | AX213: 0 | AY213: 0 | AZ213: 0 | BA213: 0 | BB213: 0 | BC213: 0 | BD213: 0 | BE213: 0 | BF213: 0 | BG213: 0
B215: Undiscounted | D215: ="("&TEXT('1_KMA'!$I$20,"dd-mmm-yy")&" dollars)" -> (30-Jun-24 dollars)
B217: Costs
G219: $ Basis Reminder | H219: $ Reminder
B220: Net Capex | G220: ='1_KMA'!$I$20 -> 2024-06-30 | H220: ='1_KMA'!$I$19 -> $millions | J220: =J52*Controls!$F$24 -> 0 | K220: =K52*Controls!$F$24 -> 0 | L220: =L52*Controls!$F$24 -> 0 | M220: =M52*Controls!$F$24 -> 0 | N220: =N52*Controls!$F$24 -> 0 | O220: =O52*Controls!$F$24 -> 0 | P220: =P52*Controls!$F$24 -> 0 | Q220: =Q52*Controls!$F$24 -> 0 | R220: =R52*Controls!$F$24 -> 0 | S220: =S52*Controls!$F$24 -> 0 | T220: =T52*Controls!$F$24 -> 0 | U220: =U52*Controls!$F$24 -> 0 | V220: =V52*Controls!$F$24 -> 0 | W220: =W52*Controls!$F$24 -> 0 | X220: =X52*Controls!$F$24 -> 0 | Y220: =Y52*Controls!$F$24 -> 0 | Z220: =Z52*Controls!$F$24 -> 0 | AA220: =AA52*Controls!$F$24 -> 0 | AB220: =AB52*Controls!$F$24 -> 0 | AC220: =AC52*Controls!$F$24 -> 0 | AD220: =AD52*Controls!$F$24 -> 0 | AE220: =AE52*Controls!$F$24 -> 0 | AF220: =AF52*Controls!$F$24 -> 0 | AG220: =AG52*Controls!$F$24 -> 0 | AH220: =AH52*Controls!$F$24 -> 0 | AI220: =AI52*Controls!$F$24 -> 0 | AJ220: =AJ52*Controls!$F$24 -> 0 | AK220: =AK52*Controls!$F$24 -> 0 | AL220: =AL52*Controls!$F$24 -> 0 | AM220: =AM52*Controls!$F$24 -> 0 | AN220: =AN52*Controls!$F$24 -> 0 | AO220: =AO52*Controls!$F$24 -> 0 | AP220: =AP52*Controls!$F$24 -> 0 | AQ220: =AQ52*Controls!$F$24 -> 0 | AR220: =AR52*Controls!$F$24 -> 0 | AS220: =AS52*Controls!$F$24 -> 0 | AT220: =AT52*Controls!$F$24 -> 0 | AU220: =AU52*Controls!$F$24 -> 0 | AV220: =AV52*Controls!$F$24 -> 0 | AW220: =AW52*Controls!$F$24 -> 0 | AX220: =AX52*Controls!$F$24 -> 0 | AY220: =AY52*Controls!$F$24 -> 0 | AZ220: =AZ52*Controls!$F$24 -> 0 | BA220: =BA52*Controls!$F$24 -> 0 | BB220: =BB52*Controls!$F$24 -> 0 | BC220: =BC52*Controls!$F$24 -> 0 | BD220: =BD52*Controls!$F$24 -> 0 | BE220: =BE52*Controls!$F$24 -> 0 | BF220: =BF52*Controls!$F$24 -> 0 | BG220: =BG52*Controls!$F$24 -> 0
B221: Opex | G221: ='1_KMA'!$I$20 -> 2024-06-30 | H221: ='1_KMA'!$I$19 -> $millions | J221: =J53*Controls!$F$24 -> 0 | K221: =K53*Controls!$F$24 -> 0 | L221: =L53*Controls!$F$24 -> 0 | M221: =M53*Controls!$F$24 -> 0 | N221: =N53*Controls!$F$24 -> 0 | O221: =O53*Controls!$F$24 -> 0 | P221: =P53*Controls!$F$24 -> 0 | Q221: =Q53*Controls!$F$24 -> 0 | R221: =R53*Controls!$F$24 -> 0 | S221: =S53*Controls!$F$24 -> 0 | T221: =T53*Controls!$F$24 -> 0 | U221: =U53*Controls!$F$24 -> 0 | V221: =V53*Controls!$F$24 -> 0 | W221: =W53*Controls!$F$24 -> 0 | X221: =X53*Controls!$F$24 -> 0 | Y221: =Y53*Controls!$F$24 -> 0 | Z221: =Z53*Controls!$F$24 -> 0 | AA221: =AA53*Controls!$F$24 -> 0 | AB221: =AB53*Controls!$F$24 -> 0 | AC221: =AC53*Controls!$F$24 -> 0 | AD221: =AD53*Controls!$F$24 -> 0 | AE221: =AE53*Controls!$F$24 -> 0 | AF221: =AF53*Controls!$F$24 -> 0 | AG221: =AG53*Controls!$F$24 -> 0 | AH221: =AH53*Controls!$F$24 -> 0 | AI221: =AI53*Controls!$F$24 -> 0 | AJ221: =AJ53*Controls!$F$24 -> 0 | AK221: =AK53*Controls!$F$24 -> 0 | AL221: =AL53*Controls!$F$24 -> 0 | AM221: =AM53*Controls!$F$24 -> 0 | AN221: =AN53*Controls!$F$24 -> 0 | AO221: =AO53*Controls!$F$24 -> 0 | AP221: =AP53*Controls!$F$24 -> 0 | AQ221: =AQ53*Controls!$F$24 -> 0 | AR221: =AR53*Controls!$F$24 -> 0 | AS221: =AS53*Controls!$F$24 -> 0 | AT221: =AT53*Controls!$F$24 -> 0 | AU221: =AU53*Controls!$F$24 -> 0 | AV221: =AV53*Controls!$F$24 -> 0 | AW221: =AW53*Controls!$F$24 -> 0 | AX221: =AX53*Controls!$F$24 -> 0 | AY221: =AY53*Controls!$F$24 -> 0 | AZ221: =AZ53*Controls!$F$24 -> 0 | BA221: =BA53*Controls!$F$24 -> 0 | BB221: =BB53*Controls!$F$24 -> 0 | BC221: =BC53*Controls!$F$24 -> 0 | BD221: =BD53*Controls!$F$24 -> 0 | BE221: =BE53*Controls!$F$24 -> 0 | BF221: =BF53*Controls!$F$24 -> 0 | BG221: =BG53*Controls!$F$24 -> 0
B222: Total | G222: ='1_KMA'!$I$20 -> 2024-06-30 | H222: ='1_KMA'!$I$19 -> $millions | J222: =SUM(J220:J221) -> 0 | K222: =SUM(K220:K221) -> 0 | L222: 0 | M222: 0 | N222: 0 | O222: 0 | P222: 0 | Q222: 0 | R222: 0 | S222: 0 | T222: 0 | U222: 0 | V222: 0 | W222: 0 | X222: 0 | Y222: 0 | Z222: 0 | AA222: 0 | AB222: 0 | AC222: 0 | AD222: 0 | AE222: 0 | AF222: 0 | AG222: 0 | AH222: 0 | AI222: 0 | AJ222: 0 | AK222: 0 | AL222: 0 | AM222: 0 | AN222: 0 | AO222: 0 | AP222: 0 | AQ222: 0 | AR222: 0 | AS222: 0 | AT222: 0 | AU222: 0 | AV222: 0 | AW222: 0 | AX222: 0 | AY222: 0 | AZ222: 0 | BA222: 0 | BB222: 0 | BC222: 0 | BD222: 0 | BE222: 0 | BF222: 0 | BG222: 0
B224: Benefits
G226: $ Basis Reminder | H226: $ Reminder
B227: ='2.1_BC'!$B$16 -> Value of EUE | G227: ='1_KMA'!$I$20 -> 2024-06-30 | H227: ='1_KMA'!$I$19 -> $millions | J227: =J59 -> 0 | K227: =K59 -> 0 | L227: 0 | M227: 0 | N227: 0 | O227: 0 | P227: 0 | Q227: 0 | R227: 0 | S227: 0 | T227: 0 | U227: 0 | V227: 0 | W227: 0 | X227: 0 | Y227: 0 | Z227: 0 | AA227: 0 | AB227: 0 | AC227: 0 | AD227: 0 | AE227: 0 | AF227: 0 | AG227: 0 | AH227: 0 | AI227: 0 | AJ227: 0 | AK227: 0 | AL227: 0 | AM227: 0 | AN227: 0 | AO227: 0 | AP227: 0 | AQ227: 0 | AR227: 0 | AS227: 0 | AT227: 0 | AU227: 0 | AV227: 0 | AW227: 0 | AX227: 0 | AY227: 0 | AZ227: 0 | BA227: 0 | BB227: 0 | BC227: 0 | BD227: 0 | BE227: 0 | BF227: 0 | BG227: 0
B228: ='2.1_BC'!$B$17 -> 0 | G228: ='1_KMA'!$I$20 -> 2024-06-30 | H228: ='1_KMA'!$I$19 -> $millions | J228: =J60 -> 0 | K228: =K60 -> 0 | L228: 0 | M228: 0 | N228: 0 | O228: 0 | P228: 0 | Q228: 0 | R228: 0 | S228: 0 | T228: 0 | U228: 0 | V228: 0 | W228: 0 | X228: 0 | Y228: 0 | Z228: 0 | AA228: 0 | AB228: 0 | AC228: 0 | AD228: 0 | AE228: 0 | AF228: 0 | AG228: 0 | AH228: 0 | AI228: 0 | AJ228: 0 | AK228: 0 | AL228: 0 | AM228: 0 | AN228: 0 | AO228: 0 | AP228: 0 | AQ228: 0 | AR228: 0 | AS228: 0 | AT228: 0 | AU228: 0 | AV228: 0 | AW228: 0 | AX228: 0 | AY228: 0 | AZ228: 0 | BA228: 0 | BB228: 0 | BC228: 0 | BD228: 0 | BE228: 0 | BF228: 0 | BG228: 0
B229: ='2.1_BC'!$B$18 -> Resilience | G229: ='1_KMA'!$I$20 -> 2024-06-30 | H229: ='1_KMA'!$I$19 -> $millions | J229: =J61 -> 0 | K229: =K61 -> 0 | L229: 0 | M229: 0 | N229: 0 | O229: 0 | P229: 0 | Q229: 0 | R229: 0 | S229: 0 | T229: 0 | U229: 0 | V229: 0 | W229: 0 | X229: 0 | Y229: 0 | Z229: 0 | AA229: 0 | AB229: 0 | AC229: 0 | AD229: 0 | AE229: 0 | AF229: 0 | AG229: 0 | AH229: 0 | AI229: 0 | AJ229: 0 | AK229: 0 | AL229: 0 | AM229: 0 | AN229: 0 | AO229: 0 | AP229: 0 | AQ229: 0 | AR229: 0 | AS229: 0 | AT229: 0 | AU229: 0 | AV229: 0 | AW229: 0 | AX229: 0 | AY229: 0 | AZ229: 0 | BA229: 0 | BB229: 0 | BC229: 0 | BD229: 0 | BE229: 0 | BF229: 0 | BG229: 0
B230: ='2.1_BC'!$B$19 -> 0 | G230: ='1_KMA'!$I$20 -> 2024-06-30 | H230: ='1_KMA'!$I$19 -> $millions | J230: =J62 -> 0 | K230: =K62 -> 0 | L230: 0 | M230: 0 | N230: 0 | O230: 0 | P230: 0 | Q230: 0 | R230: 0 | S230: 0 | T230: 0 | U230: 0 | V230: 0 | W230: 0 | X230: 0 | Y230: 0 | Z230: 0 | AA230: 0 | AB230: 0 | AC230: 0 | AD230: 0 | AE230: 0 | AF230: 0 | AG230: 0 | AH230: 0 | AI230: 0 | AJ230: 0 | AK230: 0 | AL230: 0 | AM230: 0 | AN230: 0 | AO230: 0 | AP230: 0 | AQ230: 0 | AR230: 0 | AS230: 0 | AT230: 0 | AU230: 0 | AV230: 0 | AW230: 0 | AX230: 0 | AY230: 0 | AZ230: 0 | BA230: 0 | BB230: 0 | BC230: 0 | BD230: 0 | BE230: 0 | BF230: 0 | BG230: 0
B231: ='2.1_BC'!$B$20 -> 0 | G231: ='1_KMA'!$I$20 -> 2024-06-30 | H231: ='1_KMA'!$I$19 -> $millions | J231: =J63 -> 0 | K231: =K63 -> 0 | L231: 0 | M231: 0 | N231: 0 | O231: 0 | P231: 0 | Q231: 0 | R231: 0 | S231: 0 | T231: 0 | U231: 0 | V231: 0 | W231: 0 | X231: 0 | Y231: 0 | Z231: 0 | AA231: 0 | AB231: 0 | AC231: 0 | AD231: 0 | AE231: 0 | AF231: 0 | AG231: 0 | AH231: 0 | AI231: 0 | AJ231: 0 | AK231: 0 | AL231: 0 | AM231: 0 | AN231: 0 | AO231: 0 | AP231: 0 | AQ231: 0 | AR231: 0 | AS231: 0 | AT231: 0 | AU231: 0 | AV231: 0 | AW231: 0 | AX231: 0 | AY231: 0 | AZ231: 0 | BA231: 0 | BB231: 0 | BC231: 0 | BD231: 0 | BE231: 0 | BF231: 0 | BG231: 0
B232: Total | G232: ='1_KMA'!$I$20 -> 2024-06-30 | H232: ='1_KMA'!$I$19 -> $millions | J232: =SUM(J227:J231) -> 0 | K232: =SUM(K227:K231) -> 0 | L232: 0 | M232: =SUM(M227:M231) -> 0 | N232: =SUM(N227:N231) -> 0 | O232: 0 | P232: 0 | Q232: 0 | R232: 0 | S232: 0 | T232: 0 | U232: 0 | V232: 0 | W232: 0 | X232: 0 | Y232: 0 | Z232: 0 | AA232: 0 | AB232: 0 | AC232: 0 | AD232: 0 | AE232: 0 | AF232: 0 | AG232: 0 | AH232: 0 | AI232: 0 | AJ232: 0 | AK232: 0 | AL232: 0 | AM232: 0 | AN232: 0 | AO232: 0 | AP232: 0 | AQ232: 0 | AR232: 0 | AS232: 0 | AT232: 0 | AU232: 0 | AV232: 0 | AW232: 0 | AX232: 0 | AY232: 0 | AZ232: 0 | BA232: 0 | BB232: 0 | BC232: 0 | BD232: 0 | BE232: 0 | BF232: 0 | BG232: 0
B234: =Controls!$B$25&" "&Controls!$C$25&" ("&TEXT(Controls!$F$25-1,"0.00%")&")" -> Sensitivity Scenario 4 Lower costs (-15.00%)
B235: Summary
B237: WACC | J237: =Controls!$E$25 -> 0.0556 | K237: =Controls!$E$25 -> 0.0556 | L237: =Controls!$E$25 -> 0.0556 | M237: =Controls!$E$25 -> 0.0556 | N237: =Controls!$E$25 -> 0.0556 | O237: =Controls!$E$25 -> 0.0556 | P237: =Controls!$E$25 -> 0.0556 | Q237: =Controls!$E$25 -> 0.0556 | R237: =Controls!$E$25 -> 0.0556 | S237: =Controls!$E$25 -> 0.0556 | T237: =Controls!$E$25 -> 0.0556 | U237: =Controls!$E$25 -> 0.0556 | V237: =Controls!$E$25 -> 0.0556 | W237: =Controls!$E$25 -> 0.0556 | X237: =Controls!$E$25 -> 0.0556 | Y237: =Controls!$E$25 -> 0.0556 | Z237: =Controls!$E$25 -> 0.0556 | AA237: =Controls!$E$25 -> 0.0556 | AB237: =Controls!$E$25 -> 0.0556 | AC237: =Controls!$E$25 -> 0.0556 | AD237: =Controls!$E$25 -> 0.0556 | AE237: =Controls!$E$25 -> 0.0556 | AF237: =Controls!$E$25 -> 0.0556 | AG237: =Controls!$E$25 -> 0.0556 | AH237: =Controls!$E$25 -> 0.0556 | AI237: =Controls!$E$25 -> 0.0556 | AJ237: =Controls!$E$25 -> 0.0556 | AK237: =Controls!$E$25 -> 0.0556 | AL237: =Controls!$E$25 -> 0.0556 | AM237: =Controls!$E$25 -> 0.0556 | AN237: =Controls!$E$25 -> 0.0556 | AO237: =Controls!$E$25 -> 0.0556 | AP237: =Controls!$E$25 -> 0.0556 | AQ237: =Controls!$E$25 -> 0.0556 | AR237: =Controls!$E$25 -> 0.0556 | AS237: =Controls!$E$25 -> 0.0556 | AT237: =Controls!$E$25 -> 0.0556 | AU237: =Controls!$E$25 -> 0.0556 | AV237: =Controls!$E$25 -> 0.0556 | AW237: =Controls!$E$25 -> 0.0556 | AX237: =Controls!$E$25 -> 0.0556 | AY237: =Controls!$E$25 -> 0.0556 | AZ237: =Controls!$E$25 -> 0.0556 | BA237: =Controls!$E$25 -> 0.0556 | BB237: =Controls!$E$25 -> 0.0556 | BC237: =Controls!$E$25 -> 0.0556 | BD237: =Controls!$E$25 -> 0.0556 | BE237: =Controls!$E$25 -> 0.0556 | BF237: =Controls!$E$25 -> 0.0556 | BG237: =Controls!$E$25 -> 0.0556
B238: Deflator (interim calculation) | J238: 1 | K238: =J238*(1+K237) -> 1.0556 | L238: =K238*(1+L237) -> 1.11429136 | M238: =L238*(1+M237) -> 1.17624596 | N238: =M238*(1+N237) -> 1.241645235 | O238: =N238*(1+O237) -> 1.31068071 | P238: =O238*(1+P237) -> 1.383554558 | Q238: =P238*(1+Q237) -> 1.460480191 | R238: =Q238*(1+R237) -> 1.54168289 | S238: =R238*(1+S237) -> 1.627400458 | T238: =S238*(1+T237) -> 1.717883924 | U238: =T238*(1+U237) -> 1.81339827 | V238: =U238*(1+V237) -> 1.914223214 | W238: =V238*(1+W237) -> 2.020654024 | X238: =W238*(1+X237) -> 2.133002388 | Y238: =X238*(1+Y237) -> 2.251597321 | Z238: =Y238*(1+Z237) -> 2.376786132 | AA238: =Z238*(1+AA237) -> 2.508935441 | AB238: =AA238*(1+AB237) -> 2.648432251 | AC238: =AB238*(1+AC237) -> 2.795685084 | AD238: =AC238*(1+AD237) -> 2.951125175 | AE238: =AD238*(1+AE237) -> 3.115207735 | AF238: =AE238*(1+AF237) -> 3.288413285 | AG238: =AF238*(1+AG237) -> 3.471249064 | AH238: =AG238*(1+AH237) -> 3.664250512 | AI238: =AH238*(1+AI237) -> 3.86798284 | AJ238: =AI238*(1+AJ237) -> 4.083042686 | AK238: =AJ238*(1+AK237) -> 4.310059859 | AL238: =AK238*(1+AL237) -> 4.549699187 | AM238: =AL238*(1+AM237) -> 4.802662462 | AN238: =AM238*(1+AN237) -> 5.069690495 | AO238: =AN238*(1+AO237) -> 5.351565287 | AP238: =AO238*(1+AP237) -> 5.649112317 | AQ238: =AP238*(1+AQ237) -> 5.963202961 | AR238: =AQ238*(1+AR237) -> 6.294757046 | AS238: =AR238*(1+AS237) -> 6.644745538 | AT238: =AS238*(1+AT237) -> 7.01419339 | AU238: =AT238*(1+AU237) -> 7.404182542 | AV238: =AU238*(1+AV237) -> 7.815855092 | AW238: =AV238*(1+AW237) -> 8.250416635 | AX238: =AW238*(1+AX237) -> 8.709139799 | AY238: =AX238*(1+AY237) -> 9.193367972 | AZ238: =AY238*(1+AZ237) -> 9.704519232 | BA238: =AZ238*(1+BA237) -> 10.2440905 | BB238: =BA238*(1+BB237) -> 10.81366193 | BC238: =BB238*(1+BC237) -> 11.41490154 | BD238: =BC238*(1+BD237) -> 12.04957006 | BE238: =BD238*(1+BE237) -> 12.71952616 | BF238: =BE238*(1+BF237) -> 13.42673181 | BG238: =BF238*(1+BG237) -> 14.1732581
B239: Deflator | J239: =1/J238 -> 1 | K239: =1/K238 -> 0.9473285335 | L239: =1/L238 -> 0.8974313505 | M239: =1/M238 -> 0.8501623252 | N239: =1/N238 -> 0.8053830288 | O239: =1/O238 -> 0.7629623236 | P239: 0.7227759791 | Q239: 0.6847063084 | R239: 0.648641823 | S239: 0.614476907 | T239: 0.5821115072 | U239: 0.5514508405 | V239: 0.522405116 | W239: 0.4948892725 | X239: 0.4688227288 | Y239: 0.4441291481 | Z239: 0.4207362146 | AA239: 0.3985754212 | AB239: 0.3775818692 | AC239: 0.3576940785 | AD239: 0.3388538068 | AE239: 0.3210058799 | AF239: 0.3040980295 | AG239: 0.2880807403 | AH239: 0.2729071052 | AI239: 0.2585326878 | AJ239: 0.244915392 | AK239: 0.2320153392 | AL239: 0.219794751 | AM239: 0.2082178391 | AN239: 0.1972507002 | AO239: 0.1868612166 | AP239: 0.1770189623 | AQ239: 0.1676951139 | AR239: 0.1588623664 | AS239: 0.1504948526 | AT239: 0.142568068 | AU239: 0.1350587988 | AV239: 0.1279450538 | AW239: 0.1212060002 | AX239: 0.1148219024 | AY239: 0.1087740644 | AZ239: 0.1030447749 | BA239: 0.09761725552 | BB239: 0.09247561152 | BC239: 0.08760478545 | BD239: 0.08299051293 | BE239: 0.07861928091 | BF239: 0.07447828809 | BG239: 0.07055540744
B241: Totex sought for EDPR FY27-31 (undiscounted) | G241: ="("&TEXT('1_KMA'!$I$21,"dd-mmm-yy")&" Dollars)" -> (30-Jun-24 Dollars)
